Workbook

Sheet GCTables (hidden)
B4: Table 12: DSE values for different classes of sheep (Figures from Prograze Manual) | I4: Table 13: DSE values for different classes of cattle | O4: Composition of Common Fertilisers | Y4: Soil Phosphorus Maintenance Factors | Z4: Source: Better Fertiliser Decisions Project, DPI Vic | AG4: ST | AH4: GM | AI4: LS | AJ4: ALLF | AK4: RF | AL4: Result
C5: Body Weight (kg) | I5: (Figures from Prograze Manual) | P5: N% | Q5: P% | R5: K% | S5: S% | AG5: =IF('Phosphorus Calculator'!B6="","",IF('Phosphorus Calculator'!B6=GCTables!Y8,GCTables!AA8,IF('Phosphorus Calculator'!B6=GCTables!Y9,GCTables!AA9,GCTables!AA10))) ->  | AH5: =IF('Phosphorus Calculator'!C6="","",IF('Phosphorus Calculator'!C6=GCTables!Y15,1,2)) ->  | AI5: =IF('Phosphorus Calculator'!D6="","",IF('Phosphorus Calculator'!D6=GCTables!Z15,1,IF('Phosphorus Calculator'!D6=GCTables!Z16,2,3))) ->  | AJ5: =IF(AH5="","",IF(AI5="","",IF('Phosphorus Calculator'!D6="","",IF(GCTables!AH5=1,IF(GCTables!AI5=1,GCTables!AA15,IF(GCTables!AI5=2,GCTables!AA16,GCTables!AA17)),IF(GCTables!AI5=1,GCTables!AA18,IF(GCTables!AI5=2,GCTables!AA19,GCTables!AA20)))))) ->  | AK5: =IF('Phosphorus Calculator'!E6="","",'Phosphorus Calculator'!E6) ->  | AL5: =IF(AK5="","",IF($AG$5=Y25,IF($AJ$5=Z25,IF($AK$5=AA24,AA25,IF($AK$5=AB24,AB25,IF($AK$5=AC24,AC25,AD25))),0),0)) -> 
B6: Class | C6: 40 | D6: 50 | E6: 60 | F6: 70 | I6: Class | J6: Body weight (kg) | O6: Single Super | P6: 0 | Q6: 8.8 | R6: 0 | S6: 11 | Y6: First identify your soil loss factor | AL6: =IF(AK5="","",IF($AG$5=Y25,IF($AJ$5=Z26,IF($AK$5=$AA$24,AA26,IF($AK$5=$AB$24,AB26,IF($AK$5=$AC$24,AC26,AD26))),0),0)) -> 
B7: Dry Sheep | C7: 0.9 | D7: 1.1 | E7: 1.2 | F7: 1.3 | J7: 500 | K7: 550 | L7: 600 | O7: Double Super | P7: 0 | Q7: 17.1 | R7: 0 | S7: 4 | Y7: Soil type | Z7: Phosphorus Buffering Index | AA7: Loss factor | AL7: =IF(AK5="","",IF($AG$5=Y25,IF($AJ$5=Z27,IF($AK$5=$AA$24,AA27,IF($AK$5=$AB$24,AB27,IF($AK$5=$AC$24,AC27,AD27))),0),0)) -> 
B8: Pregnant ewes (last month) | I8: Pregnant (last 3 mths) | J8: 11 | K8: 12 | L8: 13 | O8: Super Potash 5:1 | P8: 0 | Q8: 7.6 | R8: 8 | S8: 9.2 | Y8: Loams/sandy loams | Z8: 0-100 | AA8: Low | AL8: =IF(AK5="","",IF($AG$5=Y25,IF($AJ$5=Z28,IF($AK$5=$AA$24,AA28,IF($AK$5=$AB$24,AB28,IF($AK$5=$AC$24,AC28,AD28))),0),0)) -> 
B9: Single | C9: 1.2 | D9: 1.4 | E9: 1.6 | F9: 1.8 | I9: Lactating (0-3 mths) | J9: 13 | K9: 14 | L9: 15 | O9: Super Potash 2:1 | P9: 0 | Q9: 5.9 | R9: 16.7 | S9: 7.3 | Y9: Clay loams | Z9: 100-300 | AA9: Medium | AL9: =IF(AK5="","",IF($AG$5=$Y$29,IF($AJ$5=Z29,IF($AK$5=$AA$24,AA29,IF($AK$5=$AB$24,AB29,IF($AK$5=$AC$24,AC29,AD29))),0),0)) -> 
B10: Twin | C10: 1.4 | D10: 1.6 | E10: 1.9 | F10: 2.2 | I10: Lactating (150kg calf) | J10: 18 | K10: 19 | L10: 20 | O10: Super Potash 1:1 | P10: 0 | Q10: 4.4 | R10: 25 | S10: 5.5 | Y10: Clays | Z10: 300+ | AA10: High | AL10: =IF(AK5="","",IF($AG$5=$Y$29,IF($AJ$5=Z30,IF($AK$5=$AA$24,AA30,IF($AK$5=$AB$24,AB30,IF($AK$5=$AC$24,AC30,AD30))),0),0)) -> 
B11: Lactating ewe | I11: Cow/calf average/year | J11: 14 | K11: 15 | L11: 16 | O11: MAP | P11: 18 | Q11: 22 | R11: 0 | S11: 2 | Y11: Acid sands | Z11: 0-100 | AA11: High | AL11: =IF(AK5="","",IF($AG$5=$Y$29,IF($AJ$5=Z31,IF($AK$5=$AA$24,AA31,IF($AK$5=$AB$24,AB31,IF($AK$5=$AC$24,AC31,AD31))),0),0)) -> 
B12: Single | C12: 2.6 | D12: 2.7 | E12: 2.9 | F12: 3.1 | I12: Steers | J12: 200 | K12: 300 | L12: 400 | O12: DAP | P12: 10 | Q12: 20 | R12: 0 | S12: 1.6 | AL12: =IF(AK5="","",IF($AG$5=$Y$29,IF($AJ$5=Z32,IF($AK$5=$AA$24,AA32,IF($AK$5=$AB$24,AB32,IF($AK$5=$AC$24,AC32,AD32))),0),0)) -> 
B13: Twin | C13: 3.7 | D13: 3.9 | E13: 4.4 | F13: 4.9 | I13: Maintenance | J13: 4 | K13: 6 | L13: 7 | O13: Urea | P13: 48 | Q13: 0 | R13: 0 | S13: 0 | Y13: Then look up your animal/landscape loss factor | AL13: =IF(AK5="","",IF($AG$5=$Y$33,IF($AJ$5=Z33,IF($AK$5=$AA$24,AA33,IF($AK$5=$AB$24,AB33,IF($AK$5=$AC$24,AC33,AD33))),0),0)) -> 
B14: Ewe/lamb av/yr | I14: 0.5 kg/day | J14: 6 | K14: 7 | L14: 8 | Y14: Grazing Management | Z14: Landscape | AL14: =IF(AK5="","",IF($AG$5=$Y$33,IF($AJ$5=Z34,IF($AK$5=$AA$24,AA34,IF($AK$5=$AB$24,AB34,IF($AK$5=$AC$24,AC34,AD34))),0),0)) -> 
B15: Twin | C15: 1.4 | D15: 1.5 | E15: 2.1 | I15: 1.0 kg/day | J15: 8.5 | K15: 11 | L15: 13 | Y15: Intensive rotational grazing | Z15: Flat/rolling | AA15: Very low | AC15: Intensive rotational grazing | AL15: =IF(AK5="","",IF($AG$5=$Y$33,IF($AJ$5=Z35,IF($AK$5=$AA$24,AA35,IF($AK$5=$AB$24,AB35,IF($AK$5=$AC$24,AC35,AD35))),0),0)) -> 
B16: Single | C16: 1.7 | D16: 1.9 | E16: 2.6 | O16: Determine Soil Phosphorus Maintenace Factor | Z16: Easy hills | AA16: Low | AC16: Set stocked or intermittent grazing | AL16: =IF(AK5="","",IF($AG$5=$Y$33,IF($AJ$5=Z36,IF($AK$5=$AA$24,AA36,IF($AK$5=$AB$24,AB36,IF($AK$5=$AC$24,AC36,AD36))),0),0)) -> 
B17: Weaned lambs | O17: Soil Type | P17: Grazing Management | Q17: Landscape | R17: Rainfall (mm) | S17: P Maintenance Factor (Kg P/DSE) | Z17: Steep hills | AA17: Medium | AL17: =SUM(AL5:AL16) -> 0
B18: Merino (20kg) | C18: 0.6-1 depending on rate of liveweight gain | O18: Clay loams | P18: Set stocked or intermittent grazing | Q18: Easy hills | R18: 800 | S18: =AL17 -> 0 | Y18: Set stocked or intermittent grazing | Z18: Flat/rolling | AA18: Low
B19: Xbred (30-40kg) | C19: 1-1.5 depending on rate of liveweight gain | Z19: Easy hills | AA19: Medium
Z20: Steep hills | AA20: High
Y22: Now look up your maintenance loss factor accounting for the soil loss factor, animal/landscape loss factor and rainfall
Y23: Soil loss factor | Z23: Animal loss factor | AA23: Annual Rainfall
AA24: 600 | AB24: 700 | AC24: 800 | AD24: 900+
Y25: Low | Z25: Very low | AA25: 0.48 | AB25: 0.52 | AC25: 0.54 | AD25: 0.56
O26: Soil Phosphorus Maintenance Factors | Z26: Low | AA26: 0.62 | AB26: 0.66 | AC26: 0.68 | AD26: 0.72
O27: Source: Better Fertiliser Decisions Project, DPI Vic | Z27: Medium | AA27: 0.76 | AB27: 0.8 | AC27: 0.84 | AD27: 0.88
Z28: High | AA28: 0.9 | AB28: 0.94 | AC28: 1 | AD28: 1.04
O29: First - Identify your soil loss factor | Y29: Medium | Z29: Very low | AA29: 0.72 | AB29: 0.74 | AC29: 0.78 | AD29: 0.82
O30: Soil type | P30: Phosphorus Buffering Index | Q30: Loss factor | Z30: Low | AA30: 0.84 | AB30: 0.88 | AC30: 0.92 | AD30: 0.98
O31: Loams/sandy loams | P31: 0-100 | Q31: Low | Z31: Medium | AA31: 0.98 | AB31: 1.04 | AC31: 1.08 | AD31: 1.14
O32: Clay loams | P32: 100-300 | Q32: Medium | Z32: High | AA32: 1.12 | AB32: 1.18 | AC32: 1.24 | AD32: 1.28
O33: Clays | P33: 300+ | Q33: High | Y33: High | Z33: Very low | AA33: 0.94 | AB33: 0.98 | AC33: 1.02 | AD33: 1.06
O34: Acid sands | P34: 0-100 | Q34: High | Z34: Low | AA34: 1.06 | AB34: 1.12 | AC34: 1.18 | AD34: 1.22
Z35: Medium | AA35: 1.2 | AB35: 1.26 | AC35: 1.32 | AD35: 1.38
O36: Then look up your animal/landscape loss factor | Z36: High | AA36: 1.34 | AB36: 1.4 | AC36: 1.48 | AD36: 1.54
O37: Grazing Management | P37: Landscape | Q37: Loss factor
O38: Intensive rotational grazing | P38: Flat/rolling | Q38: Very low | Y38: You can identify the capital P required using soil type or Phosphorus Buffering Index
P39: Easy hills | Q39: Low | Y39: Capital factors (Source: Healthy Grazing Pastures Manual, DPI Vic)
P40: Steep hills | Q40: Medium | Y40: Soil type | Z40: Phosphorus (based on soil type) | AA40: Phosphorus Buffering Index | AB40: Phosphorus based on Phosphorus Buffering Index
O41: Set stocked or intermittent grazing | P41: Flat/rolling | Q41: Low | Y41: Sand or PBI | Z41: 5 | AA41: 0-50 | AB41: 5
P42: Easy hills | Q42: Medium | Y42: Sandy Loam or PBI | Z42: 8 | AA42: 50-100 | AB42: 7
P43: Steep hills | Q43: High | Y43: Clay Loam or PBI | Z43: 10 | AA43: 100-200 | AB43: 9
Y44: Clay/Red Loam | Z44: 13 | AA44: 200-300 | AB44: 11
O45: Now look up your maintenance loss factor accounting for the soil loss factor, animal/landscape loss factor and rainfall | Y45: Peat | Z45: 16 | AA45: 300-600 | AB45: 13
O46: Soil loss factor | P46: Animal loss factor | Q46: Annual Rainfall | AA46: 600+ | AB46: 15
Q47: 600 | R47: 700 | S47: 800 | T47: 900
O48: Low | P48: Very low | Q48: 0.48 | R48: 0.52 | S48: 0.54 | T48: 0.56
P49: Low | Q49: 0.62 | R49: 0.66 | S49: 0.68 | T49: 0.72
P50: Medium | Q50: 0.76 | R50: 0.8 | S50: 0.84 | T50: 0.88
P51: High | Q51: 0.9 | R51: 0.94 | S51: 1 | T51: 1.04
O52: Medium | P52: Very low | Q52: 0.72 | R52: 0.74 | S52: 0.78 | T52: 0.82
P53: Low | Q53: 0.84 | R53: 0.88 | S53: 0.92 | T53: 0.98
P54: Medium | Q54: 0.98 | R54: 1.04 | S54: 1.08 | T54: 1.14
P55: High | Q55: 1.12 | R55: 1.18 | S55: 1.24 | T55: 1.28
O56: High | P56: Very low | Q56: 0.94 | R56: 0.98 | S56: 1.02 | T56: 1.06
P57: Low | Q57: 1.06 | R57: 1.12 | S57: 1.18 | T57: 1.22
P58: Medium | Q58: 1.2 | R58: 1.26 | S58: 1.32 | T58: 1.38
P59: High | Q59: 1.34 | R59: 1.4 | S59: 1.48 | T59: 1.54

Sheet Tables (hidden)
B2: DATA TABLES
B4: Index
C6: Predicted daily intake of pasture for cows.
C8: Predicted daily pasture intake of weaner cattle
C10: Predicted daily pasture intake of pasture by ewes
C12: Predicted daily pasture intake of pasture by weaner sheep
C14: Predicted daily energy intake of pasture by ewes
C16: Predicted daily energy intake of pasture by weaner sheep
C18: Minimum pasture availability required to maintain satisfactory production levels
C20: Approximate relationship between pasture height and kg green DM/ha
C22: Monthly pasture growth rate estimates
C24: Protein and energy requirements for sheep
C26: Protein and energy requirements for cattle
C28: Estimated digestibility, energy, protein and fibre value of pastures
C30: Estimated energy, protein and fibre values of common livestock feeds
C32: DSE values for different classes of sheep
C34: DSE values for different classes of cattle
C36: Pasture response to nitrogen
C38: Composition of common fertilisers
C40: Useful Formulas
B43: Table 1: Predicted daily intake of pasture (kg DM/hd/day) for cows (Figures from Prograze manual, NSW DPI and MLA)
B44: Pasture Availability | E44: 500 kg DM/ha | K44: 1000 kg DM/ha | Q44: 1500 kg DM/ha | W44: 2000 kg DM/ha
B45: Digestibility | C45: 0.4 | D45: 0.5 | E45: 0.6 | F45: 0.7 | G45: 0.75 | H45: 0.8 | I45: 0.4 | J45: 0.5 | K45: 0.6 | L45: 0.7 | M45: 0.75 | N45: 0.8 | O45: 0.4 | P45: 0.5 | Q45: 0.6 | R45: 0.7 | S45: 0.75 | T45: 0.8 | U45: 0.4 | V45: 0.5 | W45: 0.6 | X45: 0.7 | Y45: 0.75 | Z45: 0.8
B46: Livestock category | C46: Intake | D46: Intake | E46: Intake | F46: Intake | G46: Intake | H46: Intake | I46: Intake | J46: Intake | K46: Intake | L46: Intake | M46: Intake | N46: Intake | O46: Intake | P46: Intake | Q46: Intake | R46: Intake | S46: Intake | T46: Intake | U46: Intake | V46: Intake | W46: Intake | X46: Intake | Y46: Intake | Z46: Intake
B47: 400 kg Cow (FS 3)
B48: Dry/Pregnant | C48: 1.1 | D48: 2 | E48: 2.6 | F48: 3.2 | G48: =(H48-F48)/2+F48 -> 3.85 | H48: 4.5 | I48: 1.8 | J48: 3.1 | K48: 4.1 | L48: 5 | M48: =(N48-L48)/2+L48 -> 5.55 | N48: 6.1 | O48: 2.3 | P48: 3.8 | Q48: 4.8 | R48: 5.9 | S48: =(T48-R48)/2+R48 -> 6.15 | T48: 6.4 | U48: 2.7 | V48: 4.3 | W48: 5.3 | X48: 6.4 | Y48: =(Z48-X48)/2+X48 -> 6.5 | Z48: 6.6
B49: Early lactation (2 mths) | C49: 1.7 | D49: 3.1 | E49: 4.1 | F49: 5.1 | G49: =(H49-F49)/2+F49 -> 5.95 | H49: 6.8 | I49: 2.8 | J49: 4.9 | K49: 6.3 | L49: 7.6 | M49: =(N49-L49)/2+L49 -> 8.3 | N49: 9 | O49: 3.6 | P49: 6 | Q49: 7.4 | R49: 8.9 | S49: =(T49-R49)/2+R49 -> 9.2 | T49: 9.5 | U49: 4.2 | V49: 6.6 | W49: 8 | X49: 9.5 | Y49: =(Z49-X49)/2+X49 -> 9.6 | Z49: 9.7
B50: Late lactation (5 mths) | C50: 2.2 | D50: 4.1 | E50: 5.4 | F50: 6.6 | G50: 7.7 | H50: 8.8 | I50: 3.7 | J50: 6.4 | K50: 8.2 | L50: 9.8 | M50: 10.7 | N50: 11.6 | O50: 4.7 | P50: 7.8 | Q50: 9 | R50: 11.4 | S50: 11.8 | T50: 12.2 | U50: 5.5 | V50: 8.6 | W50: 10.3 | X50: 12.2 | Y50: 12.35 | Z50: 12.5
B51: 500 kg Cow (FS 3)
B52: Dry/Pregnant | C52: 1.3 | D52: 2.5 | E52: 3.3 | F52: 4.1 | G52: 4.85 | H52: 5.6 | I52: 2.2 | J52: 3.9 | K52: 5.1 | L52: 6.3 | M52: 6.95 | N52: 7.6 | O52: 2.9 | P52: 4.8 | Q52: 6.1 | R52: 7.4 | S52: 7.75 | T52: 8.1 | U52: 3.4 | V52: 5.4 | W52: 6.6 | X52: 8 | Y52: 8.15 | Z52: 8.3
B53: Early lactation (2 mths) | C53: 2 | D53: 3.8 | E53: 5 | F53: 6.2 | G53: 7.25 | H53: 8.3 | I53: 3.4 | J53: 6.1 | K53: 7.7 | L53: 9.3 | M53: 10.15 | N53: 11 | O53: 4.4 | P53: 7.3 | Q53: 9.1 | R53: 10.8 | S53: 11.2 | T53: 11.6 | U53: 5.1 | V53: 8.1 | W53: 9.8 | X53: 11.9 | Y53: 11.9 | Z53: 11.9
B54: Late lactation (5 mths) | C54: 2.7 | D54: 5 | E54: 6.6 | F54: 8.2 | G54: 9.5 | H54: 10.8 | I54: 4.5 | J54: 7.9 | K54: 10.2 | L54: 12.1 | M54: 13.2 | N54: 14.3 | O54: 5.8 | P54: 9.6 | Q54: 11.9 | R54: 14 | S54: 14.5 | T54: 15 | U54: 6.7 | V54: 10.6 | W54: 12.7 | X54: 15.4 | Y54: 15.4 | Z54: 15.4
B55: 600 kg Cow (FS 3)
B56: Dry/Pregnant | C56: 1.6 | D56: 3 | E56: 3.9 | F56: 4.9 | G56: 5.8 | H56: 6.7 | I56: 2.7 | J56: 4.7 | K56: 6.1 | L56: 7.5 | M56: 8.35 | N56: 9.2 | O56: 3.5 | P56: 5.8 | Q56: 7.3 | R56: 8.9 | S56: 9.3 | T56: 9.7 | U56: 4.1 | V56: 6.4 | W56: 8 | X56: 9.9 | Y56: 9.9 | Z56: 9.9
B57: Early lactation (2 mths) | C57: 2.4 | D57: 4.5 | E57: 5.9 | F57: 7.3 | G57: 8.5 | H57: 9.7 | I57: 4.1 | J57: 7.1 | K57: 9.1 | L57: 10.9 | M57: 11.95 | N57: 13 | O57: 5.2 | P57: 8.7 | Q57: 10.7 | R57: 12.8 | S57: 13.25 | T57: 13.7 | U57: 6 | V57: 9.5 | W57: 11.6 | X57: 14 | Y57: 14 | Z57: 14
B58: Late lactation (5 mths) | C58: 3.1 | D58: 5.9 | E58: 7.7 | F58: 9.6 | G58: 11.05 | H58: 12.5 | I58: 5.2 | J58: 9.2 | K58: 11.8 | L58: 13.9 | M58: 15.2 | N58: 16.5 | O58: 6.7 | P58: 11.4 | Q58: 13.7 | R58: 16.2 | S58: 16.75 | T58: 17.3 | U58: 7.8 | V58: 12.3 | W58: 14.7 | X58: 17.7 | Y58: 17.7 | Z58: 17.7
B59: 700 kg Cow (FS 3)
B60: Dry/Pregnant | C60: 1.9 | D60: 3.5 | E60: 4.6 | F60: 5.7 | G60: 6.8 | H60: 7.9 | I60: 3.2 | J60: 5.5 | K60: 7.1 | L60: 8.8 | M60: 9.75 | N60: 10.7 | O60: 4.1 | P60: 6.8 | Q60: 8.5 | R60: 10.5 | S60: 10.9 | T60: 11.3 | U60: 4.8 | V60: 7.5 | W60: 9.3 | X60: 11.6 | Y60: 11.6 | Z60: 11.6
B61: Early lactation (2 mths) | C61: 2.8 | D61: 5.2 | E61: 6.8 | F61: 8.4 | G61: 9.8 | H61: 11.2 | I61: 4.8 | J61: 8.2 | K61: 10.4 | L61: 12.6 | M61: 13.8 | N61: 15 | O61: 6 | P61: 10 | Q61: 12.3 | R61: 14.7 | S61: 15.25 | T61: 15.8 | U61: 7 | V61: 11 | W61: 13.4 | X61: 16.2 | Y61: 16.2 | Z61: 16.2
B62: Late lactation (5 mths) | C62: 3.5 | D62: 6.6 | E62: 8.7 | F62: 10.8 | G62: 12.4 | H62: 14 | I62: 5.9 | J62: 10.4 | K62: 13.3 | L62: 15.6 | M62: 17.05 | N62: 18.5 | O62: 7.6 | P62: 12.5 | Q62: 15.4 | R62: 18.1 | S62: 18.75 | T62: 19.4 | U62: 8.8 | V62: 13.8 | W62: 16.5 | X62: 19.9 | Y62: 19.9 | Z62: 19.9
B63: * For lactating cows, an allowance has been made for pasture consumed by their calves
B66: Table 2: Predicted daily pasture intake (kg/hd/day) of weaner cattle (Figures from Prograze manual, NSW DPI and MLA)
B67: Pasture Availability | E67: 500 kg DM/ha | K67: 1000 kg DM/ha | Q67: 1500 kg DM/ha | W67: 2000 kg DM/ha
B68: Digestibility | C68: 0.4 | D68: 0.5 | E68: 0.6 | F68: 0.7 | G68: 0.75 | H68: 0.8 | I68: 0.4 | J68: 0.5 | K68: 0.6 | L68: 0.7 | M68: 0.75 | N68: 0.8 | O68: 0.4 | P68: 0.5 | Q68: 0.6 | R68: 0.7 | S68: 0.75 | T68: 0.8 | U68: 0.4 | V68: 0.5 | W68: 0.6 | X68: 0.7 | Y68: 0.75 | Z68: 0.8
B69: Cattle weight (kg) | C69: Intake | D69: Intake | E69: Intake | F69: Intake | G69: Intake | H69: Intake | I69: Intake | J69: Intake | K69: Intake | L69: Intake | M69: Intake | N69: Intake | O69: Intake | P69: Intake | Q69: Intake | R69: Intake | S69: Intake | T69: Intake | U69: Intake | V69: Intake | W69: Intake | X69: Intake | Y69: Intake | Z69: Intake
B70: 150 | C70: 1 | D70: 1.8 | E70: 2.3 | F70: 2.9 (0.1) | G70: 2.9 (0.1) | H70: 3.9 (0.7) | I70: 1.6 | J70: 2.7 | K70: 3.5 (0.1) | L70: 4.3 (0.6) | M70: 4.7 (0.9) | N70: 5 (1.2) | O70: 2 | P70: 3.2 | Q70: 4 (0.3) | R70: 4.9 (0.9) | S70: 5 (1.1) | T70: 5 (1.2) | U70: 2.3 | V70: 3.5 | W70: 4.3 (0.4) | X70: 5.1 (1.1) | Y70: 5.2 (1.2) | Z70: 5.2 (1.2)
B71: 200 | C71: 1.1 | D71: 2.1 | E71: 2.8 | F71: 3.5 (0.1) | G71: 3.5 (0.1) | H71: 4.7 (0.7) | I71: 1.9 | J71: 3.3 | K71: 4.2 | L71: 5.2 (0.6) | M71: 5.8 (0.9) | N71: 6.3 (1.2) | O71: 2.4 | P71: 3.9 | Q71: 4.9 (0.3) | R71: 6 (0.9) | S71: 6.2 (1.1) | T71: 6.3 (1.2) | U71: 2.7 | V71: 4.3 | W71: 5.1 (0.4) | X71: 6.4 (1.1) | Y71: 6.5 (1.2) | Z71: 6.5 (1.3)
B72: 250 | C72: 1.2 | D72: 2.4 | E72: 3.1 | F72: 3.9 | G72: 4.6 (0.3) | H72: 5.3 (0.6) | I72: 2.1 | J72: 3.7 | K72: 4.8 | L72: 5.4 (0.5) | M72: 6.4 (0.9) | N72: 7.3 (1.2) | O72: 2.7 | P72: 4.5 | Q72: 5.6 (0.2) | R72: 6.9 (0.9) | S72: 7.1 (1.1) | T72: 7.3 (1.2) | U72: 3.1 | V72: 5 | W72: 6.1 (0.3) | X72: 7.4 (1) | Y72: 7.5 (1.2) | Z72: 7.5 (1.3)
B73: 300 | C73: 1.3 | D73: 2.5 | E73: 3.3 | F73: 4.1 | G73: 4.9 (0.3) | H73: 5.7 (0.5) | I73: 2.2 | J73: 4 | K73: 5.1 | L73: 6.4 (0.4) | M73: 7.3 (0.8) | N73: 8.2 (1.1) | O73: 2 | P73: 4.9 | Q73: 6.2 (0.1) | R73: 7.5 (0.7) | S73: 7.9 (0.9) | T73: 8.2 (1.1) | U73: 3.4 | V73: 5.4 | W73: 6.7 (0.3) | X73: 8.2 (0.9) | Y73: 8.3 (1.1) | Z73: 8.4 (1.2)
B74: 350 | C74: 1.4 | D74: 2.7 | E74: 3.6 | F74: 4.5 | G74: 5.4 (0.2) | H74: 6.2 (0.4) | I74: 2.4 | J74: 4.2 | K74: 5.4 | L74: 6.7 (0.3) | M74: 7.8 (0.7) | N74: 8.9 (1.1) | O74: 3.2 | P74: 5.3 | Q74: 6.7 (0.1) | R74: 8.2 (0.7) | S74: 8.6 (0.9) | T74: 8.9 (1.1) | U74: 3.7 | V74: 5.9 | W74: 7.3 (0.2) | X74: 8.9 (0.9) | Y74: 9.0 (1.0) | Z74: 9.1 (1.1)
B75: 400 | C75: 1.5 | D75: 2.8 | E75: 3.8 | F75: 4.7 | G75: 5.6 (0.2) | H75: 6.5 (0.3) | I75: 2.6 | J75: 4.5 | K75: 5.9 | L75: 7.2 (0.3) | M75: 8.3 (0.7) | N75: 9.3 (1) | O75: 3.3 | P75: 5.6 | Q75: 7 | R75: 8.6 (0.6) | S75: 9 (0.8) | T75: 9.3 (1) | U75: 3.9 | V75: 6.2 | W75: 7.6 (0.1) | X75: 9.3 (1.1) | Y75: 9.4 (1.1) | Z75: 9.5 (1.1)
B76: 450 | C76: 1.6 | D76: 2.9 | E76: 3.9 | F76: 4.9 | G76: 5.8 (0.2) | H76: 6.7 (0.3) | I76: 2.6 | J76: 4.6 | K76: 6 | L76: 7.4 (0.2) | M76: 8.5 (0.6) | N76: 9.5 (0.9) | O76: 3.4 | P76: 5.7 | Q76: 7.2 | R76: 8.8 (0.5) | S76: 9.2 (0.7) | T76: 9.5 (0.9) | U76: 4 | V76: 6.3 | W76: 7.8 (0.1) | X76: 9.7 (1) | Y76: 9.7 (1) | Z76: 9.7 (1)
B77: 500 | C77: 1.6 | D77: 3 | E77: 3.9 | F77: 4.9 | G77: 5.8 (0.1) | H77: 6.7 (0.2) | I77: 2.7 | J77: 4.7 | K77: 6.1 | L77: 7.5 (0.1) | M77: 8.6 (0.5) | N77: 9.6 (0.8) | O77: 3.5 | P77: 5.8 | Q77: 7.3 | R77: 8.9 (0.5) | S77: 9.3 (0.7) | T77: 9.6 (0.8) | U77: 4 | V77: 6.4 | W77: 7.9 | X77: 9.9 (0.9) | Y77: 9.9 (0.9) | Z77: 9.9 (0.9)
B78: 1. The cattle described in this table are assumed to be the progeny from cows with a standard reference weight of 500 kg
B79: 2. The table is based on steers, intakes of females would be apprximately 10% below those indicated
B80: 3. For liveweights greater than 500 kg, use pasture intake predictions indicated for 500 kg
B81: 4. Figures in brackets indicate expected growth rate at that intake level.
B84: Table 3: Predicted daily pasture intake (kg/hd/day) of pasture by ewes (Figures from Prograze manual, NSW DPI and MLA)
B85: Pasture Availability | E85: 500 kg DM/ha | K85: 1000 kg DM/ha | Q85: 1500 kg DM/ha
B86: Digestibility | C86: 0.4 | D86: 0.5 | E86: 0.6 | F86: 0.7 | G86: 0.75 | H86: 0.8 | I86: 0.4 | J86: 0.5 | K86: 0.6 | L86: 0.7 | M86: 0.75 | N86: 0.8 | O86: 0.4 | P86: 0.5 | Q86: 0.6 | R86: 0.7 | S86: 0.75 | T86: 0.8
B87: Livestock category | C87: Intake | D87: Intake | E87: Intake | F87: Intake | G87: Intake | H87: Intake | I87: Intake | J87: Intake | K87: Intake | L87: Intake | M87: Intake | N87: Intake | O87: Intake | P87: Intake | Q87: Intake | R87: Intake | S87: Intake | T87: Intake
B88: 40 kg ewe (FS 3)
B89: Dry or pregnant | C89: 0.2 | D89: 0.4 | E89: 0.6 | F89: 0.7 | G89: =(H89-F89)/2+F89 -> 0.8 | H89: 0.9 | I89: 0.3 | J89: 0.5 | K89: 0.8 | L89: 1 | M89: =(N89-L89)/2+L89 -> 1.05 | N89: 1.1 | O89: 0.4 | P89: 0.5 | Q89: 0.8 | R89: 1.1 | S89: =(T89-R89)/2+R89 -> 1.15 | T89: 1.2
B90: Lactating | C90: 0.4 | D90: 0.7 | E90: 0.9 | F90: 1.2 | G90: =(H90-F90)/2+F90 -> 1.3 | H90: 1.4 | I90: 0.6 | J90: 0.8 | K90: 1.3 | L90: 1.6 | M90: =(N90-L90)/2+L90 -> 1.7 | N90: 1.8 | O90: 0.7 | P90: 0.9 | Q90: 1.4 | R90: 1.7 | S90: =(T90-R90)/2+R90 -> 1.8 | T90: 1.9
B91: 50 kg ewe (FS 3)
B92: Dry or pregnant | C92: 0.3 | D92: 0.5 | E92: 0.7 | F92: 0.9 | G92: 1.05 | H92: 1.2 | I92: 0.4 | J92: 0.6 | K92: 1 | L92: 1.2 | M92: 1.25 | N92: 1.3 | O92: 0.6 | P92: 0.7 | Q92: 1.1 | R92: 1.3 | S92: 1.35 | T92: 1.4
B93: Lactating | C93: 0.5 | D93: 0.9 | E93: 1.1 | F93: 1.4 | G93: 1.65 | H93: 1.9 | I93: 0.8 | J93: 1 | K93: 1.6 | L93: 1.9 | M93: 2 | N93: 2.1 | O93: 0.9 | P93: 1 | Q93: 1.7 | R93: 2 | S93: 2.1 | T93: 2.2
B94: 60 kg ewe (FS 3)
B95: Dry or pregnant | C95: 0.4 | D95: 0.7 | E95: 0.8 | F95: 1 | G95: 1.25 | H95: 1.5 | I95: 0.5 | J95: 0.7 | K95: 1.2 | L95: 1.4 | M95: 1.5 | N95: 1.6 | O95: 0.7 | P95: 0.8 | Q95: 1.3 | R95: 1.6 | S95: 1.65 | T95: 1.7
B96: Lactating | C96: 0.6 | D96: 1.1 | E96: 1.4 | F96: 1.7 | G96: 1.95 | H96: 2.2 | I96: 0.9 | J96: 1.2 | K96: 1.9 | L96: 2.2 | M96: 2.35 | N96: 2.5 | O96: 1.2 | P96: 1.4 | Q96: 2.1 | R96: 2.4 | S96: 2.5 | T96: 2.6
B97: 70 kg ewe (FS 3)
B98: Dry or pregnant | C98: 0.4 | D98: 0.8 | E98: 1 | F98: 1.2 | G98: 1.45 | H98: 1.7 | I98: 0.6 | J98: 0.8 | K98: 1.4 | L98: 1.7 | M98: 1.8 | N98: 1.9 | O98: 0.8 | P98: 0.9 | Q98: 1.5 | R98: 1.8 | S98: 1.85 | T98: 1.9
B99: Lactating | C99: 0.7 | D99: 1.3 | E99: 1.6 | F99: 1.9 | G99: 2.25 | H99: 2.6 | I99: 1 | J99: 1.3 | K99: 2.2 | L99: 2.6 | M99: 2.75 | N99: 2.9 | O99: 1.3 | P99: 1.4 | Q99: 2.4 | R99: 2.8 | S99: 2.85 | T99: 2.9
B102: Table 4: Predicted daily pasture intake (kg/hd/day) of pasture by weaner sheep (Figures from Prograze manual, NSW DPI and MLA)
B103: Pasture Availability | E103: 500 kg DM/ha | K103: 1000 kg DM/ha | Q103: 1500 kg DM/ha
B104: Digestibility | C104: 0.4 | D104: 0.5 | E104: 0.6 | F104: 0.7 | G104: 0.75 | H104: 0.8 | I104: 0.4 | J104: 0.5 | K104: 0.6 | L104: 0.7 | M104: 0.75 | N104: 0.8 | O104: 0.4 | P104: 0.5 | Q104: 0.6 | R104: 0.7 | S104: 0.75 | T104: 0.8
B105: Lamb Weight | C105: Intake | D105: Intake | E105: Intake | F105: Intake | G105: Intake | H105: Intake | I105: Intake | J105: Intake | K105: Intake | L105: Intake | M105: Intake | N105: Intake | O105: Intake | P105: Intake | Q105: Intake | R105: Intake | S105: Intake | T105: Intake
B106: 15 | C106: 0.2 | D106: 0.3 | E106: 0.4 | F106: 0.5 | G106: =(H106-F106)/2+F106 -> 0.55 | H106: 0.6 | I106: 0.3 | J106: 0.5 | K106: 0.6 | L106: 0.7 | M106: =(N106-L106)/2+L106 -> 0.75 | N106: 0.8 | O106: 0.4 | P106: 0.6 | Q106: 0.7 | R106: 0.8 | S106: =(T106-R106)/2+R106 -> 0.85 | T106: 0.9
B107: 25 | C107: 0.3 | D107: 0.5 | E107: 0.6 | F107: 0.8 | G107: =(H107-F107)/2+F107 -> 0.9 | H107: 1 | I107: 0.4 | J107: 0.7 | K107: 0.9 | L107: 1.1 | M107: =(N107-L107)/2+L107 -> 1.15 | N107: 1.2 | O107: 0.5 | P107: 0.8 | Q107: 1 | R107: 1.2 | S107: =(T107-R107)/2+R107 -> 1.25 | T107: 1.3
B108: 35 | C108: 0.3 | D108: 0.6 | E108: 0.8 | F108: 1 | G108: =(H108-F108)/2+F108 -> 1.1 | H108: 1.2 | I108: 0.5 | J108: 0.9 | K108: 1.1 | L108: 1.3 | M108: =(N108-L108)/2+L108 -> 1.4 | N108: 1.5 | O108: 0.6 | P108: 0.9 | Q108: 1.2 | R108: 1.4 | S108: =(T108-R108)/2+R108 -> 1.45 | T108: 1.5
B109: 45 | C109: 0.3 | D109: 0.7 | E109: 0.9 | F109: 1.1 | G109: =(H109-F109)/2+F109 -> 1.2 | H109: 1.3 | I109: 0.6 | J109: 0.9 | K109: 1.2 | L109: 1.5 | M109: =(N109-L109)/2+L109 -> 1.55 | N109: 1.6 | O109: 0.7 | P109: 1 | Q109: 1.3 | R109: 1.6 | S109: =(T109-R109)/2+R109 -> 1.65 | T109: 1.7
B111: Table 5: Predicted daily energy intake (MJ ME/hd) from pasture by ewes (Figures from Lifetimewool, www.lifetimewool.com.au)
B112: Pasture Availability | E112: 500 kg DM/ha | K112: 1000 kg DM/ha | Q112: 1500 kg DM/ha
B113: Digestibility | C113: 0.4 | D113: 0.5 | E113: 0.65 | F113: 0.7 | G113: 75% - 30% Legume | H113: 75% - 60% Legume | I113: 0.4 | J113: 0.5 | K113: 0.65 | L113: 0.7 | M113: 75% - 30% Legume | N113: 75% - 60% Legume | O113: 0.4 | P113: 0.5 | Q113: 0.65 | R113: 0.7 | S113: 75% - 30% Legume | T113: 75% - 60% Legume
B114: Livestock category | C114: Intake | D114: Intake | E114: Intake | F114: Intake | G114: Intake | H114: Intake | I114: Intake | J114: Intake | K114: Intake | L114: Intake | M114: Intake | N114: Intake | O114: Intake | P114: Intake | Q114: Intake | R114: Intake | S114: Intake | T114: Intake
B115: 40 kg ewe (FS 3)
B116: Dry or pregnant | C116: =C120*0.78 -> 0.78 | D116: =D120*0.78 -> 1.872 | E116: =E120*0.78 -> 1.794 | F116: =F120*0.78 -> 2.808 | G116: 3.666 | H116: 3.666 | I116: =I120*0.78 -> 1.716 | J116: =J120*0.78 -> 3.666 | K116: =K120*0.78 -> 4.836 | L116: =L120*0.78 -> 7.176 | M116: 9.126 | N116: 9.438 | O116: =O120*0.78 -> 2.418 | P116: =P120*0.78 -> 4.758 | Q116: =Q120*0.78 -> 6.786 | R116: =R120*0.78 -> 9.516 | S116: 11.232 | T116: 11.856
B117: Lactating - Single | C117: Pasture unsuitable | D117: Pasture unsuitable | E117: =E121*0.78 -> 2.444 | F117: 3.77 | G117: 5.018 | H117: 5.2 | I117: Pasture unsuitable | J117: Pasture unsuitable | K117: =K121*0.78 -> 6.734 | L117: 9.958 | M117: 12.48 | N117: 13.026 | O117: Pasture unsuitable | P117: Pasture unsuitable | Q117: =Q121*0.78 -> 9.256 | R117: 13.156 | S117: 15.496 | T117: 16.354
B118: Lactating - Twins | C118: Pasture unsuitable | D118: Pasture unsuitable | E118: =E122*0.78 -> 2.678 | F118: 4.16 | G118: 5.46 | H118: 5.746 | I118: Pasture unsuitable | J118: Pasture unsuitable | K118: =K122*0.78 -> 7.228 | L118: 10.92 | M118: 13.702 | N118: 14.248 | O118: Pasture unsuitable | P118: Pasture unsuitable | Q118: =Q122*0.78 -> 10.192 | R118: 14.404 | S118: 16.926 | T118: 17.888
B119: 50 kg ewe (FS 3)
B120: Dry or pregnant | C120: 1 | D120: 2.4 | E120: 2.3 | F120: 3.6 | G120: 4.7 | H120: 4.7 | I120: 2.2 | J120: 4.7 | K120: 6.2 | L120: 9.2 | M120: 11.7 | N120: 12.1 | O120: 3.1 | P120: 6.1 | Q120: 8.7 | R120: 12.2 | S120: 14.4 | T120: 15.2
B121: Lactating - Single | C121: Pasture unsuitable | D121: Pasture unsuitable | E121: =(3+3.4+3)/3 -> 3.133333333 | F121: =(4.6+5.3+4.6)/3 -> 4.833333333 | G121: =(6.1+7.1+6.1)/3 -> 6.433333333 | H121: =(6.4+7.5+6.1)/3 -> 6.666666667 | I121: Pasture unsuitable | J121: Pasture unsuitable | K121: =(8.2+9.5+8.2)/3 -> 8.633333333 | L121: =(12.1+14.1+12.1)/3 -> 12.76666667 | M121: =(15.2+17.6+15.2)/3 -> 16 | N121: =(15.8+18.4+15.9)/3 -> 16.7 | O121: Pasture unsuitable | P121: Pasture unsuitable | Q121: =(11.2+13.1+11.3)/3 -> 11.86666667 | R121: =(16+18.6+16)/3 -> 16.86666667 | S121: =(18.8+21.9+18.9)/3 -> 19.86666667 | T121: =(19.9+23.1+19.9)/3 -> 20.96666667
B122: Lactating - Twins | C122: Pasture unsuitable | D122: Pasture unsuitable | E122: =(3.2+3.9+3.2)/3 -> 3.433333333 | F122: =(5+6+5)/3 -> 5.333333333 | G122: =(6.5+8+6.5)/3 -> 7 | H122: =(7+8.4+6.7)/3 -> 7.366666667 | I122: Pasture unsuitable | J122: Pasture unsuitable | K122: =(8.2+10.7+8.9)/3 -> 9.266666667 | L122: =(13.1+15.8+13.1)/3 -> 14 | M122: =(16.4+19.9+16.4)/3 -> 17.56666667 | N122: =(17.1+20.6+17.1)/3 -> 18.26666667 | O122: Pasture unsuitable | P122: Pasture unsuitable | Q122: =(12.2+14.8+12.2)/3 -> 13.06666667 | R122: =(17.2+20.9+17.3)/3 -> 18.46666667 | S122: =(20.3+24.5+20.3)/3 -> 21.7 | T122: =(21.4+25.9+21.5)/3 -> 22.93333333
B123: 60 kg ewe (FS 3)
B124: Dry or pregnant | C124: =C120*1.22 -> 1.22 | D124: =D120*1.22 -> 2.928 | E124: =E120*1.22 -> 2.806 | F124: =F120*1.22 -> 4.392 | G124: =G120*1.22 -> 5.734 | H124: 5.734 | I124: 2.684 | J124: 5.734 | K124: =K120*1.22 -> 7.564 | L124: =L120*1.22 -> 11.224 | M124: 14.274 | N124: 14.762 | O124: =O120*1.22 -> 3.782 | P124: =P120*1.22 -> 7.442 | Q124: =Q120*1.22 -> 10.614 | R124: =R120*1.22 -> 14.884 | S124: 17.568 | T124: 18.544
B125: Lactating - Single | C125: Pasture unsuitable | D125: Pasture unsuitable | E125: =E121*1.22 -> 3.822666667 | F125: 5.896666667 | G125: 7.848666667 | H125: 8.133333333 | I125: Pasture unsuitable | J125: Pasture unsuitable | K125: =K121*1.22 -> 10.53266667 | L125: 15.57533333 | M125: 19.52 | N125: 20.374 | O125: Pasture unsuitable | P125: Pasture unsuitable | Q125: =Q121*1.22 -> 14.47733333 | R125: 20.57733333 | S125: 24.23733333 | T125: 25.57933333
B126: Lactating - Twins | C126: Pasture unsuitable | D126: Pasture unsuitable | E126: =E122*1.22 -> 4.188666667 | F126: 6.506666667 | G126: 8.54 | H126: 8.987333333 | I126: Pasture unsuitable | J126: Pasture unsuitable | K126: =K122*1.22 -> 11.30533333 | L126: 17.08 | M126: 21.43133333 | N126: 22.28533333 | O126: Pasture unsuitable | P126: Pasture unsuitable | Q126: =Q122*1.22 -> 15.94133333 | R126: 22.52933333 | S126: 26.474 | T126: 27.97866667
B127: 70 kg ewe (FS 3)
B128: Dry or pregnant | C128: =C120*1.44 -> 1.44 | D128: =D120*1.44 -> 3.456 | E128: =E120*1.44 -> 3.312 | F128: =F120*1.44 -> 5.184 | G128: 6.768 | H128: 6.768 | I128: =I120*1.44 -> 3.168 | J128: =J120*1.44 -> 6.768 | K128: =K120*1.44 -> 8.928 | L128: =L120*1.44 -> 13.248 | M128: 16.848 | N128: 17.424 | O128: =O120*1.44 -> 4.464 | P128: =P120*1.44 -> 8.784 | Q128: =Q120*1.44 -> 12.528 | R128: =R120*1.44 -> 17.568 | S128: 20.736 | T128: 21.888
B129: Lactating - Single | C129: Pasture unsuitable | D129: Pasture unsuitable | E129: =E121*1.44 -> 4.512 | F129: 6.96 | G129: 9.264 | H129: 9.6 | I129: Pasture unsuitable | J129: Pasture unsuitable | K129: =K121*1.44 -> 12.432 | L129: 18.384 | M129: 23.04 | N129: 24.048 | O129: Pasture unsuitable | P129: Pasture unsuitable | Q129: =Q121*1.44 -> 17.088 | R129: 24.288 | S129: 28.608 | T129: 30.192
B130: Lactating - Twins | C130: Pasture unsuitable | D130: Pasture unsuitable | E130: =E122*1.44 -> 4.944 | F130: 7.68 | G130: 10.08 | H130: 10.608 | I130: Pasture unsuitable | J130: Pasture unsuitable | K130: =K122*1.44 -> 13.344 | L130: 20.16 | M130: 25.296 | N130: 26.304 | O130: Pasture unsuitable | P130: Pasture unsuitable | Q130: =Q122*1.44 -> 18.816 | R130: 26.592 | S130: 31.248 | T130: 33.024
B133: Table 6: Predicted daily energy intake (MJ ME/hd) from pasture by weaner sheep (Figures from High Performance Weaners Workshop, Rural Industries Skills Training)
B134: Pasture Availability | E134: 500 kg DM/ha | K134: 1000 kg DM/ha | Q134: 1500 kg DM/ha
B135: Digestibility | C135: 0.4 | D135: 0.5 | E135: 0.6 | F135: 0.7 | G135: 0.75 | H135: 0.8 | I135: 0.4 | J135: 0.5 | K135: 0.6 | L135: 0.7 | M135: 0.75 | N135: 0.8 | O135: 0.4 | P135: 0.5 | Q135: 0.6 | R135: 0.7 | S135: 0.75 | T135: 0.8
B136: Lamb Weight | C136: Intake | D136: Intake | E136: Intake | F136: Intake | G136: Intake | H136: Intake | I136: Intake | J136: Intake | K136: Intake | L136: Intake | M136: Intake | N136: Intake | O136: Intake | P136: Intake | Q136: Intake | R136: Intake | S136: Intake | T136: Intake
B137: 15 | C137: =(0.3+0.9)/2*0.75 -> 0.45 | D137: =(0.7+1.9)/2*0.75 -> 0.975 | E137: =(1.2+3.1)/2*0.75 -> 1.6125 | F137: =(1.8+4.6)/2*0.75 -> 2.4 | G137: =(F137+H137)/2 -> 3.1125 | H137: =(2.9+7.3)/2*0.75 -> 3.825 | I137: =1.5*0.75 -> 1.125 | J137: =3.5*0.75 -> 2.625 | K137: =5.4*0.75 -> 4.05 | L137: =8*0.75 -> 6 | M137: =(L137+N137)/2 -> 7.0875 | N137: =10.9*0.75 -> 8.175 | O137: =2.2*0.75 -> 1.65 | P137: =4.9*0.75 -> 3.675 | Q137: =7.3*0.75 -> 5.475 | R137: =10.6*0.75 -> 7.95 | S137: =(R137+T137)/2 -> 8.475 | T137: =12*0.75 -> 9
B138: 25 | C138: =(0.3+0.9)/2 -> 0.6 | D138: =(0.8+2.1)/2 -> 1.45 | E138: =(1.2+3.3)/2 -> 2.25 | F138: =(1.9+5)/2 -> 3.45 | G138: =(F138+H138)/2 -> 4.45 | H138: =(3.1+7.8)/2 -> 5.45 | I138: 1.6 | J138: 3.9 | K138: 6 | L138: 8.8 | M138: =(L138+N138)/2 -> 10.45 | N138: 12.1 | O138: 2.5 | P138: 5.4 | Q138: 8.1 | R138: 11.7 | S138: =(R138+T138)/2 -> 12.5 | T138: 13.3
B139: 35 | C139: =((0.5+1.3)/2+(0.6+1.5)/2)/2 -> 0.975 | D139: =((1+2.7)/2+(0.9+3)/2)/2 -> 1.9 | E139: =((1.6+4.2)/2+(1.7+4.2)/2)/2 -> 2.925 | F139: =((2.5+6.1)/2+(2.9+6.6)/2)/2 -> 4.525 | G139: =(F139+H139)/2 -> 5.8125 | H139: =((4.1+9.4)/2+(4.7+10.2)/2)/2 -> 7.1 | I139: 2.1 | J139: 4.9 | K139: 7.55 | L139: 11.2 | M139: =(L139+N139)/2 -> 13.275 | N139: =14.7+0.65 -> 15.35 | O139: 3.15 | P139: 6.9 | Q139: =9.8+0.45 -> 10.25 | R139: 14.85 | S139: =(R139+T139)/2 -> 15.875 | T139: 16.9
B140: 45 | C140: =((0.3+0.9)/2+(0.6+1.5)/2)/2 -> 0.825 | D140: =((0.8+2.1)/2+(0.9+3)/2)/2 -> 1.7 | E140: =((1.3+3.3)/2+(1.7+4.2)/2)/2 -> 2.625 | F140: =((1.9+5)/2+(2.9+6.6)/2)/2 -> 4.1 | G140: =(F140+H140)/2 -> 5.275 | H140: =((3.1+7.8)/2+(4.7+10.2)/2)/2 -> 6.45 | I140: =2.25 -> 2.25 | J140: 4.85 | K140: 7.45 | L140: 10.95 | M140: =(L140+N140)/2 -> 12.675 | N140: =12.8+1.6 -> 14.4 | O140: 3.15 | P140: =5.7+0.75 -> 6.45 | Q140: =8.4+1.15 -> 9.55 | R140: 13.8 | S140: =(R140+T140)/2 -> 14.65 | T140: 15.5
B143: Table 7: Minimum pasture availability (kg/ha) required to maintain satisfactory production levels
B144: (Figures from Prograze Manual, MLA and NSW DPI)
C145: Pasture Digestibility
B146: Livestock class | C146: 0.75 | D146: 0.68 | E146: 0.6
B147: Dry sheep | C147: 400 | D147: 600 | E147: 1200
B148: Pregnant ewes
B149: mid pregnancy | C149: 500 | D149: 700 | E149: 1700
B150: last month | C150: 700 | D150: 1200 | E150: ns
B151: Lactating ewes
B152: single | C152: 1000 | D152: 1700 | E152: ns
B153: twins | C153: 1500 | D153: ns | E153: ns
B154: Growing sheep
B155: % of potential growth
B156: 30% (75 g/day) | C156: 400 | D156: 700 | E156: 1700
B157: 50% (125 g/day) | C157: 600 | D157: 1000 | E157: ns
B158: 70% (175 g/day) | C158: 800 | D158: 1700 | E158: ns
B159: 90% (225 g/day) | C159: 1600 | D159: ns | E159: ns
B160: Dry cow | C160: 700 | D160: 1100 | E160: 2600
B161: Pregnant cow, 7-8 mths | C161: 900 | D161: 1700 | E161: ns
B162: Lactating cow (calf 2 mths) | C162: 1100 | D162: 2200 | E162: ns
B163: Growing cattle
B164: % of potential growth
B165: 30% (0.39 kg/day) | C165: 600 | D165: 1100 | E165: 2900
B166: 50% (0.61 kg/day) | C166: 800 | D166: 1600 | E166: ns
B167: 70% (0.85 kg/day) | C167: 1200 | D167: 2600 | E167: ns
B168: 90% (1.12 kg/day) | C168: 2200 | D168: ns | E168: ns
B171: Table 8: Approximate relationship between pasture height and kg green DM/ha (Prograze)
B172: Height | C172: Light | D172: Moderate | E172: Dense
B173: 1 | C173: 250 | D173: 400 | E173: 500
B174: 2 | C174: 500 | D174: 700 | E174: 800
B175: 3 | C175: 600 | D175: 1000 | E175: 1100
B176: 4 | C176: 800 | D176: 1200 | E176: 1400
B177: 5 | C177: 1000 | D177: 1400 | E177: 1700
B178: 6 | C178: 1150 | D178: 1600 | E178: 2000
B179: 7 | C179: 1300 | D179: 1750 | E179: 2300
B180: 8 | C180: 1450 | D180: 1900 | E180: 2600
B181: 9 | C181: 1600 | D181: 2000 | E181: 2800
B182: 10 | C182: 1700 | D182: 2100 | E182: 3000
B185: Table 9: Monthly pasture growth rate estimates (Prograze)
C186: Pasture Type | G186: Pasture growth rates will vary widely between regions, pasture species, soil fertility conditions
B187: MONTH | C187: Poor | D187: Average | E187: Good | F187: Very Good | G187: and seasonal conditions. The figures provided are average values for temperate pastures in
B188: April | C188: 5 | D188: 15 | E188: 25 | F188: 30 | G188: southern Australia and should be used only as a guide. Making More from Sheep Module 8.2 -
B189: May | C189: 15 | D189: 20 | E189: 25 | F189: 30 | G189: Daily pasture growth estimates provides more detailed estimates of pasture growth for different regions
B190: June | C190: 7 | D190: 15 | E190: 20 | F190: 25 | G190: and pasture species | H190: http://www.makingmorefromsheep.com.au/turn-pasture-into-product/tool_8.2.htm
B191: July | C191: 5 | D191: 10 | E191: 15 | F191: 25 | G191: You can also measure your own pasture growth by following the procedures outlined in Module 8.6 Pasture rulers,
B192: August | C192: 15 | D192: 30 | E192: 45 | F192: 60 | G192: sticks and metres | H192: http://www.makingmorefromsheep.com.au/turn-pasture-into-product/tool_8.6.htm
B193: September | C193: 35 | D193: 50 | E193: 80 | F193: 90 | G193: The Pasture Growth calculator can be used to calculate growth from pasture availability estimates and stocking
B194: October | C194: 40 | D194: 70 | E194: 90 | F194: 100 | G194: rates.
B195: November | C195: 30 | D195: 60 | E195: 80 | F195: 80
B196: December | C196: 20 | D196: 40 | E196: 60 | F196: 60
B199: Table 10: Protein and energy requirements for sheep (Enery figures from Lifetimewool, protein figures from Prograze)
C200: Body weight (kg) | G200: Protein
B201: Class of livestock | C201: 40 | D201: 50 | E201: 60 | F201: 70 | G201: Required
B202: Dry sheep | C202: 7.1 | D202: 8.3 | E202: 9.5 | F202: 10.7 | G202: 0.06
B203: Pregnant ewes, last month
B204: Higher range = later in pregnancy
B205: singles | C205: 9-10.8 | D205: 10.6-12.7 | E205: 12.2-14.6 | F205: 13.6-16.4 | G205: 0.08
B206: twins | C206: 10.3-12.6 | D206: 12.1-14.7 | E206: 13.9-17 | F206: 15.6-19 | G206: 0.08
B207: Lactating ewes | C207: Use higher range for peak lactation = 10-40 days
B208: singles (100%) | D208: 12.5-21.3 | E208: 14.4-23.8 | F208: 16.1-26.88 | G208: 0.1
B209: twins (200%) | C209: 12.2-22.6 | D209: 14.4-26.6 | E209: 16.5-30.5 | F209: 18.5-34.2 | G209: 0.1
B210: Weaned lambs (figures calculated from DSE ratings in Prograze)
B211: Merino 20 kg | C211: 4.5 - 7.4 depending on desired rate of gain | G211: 10-12%
B212: Xbred 30 - 40 kg | C212: 7.4 - 11.1 depending on desired rate of gain | G212: 10-12%
B215: Table 11: Protein and energy requirements for cattle (energy calculated from Prograze DSE values)
E216: Body weight | H216: Protein
B217: Class of livestock | C217: 400 | D217: 450 | E217: 500 | F217: 550 | G217: 600 | H217: Required
B218: Dry cow | C218: 53 | D218: =(C218+E218)/2 -> 57 | E218: 61 | F218: =(E218+G218)/2 -> 64.5 | G218: 68 | H218: 0.06
B219: Pregnant, last 3 months | C219: 68 | D219: =(C219+E219)/2 -> 76 | E219: 84 | F219: 91.5 | G219: 99 | H219: 0.06
B220: Lactating cow and calf, 0-3 months | C220: 106 | D220: 121.5 | E220: 137 | F220: 152 | G220: 167 | H220: 10-11%
B221: Lactating cow and 150 kg calf | C221: 137 | D221: 152 | E221: 167 | F221: 182.5 | G221: 198 | H221: 10-11%
B222: (Energy figures calculated from DSE ratings in Prograze)
B223: Growing cattle | C223: 150 | D223: 200 | E223: 300 | F223: 400 | G223: 500 | H223: Protein
B224: Maintenance | C224: 20 | D224: 25 | E224: 35 | F224: 45 | G224: 55 | H224: 0.08
B225: Gaining 0.5 kg/day | C225: =C224*1.7 -> 34 | D225: =D224*1.7 -> 42.5 | E225: =1.6*E224 -> 56 | F225: =1.6*F224 -> 72 | G225: =1.5*G224 -> 82.5 | H225: 10-12%
B226: Gaining 1 kg/day | C226: =C224*2.2 -> 44 | D226: =2.2*D224 -> 55 | E226: =2.1*E224 -> 73.5 | F226: =2.1*F224 -> 94.5 | G226: =2*G224 -> 110 | H226: 0.13
B229: Table 12: Estimated digestibility, energy, protein and fibre value of pastures
B230: (Figures taken from FEEDTEST)
C231: Dry (Dead) | D231: Dry, perennial | E231: Gone to seed | F231: Green grassy | G231: Green, 15-30% clover | H231: Green, 60% clover
B232: Digestibility | C232: 0.4 | D232: 0.5 | E232: 0.6 | F232: 0.7 | G232: 0.75 | H232: 0.8
B233: MJME/kg | C233: 4.8 | D233: 6.5 | E233: 8.2 | F233: 10 | G233: 10.8 | H233: 11.6
B234: Protein | C234: 0.06 | D234: 6-10% | E234: 10-12% | F234: 15-20% | G234: 25-30% | H234: 25-30%
B235: Fibre (NDF) | C235: 60-70% | D235: 50-60% | E235: 40-50% | F235: 30-40% | G235: 0.3 | H235: 0.3
B237: Table 13: Estimated energy, protein and fibre values of common livestock feeds
B238: (Figures taken from Vic DPI Drought Feeding and Management books 2007)
B239: FEED | C239: Dry matter % | D239: MJME/kg DM (whole for cattle) | E239: MJME/kg DM (rolled/milled) | F239: Protein % | G239: Fibre (NDF) %
B240: Wheat | C240: 90 | D240: 9 | E240: 13 | F240: 12 | G240: 10
B241: Barley | C241: 90 | D241: 8.4 | E241: 13 | F241: 11 | G241: 10
B242: Triticale | C242: 90 | D242: 10.4 | E242: 13 | F242: 12 | G242: 10
B243: Oats | C243: 90 | D243: 10 | E243: 11 | F243: 9 | G243: 30
B244: Lupins | C244: 90 | D244: 11 | E244: 13 | F244: 30 | G244: 10
... 93 more rows

Sheet Rotation Drafts2 (hidden)
C2: 1 | D2: 2 | E2: 3 | F2: 4 | G2: 5 | H2: 6 | I2: 7 | J2: 8 | K2: 9 | L2: 10 | M2: 11 | N2: 12 | O2: 13 | P2: 14 | Q2: 15 | R2: 16 | S2: 17 | T2: 18 | U2: 19 | V2: 20
B3: NAME LIST | C3: =IF(C5="","",C5) ->  | D3: =IF(C28="","",C28) ->  | E3: =IF(C51="","",$C$51) ->  | F3: =IF(C74="","",$C$74) ->  | G3: =IF(C97="","",$C$97) ->  | H3: =IF(C120="","",$C$120) ->  | I3: =IF(C143="","",$C$143) ->  | J3: =IF(C166="","",$C$166) ->  | K3: =IF(C189="","",$C$189) ->  | L3: =IF(C212="","",$C$212) ->  | M3: =IF(C235="","",$C$235) ->  | N3: =IF(C258="","",$C$258) ->  | O3: =IF(C281="","",$C$281) ->  | P3: =IF(C304="","",$C$304) ->  | Q3: =IF(C327="","",$C$327) ->  | R3: =IF(C350="","",$C$350) ->  | S3: =IF(C373="","",$C$373) ->  | T3: =IF(C396="","",$C$396) ->  | U3: =IF(C419="","",$C$419) ->  | V3: =IF(C442="","",$C$442) -> 
B4: Selected Name | C4: =RotationLength!D12 -> 
A5: 1 | B5: Name
B7: Values
B8: Total days in rotation1
B9: Starting date (Day and Month)
B10: Stock Type
B11: Av. Weight (kg/Hd)
B12: Physiological State
B13: Twins/Singles
B14: Number of animals in rotation
B15: Feed Wastage Factor3
B16: Decay wastage factor
B17: Paddock Name
B18: Order of Paddocks in Rotation
B19: Paddock Area (Hectares)
B20: Paddock Rating (0-1)
B21: Effective Paddock Area (Hectares)
B22: Total effective area - effective paddock area (remaining area)
B23: Feed available on measurement date (Kg DM/Ha)
B24: Digestibility (%)
B25: Estimated pasture growth per day (Kg DM/Ha/Day)
B26: Feed you want available when animals taken out (Kg DM/Ha)
B27: Pasture growth rate between stock coming out and next rotation
A28: 2 | B28: Name
B30: Values
B31: Total days in rotation1
B32: Starting date (Day and Month)
B33: Stock Type
B34: Av. Weight (kg/Hd)
B35: Physiological State
B36: Twins/Singles
B37: Number of animals in rotation
B38: Feed Wastage Factor3
B39: Decay wastage factor
B40: Paddock Name
B41: Order of Paddocks in Rotation
B42: Paddock Area (Hectares)
B43: Paddock Rating (0-1)
B44: Effective Paddock Area (Hectares) | I44: =IF(I43="","",I42*I43) -> 
B45: Total effective area - effective paddock area (remaining area) | I45: =IF(I44="","",$D$17-I44) -> 
B46: Feed available on measurement date (Kg DM/Ha)
B47: Digestibility (%)
B48: Estimated pasture growth per day (Kg DM/Ha/Day)
B49: Feed you want available when animals taken out (Kg DM/Ha)
B50: Pasture growth rate between stock coming out and next rotation
A51: 3 | B51: Name
B53: Values
B54: Total days in rotation1
B55: Starting date (Day and Month)
B56: Stock Type
B57: Av. Weight (kg/Hd)
B58: Physiological State
B59: Twins/Singles
B60: Number of animals in rotation
B61: Feed Wastage Factor3
B62: Decay wastage factor
B63: Paddock Name
B64: Order of Paddocks in Rotation
B65: Paddock Area (Hectares)
B66: Paddock Rating (0-1)
B67: Effective Paddock Area (Hectares)
B68: Total effective area - effective paddock area (remaining area)
B69: Feed available on measurement date (Kg DM/Ha)
B70: Digestibility (%)
B71: Estimated pasture growth per day (Kg DM/Ha/Day)
B72: Feed you want available when animals taken out (Kg DM/Ha)
B73: Pasture growth rate between stock coming out and next rotation
A74: 4 | B74: Name
B76: Values
B77: Total days in rotation1
B78: Starting date (Day and Month)
B79: Stock Type
B80: Av. Weight (kg/Hd)
B81: Physiological State
B82: Twins/Singles
B83: Number of animals in rotation
B84: Feed Wastage Factor3
B85: Decay wastage factor
B86: Paddock Name
B87: Order of Paddocks in Rotation
B88: Paddock Area (Hectares)
B89: Paddock Rating (0-1)
B90: Effective Paddock Area (Hectares)
B91: Total effective area - effective paddock area (remaining area)
B92: Feed available on measurement date (Kg DM/Ha)
B93: Digestibility (%)
B94: Estimated pasture growth per day (Kg DM/Ha/Day)
B95: Feed you want available when animals taken out (Kg DM/Ha)
B96: Pasture growth rate between stock coming out and next rotation
A97: 5 | B97: Name
B99: Values
B100: Total days in rotation1
B101: Starting date (Day and Month)
B102: Stock Type
B103: Av. Weight (kg/Hd)
B104: Physiological State
B105: Twins/Singles
B106: Number of animals in rotation
B107: Feed Wastage Factor3
B108: Decay wastage factor
B109: Paddock Name
B110: Order of Paddocks in Rotation
B111: Paddock Area (Hectares)
B112: Paddock Rating (0-1)
B113: Effective Paddock Area (Hectares) | C113: =IF(C112="","",C111*C112) -> 
B114: Total effective area - effective paddock area (remaining area) | C114: =IF(C113="","",$D$17-C113) -> 
B115: Feed available on measurement date (Kg DM/Ha)
B116: Digestibility (%)
B117: Estimated pasture growth per day (Kg DM/Ha/Day)
B118: Feed you want available when animals taken out (Kg DM/Ha)
B119: Pasture growth rate between stock coming out and next rotation
A120: 6 | B120: Name
B122: Values
B123: Total days in rotation1
B124: Starting date (Day and Month)
B125: Stock Type
B126: Av. Weight (kg/Hd)
B127: Physiological State
B128: Twins/Singles
B129: Number of animals in rotation
B130: Feed Wastage Factor3
B131: Decay wastage factor
B132: Paddock Name
B133: Order of Paddocks in Rotation
B134: Paddock Area (Hectares)
B135: Paddock Rating (0-1)
B136: Effective Paddock Area (Hectares)
B137: Total effective area - effective paddock area (remaining area)
B138: Feed available on measurement date (Kg DM/Ha)
B139: Digestibility (%)
B140: Estimated pasture growth per day (Kg DM/Ha/Day)
B141: Feed you want available when animals taken out (Kg DM/Ha)
B142: Pasture growth rate between stock coming out and next rotation
A143: 7 | B143: Name
B145: Values
B146: Total days in rotation1
B147: Starting date (Day and Month)
B148: Stock Type
B149: Av. Weight (kg/Hd)
B150: Physiological State
B151: Twins/Singles
B152: Number of animals in rotation
B153: Feed Wastage Factor3
B154: Decay wastage factor
B155: Paddock Name
B156: Order of Paddocks in Rotation
B157: Paddock Area (Hectares)
B158: Paddock Rating (0-1)
B159: Effective Paddock Area (Hectares)
B160: Total effective area - effective paddock area (remaining area)
B161: Feed available on measurement date (Kg DM/Ha)
B162: Digestibility (%)
B163: Estimated pasture growth per day (Kg DM/Ha/Day)
B164: Feed you want available when animals taken out (Kg DM/Ha)
B165: Pasture growth rate between stock coming out and next rotation
A166: 8 | B166: Name
B168: Values
B169: Total days in rotation1
B170: Starting date (Day and Month)
B171: Stock Type
B172: Av. Weight (kg/Hd)
B173: Physiological State
B174: Twins/Singles
B175: Number of animals in rotation
B176: Feed Wastage Factor3
B177: Decay wastage factor
B178: Paddock Name
B179: Order of Paddocks in Rotation
B180: Paddock Area (Hectares)
B181: Paddock Rating (0-1)
B182: Effective Paddock Area (Hectares)
B183: Total effective area - effective paddock area (remaining area)
B184: Feed available on measurement date (Kg DM/Ha)
B185: Digestibility (%)
B186: Estimated pasture growth per day (Kg DM/Ha/Day)
B187: Feed you want available when animals taken out (Kg DM/Ha)
B188: Pasture growth rate between stock coming out and next rotation
A189: 9 | B189: Name
B191: Values
B192: Total days in rotation1
B193: Starting date (Day and Month)
B194: Stock Type
B195: Av. Weight (kg/Hd)
B196: Physiological State
B197: Twins/Singles
B198: Number of animals in rotation
B199: Feed Wastage Factor3
B200: Decay wastage factor
B201: Paddock Name
B202: Order of Paddocks in Rotation
B203: Paddock Area (Hectares)
B204: Paddock Rating (0-1)
B205: Effective Paddock Area (Hectares)
B206: Total effective area - effective paddock area (remaining area)
B207: Feed available on measurement date (Kg DM/Ha)
B208: Digestibility (%)
B209: Estimated pasture growth per day (Kg DM/Ha/Day)
B210: Feed you want available when animals taken out (Kg DM/Ha)
... 243 more rows

Sheet Rotation Drafts (hidden)
C2: 1 | D2: 2 | E2: 3 | F2: 4 | G2: 5 | H2: 6 | I2: 7 | J2: 8 | K2: 9 | L2: 10 | M2: 11 | N2: 12 | O2: 13 | P2: 14 | Q2: 15 | R2: 16 | S2: 17 | T2: 18 | U2: 19 | V2: 20
B3: NAME LIST | C3: =IF(C5="","",C5) ->  | D3: =IF(C27="","",C27) ->  | E3: =IF(C49="","",$C$49) ->  | F3: =IF(C71="","",$C$71) ->  | G3: =IF(C93="","",$C$93) ->  | H3: =IF(C115="","",$C$115) ->  | I3: =IF(C137="","",$C$137) ->  | J3: =IF(C159="","",$C$159) ->  | K3: =IF(C181="","",$C$181) ->  | L3: =IF(C203="","",$C$203) ->  | M3: =IF(C225="","",$C$225) ->  | N3: =IF(C247="","",$C$247) ->  | O3: =IF(C269="","",$C$269) ->  | P3: =IF(C291="","",$C$291) ->  | Q3: =IF(C313="","",$C$313) ->  | R3: =IF(C335="","",$C$335) ->  | S3: =IF(C357="","",$C$357) ->  | T3: =IF(C379="","",$C$379) ->  | U3: =IF(C401="","",$C$401) ->  | V3: =IF(C423="","",$C$423) -> 
B4: Selected Name | C4: =Rotation!D12 -> 
A5: 1 | B5: Name
B7: Values
B8: Total days in rotation1
B9: Starting date (Day and Month)
B10: Stock Type
B11: Av. Weight (kg/Hd)
B12: Physiological State
B13: Twins/Singles
B14: Number of animals in rotation
B15: Feed Wastage Factor3
B16: Paddock Name
B17: Order of Paddocks in Rotation
B18: Paddock Area (Hectares)
B19: Paddock Rating (0-1)
B20: Effective Paddock Area (Hectares)
B21: Total effective area - effective paddock area (remaining area)
B22: Feed available on measurement date (Kg DM/Ha)
B23: Digestibility (%)
B24: Estimated pasture growth per day (Kg DM/Ha/Day)
B25: Feed you want available when animals taken out (Kg DM/Ha)
B26: Pasture growth rate between stock coming out and next rotation
A27: 2 | B27: Name
B29: Values
B30: Total days in rotation1
B31: Starting date (Day and Month)
B32: Stock Type
B33: Av. Weight (kg/Hd)
B34: Physiological State
B35: Twins/Singles
B36: Number of animals in rotation
B37: Feed Wastage Factor3
B38: Paddock Name
B39: Order of Paddocks in Rotation
B40: Paddock Area (Hectares)
B41: Paddock Rating (0-1)
B42: Effective Paddock Area (Hectares)
B43: Total effective area - effective paddock area (remaining area)
B44: Feed available on measurement date (Kg DM/Ha)
B45: Digestibility (%)
B46: Estimated pasture growth per day (Kg DM/Ha/Day)
B47: Feed you want available when animals taken out (Kg DM/Ha)
B48: Pasture growth rate between stock coming out and next rotation
A49: 3 | B49: Name
B51: Values
B52: Total days in rotation1
B53: Starting date (Day and Month) | C53: 2010-01-03
B54: Stock Type | C54: Cows
B55: Av. Weight (kg/Hd) | C55: 400
B56: Physiological State | C56: Dry/Early Preg
B57: Twins/Singles | C57: Not Applicable
B58: Number of animals in rotation | C58: 100
B59: Feed Wastage Factor3 | C59: 0.2
B60: Paddock Name | C60: a | D60: b | E60: c | F60: d | G60: e | H60: f | I60: g | J60: h | K60: i | L60: j | M60: k | N60: l | O60: m | P60: n | Q60: o | R60: p | S60: q | T60: r | U60: s | V60: t | W60: u | X60: v | Y60: w
B61: Order of Paddocks in Rotation | C61: 1 | D61: 2 | E61: 3 | F61: 4 | G61: 5 | H61: 6 | I61: 7 | J61: 8 | K61: 9 | L61: 10 | M61: 11 | N61: 12 | O61: 13 | P61: 14 | Q61: 15 | R61: 16 | S61: 17 | T61: 18 | U61: 19 | V61: 20 | W61: 21 | X61: 22 | Y61: 23
B62: Paddock Area (Hectares) | C62: 5 | D62: 10 | E62: 15 | F62: 5 | G62: 10 | H62: 15 | I62: 5 | J62: 10 | K62: 15 | L62: 5 | M62: 10 | N62: 15 | O62: 5 | P62: 10 | Q62: 15 | R62: 5 | S62: 10 | T62: 15 | U62: 5 | V62: 10 | W62: 15 | X62: 5 | Y62: 10
B63: Paddock Rating (0-1)
B64: Effective Paddock Area (Hectares) | I64: =IF(I63="","",I62*I63) ->  | K64: =IF(K63="","",K62*K63) ->  | M64: =IF(M63="","",M62*M63) -> 
B65: Total effective area - effective paddock area (remaining area) | I65: =IF(I64="","",$D$16-I64) ->  | K65: =IF(K64="","",$D$16-K64) ->  | M65: =IF(M64="","",$D$16-M64) -> 
B66: Feed available on measurement date (Kg DM/Ha) | C66: 1233.905134 | D66: 1229.728867 | E66: 1223.378151 | F66: 1225.05589 | G66: 1219.458109 | H66: 1210.741087 | I66: 1211.793199 | J66: 1205.296735 | K66: 1195.191181 | L66: 1194.758032 | M66: 1186.707187 | N66: 1174.028226 | O66: 1172.373216 | P66: 1162.522445 | Q66: 1146.888404 | R66: 1143.78657 | S66: 1131.893567 | T66: 1112.905977 | U66: 1108.45301 | V66: 1094.989547 | W66: 1073.534069 | X66: 1067.239209 | Y66: 1067.67301
B67: Digestibility (%) | C67: 75% dig, 10.8 MJ ME/kg - Green, 15-30% clover | D67: 75% dig, 10.8 MJ ME/kg - Green, 15-30% clover | E67: 75% dig, 10.8 MJ ME/kg - Green, 15-30% clover | F67: 75% dig, 10.8 MJ ME/kg - Green, 15-30% clover | G67: 75% dig, 10.8 MJ ME/kg - Green, 15-30% clover | H67: 75% dig, 10.8 MJ ME/kg - Green, 15-30% clover | I67: 75% dig, 10.8 MJ ME/kg - Green, 15-30% clover | J67: 75% dig, 10.8 MJ ME/kg - Green, 15-30% clover | K67: 75% dig, 10.8 MJ ME/kg - Green, 15-30% clover | L67: 75% dig, 10.8 MJ ME/kg - Green, 15-30% clover | M67: 75% dig, 10.8 MJ ME/kg - Green, 15-30% clover | N67: 75% dig, 10.8 MJ ME/kg - Green, 15-30% clover | O67: 75% dig, 10.8 MJ ME/kg - Green, 15-30% clover | P67: 75% dig, 10.8 MJ ME/kg - Green, 15-30% clover | Q67: 75% dig, 10.8 MJ ME/kg - Green, 15-30% clover | R67: 75% dig, 10.8 MJ ME/kg - Green, 15-30% clover | S67: 75% dig, 10.8 MJ ME/kg - Green, 15-30% clover | T67: 75% dig, 10.8 MJ ME/kg - Green, 15-30% clover | U67: 75% dig, 10.8 MJ ME/kg - Green, 15-30% clover | V67: 75% dig, 10.8 MJ ME/kg - Green, 15-30% clover | W67: 75% dig, 10.8 MJ ME/kg - Green, 15-30% clover | X67: 75% dig, 10.8 MJ ME/kg - Green, 15-30% clover | Y67: 75% dig, 10.8 MJ ME/kg - Green, 15-30% clover
B68: Estimated pasture growth per day (Kg DM/Ha/Day) | C68: 5 | D68: 5 | E68: 5 | F68: 5 | G68: 5 | H68: 5 | I68: 5 | J68: 5 | K68: 5 | L68: 5 | M68: 5 | N68: 5 | O68: 5 | P68: 5 | Q68: 5 | R68: 5 | S68: 5 | T68: 5 | U68: 5 | V68: 5 | W68: 5 | X68: 5 | Y68: 5
B69: Feed you want available when animals taken out (Kg DM/Ha) | C69: 1000 | D69: 1000 | E69: 1000 | F69: 1000 | G69: 1000 | H69: 1000 | I69: 1000 | J69: 1000 | K69: 1000 | L69: 1000 | M69: 1000 | N69: 1000 | O69: 1000 | P69: 1000 | Q69: 1000 | R69: 1000 | S69: 1000 | T69: 1000 | U69: 1000 | V69: 1000 | W69: 1000 | X69: 1000 | Y69: 1000
B70: Pasture growth rate between stock coming out and next rotation | C70: 1 | D70: 1 | E70: 1 | F70: 1 | G70: 1 | H70: 1 | I70: 1 | J70: 1 | K70: 1 | L70: 1 | M70: 1 | N70: 1 | O70: 1 | P70: 1 | Q70: 1 | R70: 1 | S70: 1 | T70: 1 | U70: 1 | V70: 1 | W70: 1 | X70: 1 | Y70: 1
A71: 4 | B71: Name
B73: Values
B74: Total days in rotation1
B75: Starting date (Day and Month)
B76: Stock Type
B77: Av. Weight (kg/Hd)
B78: Physiological State
B79: Twins/Singles
B80: Number of animals in rotation
B81: Feed Wastage Factor3
B82: Paddock Name
B83: Order of Paddocks in Rotation
B84: Paddock Area (Hectares)
B85: Paddock Rating (0-1)
B86: Effective Paddock Area (Hectares) | C86: =IF(C85="","",C84*C85) -> 
B87: Total effective area - effective paddock area (remaining area) | C87: =IF(C86="","",$D$16-C86) -> 
B88: Feed available on measurement date (Kg DM/Ha)
B89: Digestibility (%)
B90: Estimated pasture growth per day (Kg DM/Ha/Day)
B91: Feed you want available when animals taken out (Kg DM/Ha)
B92: Pasture growth rate between stock coming out and next rotation
A93: 5 | B93: Name
B95: Values
B96: Total days in rotation1
B97: Starting date (Day and Month)
B98: Stock Type
B99: Av. Weight (kg/Hd)
B100: Physiological State
B101: Twins/Singles
B102: Number of animals in rotation
B103: Feed Wastage Factor3
B104: Paddock Name
B105: Order of Paddocks in Rotation
B106: Paddock Area (Hectares)
B107: Paddock Rating (0-1)
B108: Effective Paddock Area (Hectares) | C108: =IF(C107="","",C106*C107) -> 
B109: Total effective area - effective paddock area (remaining area) | C109: =IF(C108="","",$D$16-C108) -> 
B110: Feed available on measurement date (Kg DM/Ha)
B111: Digestibility (%)
B112: Estimated pasture growth per day (Kg DM/Ha/Day)
B113: Feed you want available when animals taken out (Kg DM/Ha)
B114: Pasture growth rate between stock coming out and next rotation
A115: 6 | B115: Name
B117: Values
B118: Total days in rotation1
B119: Starting date (Day and Month)
B120: Stock Type
B121: Av. Weight (kg/Hd)
B122: Physiological State
B123: Twins/Singles
B124: Number of animals in rotation
B125: Feed Wastage Factor3
B126: Paddock Name
B127: Order of Paddocks in Rotation
B128: Paddock Area (Hectares)
B129: Paddock Rating (0-1)
B130: Effective Paddock Area (Hectares)
B131: Total effective area - effective paddock area (remaining area)
B132: Feed available on measurement date (Kg DM/Ha)
B133: Digestibility (%)
B134: Estimated pasture growth per day (Kg DM/Ha/Day)
B135: Feed you want available when animals taken out (Kg DM/Ha)
B136: Pasture growth rate between stock coming out and next rotation
A137: 7 | B137: Name
B139: Values
B140: Total days in rotation1
B141: Starting date (Day and Month)
B142: Stock Type
B143: Av. Weight (kg/Hd)
B144: Physiological State
B145: Twins/Singles
B146: Number of animals in rotation
B147: Feed Wastage Factor3
B148: Paddock Name
B149: Order of Paddocks in Rotation
B150: Paddock Area (Hectares)
B151: Paddock Rating (0-1)
B152: Effective Paddock Area (Hectares)
B153: Total effective area - effective paddock area (remaining area)
B154: Feed available on measurement date (Kg DM/Ha)
B155: Digestibility (%)
B156: Estimated pasture growth per day (Kg DM/Ha/Day)
B157: Feed you want available when animals taken out (Kg DM/Ha)
B158: Pasture growth rate between stock coming out and next rotation
A159: 8 | B159: Name
B161: Values
B162: Total days in rotation1
B163: Starting date (Day and Month)
B164: Stock Type
B165: Av. Weight (kg/Hd)
B166: Physiological State
B167: Twins/Singles
B168: Number of animals in rotation
B169: Feed Wastage Factor3
B170: Paddock Name
B171: Order of Paddocks in Rotation
B172: Paddock Area (Hectares)
B173: Paddock Rating (0-1)
B174: Effective Paddock Area (Hectares)
B175: Total effective area - effective paddock area (remaining area)
B176: Feed available on measurement date (Kg DM/Ha)
B177: Digestibility (%)
B178: Estimated pasture growth per day (Kg DM/Ha/Day)
B179: Feed you want available when animals taken out (Kg DM/Ha)
B180: Pasture growth rate between stock coming out and next rotation
A181: 9 | B181: Name
B183: Values
B184: Total days in rotation1
B185: Starting date (Day and Month)
B186: Stock Type
B187: Av. Weight (kg/Hd)
B188: Physiological State
B189: Twins/Singles
B190: Number of animals in rotation
B191: Feed Wastage Factor3
B192: Paddock Name
B193: Order of Paddocks in Rotation
B194: Paddock Area (Hectares)
B195: Paddock Rating (0-1)
B196: Effective Paddock Area (Hectares)
B197: Total effective area - effective paddock area (remaining area)
B198: Feed available on measurement date (Kg DM/Ha)
B199: Digestibility (%)
B200: Estimated pasture growth per day (Kg DM/Ha/Day)
B201: Feed you want available when animals taken out (Kg DM/Ha)
B202: Pasture growth rate between stock coming out and next rotation
A203: 10 | B203: Name
B205: Values
B206: Total days in rotation1
B207: Starting date (Day and Month)
B208: Stock Type
B209: Av. Weight (kg/Hd)
B210: Physiological State
B211: Twins/Singles
... 223 more rows

Sheet Summer Budget 2 (hidden)
AN1: Stock Type | AO1: Weight | AR1: State
B2: SUMMER FEED BUDGET FROM MID SUMMER | AC2: 40% dig, 4.8 MJ ME/kg - Dry (Dead) | AD2: 50% dig, 6.5 MJ ME/kg - Dry, perennial | AE2: 60% dig, 8.2 MJ ME/kg - Gone to seed | AF2: 70% dig, 10 MJ ME/kg - Green, grassy | AG2: 75% dig, 10.8 MJ ME/kg - Green, 15-30% clover | AH2: 80% dig - 11.6 MJ ME/kg - Green, 60% clover | AN2: Cows | AO2: 400 | AQ2: Cows | AR2: Dry/Early Preg | AT2: Dry/Late Pregnancy | AU2: Not Applicable
AN3: Cows | AO3: 500 | AQ3: Cows | AR3: Late Preg (last 3 months) | AT3: Early lactation (2 months) | AU3: Not Applicable
B4: Enter data in the white boxes. | AC4: Cows | AN4: Cows | AO4: 600 | AQ4: Cows | AR4: Early lactation (2 months) | AT4: Late lactation (150 kg calf) | AU4: Not Applicable
AC5: Weaner Cattle | AN5: Cows | AO5: 700 | AQ5: Cows | AR5: Late lactation (150 kg calf) | AT5: Not Applicable | AU5: Not Applicable
C6: DATA | D6: CALCULATIONS & COMMENTS | K6: Table 8: Approximate relationship between | R6: Table 9: Monthly pasture growth rate estimates (Prograze) | AC6: Ewes/Wethers | AN6: Weaner Cattle | AO6: 150 | AQ6: Weaner Cattle | AR6: Not Applicable | AT6: Dry | AU6: Not Applicable
B7: PADDOCK DETAILS | K7: pasture height and kg green DM/ha (Prograze) | S7: Pasture Type | AC7: Lambs | AN7: Weaner Cattle | AO7: 200 | AQ7: Lambs | AR7: Not Applicable | AT7: Pregnant | AU7: Twins
B8: a) Grazing Area (Ha) | K8: Height | L8: Light | M8: Moderate | N8: Dense | R8: MONTH | S8: Poor | T8: Average | U8: Good | V8: Very Good | AN8: Weaner Cattle | AO8: 250 | AQ8: Ewes/Wethers | AR8: Dry | AT8: Pregnant | AU8: Singles
B9: b) Food on Offer at Mid Summer (Kg DM/Ha) | D9: See Table 8 for help if required. | K9: 1 | L9: 250 | M9: 400 | N9: 500 | R9: April | S9: 5 | T9: 15 | U9: 25 | V9: 30 | AN9: Weaner Cattle | AO9: 300 | AQ9: Ewes/Wethers | AR9: Pregnant - 50 days | AT9: Lactating | AU9: Twins
B10: c) Pasture Quality | K10: 2 | L10: 500 | M10: 700 | N10: 800 | R10: May | S10: 15 | T10: 20 | U10: 25 | V10: 30 | AN10: Weaner Cattle | AO10: 350 | AQ10: Ewes/Wethers | AR10: Pregnant - 70 days | AT10: Lactating | AU10: Singles
B11: d) Consumption Wastage Factor | D11: When stock graze pasture some losses occur through trampling, fouling, etc. Wastage is commonly between 15-40% of what is eaten each month. Use lower wastage for low stocking rates and dry paddocks; higher rates for higher stocking rates and wet paddocks. | K11: 3 | L11: 600 | M11: 1000 | N11: 1100 | R11: June | S11: 7 | T11: 15 | U11: 20 | V11: 25 | AN11: Weaner Cattle | AO11: 400 | AQ11: Ewes/Wethers | AR11: Pregnant - 100 days | AT11: Dry/Early Preg | AU11: Not Applicable
B12: Decay Wastage Factor | D12: Only use in late spring and summer. In late spring and summer, wastage of pasture is high due to decay, trampling, wind, etc. Wastage of native perennials is 15-20%, introduced perennials 20-30% and for clover-based pastures 30-40% of the available pasture. | K12: 4 | L12: 800 | M12: 1200 | N12: 1400 | R12: July | S12: 5 | T12: 10 | U12: 15 | V12: 25 | AN12: Weaner Cattle | AO12: 450 | AQ12: Ewes/Wethers | AR12: Pregnant - 130 days | AT12: Late Preg (last 3 months) | AU12: Not Applicable
B13: e) Pasture Growth (Kg DM/Ha/Day) | D13: See Table 9 for help if required. | K13: 5 | L13: 1000 | M13: 1400 | N13: 1700 | R13: August | S13: 15 | T13: 30 | U13: 45 | V13: 60 | AN13: Weaner Cattle | AO13: 500 | AQ13: Ewes/Wethers | AR13: Lactating - 10 days | AT13: Pregnant - 50 days | AU13: Twins
B14: ANIMAL CONSUMPTION | K14: 6 | L14: 1150 | M14: 1600 | N14: 2000 | R14: September | S14: 35 | T14: 50 | U14: 80 | V14: 90 | AN14: Ewes/Wethers | AO14: 40 | AQ14: Ewes/Wethers | AR14: Lactating - 30 days | AT14: Pregnant - 50 days | AU14: Singles
B15: Stock Type 1 | K15: 7 | L15: 1300 | M15: 1750 | N15: 2300 | R15: October | S15: 40 | T15: 70 | U15: 90 | V15: 100 | AN15: Ewes/Wethers | AO15: 50 | AQ15: Ewes/Wethers | AR15: Lactating - 50 days | AT15: Pregnant - 70 days | AU15: Twins
B16: Average Weight (Kg/Hd) | D16: If you change Stock Type re-select Average Weight from list. | K16: 8 | L16: 1450 | M16: 1900 | N16: 2600 | R16: November | S16: 30 | T16: 60 | U16: 80 | V16: 80 | AN16: Ewes/Wethers | AO16: 60 | AT16: Pregnant - 70 days | AU16: Singles
B17: Physiological State | D17: If you change Stock Type re-select Physiological State from list. | K17: 9 | L17: 1600 | M17: 2000 | N17: 2800 | R17: December | S17: 20 | T17: 40 | U17: 60 | V17: 60 | AN17: Ewes/Wethers | AO17: 70 | AT17: Pregnant - 100 days | AU17: Twins
B18: Twins/Singles | D18: If you change Stock Type re-select Twins/Singles from list. | K18: 10 | L18: 1700 | M18: 2100 | N18: 3000 | AN18: Lambs | AO18: 15 | AT18: Pregnant - 100 days | AU18: Singles
B19: f) Number of Animals Grazing | AN19: Lambs | AO19: 25 | AT19: Pregnant - 130 days | AU19: Twins
B20: g) Consumption (Kg DM/Hd/Day) | C20: =IF($C$9=500,IF(C15="",0,LookUp!$CC$7),IF($C$9=1000,IF(C15="",0,LookUp!$CC$7),IF($C$9=1500,IF(C15="",0,LookUp!$CC$7),IF($C$9=2000,IF(C15="",0,LookUp!$CC$7),IF(LookUp!$BZ$7=500,((($C$9-500)/500)*(LookUp!$CC$8-LookUp!$CC$7))+LookUp!$CC$7,IF(LookUp!$BZ$7=600,((($C$9-1000)/500)*(LookUp!$CC$8-LookUp!$CC$7))+LookUp!$CC$7,IF(LookUp!$BZ$7=700,((($C$9-1500)/500)*(LookUp!$CC$8-LookUp!$CC$7))+LookUp!$CC$7,IF(LookUp!$BZ$7=800,((($C$9-2000)/500)*(LookUp!$CC$8-LookUp!$CC$7))+LookUp!$CC$7,LookUp!$CC$7)))))))) -> 0 | R20: Pasture growth rates will vary widely between regions, pasture species, soil fertility conditions | AN20: Lambs | AO20: 35 | AT20: Pregnant - 130 days | AU20: Singles
B21: Maintenance Energy Required (MJ ME/Hd/Day) | C21: =IF(C22=0,"",LookUp!BU7) ->  | R21: and seasonal conditions. The figures provided are average values for temperate pastures in | AN21: Lambs | AO21: 45 | AT21: Lactating - 10 days | AU21: Twins
B22: Energy consumption (MJ ME/Hd/Day) | C22: =IF(C20=0,0,IF(VLOOKUP(LookUp!CB7,LookUp!$AA$400:$AB$4026,2,FALSE)="Pasture unsuitable","Pasture unsuitable",IF(C20=0,0,IF(C15="Lambs",VLOOKUP(LookUp!CB7,LookUp!$AA$400:$AB$1841,2,FALSE),IF(C15="Ewes/Wethers",VLOOKUP(LookUp!CB7,LookUp!$AA$400:$AB$1841,2,FALSE),C20*((22.587*(VLOOKUP($C$10,LookUp!$D$185:$H$194,2,FALSE)))-5.2361))))*IF(C20=0,0,(C20/LookUp!CC7)))) -> 0 | D22: =IF(C22=0,"",IF(C22<LookUp!BU7," Energy intake is below maintenance.","")) ->  | R22: southern Australia and should be used only as a guide. Making More from Sheep Module 8.2 - | AT22: Lactating - 10 days | AU22: Singles
B23: Stock Type 2 | R23: Daily pasture growth estimates provides more detailed estimates of pasture growth for different regions | AT23: Lactating - 30 days | AU23: Twins
B24: Average Weight (Kg/Hd) | D24: If you change Stock Type re-select Average Weight from list. | R24: and pasture species | S24: http://www.makingmorefromsheep.com.au/turn-pasture-into-product/tool_8.2.htm | Z24: You | AT24: Lactating - 30 days | AU24: Singles
B25: Physiological State | D25: If you change Stock Type re-select Physiological State from list. | R25: can also measure your own pasture growth by following the procedures outlined in Module 8.6 Pasture rulers, | AT25: Lactating - 50 days | AU25: Twins
B26: Twins/Singles | D26: If you change Stock Type re-select Twins/Singles from list. | R26: sticks and metres | S26: http://www.makingmorefromsheep.com.au/turn-pasture-into-product/tool_8.6.htm | AT26: Lactating - 50 days | AU26: Singles
B27: h) Number of Animals Grazing | R27: The Pasture Growth calculator can be used to calculate growth from pasture availability estimates and stocking
B28: i) Consumption (Kg DM/Hd/Day) | C28: =IF($C$9=500,IF(C23="",0,LookUp!$CK$7),IF($C$9=1000,IF(C23="",0,LookUp!$CK$7),IF($C$9=1500,IF(C23="",0,LookUp!$CK$7),IF($C$9=2000,IF(C23="",0,LookUp!$CK$7),IF(LookUp!$CH$7=500,((($C$9-500)/500)*(LookUp!$CK$8-LookUp!$CK$7))+LookUp!$CK$7,IF(LookUp!$CH$7=600,((($C$9-1000)/500)*(LookUp!$CK$8-LookUp!$CK$7))+LookUp!$CK$7,IF(LookUp!$CH$7=700,((($C$9-1500)/500)*(LookUp!$CK$8-LookUp!$CK$7))+LookUp!$CK$7,IF(LookUp!$CH$7=800,((($C$9-2000)/500)*(LookUp!$CK$8-LookUp!$CK$7))+LookUp!$CK$7,LookUp!$CK$7)))))))) -> 0 | R28: rates.
B29: Maintenance Energy Required (MJ ME/Hd/Day) | C29: =IF(C30=0,"",LookUp!BU8) -> 
B30: Energy consumption (MJ ME/Hd/Day) | C30: =IF(C28=0,0,IF(VLOOKUP(LookUp!CJ7,LookUp!$AA$400:$AB$4026,2,FALSE)="Pasture unsuitable","Pasture unsuitable",IF(C28=0,0,IF(C23="Lambs",VLOOKUP(LookUp!CJ7,LookUp!$AA$400:$AB$1841,2,FALSE),IF(C23="Ewes/Wethers",VLOOKUP(LookUp!CJ7,LookUp!$AA$400:$AB$1841,2,FALSE),C28*((22.587*(VLOOKUP($C$10,LookUp!$D$185:$H$194,2,FALSE)))-5.2361))))*IF(C28=0,0,(C28/LookUp!CK7)))) -> 0 | D30: =IF(C30=0,"",IF(C30<LookUp!BU8," Energy intake is below maintenance.","")) -> 
B31: Stock Type 3
B32: Average Weight (Kg/Hd) | D32: If you change Stock Type re-select Average Weight from list.
B33: Physiological State | D33: If you change Stock Type re-select Physiological State from list.
B34: Twins/Singles | D34: If you change Stock Type re-select Twins/Singles from list.
B35: j) Number of Animals Grazing
B36: k) Consumption (Kg DM/Hd/Day) | C36: =IF($C$9=500,IF(C31="",0,LookUp!$CC$19),IF($C$9=1000,IF(C31="",0,LookUp!$CC$19),IF($C$9=1500,IF(C31="",0,LookUp!$CC$19),IF($C$9=2000,IF(C31="",0,LookUp!$CC$19),IF(LookUp!$BZ$19=500,((($C$9-500)/500)*(LookUp!$CC$20-LookUp!$CC$19))+LookUp!$CC$19,IF(LookUp!$BZ$19=600,((($C$9-1000)/500)*(LookUp!$CC$20-LookUp!$CC$19))+LookUp!$CC$19,IF(LookUp!$BZ$19=700,((($C$9-1500)/500)*(LookUp!$CC$20-LookUp!$CC$19))+LookUp!$CC$19,IF(LookUp!$BZ$19=800,((($C$9-2000)/500)*(LookUp!$CC$20-LookUp!$CC$19))+LookUp!$CC$19,LookUp!$CC$19)))))))) -> 0
B37: Maintenance Energy Required (MJ ME/Hd/Day) | C37: =IF(C38=0,"",LookUp!BU9) -> 
B38: Energy consumption (MJ ME/Hd/Day) | C38: =IF(C36=0,0,IF(VLOOKUP(LookUp!CB19,LookUp!$AA$400:$AB$4026,2,FALSE)="Pasture unsuitable","Pasture unsuitable",IF(C36=0,0,IF(C31="Lambs",VLOOKUP(LookUp!CB19,LookUp!$AA$400:$AB$1841,2,FALSE),IF(C31="Ewes/Wethers",VLOOKUP(LookUp!CB19,LookUp!$AA$400:$AB$1841,2,FALSE),C36*((22.587*(VLOOKUP($C$10,LookUp!$D$185:$H$194,2,FALSE)))-5.2361))))*IF(C36=0,0,(C36/LookUp!CC19)))) -> 0 | D38: =IF(C38=0,"",IF(C38<LookUp!BU9," Energy intake is below maintenance.","")) -> 
B39: Stock Type 4
B40: Average Weight (Kg/Hd) | D40: If you change Stock Type re-select Average Weight from list.
B41: Physiological State | D41: If you change Stock Type re-select Physiological State from list.
B42: l) Number of Animals Grazing
B43: m) Consumption (Kg DM/Hd/Day) | C43: =IF(C9="","",LookUp!CK17) -> 
B44: RESULTS
B45: l) Total animal consumption + waste (Kg DM/Day) | C45: =IF(C11="","",(C27*C28+C19*C20+C35*C36)*(1+C11)) ->  | D45: =(f*g+h*i+j*k)*(1+d)
B46: m) Daily consumption per Ha + wastage (Kg/Ha/Day) | C46: =IF(C8="","",C45/C8) ->  | D46: =l÷a
B47: n) Growth minus consumption (Kg DM/ha/day) | C47: =IF(C13="","",C13-C46) ->  | D47: =e-m
B48: o) Number of summer grazing days
B49: =CONCATENATE(B50,C48,B51) -> ESTIMATED FEED ON OFFER IN DAYS (Kg/Ha) | C49: =IF(C9="","",C9+(C48*C47)) ->  | D49: =b+(n*o)
B50: ESTIMATED FEED ON OFFER IN
B51: DAYS (Kg/Ha)

Sheet RotationLength (hidden)
B2: ROTATION PLANNER
B3: For rotations based on plant recovery (rotation length).
B4: Enter data in the white boxes.
B6: Each time you change a Stock Type selection you MUST RE-SELECT Av. Weight, Physiological State,
B7: & Twins/Singles from the lists provided.
B11: Name of Rotation OR
B12: Review Saved Rotation Name
B13: Total days in rotation1
B14: Starting date (Day and Month) | D14: 2010-04-17
B15: Total area in rotation (Ha) | D15: =SUM(D42:D64) -> 0
B16: Effective area in rotation (Ha)2 | D16: =SUM(F42:F64) -> 0
B17: Stock Type
B18: Av. Weight (kg/Hd)
B19: Physiological State
B20: Twins/Singles
B21: MJ ME/Hd Required For Maintenance | D21: =IF(D18="",0,IF(D19="",0,LookUp!V194)) -> 0
B22: Number of animals in rotation
B23: Consumption Wastage Factor3
B24: Decay Wastage Factor4
B31: Paddock Details
A32: 1 | B32: In the table below, enter details for paddock name, order of paddock in rotation, paddock area and paddock rating for each paddock
B33: in the rotation.Your paddock rating should be 1 for your best paddock. A paddock that produces half as much as your best paddock
B34: should be rated 0.5, 60% should be 0.6 etc. To drop a paddock out of the rotation give it a paddock rating of zero. The calculated days
B35: in each paddock are based only on the rotation length, paddock rating and paddock size. Go to step 2 to link this with feed availability and pasture growth.
A36: 2 | B36: Click the 'ENTER PADDOCK FEED DATA' button once you have completed paddock name, order of rotation,
B37: paddock area and paddock rating details.
A38: 3 | B38: Every time you change the order of paddocks in the rotation you need to click the 'RE-CALCULATE PASTURE BUDGETS' | I38: Click the PADDOCK FEED STATUS button to
B39: button to update results. The first paddock is the one that the animals are going into on the measurement date. | I39: check if your feed targets are being met.
B41: Paddock Name | C41: Order of Paddocks in Rotation | D41: Paddock Area (Hectares) | E41: Paddock Rating (0-1) | F41: Effective Paddock Area (based on paddock rating) (Hectares) | G41: Total effective area - effective paddock area (remaining area) | H41: Food on offer on measurement date (Kg DM/Ha) | I41: Pasture Quality | J41: Estimated pasture growth per day (Kg DM/Ha/Day) | K41: Target food on offer you want available when animals taken out (Kg DM/Ha) | L41: Energy intake from pasture at target food on offer when animals taken out (MJ ME/hd/day)* | M41: Days in each paddock based on rotation length, paddock rating & paddock area. | N41: Date to move stock to next paddock | O41: Days since start of rotation (when pasture measurement was taken) | P41: Food on offer when animals in (Food on offer at measurement + feed grown since measurement) | Q41: Animal Consumption (Kg DM per Hd per Day) | R41: Feed on offer when animals removed (Kg DM/Ha) | S41: Predicted energy intake from pasture when animals are removed (MJ ME/hd/day)* | T41: Number of days paddock will last to reach target food on offer | U41: Date to move stock to next paddock based on target food on offer | V41: Number of animals required to reach target food on offer | X41: Days since start of rotation (when pasture measurement was taken)
F42: =IF(E42="","",D42*E42) ->  | G42: =IF(F42="","",$D$16-F42) ->  | L42: =IF(K42="","",IF(VLOOKUP(LookUp!R283,LookUp!$AA$400:$AB$4026,2,FALSE)="Pasture unsuitable","Pasture unsuitable",IF(K42="","",IF($D$21=0,0,IF($D$17="Lambs",VLOOKUP(LookUp!R283,LookUp!$AA$400:$AB$1841,2,FALSE),IF($D$17="Ewes/Wethers",VLOOKUP(LookUp!R283,LookUp!$AA$400:$AB$1841,2,FALSE),LookUp!S283*((22.587*(LookUp!T283))-5.2361))))))) ->  | M42: =IF(G42<=0,0,IF(F42="",0,IF(G42=0,0,ROUNDUP((F42/G42*$D$13),0)))) -> 0 | N42: =IF(F42="","",IF(O43<=0,"",VLOOKUP(O43,LookUp!$A$243:$B$607,2,FALSE))) ->  | O42: 0 | P42: =IF(H42="","",H42+J42*O42) ->  | Q42: =IF(P42=500,IF($D$21=0,"",LookUp!S336),IF(P42=1000,IF($D$21=0,"",LookUp!S336),IF(P42=1500,IF($D$21=0,"",LookUp!S336),IF(P42=2000,IF($D$21=0,"",LookUp!S336),IF(LookUp!P336=500,(((P42-500)/500)*(LookUp!AD336-LookUp!S336))+LookUp!S336,IF(LookUp!P336=600,(((P42-1000)/500)*(LookUp!AD336-LookUp!S336))+LookUp!S336,IF(LookUp!P336=700,(((P42-1500)/500)*(LookUp!AD336-LookUp!S336))+LookUp!S336,IF(LookUp!P336=800,(((P42-2000)/500)*(LookUp!AD336-LookUp!S336))+LookUp!S336,LookUp!S336)))))))) -> 0 | R42: =IF(D42<=0,"",IF(Q42="","",H42+((J42*(O42+M42))-(($D$22*Q42*(1+$D$23))/D42)*M42))) ->  | S42: =IF(I42="",0,IF(VLOOKUP(LookUp!R309,LookUp!$AA$400:$AB$4026,2,FALSE)="Pasture unsuitable","Pasture unsuitable",IF(I42="","",IF($D$21=0,"",IF($D$17="Lambs",VLOOKUP(LookUp!R309,LookUp!$AA$400:$AB$4026,2,FALSE),IF($D$17="Ewes/Wethers",VLOOKUP(LookUp!R309,LookUp!$AA$400:$AB$4026,2,FALSE),LookUp!S309*((22.587*(LookUp!T309))-5.2361)))))))*IF(Q42=0,0,(Q42/LookUp!S336)) -> 0 | T42: =IF(K42>=P42,0,IF(D42<=0,"",IF(IF(Q42="","",((P42-K42)+(J42*(M42+O42)))/($D$22*Q42*(1+$D$23)/D42))<0,0,IF(Q42="","",((P42-K42)+(J42*(M42+O42)))/($D$22*Q42*(1+$D$23)/D42))))) -> 0 | U42: =IF(F42="","",IF(X43<=0,"",VLOOKUP(X43,LookUp!$A$243:$B$607,2,FALSE))) ->  | V42: =IF(D42<=0,"",IF($D$13="","",IF(Q42="","",IF($D$22="","",IF(T42=0,0,((H42-K42+(O42*J42)+(J42*M42))*(1-$D$23)/(Q42*M42))*D42))))) ->  | X42: 0
L43: =IF(K43="","",IF(VLOOKUP(LookUp!R284,LookUp!$AA$400:$AB$4026,2,FALSE)="Pasture unsuitable","Pasture unsuitable",IF(K43="","",IF($D$21=0,0,IF($D$17="Lambs",VLOOKUP(LookUp!R284,LookUp!$AA$400:$AB$4026,2,FALSE),IF($D$17="Ewes/Wethers",VLOOKUP(LookUp!R284,LookUp!$AA$400:$AB$4026,2,FALSE),LookUp!S284*((22.587*(LookUp!T284))-5.2361))))))) ->  | M43: =IF(G43<=0,0,IF(F43="",0,IF(G43=0,0,ROUNDUP((F43/G43*$D$13),0)))) -> 0 | N43: =IF(F43="","",IF(O44<=0,"",VLOOKUP(O44,LookUp!$A$243:$B$607,2,FALSE))) ->  | O43: =INT(IF(M43+M42=0,0,O42+M42)) -> 0 | Q43: =IF(P43=500,IF($D$21=0,"",LookUp!S337),IF(P43=1000,IF($D$21=0,"",LookUp!S337),IF(P43=1500,IF($D$21=0,"",LookUp!S337),IF(P43=2000,IF($D$21=0,"",LookUp!S337),IF(LookUp!P337=500,(((P43-500)/500)*(LookUp!AD337-LookUp!S337))+LookUp!S337,IF(LookUp!P337=600,(((P43-1000)/500)*(LookUp!AD337-LookUp!S337))+LookUp!S337,IF(LookUp!P337=700,(((P43-1500)/500)*(LookUp!AD337-LookUp!S337))+LookUp!S337,IF(LookUp!P337=800,(((P43-2000)/500)*(LookUp!AD337-LookUp!S337))+LookUp!S337,LookUp!S337)))))))) -> 0 | S43: =IF(I43="",0,IF(VLOOKUP(LookUp!R310,LookUp!$AA$400:$AB$4026,2,FALSE)="Pasture unsuitable","Pasture unsuitable",IF(I43="","",IF($D$21=0,"",IF($D$17="Lambs",VLOOKUP(LookUp!R310,LookUp!$AA$400:$AB$4026,2,FALSE),IF($D$17="Ewes/Wethers",VLOOKUP(LookUp!R310,LookUp!$AA$400:$AB$4026,2,FALSE),LookUp!S310*((22.587*(LookUp!T310))-5.2361)))))))*IF(Q43=0,0,(Q43/LookUp!S337)) -> 0 | T43: =IF(D43<=0,"",IF(IF(Q43="","",((H43-K43)+(J43*(M43+O43)))/($D$22*Q43*(1+$D$23)/D43))<0,0,IF(Q43="","",((H43-K43)+(J43*(M43+O43)))/($D$22*Q43*(1+$D$23)/D43)))) ->  | U43: =IF(F43="","",IF(X44<=0,"",VLOOKUP(X44,LookUp!$A$243:$B$607,2,FALSE))) ->  | X43: =INT(X42+T42) -> 0
L44: =IF(K44="","",IF(VLOOKUP(LookUp!R285,LookUp!$AA$400:$AB$4026,2,FALSE)="Pasture unsuitable","Pasture unsuitable",IF(K44="","",IF($D$21=0,0,IF($D$17="Lambs",VLOOKUP(LookUp!R285,LookUp!$AA$400:$AB$4026,2,FALSE),IF($D$17="Ewes/Wethers",VLOOKUP(LookUp!R285,LookUp!$AA$400:$AB$4026,2,FALSE),LookUp!S285*((22.587*(LookUp!T285))-5.2361))))))) ->  | M44: =IF(G44<=0,0,IF(F44="",0,IF(G44=0,0,ROUNDUP((F44/G44*$D$13),0)))) -> 0 | N44: =IF(F44="","",IF(O45<=0,"",VLOOKUP(O45,LookUp!$A$243:$B$607,2,FALSE))) ->  | O44: =INT(IF(M44+M43=0,0,O43+M43)) -> 0 | Q44: =IF(P44=500,IF($D$21=0,"",LookUp!S338),IF(P44=1000,IF($D$21=0,"",LookUp!S338),IF(P44=1500,IF($D$21=0,"",LookUp!S338),IF(P44=2000,IF($D$21=0,"",LookUp!S338),IF(LookUp!P338=500,(((P44-500)/500)*(LookUp!AD338-LookUp!S338))+LookUp!S338,IF(LookUp!P338=600,(((P44-1000)/500)*(LookUp!AD338-LookUp!S338))+LookUp!S338,IF(LookUp!P338=700,(((P44-1500)/500)*(LookUp!AD338-LookUp!S338))+LookUp!S338,IF(LookUp!P338=800,(((P44-2000)/500)*(LookUp!AD338-LookUp!S338))+LookUp!S338,LookUp!S338)))))))) -> 0 | S44: =IF(I44="",0,IF(VLOOKUP(LookUp!R311,LookUp!$AA$400:$AB$4026,2,FALSE)="Pasture unsuitable","Pasture unsuitable",IF(I44="","",IF($D$21=0,"",IF($D$17="Lambs",VLOOKUP(LookUp!R311,LookUp!$AA$400:$AB$4026,2,FALSE),IF($D$17="Ewes/Wethers",VLOOKUP(LookUp!R311,LookUp!$AA$400:$AB$4026,2,FALSE),LookUp!S311*((22.587*(LookUp!T311))-5.2361)))))))*IF(Q44=0,0,(Q44/LookUp!S338)) -> 0 | U44: =IF(F44="","",IF(X45<=0,"",VLOOKUP(X45,LookUp!$A$243:$B$607,2,FALSE))) ->  | X44: =INT(X43+T43) -> 
L45: =IF(K45="","",IF(VLOOKUP(LookUp!R286,LookUp!$AA$400:$AB$4026,2,FALSE)="Pasture unsuitable","Pasture unsuitable",IF(K45="","",IF($D$21=0,0,IF($D$17="Lambs",VLOOKUP(LookUp!R286,LookUp!$AA$400:$AB$4026,2,FALSE),IF($D$17="Ewes/Wethers",VLOOKUP(LookUp!R286,LookUp!$AA$400:$AB$4026,2,FALSE),LookUp!S286*((22.587*(LookUp!T286))-5.2361))))))) ->  | M45: 0 | N45: =IF(F45="","",IF(O46<=0,"",VLOOKUP(O46,LookUp!$A$243:$B$607,2,FALSE))) ->  | O45: =INT(IF(M45+M44=0,0,O44+M44)) -> 0 | Q45: =IF(P45=500,IF($D$21=0,"",LookUp!S339),IF(P45=1000,IF($D$21=0,"",LookUp!S339),IF(P45=1500,IF($D$21=0,"",LookUp!S339),IF(P45=2000,IF($D$21=0,"",LookUp!S339),IF(LookUp!P339=500,(((P45-500)/500)*(LookUp!AD339-LookUp!S339))+LookUp!S339,IF(LookUp!P339=600,(((P45-1000)/500)*(LookUp!AD339-LookUp!S339))+LookUp!S339,IF(LookUp!P339=700,(((P45-1500)/500)*(LookUp!AD339-LookUp!S339))+LookUp!S339,IF(LookUp!P339=800,(((P45-2000)/500)*(LookUp!AD339-LookUp!S339))+LookUp!S339,LookUp!S339)))))))) -> 0 | S45: =IF(I45="",0,IF(VLOOKUP(LookUp!R312,LookUp!$AA$400:$AB$4026,2,FALSE)="Pasture unsuitable","Pasture unsuitable",IF(I45="","",IF($D$21=0,"",IF($D$17="Lambs",VLOOKUP(LookUp!R312,LookUp!$AA$400:$AB$4026,2,FALSE),IF($D$17="Ewes/Wethers",VLOOKUP(LookUp!R312,LookUp!$AA$400:$AB$4026,2,FALSE),LookUp!S312*((22.587*(LookUp!T312))-5.2361)))))))*IF(Q45=0,0,(Q45/LookUp!S339)) -> 0 | U45: =IF(F45="","",IF(X46<=0,"",VLOOKUP(X46,LookUp!$A$243:$B$607,2,FALSE))) -> 
L46: =IF(K46="","",IF(VLOOKUP(LookUp!R287,LookUp!$AA$400:$AB$4026,2,FALSE)="Pasture unsuitable","Pasture unsuitable",IF(K46="","",IF($D$21=0,0,IF($D$17="Lambs",VLOOKUP(LookUp!R287,LookUp!$AA$400:$AB$4026,2,FALSE),IF($D$17="Ewes/Wethers",VLOOKUP(LookUp!R287,LookUp!$AA$400:$AB$4026,2,FALSE),LookUp!S287*((22.587*(LookUp!T287))-5.2361))))))) ->  | M46: 0 | N46: =IF(F46="","",IF(O47<=0,"",VLOOKUP(O47,LookUp!$A$243:$B$607,2,FALSE))) ->  | O46: =INT(IF(M46+M45=0,0,O45+M45)) -> 0 | Q46: =IF(P46=500,IF($D$21=0,"",LookUp!S340),IF(P46=1000,IF($D$21=0,"",LookUp!S340),IF(P46=1500,IF($D$21=0,"",LookUp!S340),IF(P46=2000,IF($D$21=0,"",LookUp!S340),IF(LookUp!P340=500,(((P46-500)/500)*(LookUp!AD340-LookUp!S340))+LookUp!S340,IF(LookUp!P340=600,(((P46-1000)/500)*(LookUp!AD340-LookUp!S340))+LookUp!S340,IF(LookUp!P340=700,(((P46-1500)/500)*(LookUp!AD340-LookUp!S340))+LookUp!S340,IF(LookUp!P340=800,(((P46-2000)/500)*(LookUp!AD340-LookUp!S340))+LookUp!S340,LookUp!S340)))))))) -> 0 | S46: =IF(I46="",0,IF(VLOOKUP(LookUp!R313,LookUp!$AA$400:$AB$4026,2,FALSE)="Pasture unsuitable","Pasture unsuitable",IF(I46="","",IF($D$21=0,"",IF($D$17="Lambs",VLOOKUP(LookUp!R313,LookUp!$AA$400:$AB$4026,2,FALSE),IF($D$17="Ewes/Wethers",VLOOKUP(LookUp!R313,LookUp!$AA$400:$AB$4026,2,FALSE),LookUp!S313*((22.587*(LookUp!T313))-5.2361)))))))*IF(Q46=0,0,(Q46/LookUp!S340)) -> 0 | U46: =IF(F46="","",IF(X47<=0,"",VLOOKUP(X47,LookUp!$A$243:$B$607,2,FALSE))) -> 
L47: =IF(K47="","",IF(VLOOKUP(LookUp!R288,LookUp!$AA$400:$AB$4026,2,FALSE)="Pasture unsuitable","Pasture unsuitable",IF(K47="","",IF($D$21=0,0,IF($D$17="Lambs",VLOOKUP(LookUp!R288,LookUp!$AA$400:$AB$4026,2,FALSE),IF($D$17="Ewes/Wethers",VLOOKUP(LookUp!R288,LookUp!$AA$400:$AB$4026,2,FALSE),LookUp!S288*((22.587*(LookUp!T288))-5.2361))))))) ->  | M47: 0 | N47: =IF(F47="","",IF(O48<=0,"",VLOOKUP(O48,LookUp!$A$243:$B$607,2,FALSE))) ->  | O47: 0 | Q47: =IF(P47=500,IF($D$21=0,"",LookUp!S341),IF(P47=1000,IF($D$21=0,"",LookUp!S341),IF(P47=1500,IF($D$21=0,"",LookUp!S341),IF(P47=2000,IF($D$21=0,"",LookUp!S341),IF(LookUp!P341=500,(((P47-500)/500)*(LookUp!AD341-LookUp!S341))+LookUp!S341,IF(LookUp!P341=600,(((P47-1000)/500)*(LookUp!AD341-LookUp!S341))+LookUp!S341,IF(LookUp!P341=700,(((P47-1500)/500)*(LookUp!AD341-LookUp!S341))+LookUp!S341,IF(LookUp!P341=800,(((P47-2000)/500)*(LookUp!AD341-LookUp!S341))+LookUp!S341,LookUp!S341)))))))) -> 0 | S47: =IF(I47="",0,IF(VLOOKUP(LookUp!R314,LookUp!$AA$400:$AB$4026,2,FALSE)="Pasture unsuitable","Pasture unsuitable",IF(I47="","",IF($D$21=0,"",IF($D$17="Lambs",VLOOKUP(LookUp!R314,LookUp!$AA$400:$AB$4026,2,FALSE),IF($D$17="Ewes/Wethers",VLOOKUP(LookUp!R314,LookUp!$AA$400:$AB$4026,2,FALSE),LookUp!S314*((22.587*(LookUp!T314))-5.2361)))))))*IF(Q47=0,0,(Q47/LookUp!S341)) -> 0 | U47: =IF(F47="","",IF(X48<=0,"",VLOOKUP(X48,LookUp!$A$243:$B$607,2,FALSE))) -> 
L48: =IF(K48="","",IF(VLOOKUP(LookUp!R289,LookUp!$AA$400:$AB$4026,2,FALSE)="Pasture unsuitable","Pasture unsuitable",IF(K48="","",IF($D$21=0,0,IF($D$17="Lambs",VLOOKUP(LookUp!R289,LookUp!$AA$400:$AB$4026,2,FALSE),IF($D$17="Ewes/Wethers",VLOOKUP(LookUp!R289,LookUp!$AA$400:$AB$4026,2,FALSE),LookUp!S289*((22.587*(LookUp!T289))-5.2361))))))) ->  | M48: 0 | N48: =IF(F48="","",IF(O49<=0,"",VLOOKUP(O49,LookUp!$A$243:$B$607,2,FALSE))) ->  | O48: 0 | Q48: =IF(P48=500,IF($D$21=0,"",LookUp!S342),IF(P48=1000,IF($D$21=0,"",LookUp!S342),IF(P48=1500,IF($D$21=0,"",LookUp!S342),IF(P48=2000,IF($D$21=0,"",LookUp!S342),IF(LookUp!P342=500,(((P48-500)/500)*(LookUp!AD342-LookUp!S342))+LookUp!S342,IF(LookUp!P342=600,(((P48-1000)/500)*(LookUp!AD342-LookUp!S342))+LookUp!S342,IF(LookUp!P342=700,(((P48-1500)/500)*(LookUp!AD342-LookUp!S342))+LookUp!S342,IF(LookUp!P342=800,(((P48-2000)/500)*(LookUp!AD342-LookUp!S342))+LookUp!S342,LookUp!S342)))))))) -> 0 | S48: =IF(I48="",0,IF(VLOOKUP(LookUp!R315,LookUp!$AA$400:$AB$4026,2,FALSE)="Pasture unsuitable","Pasture unsuitable",IF(I48="","",IF($D$21=0,"",IF($D$17="Lambs",VLOOKUP(LookUp!R315,LookUp!$AA$400:$AB$4026,2,FALSE),IF($D$17="Ewes/Wethers",VLOOKUP(LookUp!R315,LookUp!$AA$400:$AB$4026,2,FALSE),LookUp!S315*((22.587*(LookUp!T315))-5.2361)))))))*IF(Q48=0,0,(Q48/LookUp!S342)) -> 0 | U48: =IF(F48="","",IF(X49<=0,"",VLOOKUP(X49,LookUp!$A$243:$B$607,2,FALSE))) -> 
L49: =IF(K49="","",IF(VLOOKUP(LookUp!R290,LookUp!$AA$400:$AB$4026,2,FALSE)="Pasture unsuitable","Pasture unsuitable",IF(K49="","",IF($D$21=0,0,IF($D$17="Lambs",VLOOKUP(LookUp!R290,LookUp!$AA$400:$AB$4026,2,FALSE),IF($D$17="Ewes/Wethers",VLOOKUP(LookUp!R290,LookUp!$AA$400:$AB$4026,2,FALSE),LookUp!S290*((22.587*(LookUp!T290))-5.2361))))))) ->  | M49: 0 | N49: =IF(F49="","",IF(O50<=0,"",VLOOKUP(O50,LookUp!$A$243:$B$607,2,FALSE))) ->  | O49: 0 | Q49: =IF(P49=500,IF($D$21=0,"",LookUp!S343),IF(P49=1000,IF($D$21=0,"",LookUp!S343),IF(P49=1500,IF($D$21=0,"",LookUp!S343),IF(P49=2000,IF($D$21=0,"",LookUp!S343),IF(LookUp!P343=500,(((P49-500)/500)*(LookUp!AD343-LookUp!S343))+LookUp!S343,IF(LookUp!P343=600,(((P49-1000)/500)*(LookUp!AD343-LookUp!S343))+LookUp!S343,IF(LookUp!P343=700,(((P49-1500)/500)*(LookUp!AD343-LookUp!S343))+LookUp!S343,IF(LookUp!P343=800,(((P49-2000)/500)*(LookUp!AD343-LookUp!S343))+LookUp!S343,LookUp!S343)))))))) -> 0 | S49: =IF(I49="",0,IF(VLOOKUP(LookUp!R316,LookUp!$AA$400:$AB$4026,2,FALSE)="Pasture unsuitable","Pasture unsuitable",IF(I49="","",IF($D$21=0,"",IF($D$17="Lambs",VLOOKUP(LookUp!R316,LookUp!$AA$400:$AB$4026,2,FALSE),IF($D$17="Ewes/Wethers",VLOOKUP(LookUp!R316,LookUp!$AA$400:$AB$4026,2,FALSE),LookUp!S316*((22.587*(LookUp!T316))-5.2361)))))))*IF(Q49=0,0,(Q49/LookUp!S343)) -> 0 | U49: =IF(F49="","",IF(X50<=0,"",VLOOKUP(X50,LookUp!$A$243:$B$607,2,FALSE))) -> 
L50: =IF(K50="","",IF(VLOOKUP(LookUp!R291,LookUp!$AA$400:$AB$4026,2,FALSE)="Pasture unsuitable","Pasture unsuitable",IF(K50="","",IF($D$21=0,0,IF($D$17="Lambs",VLOOKUP(LookUp!R291,LookUp!$AA$400:$AB$4026,2,FALSE),IF($D$17="Ewes/Wethers",VLOOKUP(LookUp!R291,LookUp!$AA$400:$AB$4026,2,FALSE),LookUp!S291*((22.587*(LookUp!T291))-5.2361))))))) ->  | M50: 0 | N50: =IF(F50="","",IF(O51<=0,"",VLOOKUP(O51,LookUp!$A$243:$B$607,2,FALSE))) ->  | O50: 0 | Q50: =IF(P50=500,IF($D$21=0,"",LookUp!S344),IF(P50=1000,IF($D$21=0,"",LookUp!S344),IF(P50=1500,IF($D$21=0,"",LookUp!S344),IF(P50=2000,IF($D$21=0,"",LookUp!S344),IF(LookUp!P344=500,(((P50-500)/500)*(LookUp!AD344-LookUp!S344))+LookUp!S344,IF(LookUp!P344=600,(((P50-1000)/500)*(LookUp!AD344-LookUp!S344))+LookUp!S344,IF(LookUp!P344=700,(((P50-1500)/500)*(LookUp!AD344-LookUp!S344))+LookUp!S344,IF(LookUp!P344=800,(((P50-2000)/500)*(LookUp!AD344-LookUp!S344))+LookUp!S344,LookUp!S344)))))))) -> 0 | S50: =IF(I50="",0,IF(VLOOKUP(LookUp!R317,LookUp!$AA$400:$AB$4026,2,FALSE)="Pasture unsuitable","Pasture unsuitable",IF(I50="","",IF($D$21=0,"",IF($D$17="Lambs",VLOOKUP(LookUp!R317,LookUp!$AA$400:$AB$4026,2,FALSE),IF($D$17="Ewes/Wethers",VLOOKUP(LookUp!R317,LookUp!$AA$400:$AB$4026,2,FALSE),LookUp!S317*((22.587*(LookUp!T317))-5.2361)))))))*IF(Q50=0,0,(Q50/LookUp!S344)) -> 0 | U50: =IF(F50="","",IF(X51<=0,"",VLOOKUP(X51,LookUp!$A$243:$B$607,2,FALSE))) -> 
L51: =IF(K51="","",IF(VLOOKUP(LookUp!R292,LookUp!$AA$400:$AB$4026,2,FALSE)="Pasture unsuitable","Pasture unsuitable",IF(K51="","",IF($D$21=0,0,IF($D$17="Lambs",VLOOKUP(LookUp!R292,LookUp!$AA$400:$AB$4026,2,FALSE),IF($D$17="Ewes/Wethers",VLOOKUP(LookUp!R292,LookUp!$AA$400:$AB$4026,2,FALSE),LookUp!S292*((22.587*(LookUp!T292))-5.2361))))))) ->  | M51: 0 | N51: =IF(F51="","",IF(O52<=0,"",VLOOKUP(O52,LookUp!$A$243:$B$607,2,FALSE))) ->  | O51: 0 | Q51: =IF(P51=500,IF($D$21=0,"",LookUp!S345),IF(P51=1000,IF($D$21=0,"",LookUp!S345),IF(P51=1500,IF($D$21=0,"",LookUp!S345),IF(P51=2000,IF($D$21=0,"",LookUp!S345),IF(LookUp!P345=500,(((P51-500)/500)*(LookUp!AD345-LookUp!S345))+LookUp!S345,IF(LookUp!P345=600,(((P51-1000)/500)*(LookUp!AD345-LookUp!S345))+LookUp!S345,IF(LookUp!P345=700,(((P51-1500)/500)*(LookUp!AD345-LookUp!S345))+LookUp!S345,IF(LookUp!P345=800,(((P51-2000)/500)*(LookUp!AD345-LookUp!S345))+LookUp!S345,LookUp!S345)))))))) -> 0 | S51: =IF(I51="",0,IF(VLOOKUP(LookUp!R318,LookUp!$AA$400:$AB$4026,2,FALSE)="Pasture unsuitable","Pasture unsuitable",IF(I51="","",IF($D$21=0,"",IF($D$17="Lambs",VLOOKUP(LookUp!R318,LookUp!$AA$400:$AB$4026,2,FALSE),IF($D$17="Ewes/Wethers",VLOOKUP(LookUp!R318,LookUp!$AA$400:$AB$4026,2,FALSE),LookUp!S318*((22.587*(LookUp!T318))-5.2361)))))))*IF(Q51=0,0,(Q51/LookUp!S345)) -> 0 | U51: =IF(F51="","",IF(X52<=0,"",VLOOKUP(X52,LookUp!$A$243:$B$607,2,FALSE))) -> 
L52: =IF(K52="","",IF(VLOOKUP(LookUp!R293,LookUp!$AA$400:$AB$4026,2,FALSE)="Pasture unsuitable","Pasture unsuitable",IF(K52="","",IF($D$21=0,0,IF($D$17="Lambs",VLOOKUP(LookUp!R293,LookUp!$AA$400:$AB$4026,2,FALSE),IF($D$17="Ewes/Wethers",VLOOKUP(LookUp!R293,LookUp!$AA$400:$AB$4026,2,FALSE),LookUp!S293*((22.587*(LookUp!T293))-5.2361))))))) ->  | M52: 0 | N52: =IF(F52="","",IF(O53<=0,"",VLOOKUP(O53,LookUp!$A$243:$B$607,2,FALSE))) ->  | O52: 0 | Q52: =IF(P52=500,IF($D$21=0,"",LookUp!S346),IF(P52=1000,IF($D$21=0,"",LookUp!S346),IF(P52=1500,IF($D$21=0,"",LookUp!S346),IF(P52=2000,IF($D$21=0,"",LookUp!S346),IF(LookUp!P346=500,(((P52-500)/500)*(LookUp!AD346-LookUp!S346))+LookUp!S346,IF(LookUp!P346=600,(((P52-1000)/500)*(LookUp!AD346-LookUp!S346))+LookUp!S346,IF(LookUp!P346=700,(((P52-1500)/500)*(LookUp!AD346-LookUp!S346))+LookUp!S346,IF(LookUp!P346=800,(((P52-2000)/500)*(LookUp!AD346-LookUp!S346))+LookUp!S346,LookUp!S346)))))))) -> 0 | S52: =IF(I52="",0,IF(VLOOKUP(LookUp!R319,LookUp!$AA$400:$AB$4026,2,FALSE)="Pasture unsuitable","Pasture unsuitable",IF(I52="","",IF($D$21=0,"",IF($D$17="Lambs",VLOOKUP(LookUp!R319,LookUp!$AA$400:$AB$4026,2,FALSE),IF($D$17="Ewes/Wethers",VLOOKUP(LookUp!R319,LookUp!$AA$400:$AB$4026,2,FALSE),LookUp!S319*((22.587*(LookUp!T319))-5.2361)))))))*IF(Q52=0,0,(Q52/LookUp!S346)) -> 0 | U52: =IF(F52="","",IF(X53<=0,"",VLOOKUP(X53,LookUp!$A$243:$B$607,2,FALSE))) -> 
L53: =IF(K53="","",IF(VLOOKUP(LookUp!R294,LookUp!$AA$400:$AB$4026,2,FALSE)="Pasture unsuitable","Pasture unsuitable",IF(K53="","",IF($D$21=0,0,IF($D$17="Lambs",VLOOKUP(LookUp!R294,LookUp!$AA$400:$AB$4026,2,FALSE),IF($D$17="Ewes/Wethers",VLOOKUP(LookUp!R294,LookUp!$AA$400:$AB$4026,2,FALSE),LookUp!S294*((22.587*(LookUp!T294))-5.2361))))))) ->  | M53: 0 | N53: =IF(F53="","",IF(O54<=0,"",VLOOKUP(O54,LookUp!$A$243:$B$607,2,FALSE))) ->  | O53: 0 | Q53: =IF(P53=500,IF($D$21=0,"",LookUp!S347),IF(P53=1000,IF($D$21=0,"",LookUp!S347),IF(P53=1500,IF($D$21=0,"",LookUp!S347),IF(P53=2000,IF($D$21=0,"",LookUp!S347),IF(LookUp!P347=500,(((P53-500)/500)*(LookUp!AD347-LookUp!S347))+LookUp!S347,IF(LookUp!P347=600,(((P53-1000)/500)*(LookUp!AD347-LookUp!S347))+LookUp!S347,IF(LookUp!P347=700,(((P53-1500)/500)*(LookUp!AD347-LookUp!S347))+LookUp!S347,IF(LookUp!P347=800,(((P53-2000)/500)*(LookUp!AD347-LookUp!S347))+LookUp!S347,LookUp!S347)))))))) -> 0 | S53: =IF(I53="",0,IF(VLOOKUP(LookUp!R320,LookUp!$AA$400:$AB$4026,2,FALSE)="Pasture unsuitable","Pasture unsuitable",IF(I53="","",IF($D$21=0,"",IF($D$17="Lambs",VLOOKUP(LookUp!R320,LookUp!$AA$400:$AB$4026,2,FALSE),IF($D$17="Ewes/Wethers",VLOOKUP(LookUp!R320,LookUp!$AA$400:$AB$4026,2,FALSE),LookUp!S320*((22.587*(LookUp!T320))-5.2361)))))))*IF(Q53=0,0,(Q53/LookUp!S347)) -> 0 | U53: =IF(F53="","",IF(X54<=0,"",VLOOKUP(X54,LookUp!$A$243:$B$607,2,FALSE))) -> 
L54: =IF(K54="","",IF(VLOOKUP(LookUp!R295,LookUp!$AA$400:$AB$4026,2,FALSE)="Pasture unsuitable","Pasture unsuitable",IF(K54="","",IF($D$21=0,0,IF($D$17="Lambs",VLOOKUP(LookUp!R295,LookUp!$AA$400:$AB$4026,2,FALSE),IF($D$17="Ewes/Wethers",VLOOKUP(LookUp!R295,LookUp!$AA$400:$AB$4026,2,FALSE),LookUp!S295*((22.587*(LookUp!T295))-5.2361))))))) ->  | M54: 0 | N54: =IF(F54="","",IF(O55<=0,"",VLOOKUP(O55,LookUp!$A$243:$B$607,2,FALSE))) ->  | O54: 0 | Q54: =IF(P54=500,IF($D$21=0,"",LookUp!S348),IF(P54=1000,IF($D$21=0,"",LookUp!S348),IF(P54=1500,IF($D$21=0,"",LookUp!S348),IF(P54=2000,IF($D$21=0,"",LookUp!S348),IF(LookUp!P348=500,(((P54-500)/500)*(LookUp!AD348-LookUp!S348))+LookUp!S348,IF(LookUp!P348=600,(((P54-1000)/500)*(LookUp!AD348-LookUp!S348))+LookUp!S348,IF(LookUp!P348=700,(((P54-1500)/500)*(LookUp!AD348-LookUp!S348))+LookUp!S348,IF(LookUp!P348=800,(((P54-2000)/500)*(LookUp!AD348-LookUp!S348))+LookUp!S348,LookUp!S348)))))))) -> 0 | S54: =IF(I54="",0,IF(VLOOKUP(LookUp!R321,LookUp!$AA$400:$AB$4026,2,FALSE)="Pasture unsuitable","Pasture unsuitable",IF(I54="","",IF($D$21=0,"",IF($D$17="Lambs",VLOOKUP(LookUp!R321,LookUp!$AA$400:$AB$4026,2,FALSE),IF($D$17="Ewes/Wethers",VLOOKUP(LookUp!R321,LookUp!$AA$400:$AB$4026,2,FALSE),LookUp!S321*((22.587*(LookUp!T321))-5.2361)))))))*IF(Q54=0,0,(Q54/LookUp!S348)) -> 0 | U54: =IF(F54="","",IF(X55<=0,"",VLOOKUP(X55,LookUp!$A$243:$B$607,2,FALSE))) -> 
L55: =IF(K55="","",IF(VLOOKUP(LookUp!R296,LookUp!$AA$400:$AB$4026,2,FALSE)="Pasture unsuitable","Pasture unsuitable",IF(K55="","",IF($D$21=0,0,IF($D$17="Lambs",VLOOKUP(LookUp!R296,LookUp!$AA$400:$AB$4026,2,FALSE),IF($D$17="Ewes/Wethers",VLOOKUP(LookUp!R296,LookUp!$AA$400:$AB$4026,2,FALSE),LookUp!S296*((22.587*(LookUp!T296))-5.2361))))))) ->  | M55: 0 | N55: =IF(F55="","",IF(O56<=0,"",VLOOKUP(O56,LookUp!$A$243:$B$607,2,FALSE))) ->  | O55: 0 | Q55: =IF(P55=500,IF($D$21=0,"",LookUp!S349),IF(P55=1000,IF($D$21=0,"",LookUp!S349),IF(P55=1500,IF($D$21=0,"",LookUp!S349),IF(P55=2000,IF($D$21=0,"",LookUp!S349),IF(LookUp!P349=500,(((P55-500)/500)*(LookUp!AD349-LookUp!S349))+LookUp!S349,IF(LookUp!P349=600,(((P55-1000)/500)*(LookUp!AD349-LookUp!S349))+LookUp!S349,IF(LookUp!P349=700,(((P55-1500)/500)*(LookUp!AD349-LookUp!S349))+LookUp!S349,IF(LookUp!P349=800,(((P55-2000)/500)*(LookUp!AD349-LookUp!S349))+LookUp!S349,LookUp!S349)))))))) -> 0 | S55: =IF(I55="",0,IF(VLOOKUP(LookUp!R322,LookUp!$AA$400:$AB$4026,2,FALSE)="Pasture unsuitable","Pasture unsuitable",IF(I55="","",IF($D$21=0,"",IF($D$17="Lambs",VLOOKUP(LookUp!R322,LookUp!$AA$400:$AB$4026,2,FALSE),IF($D$17="Ewes/Wethers",VLOOKUP(LookUp!R322,LookUp!$AA$400:$AB$4026,2,FALSE),LookUp!S322*((22.587*(LookUp!T322))-5.2361)))))))*IF(Q55=0,0,(Q55/LookUp!S349)) -> 0 | U55: =IF(F55="","",IF(X56<=0,"",VLOOKUP(X56,LookUp!$A$243:$B$607,2,FALSE))) -> 
L56: =IF(K56="","",IF(VLOOKUP(LookUp!R297,LookUp!$AA$400:$AB$4026,2,FALSE)="Pasture unsuitable","Pasture unsuitable",IF(K56="","",IF($D$21=0,0,IF($D$17="Lambs",VLOOKUP(LookUp!R297,LookUp!$AA$400:$AB$4026,2,FALSE),IF($D$17="Ewes/Wethers",VLOOKUP(LookUp!R297,LookUp!$AA$400:$AB$4026,2,FALSE),LookUp!S297*((22.587*(LookUp!T297))-5.2361))))))) ->  | M56: 0 | N56: =IF(F56="","",IF(O57<=0,"",VLOOKUP(O57,LookUp!$A$243:$B$607,2,FALSE))) ->  | O56: 0 | Q56: =IF(P56=500,IF($D$21=0,"",LookUp!S350),IF(P56=1000,IF($D$21=0,"",LookUp!S350),IF(P56=1500,IF($D$21=0,"",LookUp!S350),IF(P56=2000,IF($D$21=0,"",LookUp!S350),IF(LookUp!P350=500,(((P56-500)/500)*(LookUp!AD350-LookUp!S350))+LookUp!S350,IF(LookUp!P350=600,(((P56-1000)/500)*(LookUp!AD350-LookUp!S350))+LookUp!S350,IF(LookUp!P350=700,(((P56-1500)/500)*(LookUp!AD350-LookUp!S350))+LookUp!S350,IF(LookUp!P350=800,(((P56-2000)/500)*(LookUp!AD350-LookUp!S350))+LookUp!S350,LookUp!S350)))))))) -> 0 | S56: =IF(I56="",0,IF(VLOOKUP(LookUp!R323,LookUp!$AA$400:$AB$4026,2,FALSE)="Pasture unsuitable","Pasture unsuitable",IF(I56="","",IF($D$21=0,"",IF($D$17="Lambs",VLOOKUP(LookUp!R323,LookUp!$AA$400:$AB$4026,2,FALSE),IF($D$17="Ewes/Wethers",VLOOKUP(LookUp!R323,LookUp!$AA$400:$AB$4026,2,FALSE),LookUp!S323*((22.587*(LookUp!T323))-5.2361)))))))*IF(Q56=0,0,(Q56/LookUp!S350)) -> 0 | U56: =IF(F56="","",IF(X57<=0,"",VLOOKUP(X57,LookUp!$A$243:$B$607,2,FALSE))) -> 
L57: =IF(K57="","",IF(VLOOKUP(LookUp!R298,LookUp!$AA$400:$AB$4026,2,FALSE)="Pasture unsuitable","Pasture unsuitable",IF(K57="","",IF($D$21=0,0,IF($D$17="Lambs",VLOOKUP(LookUp!R298,LookUp!$AA$400:$AB$4026,2,FALSE),IF($D$17="Ewes/Wethers",VLOOKUP(LookUp!R298,LookUp!$AA$400:$AB$4026,2,FALSE),LookUp!S298*((22.587*(LookUp!T298))-5.2361))))))) ->  | M57: 0 | N57: =IF(F57="","",IF(O58<=0,"",VLOOKUP(O58,LookUp!$A$243:$B$607,2,FALSE))) ->  | O57: 0 | Q57: =IF(P57=500,IF($D$21=0,"",LookUp!S351),IF(P57=1000,IF($D$21=0,"",LookUp!S351),IF(P57=1500,IF($D$21=0,"",LookUp!S351),IF(P57=2000,IF($D$21=0,"",LookUp!S351),IF(LookUp!P351=500,(((P57-500)/500)*(LookUp!AD351-LookUp!S351))+LookUp!S351,IF(LookUp!P351=600,(((P57-1000)/500)*(LookUp!AD351-LookUp!S351))+LookUp!S351,IF(LookUp!P351=700,(((P57-1500)/500)*(LookUp!AD351-LookUp!S351))+LookUp!S351,IF(LookUp!P351=800,(((P57-2000)/500)*(LookUp!AD351-LookUp!S351))+LookUp!S351,LookUp!S351)))))))) -> 0 | S57: =IF(I57="",0,IF(VLOOKUP(LookUp!R324,LookUp!$AA$400:$AB$4026,2,FALSE)="Pasture unsuitable","Pasture unsuitable",IF(I57="","",IF($D$21=0,"",IF($D$17="Lambs",VLOOKUP(LookUp!R324,LookUp!$AA$400:$AB$4026,2,FALSE),IF($D$17="Ewes/Wethers",VLOOKUP(LookUp!R324,LookUp!$AA$400:$AB$4026,2,FALSE),LookUp!S324*((22.587*(LookUp!T324))-5.2361)))))))*IF(Q57=0,0,(Q57/LookUp!S351)) -> 0 | U57: =IF(F57="","",IF(X58<=0,"",VLOOKUP(X58,LookUp!$A$243:$B$607,2,FALSE))) ->  | X57: =INT(X56+T56) -> 
L58: =IF(K58="","",IF(VLOOKUP(LookUp!R299,LookUp!$AA$400:$AB$4026,2,FALSE)="Pasture unsuitable","Pasture unsuitable",IF(K58="","",IF($D$21=0,0,IF($D$17="Lambs",VLOOKUP(LookUp!R299,LookUp!$AA$400:$AB$4026,2,FALSE),IF($D$17="Ewes/Wethers",VLOOKUP(LookUp!R299,LookUp!$AA$400:$AB$4026,2,FALSE),LookUp!S299*((22.587*(LookUp!T299))-5.2361))))))) ->  | M58: 0 | N58: =IF(F58="","",IF(O59<=0,"",VLOOKUP(O59,LookUp!$A$243:$B$607,2,FALSE))) ->  | O58: 0 | Q58: =IF(P58=500,IF($D$21=0,"",LookUp!S352),IF(P58=1000,IF($D$21=0,"",LookUp!S352),IF(P58=1500,IF($D$21=0,"",LookUp!S352),IF(P58=2000,IF($D$21=0,"",LookUp!S352),IF(LookUp!P352=500,(((P58-500)/500)*(LookUp!AD352-LookUp!S352))+LookUp!S352,IF(LookUp!P352=600,(((P58-1000)/500)*(LookUp!AD352-LookUp!S352))+LookUp!S352,IF(LookUp!P352=700,(((P58-1500)/500)*(LookUp!AD352-LookUp!S352))+LookUp!S352,IF(LookUp!P352=800,(((P58-2000)/500)*(LookUp!AD352-LookUp!S352))+LookUp!S352,LookUp!S352)))))))) -> 0 | S58: =IF(I58="",0,IF(VLOOKUP(LookUp!R325,LookUp!$AA$400:$AB$4026,2,FALSE)="Pasture unsuitable","Pasture unsuitable",IF(I58="","",IF($D$21=0,"",IF($D$17="Lambs",VLOOKUP(LookUp!R325,LookUp!$AA$400:$AB$4026,2,FALSE),IF($D$17="Ewes/Wethers",VLOOKUP(LookUp!R325,LookUp!$AA$400:$AB$4026,2,FALSE),LookUp!S325*((22.587*(LookUp!T325))-5.2361)))))))*IF(Q58=0,0,(Q58/LookUp!S352)) -> 0 | U58: =IF(F58="","",IF(X59<=0,"",VLOOKUP(X59,LookUp!$A$243:$B$607,2,FALSE))) -> 
L59: =IF(K59="","",IF(VLOOKUP(LookUp!R300,LookUp!$AA$400:$AB$4026,2,FALSE)="Pasture unsuitable","Pasture unsuitable",IF(K59="","",IF($D$21=0,0,IF($D$17="Lambs",VLOOKUP(LookUp!R300,LookUp!$AA$400:$AB$4026,2,FALSE),IF($D$17="Ewes/Wethers",VLOOKUP(LookUp!R300,LookUp!$AA$400:$AB$4026,2,FALSE),LookUp!S300*((22.587*(LookUp!T300))-5.2361))))))) ->  | M59: 0 | N59: =IF(F59="","",IF(O60<=0,"",VLOOKUP(O60,LookUp!$A$243:$B$607,2,FALSE))) ->  | O59: 0 | Q59: =IF(P59=500,IF($D$21=0,"",LookUp!S353),IF(P59=1000,IF($D$21=0,"",LookUp!S353),IF(P59=1500,IF($D$21=0,"",LookUp!S353),IF(P59=2000,IF($D$21=0,"",LookUp!S353),IF(LookUp!P353=500,(((P59-500)/500)*(LookUp!AD353-LookUp!S353))+LookUp!S353,IF(LookUp!P353=600,(((P59-1000)/500)*(LookUp!AD353-LookUp!S353))+LookUp!S353,IF(LookUp!P353=700,(((P59-1500)/500)*(LookUp!AD353-LookUp!S353))+LookUp!S353,IF(LookUp!P353=800,(((P59-2000)/500)*(LookUp!AD353-LookUp!S353))+LookUp!S353,LookUp!S353)))))))) -> 0 | S59: =IF(I59="",0,IF(VLOOKUP(LookUp!R326,LookUp!$AA$400:$AB$4026,2,FALSE)="Pasture unsuitable","Pasture unsuitable",IF(I59="","",IF($D$21=0,"",IF($D$17="Lambs",VLOOKUP(LookUp!R326,LookUp!$AA$400:$AB$4026,2,FALSE),IF($D$17="Ewes/Wethers",VLOOKUP(LookUp!R326,LookUp!$AA$400:$AB$4026,2,FALSE),LookUp!S326*((22.587*(LookUp!T326))-5.2361)))))))*IF(Q59=0,0,(Q59/LookUp!S353)) -> 0 | U59: =IF(F59="","",IF(X60<=0,"",VLOOKUP(X60,LookUp!$A$243:$B$607,2,FALSE))) -> 
L60: =IF(K60="","",IF(VLOOKUP(LookUp!R301,LookUp!$AA$400:$AB$4026,2,FALSE)="Pasture unsuitable","Pasture unsuitable",IF(K60="","",IF($D$21=0,0,IF($D$17="Lambs",VLOOKUP(LookUp!R301,LookUp!$AA$400:$AB$4026,2,FALSE),IF($D$17="Ewes/Wethers",VLOOKUP(LookUp!R301,LookUp!$AA$400:$AB$4026,2,FALSE),LookUp!S301*((22.587*(LookUp!T301))-5.2361))))))) ->  | M60: 0 | N60: =IF(F60="","",IF(O61<=0,"",VLOOKUP(O61,LookUp!$A$243:$B$607,2,FALSE))) ->  | O60: 0 | Q60: =IF(P60=500,IF($D$21=0,"",LookUp!S354),IF(P60=1000,IF($D$21=0,"",LookUp!S354),IF(P60=1500,IF($D$21=0,"",LookUp!S354),IF(P60=2000,IF($D$21=0,"",LookUp!S354),IF(LookUp!P354=500,(((P60-500)/500)*(LookUp!AD354-LookUp!S354))+LookUp!S354,IF(LookUp!P354=600,(((P60-1000)/500)*(LookUp!AD354-LookUp!S354))+LookUp!S354,IF(LookUp!P354=700,(((P60-1500)/500)*(LookUp!AD354-LookUp!S354))+LookUp!S354,IF(LookUp!P354=800,(((P60-2000)/500)*(LookUp!AD354-LookUp!S354))+LookUp!S354,LookUp!S354)))))))) -> 0 | S60: =IF(I60="",0,IF(VLOOKUP(LookUp!R327,LookUp!$AA$400:$AB$4026,2,FALSE)="Pasture unsuitable","Pasture unsuitable",IF(I60="","",IF($D$21=0,"",IF($D$17="Lambs",VLOOKUP(LookUp!R327,LookUp!$AA$400:$AB$4026,2,FALSE),IF($D$17="Ewes/Wethers",VLOOKUP(LookUp!R327,LookUp!$AA$400:$AB$4026,2,FALSE),LookUp!S327*((22.587*(LookUp!T327))-5.2361)))))))*IF(Q60=0,0,(Q60/LookUp!S354)) -> 0 | U60: =IF(F60="","",IF(X61<=0,"",VLOOKUP(X61,LookUp!$A$243:$B$607,2,FALSE))) -> 
L61: =IF(K61="","",IF(VLOOKUP(LookUp!R302,LookUp!$AA$400:$AB$4026,2,FALSE)="Pasture unsuitable","Pasture unsuitable",IF(K61="","",IF($D$21=0,0,IF($D$17="Lambs",VLOOKUP(LookUp!R302,LookUp!$AA$400:$AB$4026,2,FALSE),IF($D$17="Ewes/Wethers",VLOOKUP(LookUp!R302,LookUp!$AA$400:$AB$4026,2,FALSE),LookUp!S302*((22.587*(LookUp!T302))-5.2361))))))) ->  | M61: 0 | N61: =IF(F61="","",IF(O62<=0,"",VLOOKUP(O62,LookUp!$A$243:$B$607,2,FALSE))) ->  | O61: 0 | Q61: =IF(P61=500,IF($D$21=0,"",LookUp!S355),IF(P61=1000,IF($D$21=0,"",LookUp!S355),IF(P61=1500,IF($D$21=0,"",LookUp!S355),IF(P61=2000,IF($D$21=0,"",LookUp!S355),IF(LookUp!P355=500,(((P61-500)/500)*(LookUp!AD355-LookUp!S355))+LookUp!S355,IF(LookUp!P355=600,(((P61-1000)/500)*(LookUp!AD355-LookUp!S355))+LookUp!S355,IF(LookUp!P355=700,(((P61-1500)/500)*(LookUp!AD355-LookUp!S355))+LookUp!S355,IF(LookUp!P355=800,(((P61-2000)/500)*(LookUp!AD355-LookUp!S355))+LookUp!S355,LookUp!S355)))))))) -> 0 | S61: =IF(I61="",0,IF(VLOOKUP(LookUp!R328,LookUp!$AA$400:$AB$4026,2,FALSE)="Pasture unsuitable","Pasture unsuitable",IF(I61="","",IF($D$21=0,"",IF($D$17="Lambs",VLOOKUP(LookUp!R328,LookUp!$AA$400:$AB$4026,2,FALSE),IF($D$17="Ewes/Wethers",VLOOKUP(LookUp!R328,LookUp!$AA$400:$AB$4026,2,FALSE),LookUp!S328*((22.587*(LookUp!T328))-5.2361)))))))*IF(Q61=0,0,(Q61/LookUp!S355)) -> 0 | U61: =IF(F61="","",IF(X62<=0,"",VLOOKUP(X62,LookUp!$A$243:$B$607,2,FALSE))) -> 
L62: =IF(K62="","",IF(VLOOKUP(LookUp!R303,LookUp!$AA$400:$AB$4026,2,FALSE)="Pasture unsuitable","Pasture unsuitable",IF(K62="","",IF($D$21=0,0,IF($D$17="Lambs",VLOOKUP(LookUp!R303,LookUp!$AA$400:$AB$4026,2,FALSE),IF($D$17="Ewes/Wethers",VLOOKUP(LookUp!R303,LookUp!$AA$400:$AB$4026,2,FALSE),LookUp!S303*((22.587*(LookUp!T303))-5.2361))))))) ->  | M62: 0 | N62: =IF(F62="","",IF(O63<=0,"",VLOOKUP(O63,LookUp!$A$243:$B$607,2,FALSE))) ->  | O62: 0 | Q62: =IF(P62=500,IF($D$21=0,"",LookUp!S356),IF(P62=1000,IF($D$21=0,"",LookUp!S356),IF(P62=1500,IF($D$21=0,"",LookUp!S356),IF(P62=2000,IF($D$21=0,"",LookUp!S356),IF(LookUp!P356=500,(((P62-500)/500)*(LookUp!AD356-LookUp!S356))+LookUp!S356,IF(LookUp!P356=600,(((P62-1000)/500)*(LookUp!AD356-LookUp!S356))+LookUp!S356,IF(LookUp!P356=700,(((P62-1500)/500)*(LookUp!AD356-LookUp!S356))+LookUp!S356,IF(LookUp!P356=800,(((P62-2000)/500)*(LookUp!AD356-LookUp!S356))+LookUp!S356,LookUp!S356)))))))) -> 0 | S62: =IF(I62="",0,IF(VLOOKUP(LookUp!R329,LookUp!$AA$400:$AB$4026,2,FALSE)="Pasture unsuitable","Pasture unsuitable",IF(I62="","",IF($D$21=0,"",IF($D$17="Lambs",VLOOKUP(LookUp!R329,LookUp!$AA$400:$AB$4026,2,FALSE),IF($D$17="Ewes/Wethers",VLOOKUP(LookUp!R329,LookUp!$AA$400:$AB$4026,2,FALSE),LookUp!S329*((22.587*(LookUp!T329))-5.2361)))))))*IF(Q62=0,0,(Q62/LookUp!S356)) -> 0 | U62: =IF(F62="","",IF(X63<=0,"",VLOOKUP(X63,LookUp!$A$243:$B$607,2,FALSE))) -> 
L63: =IF(K63="","",IF(VLOOKUP(LookUp!R304,LookUp!$AA$400:$AB$4026,2,FALSE)="Pasture unsuitable","Pasture unsuitable",IF(K63="","",IF($D$21=0,0,IF($D$17="Lambs",VLOOKUP(LookUp!R304,LookUp!$AA$400:$AB$4026,2,FALSE),IF($D$17="Ewes/Wethers",VLOOKUP(LookUp!R304,LookUp!$AA$400:$AB$4026,2,FALSE),LookUp!S304*((22.587*(LookUp!T304))-5.2361))))))) ->  | M63: 0 | N63: =IF(F63="","",IF(O64<=0,"",VLOOKUP(O64,LookUp!$A$243:$B$607,2,FALSE))) ->  | O63: 0 | Q63: =IF(P63=500,IF($D$21=0,"",LookUp!S357),IF(P63=1000,IF($D$21=0,"",LookUp!S357),IF(P63=1500,IF($D$21=0,"",LookUp!S357),IF(P63=2000,IF($D$21=0,"",LookUp!S357),IF(LookUp!P357=500,(((P63-500)/500)*(LookUp!AD357-LookUp!S357))+LookUp!S357,IF(LookUp!P357=600,(((P63-1000)/500)*(LookUp!AD357-LookUp!S357))+LookUp!S357,IF(LookUp!P357=700,(((P63-1500)/500)*(LookUp!AD357-LookUp!S357))+LookUp!S357,IF(LookUp!P357=800,(((P63-2000)/500)*(LookUp!AD357-LookUp!S357))+LookUp!S357,LookUp!S357)))))))) -> 0 | S63: =IF(I63="",0,IF(VLOOKUP(LookUp!R330,LookUp!$AA$400:$AB$4026,2,FALSE)="Pasture unsuitable","Pasture unsuitable",IF(I63="","",IF($D$21=0,"",IF($D$17="Lambs",VLOOKUP(LookUp!R330,LookUp!$AA$400:$AB$4026,2,FALSE),IF($D$17="Ewes/Wethers",VLOOKUP(LookUp!R330,LookUp!$AA$400:$AB$4026,2,FALSE),LookUp!S330*((22.587*(LookUp!T330))-5.2361)))))))*IF(Q63=0,0,(Q63/LookUp!S357)) -> 0 | U63: =IF(F63="","",IF(X64<=0,"",VLOOKUP(X64,LookUp!$A$243:$B$607,2,FALSE))) -> 
L64: =IF(K64="","",IF(VLOOKUP(LookUp!R305,LookUp!$AA$400:$AB$4026,2,FALSE)="Pasture unsuitable","Pasture unsuitable",IF(K64="","",IF($D$21=0,0,IF($D$17="Lambs",VLOOKUP(LookUp!R305,LookUp!$AA$400:$AB$4026,2,FALSE),IF($D$17="Ewes/Wethers",VLOOKUP(LookUp!R305,LookUp!$AA$400:$AB$4026,2,FALSE),LookUp!S305*((22.587*(LookUp!T305))-5.2361))))))) ->  | M64: 0 | N64: =IF(F64="","",IF(O65<=0,"",VLOOKUP(O65,LookUp!$A$243:$B$607,2,FALSE))) ->  | O64: 0 | Q64: =IF(P64=500,IF($D$21=0,"",LookUp!S358),IF(P64=1000,IF($D$21=0,"",LookUp!S358),IF(P64=1500,IF($D$21=0,"",LookUp!S358),IF(P64=2000,IF($D$21=0,"",LookUp!S358),IF(LookUp!P358=500,(((P64-500)/500)*(LookUp!AD358-LookUp!S358))+LookUp!S358,IF(LookUp!P358=600,(((P64-1000)/500)*(LookUp!AD358-LookUp!S358))+LookUp!S358,IF(LookUp!P358=700,(((P64-1500)/500)*(LookUp!AD358-LookUp!S358))+LookUp!S358,IF(LookUp!P358=800,(((P64-2000)/500)*(LookUp!AD358-LookUp!S358))+LookUp!S358,LookUp!S358)))))))) -> 0 | S64: =IF(I64="",0,IF(VLOOKUP(LookUp!R331,LookUp!$AA$400:$AB$4026,2,FALSE)="Pasture unsuitable","Pasture unsuitable",IF(I64="","",IF($D$21=0,"",IF($D$17="Lambs",VLOOKUP(LookUp!R331,LookUp!$AA$400:$AB$4026,2,FALSE),IF($D$17="Ewes/Wethers",VLOOKUP(LookUp!R331,LookUp!$AA$400:$AB$4026,2,FALSE),LookUp!S331*((22.587*(LookUp!T331))-5.2361)))))))*IF(Q64=0,0,(Q64/LookUp!S358)) -> 0 | U64: =IF(F64="","",IF(X65<=0,"",VLOOKUP(X65,LookUp!$A$243:$B$607,2,FALSE))) -> 
B69: PADDOCK FEED STATUS
B71: Paddock Name | C71: Feed Status
B72: =IF(B42="","",B42) ->  | C72: =IF(B72="","",IF(R42<K42,"Feed availability when stock are removed is lower than your target. Reduce paddock rating, change the order of paddocks or decrease stock numbers.","Feed availability when stock are removed is greater than your target. If it is too high, increase paddock rating, change the order of paddocks or increase stock numbers.")) -> 
B73: =IF(B43="","",B43) -> 

Sheet Rotation (hidden)
B2: ROTATION PLANNER
B3: For rotations based on food on offer.
B4: Enter data in the white boxes.
B6: Each time you change a Stock Type selection you MUST
B7: RE-SELECT Av. Weight, Physiological State, &
B10: Twins/Singles from the lists provided.
B11: Name of Rotation OR
B12: Review Saved Rotation Name
B13: Total days in rotation1
B14: Starting date (Day and Month) | D14: 2010-01-01
B15: Total area in rotation (Ha) | D15: =SUM(D41:D63) -> 0
B16: Effective area in rotation (Ha)2 | D16: =SUM(D41:D63) -> 0
B17: Stock Type
B18: Av. Weight (kg/Hd)
B19: Physiological State
B20: Twins/Singles
B21: MJ ME/Hd Required For Maintenance | D21: =IF(D18="",0,IF(D19="",0,LookUp!V193)) -> 0
B22: Number of animals in rotation
B23: Consumption Wastage Factor*
B24: Decay Wastage Factor**
B27: Paddock Details
B40: Paddock Name | C40: Order of Paddocks in Rotation | D40: Paddock Area (Hectares) | E40: Paddock Rating (0-1) | F40: Effective Paddock Area (based on paddock rating) (Hectares) | G40: Total effective area - effective paddock area (remaining area) | H40: Food on offer on measurement date (Kg DM/Ha) | I40: Pasture Quality | J40: Estimated pasture growth per day (Kg DM/Ha/Day) | K40: Target food on offer when animals taken out (Kg DM/Ha) | L40: Energy intake from pasture at target food on offer when animals taken out (MJ ME/hd/day)* | M40: Days in each paddock based on rotation length, paddock rating & paddock area. | N40: Date to move stock to next paddock | O40: Days since start of rotation (when pasture measurement was taken) | P40: Food on offer when animals in (Food on offer at measurement + feed grown since measurement) | Q40: Animal Consumption (Kg DM per Hd per Day) | R40: Feed available when animals removed (Kg DM/Ha) | S40: Predicted energy intake from pasture when animals are removed (MJ ME/hd/day)* | T40: Number of days paddock will last to reach target food on offer | U40: Days since start of rotation (when pasture measurement was taken) | V40: Date to move stock to next paddock based on target food on offer | W40: Pasture growth rate between stock coming out and next rotation | Y40: Days since start of rotation (when pasture measurement was taken) | Z40: Total days rest before next grazing | AA40: Food on offer at start of next rotation | AB40: No. Days paddock will last 2nd rotation
L41: =IF(Q41=0,0,IF(K41="","",IF(VLOOKUP(LookUp!R229,LookUp!$AA$400:$AB$4026,2,FALSE)="Pasture unsuitable","Pasture unsuitable",IF(K41="","",IF($D$21=0,0,IF($D$17="Lambs",VLOOKUP(LookUp!R229,LookUp!$AA$400:$AB$4026,2,FALSE),IF($D$17="Ewes/Wethers",VLOOKUP(LookUp!R229,LookUp!$AA$400:$AB$4026,2,FALSE),LookUp!S229*((22.587*(LookUp!T229))-5.2361)))))))) -> 0 | P41: =IF(H41="","",H41) ->  | Q41: =IF(P41=500,IF($D$21=0,"",LookUp!I199),IF(P41=1000,IF($D$21=0,"",LookUp!I199),IF(P41=1500,IF($D$21=0,"",LookUp!I199),IF(P41=2000,IF($D$21=0,"",LookUp!I199),IF(LookUp!F199=500,(((P41-500)/500)*(LookUp!T199-LookUp!I199))+LookUp!I199,IF(LookUp!F199=600,(((P41-1000)/500)*(LookUp!T199-LookUp!I199))+LookUp!I199,IF(LookUp!F199=700,(((P41-1500)/500)*(LookUp!T199-LookUp!I199))+LookUp!I199,IF(LookUp!F199=800,(((P41-2000)/500)*(LookUp!T199-LookUp!I199))+LookUp!I199,LookUp!I199)))))))) -> 0 | R41: =IF(D41<=0,"",IF(Q41="","",H41+((J41*(U41+M41))-(($D$22*Q41*(1+$D$23))/D41)*M41))) ->  | S41: =IF(I42="",0,IF(VLOOKUP(LookUp!S225,LookUp!$AA$400:$AB$1841,2,FALSE)="Pasture unsuitable","Pasture unsuitable",IF(I41="","",IF($D$21=0,"",LookUp!S255*((22.587*(LookUp!T255))-5.2361)))))*IF(Q41=0,0,(Q41/LookUp!I199)) -> 0 | T41: =IF(K41>P41,0,IF(D41<=0,"",IF(IF(Q41="","",(P41-K41)/(((Q41*$D$22*(1+$D$23))/D41)-J41))<0,0,IF(Q41="","",(P41-K41)/(((Q41*$D$22*(1+$D$23))/D41)-J41))))) ->  | U41: 0 | V41: =IF(D41="","",IF(Y42<=0,"",VLOOKUP(Y42,LookUp!$C$243:$D$607,2,FALSE))) ->  | Y41: 0 | Z41: =IF(T41="","",SUM(T42:T63)) ->  | AA41: =IF($T$41="","",(SUM(T42:$T$63)*W41+K41)) ->  | AB41: =IF(D41<=0,"",IF(IF(Q41="","",(AA41-K41)/(((Q41*$D$22*(1+$D$23))/D41)-W41))<0,0,IF(Q41="","",(AA41-K41)/(((Q41*$D$22*(1+$D$23))/D41)-W41)))) -> 
L42: =IF(Q42=0,0,IF(K42="","",IF(VLOOKUP(LookUp!R230,LookUp!$AA$400:$AB$4026,2,FALSE)="Pasture unsuitable","Pasture unsuitable",IF(K42="","",IF($D$21=0,0,IF($D$17="Lambs",VLOOKUP(LookUp!R230,LookUp!$AA$400:$AB$4026,2,FALSE),IF($D$17="Ewes/Wethers",VLOOKUP(LookUp!R230,LookUp!$AA$400:$AB$4026,2,FALSE),LookUp!S230*((22.587*(LookUp!T230))-5.2361)))))))) -> 0 | P42: =IF(H42="","",H42+J42*T41) ->  | Q42: =IF(P42=500,IF($D$21=0,"",LookUp!I200),IF(P42=1000,IF($D$21=0,"",LookUp!I200),IF(P42=1500,IF($D$21=0,"",LookUp!I200),IF(P42=2000,IF($D$21=0,"",LookUp!I200),IF(LookUp!F200=500,(((P42-500)/500)*(LookUp!T200-LookUp!I200))+LookUp!I200,IF(LookUp!F200=600,(((P42-1000)/500)*(LookUp!T200-LookUp!I200))+LookUp!I200,IF(LookUp!F200=700,(((P42-1500)/500)*(LookUp!T200-LookUp!I200))+LookUp!I200,IF(LookUp!F200=800,(((P42-2000)/500)*(LookUp!T200-LookUp!I200))+LookUp!I200,LookUp!I200)))))))) -> 0 | S42: =IF(I43="",0,IF(VLOOKUP(LookUp!S226,LookUp!$AA$400:$AB$1841,2,FALSE)="Pasture unsuitable","Pasture unsuitable",IF(I42="","",IF($D$21=0,"",LookUp!S256*((22.587*(LookUp!T256))-5.2361)))))*IF(Q42=0,0,(Q42/LookUp!I200)) -> 0 | T42: =IF(K42>P42,0,IF(D42<=0,"",IF(IF(Q42="","",(P42-K42)/(((Q42*$D$22*(1+$D$23))/D42)-J42))<0,0,IF(Q42="","",(P42-K42)/(((Q42*$D$22*(1+$D$23))/D42)-J42))))) ->  | U42: =INT(IF(T42="",0,U41+T41)) -> 0 | V42: =IF(D42="","",IF(Q43="",IF(P42>0,IF(X42="","",VLOOKUP(X42,LookUp!$C$243:$D$607,2,FALSE)),""),IF(Y43<=0,"",VLOOKUP(Y43,LookUp!$C$243:$D$607,2,FALSE)))) ->  | X42: =IF(T42="Growth/Ha>Consumption/Ha","",INT(Y42+T42)) ->  | Y42: =INT(IF(T42="",0,Y41+T41)) -> 0 | Z42: =IF(T42="","",SUM(T43:T63)+AB41) ->  | AA42: =IF(T42="","",((SUM(T43:$T$63)+AB41)*W42+K42)) ->  | AB42: =IF(D42<=0,"",IF(IF(Q42="","",(AA42-K42)/(((Q42*$D$22*(1+$D$23))/D42)-W42))<0,0,IF(Q42="","",(AA42-K42)/(((Q42*$D$22*(1+$D$23))/D42)-W42)))) -> 
L43: =IF(Q43=0,0,IF(K43="","",IF(VLOOKUP(LookUp!R231,LookUp!$AA$400:$AB$4026,2,FALSE)="Pasture unsuitable","Pasture unsuitable",IF(K43="","",IF($D$21=0,0,IF($D$17="Lambs",VLOOKUP(LookUp!R231,LookUp!$AA$400:$AB$4026,2,FALSE),IF($D$17="Ewes/Wethers",VLOOKUP(LookUp!R231,LookUp!$AA$400:$AB$4026,2,FALSE),LookUp!S231*((22.587*(LookUp!T231))-5.2361)))))))) -> 0 | P43: =IF(H43="","",H43+J43*(SUM($T$41:T42))) ->  | Q43: =IF(P43=500,IF($D$21=0,"",LookUp!I201),IF(P43=1000,IF($D$21=0,"",LookUp!I201),IF(P43=1500,IF($D$21=0,"",LookUp!I201),IF(P43=2000,IF($D$21=0,"",LookUp!I201),IF(LookUp!F201=500,(((P43-500)/500)*(LookUp!T201-LookUp!I201))+LookUp!I201,IF(LookUp!F201=600,(((P43-1000)/500)*(LookUp!T201-LookUp!I201))+LookUp!I201,IF(LookUp!F201=700,(((P43-1500)/500)*(LookUp!T201-LookUp!I201))+LookUp!I201,IF(LookUp!F201=800,(((P43-2000)/500)*(LookUp!T201-LookUp!I201))+LookUp!I201,LookUp!I201)))))))) -> 0 | S43: =IF(I44="",0,IF(VLOOKUP(LookUp!S227,LookUp!$AA$400:$AB$1841,2,FALSE)="Pasture unsuitable","Pasture unsuitable",IF(I43="","",IF($D$21=0,"",LookUp!S257*((22.587*(LookUp!T257))-5.2361)))))*IF(Q43=0,0,(Q43/LookUp!I201)) -> 0 | U43: 0 | V43: =IF(D43="","",IF(Q44="",IF(P43>0,IF(X43="","",VLOOKUP(X43,LookUp!$C$243:$D$607,2,FALSE)),""),IF(Y44<=0,"",VLOOKUP(Y44,LookUp!$C$243:$D$607,2,FALSE)))) ->  | X43: =IF(T43="Growth/Ha>Consumption/Ha","",INT(Y43+T43)) ->  | Y43: 0 | Z43: =IF(T43="","",SUM(T44:T63)+SUM(AB41:AB42)) ->  | AA43: =IF(T43="","",((SUM(T44:$T$63)+SUM(AB41:AB42))*W43+K43)) ->  | AB43: =IF(D43<=0,"",IF(IF(Q43="","",(AA43-K43)/(((Q43*$D$22*(1+$D$23))/D43)-W43))<0,0,IF(Q43="","",(AA43-K43)/(((Q43*$D$22*(1+$D$23))/D43)-W43)))) -> 
L44: =IF(Q44=0,0,IF(K44="","",IF(VLOOKUP(LookUp!R232,LookUp!$AA$400:$AB$4026,2,FALSE)="Pasture unsuitable","Pasture unsuitable",IF(K44="","",IF($D$21=0,0,IF($D$17="Lambs",VLOOKUP(LookUp!R232,LookUp!$AA$400:$AB$4026,2,FALSE),IF($D$17="Ewes/Wethers",VLOOKUP(LookUp!R232,LookUp!$AA$400:$AB$4026,2,FALSE),LookUp!S232*((22.587*(LookUp!T232))-5.2361)))))))) -> 0 | P44: =IF(H44="","",H44+J44*(SUM($T$41:T43))) ->  | Q44: =IF(P44=500,IF($D$21=0,"",LookUp!I202),IF(P44=1000,IF($D$21=0,"",LookUp!I202),IF(P44=1500,IF($D$21=0,"",LookUp!I202),IF(P44=2000,IF($D$21=0,"",LookUp!I202),IF(LookUp!F202=500,(((P44-500)/500)*(LookUp!T202-LookUp!I202))+LookUp!I202,IF(LookUp!F202=600,(((P44-1000)/500)*(LookUp!T202-LookUp!I202))+LookUp!I202,IF(LookUp!F202=700,(((P44-1500)/500)*(LookUp!T202-LookUp!I202))+LookUp!I202,IF(LookUp!F202=800,(((P44-2000)/500)*(LookUp!T202-LookUp!I202))+LookUp!I202,LookUp!I202)))))))) -> 0 | S44: =IF(I45="",0,IF(VLOOKUP(LookUp!S228,LookUp!$AA$400:$AB$1841,2,FALSE)="Pasture unsuitable","Pasture unsuitable",IF(I44="","",IF($D$21=0,"",LookUp!S258*((22.587*(LookUp!T258))-5.2361)))))*IF(Q44=0,0,(Q44/LookUp!I202)) -> 0 | U44: 0 | V44: =IF(D44="","",IF(Q45="",IF(P44>0,IF(X44="","",VLOOKUP(X44,LookUp!$C$243:$D$607,2,FALSE)),""),IF(Y45<=0,"",VLOOKUP(Y45,LookUp!$C$243:$D$607,2,FALSE)))) ->  | X44: =IF(T44="Growth/Ha>Consumption/Ha","",INT(Y44+T44)) ->  | Y44: 0 | Z44: =IF(T44="","",SUM(T45:$T$63)+SUM($AB$41:AB43)) ->  | AA44: =IF(T44="","",((SUM(T45:$T$63)+SUM($AB$41:AB43))*W44+K44)) ->  | AB44: =IF(D44<=0,"",IF(IF(Q44="","",(AA44-K44)/(((Q44*$D$22*(1+$D$23))/D44)-W44))<0,0,IF(Q44="","",(AA44-K44)/(((Q44*$D$22*(1+$D$23))/D44)-W44)))) -> 
L45: =IF(Q45=0,0,IF(K45="","",IF(VLOOKUP(LookUp!R233,LookUp!$AA$400:$AB$4026,2,FALSE)="Pasture unsuitable","Pasture unsuitable",IF(K45="","",IF($D$21=0,0,IF($D$17="Lambs",VLOOKUP(LookUp!R233,LookUp!$AA$400:$AB$4026,2,FALSE),IF($D$17="Ewes/Wethers",VLOOKUP(LookUp!R233,LookUp!$AA$400:$AB$4026,2,FALSE),LookUp!S233*((22.587*(LookUp!T233))-5.2361)))))))) -> 0 | P45: =IF(H45="","",H45+J45*(SUM($T$41:T44))) ->  | Q45: =IF(P45=500,IF($D$21=0,"",LookUp!I203),IF(P45=1000,IF($D$21=0,"",LookUp!I203),IF(P45=1500,IF($D$21=0,"",LookUp!I203),IF(P45=2000,IF($D$21=0,"",LookUp!I203),IF(LookUp!F203=500,(((P45-500)/500)*(LookUp!T203-LookUp!I203))+LookUp!I203,IF(LookUp!F203=600,(((P45-1000)/500)*(LookUp!T203-LookUp!I203))+LookUp!I203,IF(LookUp!F203=700,(((P45-1500)/500)*(LookUp!T203-LookUp!I203))+LookUp!I203,IF(LookUp!F203=800,(((P45-2000)/500)*(LookUp!T203-LookUp!I203))+LookUp!I203,LookUp!I203)))))))) -> 0 | S45: =IF(I46="",0,IF(VLOOKUP(LookUp!S229,LookUp!$AA$400:$AB$1841,2,FALSE)="Pasture unsuitable","Pasture unsuitable",IF(I45="","",IF($D$21=0,"",LookUp!S259*((22.587*(LookUp!T259))-5.2361)))))*IF(Q45=0,0,(Q45/LookUp!I203)) -> 0 | U45: 0 | V45: =IF(D45="","",IF(Q46="",IF(P45>0,IF(X45="","",VLOOKUP(X45,LookUp!$C$243:$D$607,2,FALSE)),""),IF(Y46<=0,"",VLOOKUP(Y46,LookUp!$C$243:$D$607,2,FALSE)))) ->  | Y45: 0 | Z45: =IF(T45="","",SUM(T46:$T$63)+SUM($AB$41:AB44)) ->  | AA45: =IF(T45="","",((SUM(T46:$T$63)+SUM($AB$41:AB44))*W45+K45)) ->  | AB45: =IF(D45<=0,"",IF(IF(Q45="","",(AA45-K45)/(((Q45*$D$22*(1+$D$23))/D45)-W45))<0,0,IF(Q45="","",(AA45-K45)/(((Q45*$D$22*(1+$D$23))/D45)-W45)))) -> 
L46: =IF(Q46=0,0,IF(K46="","",IF(VLOOKUP(LookUp!R234,LookUp!$AA$400:$AB$4026,2,FALSE)="Pasture unsuitable","Pasture unsuitable",IF(K46="","",IF($D$21=0,0,IF($D$17="Lambs",VLOOKUP(LookUp!R234,LookUp!$AA$400:$AB$4026,2,FALSE),IF($D$17="Ewes/Wethers",VLOOKUP(LookUp!R234,LookUp!$AA$400:$AB$4026,2,FALSE),LookUp!S234*((22.587*(LookUp!T234))-5.2361)))))))) -> 0 | P46: =IF(H46="","",H46+J46*(SUM($T$41:T45))) ->  | Q46: =IF(P46=500,IF($D$21=0,"",LookUp!I204),IF(P46=1000,IF($D$21=0,"",LookUp!I204),IF(P46=1500,IF($D$21=0,"",LookUp!I204),IF(P46=2000,IF($D$21=0,"",LookUp!I204),IF(LookUp!F204=500,(((P46-500)/500)*(LookUp!T204-LookUp!I204))+LookUp!I204,IF(LookUp!F204=600,(((P46-1000)/500)*(LookUp!T204-LookUp!I204))+LookUp!I204,IF(LookUp!F204=700,(((P46-1500)/500)*(LookUp!T204-LookUp!I204))+LookUp!I204,IF(LookUp!F204=800,(((P46-2000)/500)*(LookUp!T204-LookUp!I204))+LookUp!I204,LookUp!I204)))))))) -> 0 | S46: =IF(I47="",0,IF(VLOOKUP(LookUp!S230,LookUp!$AA$400:$AB$1841,2,FALSE)="Pasture unsuitable","Pasture unsuitable",IF(I46="","",IF($D$21=0,"",LookUp!S260*((22.587*(LookUp!T260))-5.2361)))))*IF(Q46=0,0,(Q46/LookUp!I204)) -> 0 | U46: 0 | V46: =IF(D46="","",IF(Q47="",IF(P46>0,IF(X46="","",VLOOKUP(X46,LookUp!$C$243:$D$607,2,FALSE)),""),IF(Y47<=0,"",VLOOKUP(Y47,LookUp!$C$243:$D$607,2,FALSE)))) ->  | Y46: 0 | Z46: =IF(T46="","",SUM(T47:$T$63)+SUM($AB$41:AB45)) ->  | AA46: =IF(T46="","",((SUM(T47:$T$63)+SUM($AB$41:AB45))*W46+K46)) -> 
F47: =IF(E47="","",D47*E47) ->  | G47: =IF(F47="","",$D$16-F47) ->  | L47: =IF(Q47=0,0,IF(K47="","",IF(VLOOKUP(LookUp!R235,LookUp!$AA$400:$AB$4026,2,FALSE)="Pasture unsuitable","Pasture unsuitable",IF(K47="","",IF($D$21=0,0,IF($D$17="Lambs",VLOOKUP(LookUp!R235,LookUp!$AA$400:$AB$4026,2,FALSE),IF($D$17="Ewes/Wethers",VLOOKUP(LookUp!R235,LookUp!$AA$400:$AB$4026,2,FALSE),LookUp!S235*((22.587*(LookUp!T235))-5.2361)))))))) -> 0 | P47: =IF(H47="","",H47+J47*(SUM($T$41:T46))) ->  | Q47: =IF(P47=500,IF($D$21=0,"",LookUp!I205),IF(P47=1000,IF($D$21=0,"",LookUp!I205),IF(P47=1500,IF($D$21=0,"",LookUp!I205),IF(P47=2000,IF($D$21=0,"",LookUp!I205),IF(LookUp!F205=500,(((P47-500)/500)*(LookUp!T205-LookUp!I205))+LookUp!I205,IF(LookUp!F205=600,(((P47-1000)/500)*(LookUp!T205-LookUp!I205))+LookUp!I205,IF(LookUp!F205=700,(((P47-1500)/500)*(LookUp!T205-LookUp!I205))+LookUp!I205,IF(LookUp!F205=800,(((P47-2000)/500)*(LookUp!T205-LookUp!I205))+LookUp!I205,LookUp!I205)))))))) -> 0 | S47: =IF(I48="",0,IF(VLOOKUP(LookUp!S231,LookUp!$AA$400:$AB$1841,2,FALSE)="Pasture unsuitable","Pasture unsuitable",IF(I47="","",IF($D$21=0,"",LookUp!S261*((22.587*(LookUp!T261))-5.2361)))))*IF(Q47=0,0,(Q47/LookUp!I205)) -> 0 | U47: 0 | V47: =IF(D47="","",IF(Q48="",IF(P47>0,IF(X47="","",VLOOKUP(X47,LookUp!$C$243:$D$607,2,FALSE)),""),IF(Y48<=0,"",VLOOKUP(Y48,LookUp!$C$243:$D$607,2,FALSE)))) ->  | Y47: 0 | Z47: =IF(T47="","",SUM(T48:$T$63)+SUM($AB$41:AB46)) ->  | AA47: =IF(T47="","",((SUM(T48:$T$63)+SUM($AB$41:AB46))*W47+K47)) -> 
L48: =IF(Q48=0,0,IF(K48="","",IF(VLOOKUP(LookUp!R236,LookUp!$AA$400:$AB$4026,2,FALSE)="Pasture unsuitable","Pasture unsuitable",IF(K48="","",IF($D$21=0,0,IF($D$17="Lambs",VLOOKUP(LookUp!R236,LookUp!$AA$400:$AB$4026,2,FALSE),IF($D$17="Ewes/Wethers",VLOOKUP(LookUp!R236,LookUp!$AA$400:$AB$4026,2,FALSE),LookUp!S236*((22.587*(LookUp!T236))-5.2361)))))))) -> 0 | P48: =IF(H48="","",H48+J48*(SUM($T$41:T47))) ->  | Q48: =IF(P48=500,IF($D$21=0,"",LookUp!I206),IF(P48=1000,IF($D$21=0,"",LookUp!I206),IF(P48=1500,IF($D$21=0,"",LookUp!I206),IF(P48=2000,IF($D$21=0,"",LookUp!I206),IF(LookUp!F206=500,(((P48-500)/500)*(LookUp!T206-LookUp!I206))+LookUp!I206,IF(LookUp!F206=600,(((P48-1000)/500)*(LookUp!T206-LookUp!I206))+LookUp!I206,IF(LookUp!F206=700,(((P48-1500)/500)*(LookUp!T206-LookUp!I206))+LookUp!I206,IF(LookUp!F206=800,(((P48-2000)/500)*(LookUp!T206-LookUp!I206))+LookUp!I206,LookUp!I206)))))))) -> 0 | S48: =IF(I49="",0,IF(VLOOKUP(LookUp!S232,LookUp!$AA$400:$AB$1841,2,FALSE)="Pasture unsuitable","Pasture unsuitable",IF(I48="","",IF($D$21=0,"",LookUp!S262*((22.587*(LookUp!T262))-5.2361)))))*IF(Q48=0,0,(Q48/LookUp!I206)) -> 0 | U48: 0 | V48: =IF(D48="","",IF(Q49="",IF(P48>0,IF(X48="","",VLOOKUP(X48,LookUp!$C$243:$D$607,2,FALSE)),""),IF(Y49<=0,"",VLOOKUP(Y49,LookUp!$C$243:$D$607,2,FALSE)))) ->  | Y48: 0 | Z48: =IF(T48="","",SUM(T49:$T$63)+SUM($AB$41:AB47)) ->  | AA48: =IF(T48="","",((SUM(T49:$T$63)+SUM($AB$41:AB47))*W48+K48)) -> 
F49: =IF(E49="","",D49*E49) ->  | G49: =IF(F49="","",$D$16-F49) ->  | L49: =IF(Q49=0,0,IF(K49="","",IF(VLOOKUP(LookUp!R237,LookUp!$AA$400:$AB$4026,2,FALSE)="Pasture unsuitable","Pasture unsuitable",IF(K49="","",IF($D$21=0,0,IF($D$17="Lambs",VLOOKUP(LookUp!R237,LookUp!$AA$400:$AB$4026,2,FALSE),IF($D$17="Ewes/Wethers",VLOOKUP(LookUp!R237,LookUp!$AA$400:$AB$4026,2,FALSE),LookUp!S237*((22.587*(LookUp!T237))-5.2361)))))))) -> 0 | P49: =IF(H49="","",H49+J49*(SUM($T$41:T48))) ->  | Q49: =IF(P49=500,IF($D$21=0,"",LookUp!I207),IF(P49=1000,IF($D$21=0,"",LookUp!I207),IF(P49=1500,IF($D$21=0,"",LookUp!I207),IF(P49=2000,IF($D$21=0,"",LookUp!I207),IF(LookUp!F207=500,(((P49-500)/500)*(LookUp!T207-LookUp!I207))+LookUp!I207,IF(LookUp!F207=600,(((P49-1000)/500)*(LookUp!T207-LookUp!I207))+LookUp!I207,IF(LookUp!F207=700,(((P49-1500)/500)*(LookUp!T207-LookUp!I207))+LookUp!I207,IF(LookUp!F207=800,(((P49-2000)/500)*(LookUp!T207-LookUp!I207))+LookUp!I207,LookUp!I207)))))))) -> 0 | S49: =IF(I50="",0,IF(VLOOKUP(LookUp!S233,LookUp!$AA$400:$AB$1841,2,FALSE)="Pasture unsuitable","Pasture unsuitable",IF(I49="","",IF($D$21=0,"",LookUp!S263*((22.587*(LookUp!T263))-5.2361)))))*IF(Q49=0,0,(Q49/LookUp!I207)) -> 0 | U49: 0 | V49: =IF(D49="","",IF(Q50="",IF(P49>0,IF(X49="","",VLOOKUP(X49,LookUp!$C$243:$D$607,2,FALSE)),""),IF(Y50<=0,"",VLOOKUP(Y50,LookUp!$C$243:$D$607,2,FALSE)))) ->  | Y49: 0 | Z49: =IF(T49="","",SUM(T50:$T$63)+SUM($AB$41:AB48)) ->  | AA49: =IF(T49="","",((SUM(T50:$T$63)+SUM($AB$41:AB48))*W49+K49)) -> 
L50: =IF(Q50=0,0,IF(K50="","",IF(VLOOKUP(LookUp!R238,LookUp!$AA$400:$AB$4026,2,FALSE)="Pasture unsuitable","Pasture unsuitable",IF(K50="","",IF($D$21=0,0,IF($D$17="Lambs",VLOOKUP(LookUp!R238,LookUp!$AA$400:$AB$4026,2,FALSE),IF($D$17="Ewes/Wethers",VLOOKUP(LookUp!R238,LookUp!$AA$400:$AB$4026,2,FALSE),LookUp!S238*((22.587*(LookUp!T238))-5.2361)))))))) -> 0 | P50: =IF(H50="","",H50+J50*(SUM($T$41:T49))) ->  | Q50: =IF(P50=500,IF($D$21=0,"",LookUp!I208),IF(P50=1000,IF($D$21=0,"",LookUp!I208),IF(P50=1500,IF($D$21=0,"",LookUp!I208),IF(P50=2000,IF($D$21=0,"",LookUp!I208),IF(LookUp!F208=500,(((P50-500)/500)*(LookUp!T208-LookUp!I208))+LookUp!I208,IF(LookUp!F208=600,(((P50-1000)/500)*(LookUp!T208-LookUp!I208))+LookUp!I208,IF(LookUp!F208=700,(((P50-1500)/500)*(LookUp!T208-LookUp!I208))+LookUp!I208,IF(LookUp!F208=800,(((P50-2000)/500)*(LookUp!T208-LookUp!I208))+LookUp!I208,LookUp!I208)))))))) -> 0 | S50: =IF(I51="",0,IF(VLOOKUP(LookUp!S234,LookUp!$AA$400:$AB$1841,2,FALSE)="Pasture unsuitable","Pasture unsuitable",IF(I50="","",IF($D$21=0,"",LookUp!S264*((22.587*(LookUp!T264))-5.2361)))))*IF(Q50=0,0,(Q50/LookUp!I208)) -> 0 | U50: 0 | V50: =IF(D50="","",IF(Q51="",IF(P50>0,IF(X50="","",VLOOKUP(X50,LookUp!$C$243:$D$607,2,FALSE)),""),IF(Y51<=0,"",VLOOKUP(Y51,LookUp!$C$243:$D$607,2,FALSE)))) ->  | Y50: 0 | Z50: =IF(T50="","",SUM(T51:$T$63)+SUM($AB$41:AB49)) ->  | AA50: =IF(T50="","",((SUM(T51:$T$63)+SUM($AB$41:AB49))*W50+K50)) -> 
F51: =IF(E51="","",D51*E51) ->  | G51: =IF(F51="","",$D$16-F51) ->  | L51: =IF(Q51=0,0,IF(K51="","",IF(VLOOKUP(LookUp!R239,LookUp!$AA$400:$AB$4026,2,FALSE)="Pasture unsuitable","Pasture unsuitable",IF(K51="","",IF($D$21=0,0,IF($D$17="Lambs",VLOOKUP(LookUp!R239,LookUp!$AA$400:$AB$4026,2,FALSE),IF($D$17="Ewes/Wethers",VLOOKUP(LookUp!R239,LookUp!$AA$400:$AB$4026,2,FALSE),LookUp!S239*((22.587*(LookUp!T239))-5.2361)))))))) -> 0 | P51: =IF(H51="","",H51+J51*(SUM($T$41:T50))) ->  | Q51: =IF(P51=500,IF($D$21=0,"",LookUp!I209),IF(P51=1000,IF($D$21=0,"",LookUp!I209),IF(P51=1500,IF($D$21=0,"",LookUp!I209),IF(P51=2000,IF($D$21=0,"",LookUp!I209),IF(LookUp!F209=500,(((P51-500)/500)*(LookUp!T209-LookUp!I209))+LookUp!I209,IF(LookUp!F209=600,(((P51-1000)/500)*(LookUp!T209-LookUp!I209))+LookUp!I209,IF(LookUp!F209=700,(((P51-1500)/500)*(LookUp!T209-LookUp!I209))+LookUp!I209,IF(LookUp!F209=800,(((P51-2000)/500)*(LookUp!T209-LookUp!I209))+LookUp!I209,LookUp!I209)))))))) -> 0 | S51: =IF(I52="",0,IF(VLOOKUP(LookUp!S235,LookUp!$AA$400:$AB$1841,2,FALSE)="Pasture unsuitable","Pasture unsuitable",IF(I51="","",IF($D$21=0,"",LookUp!S265*((22.587*(LookUp!T265))-5.2361)))))*IF(Q51=0,0,(Q51/LookUp!I209)) -> 0 | U51: 0 | V51: =IF(D51="","",IF(Q52="",IF(P51>0,IF(X51="","",VLOOKUP(X51,LookUp!$C$243:$D$607,2,FALSE)),""),IF(Y52<=0,"",VLOOKUP(Y52,LookUp!$C$243:$D$607,2,FALSE)))) ->  | Y51: 0 | Z51: =IF(T51="","",SUM(T52:$T$63)+SUM($AB$41:AB50)) ->  | AA51: =IF(T51="","",((SUM(T52:$T$63)+SUM($AB$41:AB50))*W51+K51)) -> 
L52: =IF(Q52=0,0,IF(K52="","",IF(VLOOKUP(LookUp!R240,LookUp!$AA$400:$AB$4026,2,FALSE)="Pasture unsuitable","Pasture unsuitable",IF(K52="","",IF($D$21=0,0,IF($D$17="Lambs",VLOOKUP(LookUp!R240,LookUp!$AA$400:$AB$4026,2,FALSE),IF($D$17="Ewes/Wethers",VLOOKUP(LookUp!R240,LookUp!$AA$400:$AB$4026,2,FALSE),LookUp!S240*((22.587*(LookUp!T240))-5.2361)))))))) -> 0 | P52: =IF(H52="","",H52+J52*(SUM($T$41:T51))) ->  | Q52: =IF(P52=500,IF($D$21=0,"",LookUp!I210),IF(P52=1000,IF($D$21=0,"",LookUp!I210),IF(P52=1500,IF($D$21=0,"",LookUp!I210),IF(P52=2000,IF($D$21=0,"",LookUp!I210),IF(LookUp!F210=500,(((P52-500)/500)*(LookUp!T210-LookUp!I210))+LookUp!I210,IF(LookUp!F210=600,(((P52-1000)/500)*(LookUp!T210-LookUp!I210))+LookUp!I210,IF(LookUp!F210=700,(((P52-1500)/500)*(LookUp!T210-LookUp!I210))+LookUp!I210,IF(LookUp!F210=800,(((P52-2000)/500)*(LookUp!T210-LookUp!I210))+LookUp!I210,LookUp!I210)))))))) -> 0 | S52: =IF(I53="",0,IF(VLOOKUP(LookUp!S236,LookUp!$AA$400:$AB$1841,2,FALSE)="Pasture unsuitable","Pasture unsuitable",IF(I52="","",IF($D$21=0,"",LookUp!S266*((22.587*(LookUp!T266))-5.2361)))))*IF(Q52=0,0,(Q52/LookUp!I210)) -> 0 | U52: 0 | V52: =IF(D52="","",IF(Q53="",IF(P52>0,IF(X52="","",VLOOKUP(X52,LookUp!$C$243:$D$607,2,FALSE)),""),IF(Y53<=0,"",VLOOKUP(Y53,LookUp!$C$243:$D$607,2,FALSE)))) ->  | Y52: 0 | Z52: =IF(T52="","",SUM(T53:$T$63)+SUM($AB$41:AB51)) ->  | AA52: =IF(T52="","",((SUM(T53:$T$63)+SUM($AB$41:AB51))*W52+K52)) -> 
L53: =IF(Q53=0,0,IF(K53="","",IF(VLOOKUP(LookUp!R241,LookUp!$AA$400:$AB$4026,2,FALSE)="Pasture unsuitable","Pasture unsuitable",IF(K53="","",IF($D$21=0,0,IF($D$17="Lambs",VLOOKUP(LookUp!R241,LookUp!$AA$400:$AB$4026,2,FALSE),IF($D$17="Ewes/Wethers",VLOOKUP(LookUp!R241,LookUp!$AA$400:$AB$4026,2,FALSE),LookUp!S241*((22.587*(LookUp!T241))-5.2361)))))))) -> 0 | P53: =IF(H53="","",H53+J53*(SUM($T$41:T52))) ->  | Q53: =IF(P53=500,IF($D$21=0,"",LookUp!I211),IF(P53=1000,IF($D$21=0,"",LookUp!I211),IF(P53=1500,IF($D$21=0,"",LookUp!I211),IF(P53=2000,IF($D$21=0,"",LookUp!I211),IF(LookUp!F211=500,(((P53-500)/500)*(LookUp!T211-LookUp!I211))+LookUp!I211,IF(LookUp!F211=600,(((P53-1000)/500)*(LookUp!T211-LookUp!I211))+LookUp!I211,IF(LookUp!F211=700,(((P53-1500)/500)*(LookUp!T211-LookUp!I211))+LookUp!I211,IF(LookUp!F211=800,(((P53-2000)/500)*(LookUp!T211-LookUp!I211))+LookUp!I211,LookUp!I211)))))))) -> 0 | S53: =IF(I54="",0,IF(VLOOKUP(LookUp!S237,LookUp!$AA$400:$AB$1841,2,FALSE)="Pasture unsuitable","Pasture unsuitable",IF(I53="","",IF($D$21=0,"",LookUp!S267*((22.587*(LookUp!T267))-5.2361)))))*IF(Q53=0,0,(Q53/LookUp!I211)) -> 0 | U53: 0 | V53: =IF(D53="","",IF(Q54="",IF(P53>0,IF(X53="","",VLOOKUP(X53,LookUp!$C$243:$D$607,2,FALSE)),""),IF(Y54<=0,"",VLOOKUP(Y54,LookUp!$C$243:$D$607,2,FALSE)))) ->  | Y53: 0 | Z53: =IF(T53="","",SUM(T54:$T$63)+SUM($AB$41:AB52)) ->  | AA53: =IF(T53="","",((SUM(T54:$T$63)+SUM($AB$41:AB52))*W53+K53)) -> 
L54: =IF(Q54=0,0,IF(K54="","",IF(VLOOKUP(LookUp!R242,LookUp!$AA$400:$AB$4026,2,FALSE)="Pasture unsuitable","Pasture unsuitable",IF(K54="","",IF($D$21=0,0,IF($D$17="Lambs",VLOOKUP(LookUp!R242,LookUp!$AA$400:$AB$4026,2,FALSE),IF($D$17="Ewes/Wethers",VLOOKUP(LookUp!R242,LookUp!$AA$400:$AB$4026,2,FALSE),LookUp!S242*((22.587*(LookUp!T242))-5.2361)))))))) -> 0 | P54: =IF(H54="","",H54+J54*(SUM($T$41:T53))) ->  | Q54: =IF(P54=500,IF($D$21=0,"",LookUp!I212),IF(P54=1000,IF($D$21=0,"",LookUp!I212),IF(P54=1500,IF($D$21=0,"",LookUp!I212),IF(P54=2000,IF($D$21=0,"",LookUp!I212),IF(LookUp!F212=500,(((P54-500)/500)*(LookUp!T212-LookUp!I212))+LookUp!I212,IF(LookUp!F212=600,(((P54-1000)/500)*(LookUp!T212-LookUp!I212))+LookUp!I212,IF(LookUp!F212=700,(((P54-1500)/500)*(LookUp!T212-LookUp!I212))+LookUp!I212,IF(LookUp!F212=800,(((P54-2000)/500)*(LookUp!T212-LookUp!I212))+LookUp!I212,LookUp!I212)))))))) -> 0 | S54: =IF(I55="",0,IF(VLOOKUP(LookUp!S238,LookUp!$AA$400:$AB$1841,2,FALSE)="Pasture unsuitable","Pasture unsuitable",IF(I54="","",IF($D$21=0,"",LookUp!S268*((22.587*(LookUp!T268))-5.2361)))))*IF(Q54=0,0,(Q54/LookUp!I212)) -> 0 | U54: 0 | V54: =IF(D54="","",IF(Q55="",IF(P54>0,IF(X54="","",VLOOKUP(X54,LookUp!$C$243:$D$607,2,FALSE)),""),IF(Y55<=0,"",VLOOKUP(Y55,LookUp!$C$243:$D$607,2,FALSE)))) ->  | Y54: 0 | Z54: =IF(T54="","",SUM(T55:$T$63)+SUM($AB$41:AB53)) ->  | AA54: =IF(T54="","",((SUM(T55:$T$63)+SUM($AB$41:AB53))*W54+K54)) -> 
L55: =IF(Q55=0,0,IF(K55="","",IF(VLOOKUP(LookUp!R243,LookUp!$AA$400:$AB$4026,2,FALSE)="Pasture unsuitable","Pasture unsuitable",IF(K55="","",IF($D$21=0,0,IF($D$17="Lambs",VLOOKUP(LookUp!R243,LookUp!$AA$400:$AB$4026,2,FALSE),IF($D$17="Ewes/Wethers",VLOOKUP(LookUp!R243,LookUp!$AA$400:$AB$4026,2,FALSE),LookUp!S243*((22.587*(LookUp!T243))-5.2361)))))))) -> 0 | P55: =IF(H55="","",H55+J55*(SUM($T$41:T54))) ->  | Q55: =IF(P55=500,IF($D$21=0,"",LookUp!I213),IF(P55=1000,IF($D$21=0,"",LookUp!I213),IF(P55=1500,IF($D$21=0,"",LookUp!I213),IF(P55=2000,IF($D$21=0,"",LookUp!I213),IF(LookUp!F213=500,(((P55-500)/500)*(LookUp!T213-LookUp!I213))+LookUp!I213,IF(LookUp!F213=600,(((P55-1000)/500)*(LookUp!T213-LookUp!I213))+LookUp!I213,IF(LookUp!F213=700,(((P55-1500)/500)*(LookUp!T213-LookUp!I213))+LookUp!I213,IF(LookUp!F213=800,(((P55-2000)/500)*(LookUp!T213-LookUp!I213))+LookUp!I213,LookUp!I213)))))))) -> 0 | S55: =IF(I56="",0,IF(VLOOKUP(LookUp!S239,LookUp!$AA$400:$AB$1841,2,FALSE)="Pasture unsuitable","Pasture unsuitable",IF(I55="","",IF($D$21=0,"",LookUp!S269*((22.587*(LookUp!T269))-5.2361)))))*IF(Q55=0,0,(Q55/LookUp!I213)) -> 0 | U55: 0 | V55: =IF(D55="","",IF(Q56="",IF(P55>0,IF(X55="","",VLOOKUP(X55,LookUp!$C$243:$D$607,2,FALSE)),""),IF(Y56<=0,"",VLOOKUP(Y56,LookUp!$C$243:$D$607,2,FALSE)))) ->  | Y55: 0 | Z55: =IF(T55="","",SUM(T56:$T$63)+SUM($AB$41:AB54)) ->  | AA55: =IF(T55="","",((SUM(T56:$T$63)+SUM($AB$41:AB54))*W55+K55)) -> 
L56: =IF(Q56=0,0,IF(K56="","",IF(VLOOKUP(LookUp!R244,LookUp!$AA$400:$AB$4026,2,FALSE)="Pasture unsuitable","Pasture unsuitable",IF(K56="","",IF($D$21=0,0,IF($D$17="Lambs",VLOOKUP(LookUp!R244,LookUp!$AA$400:$AB$4026,2,FALSE),IF($D$17="Ewes/Wethers",VLOOKUP(LookUp!R244,LookUp!$AA$400:$AB$4026,2,FALSE),LookUp!S244*((22.587*(LookUp!T244))-5.2361)))))))) -> 0 | P56: =IF(H56="","",H56+J56*(SUM($T$41:T55))) ->  | Q56: =IF(P56=500,IF($D$21=0,"",LookUp!I214),IF(P56=1000,IF($D$21=0,"",LookUp!I214),IF(P56=1500,IF($D$21=0,"",LookUp!I214),IF(P56=2000,IF($D$21=0,"",LookUp!I214),IF(LookUp!F214=500,(((P56-500)/500)*(LookUp!T214-LookUp!I214))+LookUp!I214,IF(LookUp!F214=600,(((P56-1000)/500)*(LookUp!T214-LookUp!I214))+LookUp!I214,IF(LookUp!F214=700,(((P56-1500)/500)*(LookUp!T214-LookUp!I214))+LookUp!I214,IF(LookUp!F214=800,(((P56-2000)/500)*(LookUp!T214-LookUp!I214))+LookUp!I214,LookUp!I214)))))))) -> 0 | S56: =IF(I57="",0,IF(VLOOKUP(LookUp!S240,LookUp!$AA$400:$AB$1841,2,FALSE)="Pasture unsuitable","Pasture unsuitable",IF(I56="","",IF($D$21=0,"",LookUp!S270*((22.587*(LookUp!T270))-5.2361)))))*IF(Q56=0,0,(Q56/LookUp!I214)) -> 0 | U56: 0 | V56: =IF(D56="","",IF(Q57="",IF(P56>0,IF(X56="","",VLOOKUP(X56,LookUp!$C$243:$D$607,2,FALSE)),""),IF(Y57<=0,"",VLOOKUP(Y57,LookUp!$C$243:$D$607,2,FALSE)))) ->  | Y56: 0 | Z56: =IF(T56="","",SUM(T57:$T$63)+SUM($AB$41:AB55)) ->  | AA56: =IF(T56="","",((SUM(T57:$T$63)+SUM($AB$41:AB55))*W56+K56)) -> 
L57: =IF(Q57=0,0,IF(K57="","",IF(VLOOKUP(LookUp!R245,LookUp!$AA$400:$AB$4026,2,FALSE)="Pasture unsuitable","Pasture unsuitable",IF(K57="","",IF($D$21=0,0,IF($D$17="Lambs",VLOOKUP(LookUp!R245,LookUp!$AA$400:$AB$4026,2,FALSE),IF($D$17="Ewes/Wethers",VLOOKUP(LookUp!R245,LookUp!$AA$400:$AB$4026,2,FALSE),LookUp!S245*((22.587*(LookUp!T245))-5.2361)))))))) -> 0 | P57: =IF(H57="","",H57+J57*(SUM($T$41:T56))) ->  | Q57: =IF(P57=500,IF($D$21=0,"",LookUp!I215),IF(P57=1000,IF($D$21=0,"",LookUp!I215),IF(P57=1500,IF($D$21=0,"",LookUp!I215),IF(P57=2000,IF($D$21=0,"",LookUp!I215),IF(LookUp!F215=500,(((P57-500)/500)*(LookUp!T215-LookUp!I215))+LookUp!I215,IF(LookUp!F215=600,(((P57-1000)/500)*(LookUp!T215-LookUp!I215))+LookUp!I215,IF(LookUp!F215=700,(((P57-1500)/500)*(LookUp!T215-LookUp!I215))+LookUp!I215,IF(LookUp!F215=800,(((P57-2000)/500)*(LookUp!T215-LookUp!I215))+LookUp!I215,LookUp!I215)))))))) -> 0 | S57: =IF(I58="",0,IF(VLOOKUP(LookUp!S241,LookUp!$AA$400:$AB$1841,2,FALSE)="Pasture unsuitable","Pasture unsuitable",IF(I57="","",IF($D$21=0,"",LookUp!S271*((22.587*(LookUp!T271))-5.2361)))))*IF(Q57=0,0,(Q57/LookUp!I215)) -> 0 | U57: 0 | V57: =IF(D57="","",IF(Q58="",IF(P57>0,IF(X57="","",VLOOKUP(X57,LookUp!$C$243:$D$607,2,FALSE)),""),IF(Y58<=0,"",VLOOKUP(Y58,LookUp!$C$243:$D$607,2,FALSE)))) ->  | Y57: 0 | Z57: =IF(T57="","",SUM(T58:$T$63)+SUM($AB$41:AB56)) ->  | AA57: =IF(T57="","",((SUM(T58:$T$63)+SUM($AB$41:AB56))*W57+K57)) -> 
L58: =IF(Q58=0,0,IF(K58="","",IF(VLOOKUP(LookUp!R246,LookUp!$AA$400:$AB$4026,2,FALSE)="Pasture unsuitable","Pasture unsuitable",IF(K58="","",IF($D$21=0,0,IF($D$17="Lambs",VLOOKUP(LookUp!R246,LookUp!$AA$400:$AB$4026,2,FALSE),IF($D$17="Ewes/Wethers",VLOOKUP(LookUp!R246,LookUp!$AA$400:$AB$4026,2,FALSE),LookUp!S246*((22.587*(LookUp!T246))-5.2361)))))))) -> 0 | P58: =IF(H58="","",H58+J58*(SUM($T$41:T57))) ->  | Q58: =IF(P58=500,IF($D$21=0,"",LookUp!I216),IF(P58=1000,IF($D$21=0,"",LookUp!I216),IF(P58=1500,IF($D$21=0,"",LookUp!I216),IF(P58=2000,IF($D$21=0,"",LookUp!I216),IF(LookUp!F216=500,(((P58-500)/500)*(LookUp!T216-LookUp!I216))+LookUp!I216,IF(LookUp!F216=600,(((P58-1000)/500)*(LookUp!T216-LookUp!I216))+LookUp!I216,IF(LookUp!F216=700,(((P58-1500)/500)*(LookUp!T216-LookUp!I216))+LookUp!I216,IF(LookUp!F216=800,(((P58-2000)/500)*(LookUp!T216-LookUp!I216))+LookUp!I216,LookUp!I216)))))))) -> 0 | S58: =IF(I59="",0,IF(VLOOKUP(LookUp!S242,LookUp!$AA$400:$AB$1841,2,FALSE)="Pasture unsuitable","Pasture unsuitable",IF(I58="","",IF($D$21=0,"",LookUp!S272*((22.587*(LookUp!T272))-5.2361)))))*IF(Q58=0,0,(Q58/LookUp!I216)) -> 0 | U58: 0 | V58: =IF(D58="","",IF(Q59="",IF(P58>0,IF(X58="","",VLOOKUP(X58,LookUp!$C$243:$D$607,2,FALSE)),""),IF(Y59<=0,"",VLOOKUP(Y59,LookUp!$C$243:$D$607,2,FALSE)))) ->  | Y58: 0 | Z58: =IF(T58="","",SUM(T59:$T$63)+SUM($AB$41:AB57)) ->  | AA58: =IF(T58="","",((SUM(T59:$T$63)+SUM($AB$41:AB57))*W58+K58)) -> 
L59: =IF(Q59=0,0,IF(K59="","",IF(VLOOKUP(LookUp!R247,LookUp!$AA$400:$AB$4026,2,FALSE)="Pasture unsuitable","Pasture unsuitable",IF(K59="","",IF($D$21=0,0,IF($D$17="Lambs",VLOOKUP(LookUp!R247,LookUp!$AA$400:$AB$4026,2,FALSE),IF($D$17="Ewes/Wethers",VLOOKUP(LookUp!R247,LookUp!$AA$400:$AB$4026,2,FALSE),LookUp!S247*((22.587*(LookUp!T247))-5.2361)))))))) -> 0 | P59: =IF(H59="","",H59+J59*(SUM($T$41:T58))) ->  | Q59: =IF(P59=500,IF($D$21=0,"",LookUp!I217),IF(P59=1000,IF($D$21=0,"",LookUp!I217),IF(P59=1500,IF($D$21=0,"",LookUp!I217),IF(P59=2000,IF($D$21=0,"",LookUp!I217),IF(LookUp!F217=500,(((P59-500)/500)*(LookUp!T217-LookUp!I217))+LookUp!I217,IF(LookUp!F217=600,(((P59-1000)/500)*(LookUp!T217-LookUp!I217))+LookUp!I217,IF(LookUp!F217=700,(((P59-1500)/500)*(LookUp!T217-LookUp!I217))+LookUp!I217,IF(LookUp!F217=800,(((P59-2000)/500)*(LookUp!T217-LookUp!I217))+LookUp!I217,LookUp!I217)))))))) -> 0 | S59: =IF(I60="",0,IF(VLOOKUP(LookUp!S243,LookUp!$AA$400:$AB$1841,2,FALSE)="Pasture unsuitable","Pasture unsuitable",IF(I59="","",IF($D$21=0,"",LookUp!S273*((22.587*(LookUp!T273))-5.2361)))))*IF(Q59=0,0,(Q59/LookUp!I217)) -> 0 | U59: 0 | V59: =IF(D59="","",IF(Q60="",IF(P59>0,IF(X59="","",VLOOKUP(X59,LookUp!$C$243:$D$607,2,FALSE)),""),IF(Y60<=0,"",VLOOKUP(Y60,LookUp!$C$243:$D$607,2,FALSE)))) ->  | Y59: 0 | Z59: =IF(T59="","",SUM(T60:$T$63)+SUM($AB$41:AB58)) ->  | AA59: =IF(T59="","",((SUM(T60:$T$63)+SUM($AB$41:AB58))*W59+K59)) -> 
L60: =IF(Q60=0,0,IF(K60="","",IF(VLOOKUP(LookUp!R248,LookUp!$AA$400:$AB$4026,2,FALSE)="Pasture unsuitable","Pasture unsuitable",IF(K60="","",IF($D$21=0,0,IF($D$17="Lambs",VLOOKUP(LookUp!R248,LookUp!$AA$400:$AB$4026,2,FALSE),IF($D$17="Ewes/Wethers",VLOOKUP(LookUp!R248,LookUp!$AA$400:$AB$4026,2,FALSE),LookUp!S248*((22.587*(LookUp!T248))-5.2361)))))))) -> 0 | P60: =IF(H60="","",H60+J60*(SUM($T$41:T59))) ->  | Q60: =IF(P60=500,IF($D$21=0,"",LookUp!I218),IF(P60=1000,IF($D$21=0,"",LookUp!I218),IF(P60=1500,IF($D$21=0,"",LookUp!I218),IF(P60=2000,IF($D$21=0,"",LookUp!I218),IF(LookUp!F218=500,(((P60-500)/500)*(LookUp!T218-LookUp!I218))+LookUp!I218,IF(LookUp!F218=600,(((P60-1000)/500)*(LookUp!T218-LookUp!I218))+LookUp!I218,IF(LookUp!F218=700,(((P60-1500)/500)*(LookUp!T218-LookUp!I218))+LookUp!I218,IF(LookUp!F218=800,(((P60-2000)/500)*(LookUp!T218-LookUp!I218))+LookUp!I218,LookUp!I218)))))))) -> 0 | S60: =IF(I61="",0,IF(VLOOKUP(LookUp!S244,LookUp!$AA$400:$AB$1841,2,FALSE)="Pasture unsuitable","Pasture unsuitable",IF(I60="","",IF($D$21=0,"",LookUp!S274*((22.587*(LookUp!T274))-5.2361)))))*IF(Q60=0,0,(Q60/LookUp!I218)) -> 0 | U60: 0 | V60: =IF(D60="","",IF(Q61="",IF(P60>0,IF(X60="","",VLOOKUP(X60,LookUp!$C$243:$D$607,2,FALSE)),""),IF(Y61<=0,"",VLOOKUP(Y61,LookUp!$C$243:$D$607,2,FALSE)))) ->  | Y60: 0 | Z60: =IF(T60="","",SUM(T61:$T$63)+SUM($AB$41:AB59)) ->  | AA60: =IF(T60="","",((SUM(T61:$T$63)+SUM($AB$41:AB59))*W60+K60)) -> 
L61: =IF(Q61=0,0,IF(K61="","",IF(VLOOKUP(LookUp!R249,LookUp!$AA$400:$AB$4026,2,FALSE)="Pasture unsuitable","Pasture unsuitable",IF(K61="","",IF($D$21=0,0,IF($D$17="Lambs",VLOOKUP(LookUp!R249,LookUp!$AA$400:$AB$4026,2,FALSE),IF($D$17="Ewes/Wethers",VLOOKUP(LookUp!R249,LookUp!$AA$400:$AB$4026,2,FALSE),LookUp!S249*((22.587*(LookUp!T249))-5.2361)))))))) -> 0 | P61: =IF(H61="","",H61+J61*(SUM($T$41:T60))) ->  | Q61: =IF(P61=500,IF($D$21=0,"",LookUp!I219),IF(P61=1000,IF($D$21=0,"",LookUp!I219),IF(P61=1500,IF($D$21=0,"",LookUp!I219),IF(P61=2000,IF($D$21=0,"",LookUp!I219),IF(LookUp!F219=500,(((P61-500)/500)*(LookUp!T219-LookUp!I219))+LookUp!I219,IF(LookUp!F219=600,(((P61-1000)/500)*(LookUp!T219-LookUp!I219))+LookUp!I219,IF(LookUp!F219=700,(((P61-1500)/500)*(LookUp!T219-LookUp!I219))+LookUp!I219,IF(LookUp!F219=800,(((P61-2000)/500)*(LookUp!T219-LookUp!I219))+LookUp!I219,LookUp!I219)))))))) -> 0 | S61: =IF(I62="",0,IF(VLOOKUP(LookUp!S245,LookUp!$AA$400:$AB$1841,2,FALSE)="Pasture unsuitable","Pasture unsuitable",IF(I61="","",IF($D$21=0,"",LookUp!S275*((22.587*(LookUp!T275))-5.2361)))))*IF(Q61=0,0,(Q61/LookUp!I219)) -> 0 | U61: 0 | V61: =IF(D61="","",IF(Q62="",IF(P61>0,IF(X61="","",VLOOKUP(X61,LookUp!$C$243:$D$607,2,FALSE)),""),IF(Y62<=0,"",VLOOKUP(Y62,LookUp!$C$243:$D$607,2,FALSE)))) ->  | Y61: 0 | Z61: =IF(T61="","",SUM(T62:$T$63)+SUM($AB$41:AB60)) ->  | AA61: =IF(T61="","",((SUM(T62:$T$63)+SUM($AB$41:AB60))*W61+K61)) -> 
L62: =IF(Q62=0,0,IF(K62="","",IF(VLOOKUP(LookUp!R250,LookUp!$AA$400:$AB$4026,2,FALSE)="Pasture unsuitable","Pasture unsuitable",IF(K62="","",IF($D$21=0,0,IF($D$17="Lambs",VLOOKUP(LookUp!R250,LookUp!$AA$400:$AB$4026,2,FALSE),IF($D$17="Ewes/Wethers",VLOOKUP(LookUp!R250,LookUp!$AA$400:$AB$4026,2,FALSE),LookUp!S250*((22.587*(LookUp!T250))-5.2361)))))))) -> 0 | P62: =IF(H62="","",H62+J62*(SUM($T$41:T61))) ->  | Q62: =IF(P62=500,IF($D$21=0,"",LookUp!I220),IF(P62=1000,IF($D$21=0,"",LookUp!I220),IF(P62=1500,IF($D$21=0,"",LookUp!I220),IF(P62=2000,IF($D$21=0,"",LookUp!I220),IF(LookUp!F220=500,(((P62-500)/500)*(LookUp!T220-LookUp!I220))+LookUp!I220,IF(LookUp!F220=600,(((P62-1000)/500)*(LookUp!T220-LookUp!I220))+LookUp!I220,IF(LookUp!F220=700,(((P62-1500)/500)*(LookUp!T220-LookUp!I220))+LookUp!I220,IF(LookUp!F220=800,(((P62-2000)/500)*(LookUp!T220-LookUp!I220))+LookUp!I220,LookUp!I220)))))))) -> 0 | S62: =IF(I63="",0,IF(VLOOKUP(LookUp!S246,LookUp!$AA$400:$AB$1841,2,FALSE)="Pasture unsuitable","Pasture unsuitable",IF(I62="","",IF($D$21=0,"",LookUp!S276*((22.587*(LookUp!T276))-5.2361)))))*IF(Q62=0,0,(Q62/LookUp!I220)) -> 0 | U62: 0 | V62: =IF(D62="","",IF(Q63="",IF(P62>0,IF(X62="","",VLOOKUP(X62,LookUp!$C$243:$D$607,2,FALSE)),""),IF(Y63<=0,"",VLOOKUP(Y63,LookUp!$C$243:$D$607,2,FALSE)))) ->  | Y62: 0 | Z62: =IF(T62="","",SUM(T63:$T$63)+SUM($AB$41:AB61)) ->  | AA62: =IF(T62="","",((SUM(T63:$T$63)+SUM($AB$41:AB61))*W62+K62)) -> 
L63: =IF(Q63=0,0,IF(K63="","",IF(VLOOKUP(LookUp!R251,LookUp!$AA$400:$AB$4026,2,FALSE)="Pasture unsuitable","Pasture unsuitable",IF(K63="","",IF($D$21=0,0,IF($D$17="Lambs",VLOOKUP(LookUp!R251,LookUp!$AA$400:$AB$4026,2,FALSE),IF($D$17="Ewes/Wethers",VLOOKUP(LookUp!R251,LookUp!$AA$400:$AB$4026,2,FALSE),LookUp!S251*((22.587*(LookUp!T251))-5.2361)))))))) -> 0 | P63: =IF(H63="","",H63+J63*(SUM($T$41:T62))) ->  | Q63: =IF(P63=500,IF($D$21=0,"",LookUp!I221),IF(P63=1000,IF($D$21=0,"",LookUp!I221),IF(P63=1500,IF($D$21=0,"",LookUp!I221),IF(P63=2000,IF($D$21=0,"",LookUp!I221),IF(LookUp!F221=500,(((P63-500)/500)*(LookUp!T221-LookUp!I221))+LookUp!I221,IF(LookUp!F221=600,(((P63-1000)/500)*(LookUp!T221-LookUp!I221))+LookUp!I221,IF(LookUp!F221=700,(((P63-1500)/500)*(LookUp!T221-LookUp!I221))+LookUp!I221,IF(LookUp!F221=800,(((P63-2000)/500)*(LookUp!T221-LookUp!I221))+LookUp!I221,LookUp!I221)))))))) -> 0 | S63: =IF(I64="",0,IF(VLOOKUP(LookUp!S247,LookUp!$AA$400:$AB$1841,2,FALSE)="Pasture unsuitable","Pasture unsuitable",IF(I63="","",IF($D$21=0,"",LookUp!S277*((22.587*(LookUp!T277))-5.2361)))))*IF(Q63=0,0,(Q63/LookUp!I221)) -> 0 | U63: 0 | V63: =IF(D63="","",IF(Q64="",IF(P63>0,IF(X63="","",VLOOKUP(X63,LookUp!$C$243:$D$607,2,FALSE)),""),IF(Y64<=0,"",VLOOKUP(Y64,LookUp!$C$243:$D$607,2,FALSE)))) ->  | Y63: 0 | Z63: =IF(T63="","",SUM(T$63:$T64)+SUM($AB$41:AB62)) ->  | AA63: =IF(T63="","",((SUM(T$63:$T64)+SUM($AB$41:AB62))*W63+K63)) -> 
Y64: =INT(IF(T63="",0,Y63+T63)) -> 0
B68: PADDOCK FEED STATUS
B70: Paddock Name | C70: Feed Status
B71: =IF(B41="","",B41) ->  | C71: =IF(B71="","",IF(R41<K41,"Feed availability when stock are removed is lower than your target. Reduce paddock rating, change the order of paddocks or decrease stock numbers.","Feed availability when stock are removed is greater than your target. If it is too high, increase paddock rating, change the order of paddocks or increase stock numbers.")) -> 
B72: =IF(B42="","",B42) -> 

Sheet Your grazing chart (hidden)
B2: GRAZING DAYS RECORDER
B3: EXAMPLE ROTATIONAL GRAZING WORKSHEET
B4: This is an example of how a chart could be used to keep track of stock movements and DSE/ha (carrying capacity) on each paddock
B5: Use the sheet below the example (scroll down) to create your own using the template provided.
D7: Week beginning | G7: Week beginning | J7: Week beginning | M7: Week beginning | P7: Week beginning | S7: Week beginning | V7: Week beginning | Y7: Week beginning | AB7: Week beginning | AE7: Week beginning | AH7: Week beginning | AK7: Week beginning | AN7: Week beginning | AQ7: Week beginning | AT7: Week beginning | AW7: Week beginning | AZ7: Week beginning | BC7: Week beginning | BF7: Week beginning | BI7: Week beginning | BL7: Week beginning | BO7: Week beginning | BR7: Week beginning | BU7: Week beginning | BX7: Week beginning | CA7: Week beginning | CD7: Week beginning | CG7: Week beginning | CJ7: Week beginning | CM7: Week beginning | CP7: Week beginning | CS7: Week beginning | CV7: Week beginning | CY7: Week beginning | DB7: Week beginning | DE7: Week beginning | DH7: Week beginning | DK7: Week beginning | DN7: Week beginning | DQ7: Week beginning | DT7: Week beginning | DW7: Week beginning | DZ7: Week beginning | EC7: Week beginning | EF7: Week beginning | EI7: Week beginning | EL7: Week beginning | EO7: Week beginning | ER7: Week beginning | EU7: Week beginning | EX7: Week beginning | FA7: Week beginning
D8: 2010-01-03 | G8: =D8+7 -> 2010-01-10 | J8: =G8+7 -> 2010-01-17 | M8: =J8+7 -> 2010-01-24 | P8: =M8+7 -> 2010-01-31 | S8: =P8+7 -> 2010-02-07 | V8: =S8+7 -> 2010-02-14 | Y8: =V8+7 -> 2010-02-21 | AB8: =Y8+7 -> 2010-02-28 | AE8: =AB8+7 -> 2010-03-07 | AH8: =AE8+7 -> 2010-03-14 | AK8: =AH8+7 -> 2010-03-21 | AN8: =AK8+7 -> 2010-03-28 | AQ8: =AN8+7 -> 2010-04-04 | AT8: =AQ8+7 -> 2010-04-11 | AW8: =AT8+7 -> 2010-04-18 | AZ8: =AW8+7 -> 2010-04-25 | BC8: =AZ8+7 -> 2010-05-02 | BF8: =BC8+7 -> 2010-05-09 | BI8: =BF8+7 -> 2010-05-16 | BL8: =BI8+7 -> 2010-05-23 | BO8: =BL8+7 -> 2010-05-30 | BR8: =BO8+7 -> 2010-06-06 | BU8: =BR8+7 -> 2010-06-13 | BX8: =BU8+7 -> 2010-06-20 | CA8: =BX8+7 -> 2010-06-27 | CD8: =CA8+7 -> 2010-07-04 | CG8: =CD8+7 -> 2010-07-11 | CJ8: =CG8+7 -> 2010-07-18 | CM8: =CJ8+7 -> 2010-07-25 | CP8: =CM8+7 -> 2010-08-01 | CS8: =CP8+7 -> 2010-08-08 | CV8: =CS8+7 -> 2010-08-15 | CY8: =CV8+7 -> 2010-08-22 | DB8: =CY8+7 -> 2010-08-29 | DE8: =DB8+7 -> 2010-09-05 | DH8: =DE8+7 -> 2010-09-12 | DK8: =DH8+7 -> 2010-09-19 | DN8: =DK8+7 -> 2010-09-26 | DQ8: =DN8+7 -> 2010-10-03 | DT8: =DQ8+7 -> 2010-10-10 | DW8: =DT8+7 -> 2010-10-17 | DZ8: =DW8+7 -> 2010-10-24 | EC8: =DZ8+7 -> 2010-10-31 | EF8: =EC8+7 -> 2010-11-07 | EI8: =EF8+7 -> 2010-11-14 | EL8: =EI8+7 -> 2010-11-21 | EO8: =EL8+7 -> 2010-11-28 | ER8: =EO8+7 -> 2010-12-05 | EU8: =ER8+7 -> 2010-12-12 | EX8: =EU8+7 -> 2010-12-19 | FA8: =EX8+7 -> 2010-12-26
B9: Week | D9: 1 | G9: 2 | J9: 3 | M9: 4 | P9: 5 | S9: 6 | V9: 7 | Y9: 8 | AB9: 9 | AE9: 10 | AH9: 11 | AK9: 12 | AN9: 13 | AQ9: 14 | AT9: 15 | AW9: 16 | AZ9: 17 | BC9: 18 | BF9: 19 | BI9: 20 | BL9: 21 | BO9: 22 | BR9: 23 | BU9: 24 | BX9: 25 | CA9: 26 | CD9: 27 | CG9: 28 | CJ9: 29 | CM9: 30 | CP9: 31 | CS9: 32 | CV9: 33 | CY9: 34 | DB9: 35 | DE9: 36 | DH9: 37 | DK9: 38 | DN9: 39 | DQ9: 40 | DT9: 41 | DW9: 42 | DZ9: 43 | EC9: 44 | EF9: 45 | EI9: 46 | EL9: 47 | EO9: 48 | ER9: 49 | EU9: 50 | EX9: 51 | FA9: 52 | FD9: DSE grazing | FE9: DSE grazing | FF9: DSE/ha average | FG9: P required for | FH9: Maintenance fertiliser
C10: Ha | D10: Days | E10: No. Hd | F10: DSE | G10: Days | H10: No. Hd | I10: DSE | J10: Days | K10: No. Hd | L10: DSE | M10: Days | N10: No. Hd | O10: DSE | P10: Days | Q10: No. Hd | R10: DSE | S10: Days | T10: No. Hd | U10: DSE | V10: Days | W10: No. Hd | X10: DSE | Y10: Days | Z10: No. Hd | AA10: DSE | AB10: Days | AC10: No. Hd | AD10: DSE | AE10: Days | AF10: No. Hd | AG10: DSE | AH10: Days | AI10: No. Hd | AJ10: DSE | AK10: Days | AL10: No. Hd | AM10: DSE | AN10: Days | AO10: No. Hd | AP10: DSE | AQ10: Days | AR10: No. Hd | AS10: DSE | AT10: Days | AU10: No. Hd | AV10: DSE | AW10: Days | AX10: No. Hd | AY10: DSE | AZ10: Days | BA10: No. Hd | BB10: DSE | BC10: Days | BD10: No. Hd | BE10: DSE | BF10: Days | BG10: No. Hd | BH10: DSE | BI10: Days | BJ10: No. Hd | BK10: DSE | BL10: Days | BM10: No. Hd | BN10: DSE | BO10: Days | BP10: No. Hd | BQ10: DSE | BR10: Days | BS10: No. Hd | BT10: DSE | BU10: Days | BV10: No. Hd | BW10: DSE | BX10: Days | BY10: No. Hd | BZ10: DSE | CA10: Days | CB10: No. Hd | CC10: DSE | CD10: Days | CE10: No. Hd | CF10: DSE | CG10: Days | CH10: No. Hd | CI10: DSE | CJ10: Days | CK10: No. Hd | CL10: DSE | CM10: Days | CN10: No. Hd | CO10: DSE | CP10: Days | CQ10: No. Hd | CR10: DSE | CS10: Days | CT10: No. Hd | CU10: DSE | CV10: Days | CW10: No. Hd | CX10: DSE | CY10: Days | CZ10: No. Hd | DA10: DSE | DB10: Days | DC10: No. Hd | DD10: DSE | DE10: Days | DF10: No. Hd | DG10: DSE | DH10: Days | DI10: No. Hd | DJ10: DSE | DK10: Days | DL10: No. Hd | DM10: DSE | DN10: Days | DO10: No. Hd | DP10: DSE | DQ10: Days | DR10: No. Hd | DS10: DSE | DT10: Days | DU10: No. Hd | DV10: DSE | DW10: Days | DX10: No. Hd | DY10: DSE | DZ10: Days | EA10: No. Hd | EB10: DSE | EC10: Days | ED10: No. Hd | EE10: DSE | EF10: Days | EG10: No. Hd | EH10: DSE | EI10: Days | EJ10: No. Hd | EK10: DSE | EL10: Days | EM10: No. Hd | EN10: DSE | EO10: Days | EP10: No. Hd | EQ10: DSE | ER10: Days | ES10: No. Hd | ET10: DSE | EU10: Days | EV10: No. Hd | EW10: DSE | EX10: Days | EY10: No. Hd | EZ10: DSE | FA10: Days | FB10: No. Hd | FC10: DSE | FD10: days | FE10: days/ha | FG10: maintenance (Kg/ha) | FH10: required (Kg/ha)
B11: Back | C11: 13.72 | J11: 7 | K11: 400 | L11: 1.3 | M11: 7 | N11: 400 | O11: 1.3 | P11: 7 | Q11: 400 | R11: 1.3 | S11: 7 | T11: 400 | U11: 1.3 | V11: 5 | W11: 400 | X11: 1.3 | AN11: 7 | AO11: 400 | AP11: 1.3 | AQ11: 7 | AR11: 400 | AS11: 1.3 | BF11: 7 | BG11: 400 | BH11: 1.3 | BR11: 7 | BS11: 400 | BT11: 1.3 | CD11: 7 | CE11: 400 | CF11: 1.3 | CP11: 7 | CQ11: 400 | CR11: 1.3 | DB11: 7 | DC11: 400 | DD11: 1.3 | DN11: 7 | DO11: 400 | DP11: 1.3 | DZ11: 7 | EA11: 400 | EB11: 1.3 | EL11: 7 | EM11: 400 | EN11: 1.3 | EX11: 7 | EY11: 400 | EZ11: 1.3 | FD11: =(D11*E11*F11+G11*H11*I11+J11*K11*L11+M11*N11*O11+P11*Q11*R11+S11*T11*U11+V11*W11*X11+Y11*Z11*AA11+AB11*AC11*AD11+AE11*AF11*AG11+AH11*AI11*AJ11+AK11*AL11*AM11+AN11*AO11*AP11+AQ11*AR11*AS11+AT11*AU11*AV11+AW11*AX11*AY11+AZ11*BA11*BB11+BC11*BD11*BE11+BF11*BG11*BH11+BI11*BJ11*BK11+BL11*BM11*BN11+BO11*BP11*BQ11+BR11*BS11*BT11+BU11*BV11*BW11+BX11*BY11*BZ11+CA11*CB11*CC11+CD11*CE11*CF11+CG11*CH11*CI11+CJ11*CK11*CL11+CM11*CN11*CO11+CP11*CQ11*CR11+CS11*CT11*CU11+CV11*CW11*CX11+CY11*CZ11*DA11+DB11*DC11*DD11+DE11*DF11*DG11+DH11*DI11*DJ11+DK11*DL11*DM11+DN11*DO11*DP11+DQ11*DR11*DS11+DT11*DU11*DV11+DW11*DX11*DY11+DZ11*EA11*EB11+EC11*ED11*EE11+EF11*EG11*EH11+EI11*EJ11*EK11+EL11*EM11*EN11+EO11*EP11*EQ11+ER11*ES11*ET11+EU11*EV11*EW11+EX11*EY11*EZ11+FA11*FB11*FC11) -> 57200 | FE11: =FD11/C11 -> 4169.09621 | FF11: =FE11/365 -> 11.4221814 | FG11: =FF11*$FG$31 -> 0 | FH11: =(100/$FH$31)*FG11 -> 0
B12: Long | C12: 15.18 | AW12: 7 | AX12: 400 | AY12: 1.3 | BI12: 7 | BJ12: 400 | BK12: 1.3 | BU12: 7 | BV12: 400 | BW12: 1.3 | CG12: 7 | CH12: 400 | CI12: 1.3 | CS12: 7 | CT12: 400 | CU12: 1.3 | DE12: 7 | DF12: 400 | DG12: 1.3 | DQ12: 7 | DR12: 400 | DS12: 1.3 | EC12: 7 | ED12: 400 | EE12: 1.3 | EO12: 7 | EP12: 400 | EQ12: 1.3 | FA12: 7 | FB12: 400 | FC12: 1.3 | FD12: =(D12*E12*F12+G12*H12*I12+J12*K12*L12+M12*N12*O12+P12*Q12*R12+S12*T12*U12+V12*W12*X12+Y12*Z12*AA12+AB12*AC12*AD12+AE12*AF12*AG12+AH12*AI12*AJ12+AK12*AL12*AM12+AN12*AO12*AP12+AQ12*AR12*AS12+AT12*AU12*AV12+AW12*AX12*AY12+AZ12*BA12*BB12+BC12*BD12*BE12+BF12*BG12*BH12+BI12*BJ12*BK12+BL12*BM12*BN12+BO12*BP12*BQ12+BR12*BS12*BT12+BU12*BV12*BW12+BX12*BY12*BZ12+CA12*CB12*CC12+CD12*CE12*CF12+CG12*CH12*CI12+CJ12*CK12*CL12+CM12*CN12*CO12+CP12*CQ12*CR12+CS12*CT12*CU12+CV12*CW12*CX12+CY12*CZ12*DA12+DB12*DC12*DD12+DE12*DF12*DG12+DH12*DI12*DJ12+DK12*DL12*DM12+DN12*DO12*DP12+DQ12*DR12*DS12+DT12*DU12*DV12+DW12*DX12*DY12+DZ12*EA12*EB12+EC12*ED12*EE12+EF12*EG12*EH12+EI12*EJ12*EK12+EL12*EM12*EN12+EO12*EP12*EQ12+ER12*ES12*ET12+EU12*EV12*EW12+EX12*EY12*EZ12+FA12*FB12*FC12) -> 36400 | FE12: =FD12/C12 -> 2397.891963 | FF12: =FE12/365 -> 6.569567022 | FG12: 0 | FH12: 0
B13: Short | C13: 9.26 | AZ13: 7 | BA13: 400 | BB13: 1.3 | BL13: 7 | BM13: 400 | BN13: 1.3 | BX13: 7 | BY13: 400 | BZ13: 1.3 | CJ13: 7 | CK13: 400 | CL13: 1.3 | CV13: 7 | CW13: 400 | CX13: 1.3 | DH13: 7 | DI13: 400 | DJ13: 1.3 | DT13: 7 | DU13: 400 | DV13: 1.3 | EF13: 7 | EG13: 400 | EH13: 1.3 | ER13: 7 | ES13: 400 | ET13: 1.3 | FD13: 32760 | FE13: 3537.796976 | FF13: 9.692594455 | FG13: 0 | FH13: 0
B14: Middle | C14: 10.36 | Y14: 7 | Z14: 400 | AA14: 1.3 | AK14: 7 | AL14: 400 | AM14: 1.3 | BC14: 7 | BD14: 400 | BE14: 1.3 | BO14: 7 | BP14: 400 | BQ14: 1.3 | CA14: 7 | CB14: 400 | CC14: 1.3 | CM14: 7 | CN14: 400 | CO14: 1.3 | CY14: 7 | CZ14: 400 | DA14: 1.3 | DK14: 7 | DL14: 400 | DM14: 1.3 | DW14: 7 | DX14: 400 | DY14: 1.3 | EI14: 7 | EJ14: 400 | EK14: 1.3 | EU14: 7 | EV14: 400 | EW14: 1.3 | FD14: 40040 | FE14: 3864.864865 | FF14: 10.58867086 | FG14: 0 | FH14: 0
B15: Upper Olive | C15: 1.52 | AZ15: 7 | BA15: 340 | BB15: 1.3 | BU15: 7 | BV15: 340 | BW15: 1.3 | CP15: 7 | CQ15: 340 | CR15: 1.3 | DK15: 7 | DL15: 340 | DM15: 1.3 | EF15: 7 | EG15: 340 | EH15: 1.3 | FA15: 7 | FB15: 340 | FC15: 1.3 | FD15: 18564 | FE15: 12213.15789 | FF15: 33.46070656 | FG15: 0 | FH15: 0
B16: Lower Olive | C16: 8.92 | AB16: 7 | AC16: 128 | AD16: 1.3 | BC16: 7 | BD16: 340 | BE16: 1.3 | BX16: 7 | BY16: 340 | BZ16: 1.3 | CS16: 7 | CT16: 340 | CU16: 1.3 | DN16: 7 | DO16: 340 | DP16: 1.3 | EI16: 7 | EJ16: 340 | EK16: 1.3 | FD16: 16634.8 | FE16: 1864.887892 | FF16: 5.109281897 | FG16: 0 | FH16: 0
B17: Horse | C17: 1.16 | AB17: 7 | AC17: 15 | AD17: 1.3 | BF17: 7 | BG17: 340 | BH17: 1.3 | CA17: 7 | CB17: 340 | CC17: 1.3 | CV17: 7 | CW17: 340 | CX17: 1.3 | DQ17: 7 | DR17: 340 | DS17: 1.3 | EL17: 7 | EM17: 340 | EN17: 1.3 | FD17: 15606.5 | FE17: 13453.87931 | FF17: 36.85994332 | FG17: 0 | FH17: 0
B18: Pine | C18: 22.13 | S18: 7 | T18: 149 | U18: 1.3 | V18: 7 | W18: 149 | X18: 1.3 | AK18: 7 | AL18: 149 | AM18: 1.3 | AN18: 7 | AO18: 149 | AP18: 1.3 | AQ18: 3 | AR18: 149 | AS18: 1.3 | BI18: 7 | BJ18: 340 | BK18: 1.3 | CD18: 7 | CE18: 340 | CF18: 1.3 | CY18: 7 | CZ18: 340 | DA18: 1.3 | DT18: 7 | DU18: 340 | DV18: 1.3 | EO18: 7 | EP18: 340 | EQ18: 1.3 | FD18: 21474.7 | FE18: 970.3886127 | FF18: 2.658598939 | FG18: 0 | FH18: 0
B19: Yabbie | C19: 8.48 | AE19: 7 | AF19: 149 | AG19: 1.3 | AH19: 7 | AI19: 149 | AJ19: 1.3 | BL19: 7 | BM19: 340 | BN19: 1.3 | CG19: 7 | CH19: 340 | CI19: 1.3 | DB19: 7 | DC19: 340 | DD19: 1.3 | DW19: 7 | DX19: 340 | DY19: 1.3 | ER19: 7 | ES19: 340 | ET19: 1.3 | FD19: 18181.8 | FE19: 2144.080189 | FF19: 5.874192298 | FG19: 0 | FH19: 0
B20: Noels upper | C20: 17.19 | AH20: 7 | AI20: 400 | AJ20: 1.3 | BO20: 7 | BP20: 340 | BQ20: 1.3 | CJ20: 7 | CK20: 340 | CL20: 1.3 | DE20: 7 | DF20: 340 | DG20: 1.3 | DZ20: 7 | EA20: 340 | EB20: 1.3 | EU20: 7 | EV20: 340 | EW20: 1.3 | FD20: 19110 | FE20: 1111.692845 | FF20: 3.045733821 | FG20: 0 | FH20: 0
B21: Scrubby | C21: 8.23 | AB21: 7 | AC21: 400 | AD21: 1.3 | AT21: 7 | AU21: 400 | AV21: 1.3 | BR21: 7 | BS21: 340 | BT21: 1.3 | CM21: 7 | CN21: 340 | CO21: 1.3 | DH21: 7 | DI21: 340 | DJ21: 1.3 | EC21: 7 | ED21: 340 | EE21: 1.3 | EX21: 7 | EY21: 340 | EZ21: 1.3 | FD21: 22750 | FE21: 2764.277035 | FF21: 7.57336174 | FG21: 0 | FH21: 0
B22: Total days | C22: =SUM(C11:C21) -> 116.15 | D22: =SUM(D11:D21) -> 0 | E22: =SUM(E11:E21) -> 0 | G22: =SUM(G11:G21) -> 0 | H22: =SUM(H11:H21) -> 0 | J22: =SUM(J11:J21) -> 7 | K22: =SUM(K11:K21) -> 400 | M22: =SUM(M11:M21) -> 7 | N22: =SUM(N11:N21) -> 400 | P22: =SUM(P11:P21) -> 7 | Q22: =SUM(Q11:Q21) -> 400 | S22: =SUM(S11:S21) -> 14 | T22: =SUM(T11:T21) -> 549 | V22: =SUM(V11:V21) -> 12 | W22: =SUM(W11:W21) -> 549 | Y22: =SUM(Y11:Y21) -> 7 | Z22: =SUM(Z11:Z21) -> 400 | AB22: =SUM(AB11:AB21) -> 21 | AC22: =SUM(AC11:AC21) -> 543 | AE22: =SUM(AE11:AE21) -> 7 | AF22: =SUM(AF11:AF21) -> 149 | AH22: =SUM(AH11:AH21) -> 14 | AI22: =SUM(AI11:AI21) -> 549 | AK22: =SUM(AK11:AK21) -> 14 | AL22: =SUM(AL11:AL21) -> 549 | AN22: =SUM(AN11:AN21) -> 14 | AO22: =SUM(AO11:AO21) -> 549 | AQ22: =SUM(AQ11:AQ21) -> 10 | AR22: =SUM(AR11:AR21) -> 549 | AT22: =SUM(AT11:AT21) -> 7 | AU22: =SUM(AU11:AU21) -> 400 | AW22: =SUM(AW11:AW21) -> 7 | AX22: =SUM(AX11:AX21) -> 400 | AZ22: =SUM(AZ11:AZ21) -> 14 | BA22: =SUM(BA11:BA21) -> 740 | BC22: =SUM(BC11:BC21) -> 14 | BD22: =SUM(BD11:BD21) -> 740 | BF22: =SUM(BF11:BF21) -> 14 | BG22: =SUM(BG11:BG21) -> 740 | BI22: =SUM(BI11:BI21) -> 14 | BJ22: =SUM(BJ11:BJ21) -> 740 | BL22: =SUM(BL11:BL21) -> 14 | BM22: =SUM(BM11:BM21) -> 740 | BO22: =SUM(BO11:BO21) -> 14 | BP22: =SUM(BP11:BP21) -> 740 | BR22: =SUM(BR11:BR21) -> 14 | BS22: =SUM(BS11:BS21) -> 740 | BU22: =SUM(BU11:BU21) -> 14 | BV22: =SUM(BV11:BV21) -> 740 | BX22: =SUM(BX11:BX21) -> 14 | BY22: =SUM(BY11:BY21) -> 740 | CA22: =SUM(CA11:CA21) -> 14 | CB22: =SUM(CB11:CB21) -> 740 | FD22: =SUM(FD11:FD21) -> 298721.8 | FE22: 2571.862247 | FF22: =AVERAGE(FF11:FF21) -> 12.07771203
B24: Mob | E24: Start by entering the date of the first week in January where the date is indicated in RED (cell D34). All other dates will calculate for you. | FD24: Phosphorus Fertiliser Requirements
B25: 149 Maidens | E25: Each time you move a mob to a new paddock, enter the number of days in each week that they grazed the last paddock
B26: 400 Ewes | E26: Enter the number in the mob in the No. Hd column and the dry sheep equivelant (DSE) rating for the mob in the DSE column.
E27: You will find the DSE ratings in Tables 12 and 13 (see Look Up DSE Rating Tables button to the left)
E28: The DSE grazing days will be calculated for the paddock at the end of the row in column FD (scroll right). The DSE average/ha is equivelant to your annual average stocking rate (DSE/ha)
E29: Use the table beneath the worksheet (scroll down) to colour code your mobs.
E30: Determine the maintanance phosphorus factor for your soil by clicking on the button in cell FD30 and enter the percentage of phosphorus in your fertiliser in cell FH31 (scroll right) to get an estimate of your maintenance fertiliser requirements based on the stocking rate in each paddock. To calculate the total cost of phosphorus required click on the Phosphorus Calculator button to the left. | FG30: Maintenance Factor (Kg P per DSE) | FH30: Percentage of P in your Fertiliser
B31: YOUR ROTATIONAL GRAZING WORKSHEET | FG31: =GCTables!AL17 -> 0 | FH31: 8.8
D33: Week beginning | G33: Week beginning | J33: Week beginning | M33: Week beginning | P33: Week beginning | S33: Week beginning | V33: Week beginning | Y33: Week beginning | AB33: Week beginning | AE33: Week beginning | AH33: Week beginning | AK33: Week beginning | AN33: Week beginning | AQ33: Week beginning | AT33: Week beginning | AW33: Week beginning | AZ33: Week beginning | BC33: Week beginning | BF33: Week beginning | BI33: Week beginning | BL33: Week beginning | BO33: Week beginning | BR33: Week beginning | BU33: Week beginning | BX33: Week beginning | CA33: Week beginning | CD33: Week beginning | CG33: Week beginning | CJ33: Week beginning | CM33: Week beginning | CP33: Week beginning | CS33: Week beginning | CV33: Week beginning | CY33: Week beginning | DB33: Week beginning | DE33: Week beginning | DH33: Week beginning | DK33: Week beginning | DN33: Week beginning | DQ33: Week beginning | DT33: Week beginning | DW33: Week beginning | DZ33: Week beginning | EC33: Week beginning | EF33: Week beginning | EI33: Week beginning | EL33: Week beginning | EO33: Week beginning | ER33: Week beginning | EU33: Week beginning | EX33: Week beginning | FA33: Week beginning
D34: 2010-01-03 | G34: =D34+7 -> 2010-01-10 | J34: =G34+7 -> 2010-01-17 | M34: =J34+7 -> 2010-01-24 | P34: =M34+7 -> 2010-01-31 | S34: =P34+7 -> 2010-02-07 | V34: =S34+7 -> 2010-02-14 | Y34: =V34+7 -> 2010-02-21 | AB34: =Y34+7 -> 2010-02-28 | AE34: =AB34+7 -> 2010-03-07 | AH34: =AE34+7 -> 2010-03-14 | AK34: =AH34+7 -> 2010-03-21 | AN34: =AK34+7 -> 2010-03-28 | AQ34: =AN34+7 -> 2010-04-04 | AT34: =AQ34+7 -> 2010-04-11 | AW34: =AT34+7 -> 2010-04-18 | AZ34: =AW34+7 -> 2010-04-25 | BC34: =AZ34+7 -> 2010-05-02 | BF34: =BC34+7 -> 2010-05-09 | BI34: =BF34+7 -> 2010-05-16 | BL34: =BI34+7 -> 2010-05-23 | BO34: =BL34+7 -> 2010-05-30 | BR34: =BO34+7 -> 2010-06-06 | BU34: =BR34+7 -> 2010-06-13 | BX34: =BU34+7 -> 2010-06-20 | CA34: =BX34+7 -> 2010-06-27 | CD34: =CA34+7 -> 2010-07-04 | CG34: =CD34+7 -> 2010-07-11 | CJ34: =CG34+7 -> 2010-07-18 | CM34: =CJ34+7 -> 2010-07-25 | CP34: =CM34+7 -> 2010-08-01 | CS34: =CP34+7 -> 2010-08-08 | CV34: =CS34+7 -> 2010-08-15 | CY34: =CV34+7 -> 2010-08-22 | DB34: =CY34+7 -> 2010-08-29 | DE34: =DB34+7 -> 2010-09-05 | DH34: =DE34+7 -> 2010-09-12 | DK34: =DH34+7 -> 2010-09-19 | DN34: =DK34+7 -> 2010-09-26 | DQ34: =DN34+7 -> 2010-10-03 | DT34: =DQ34+7 -> 2010-10-10 | DW34: =DT34+7 -> 2010-10-17 | DZ34: =DW34+7 -> 2010-10-24 | EC34: =DZ34+7 -> 2010-10-31 | EF34: =EC34+7 -> 2010-11-07 | EI34: =EF34+7 -> 2010-11-14 | EL34: =EI34+7 -> 2010-11-21 | EO34: =EL34+7 -> 2010-11-28 | ER34: =EO34+7 -> 2010-12-05 | EU34: =ER34+7 -> 2010-12-12 | EX34: =EU34+7 -> 2010-12-19 | FA34: =EX34+7 -> 2010-12-26
C35: Week | D35: 1 | G35: 2 | J35: 3 | M35: 4 | P35: 5 | S35: 6 | V35: 7 | Y35: 8 | AB35: 9 | AE35: 10 | AH35: 11 | AK35: 12 | AN35: 13 | AQ35: 14 | AT35: 15 | AW35: 16 | AZ35: 17 | BC35: 18 | BF35: 19 | BI35: 20 | BL35: 21 | BO35: 22 | BR35: 23 | BU35: 24 | BX35: 25 | CA35: 26 | CD35: 27 | CG35: 28 | CJ35: 29 | CM35: 30 | CP35: 31 | CS35: 32 | CV35: 33 | CY35: 34 | DB35: 35 | DE35: 36 | DH35: 37 | DK35: 38 | DN35: 39 | DQ35: 40 | DT35: 41 | DW35: 42 | DZ35: 43 | EC35: 44 | EF35: 45 | EI35: 46 | EL35: 47 | EO35: 48 | ER35: 49 | EU35: 50 | EX35: 51 | FA35: 52 | FD35: DSE grazing | FE35: DSE grazing | FF35: DSE/ha average | FG35: P required for | FH35: Maintenance fertiliser
B36: Paddock name | C36: Ha | D36: Days | E36: No. Hd | F36: DSE | G36: Days | H36: No. Hd | I36: DSE | J36: Days | K36: No. Hd | L36: DSE | M36: Days | N36: No. Hd | O36: DSE | P36: Days | Q36: No. Hd | R36: DSE | S36: Days | T36: No. Hd | U36: DSE | V36: Days | W36: No. Hd | X36: DSE | Y36: Days | Z36: No. Hd | AA36: DSE | AB36: Days | AC36: No. Hd | AD36: DSE | AE36: Days | AF36: No. Hd | AG36: DSE | AH36: Days | AI36: No. Hd | AJ36: DSE | AK36: Days | AL36: No. Hd | AM36: DSE | AN36: Days | AO36: No. Hd | AP36: DSE | AQ36: Days | AR36: No. Hd | AS36: DSE | AT36: Days | AU36: No. Hd | AV36: DSE | AW36: Days | AX36: No. Hd | AY36: DSE | AZ36: Days | BA36: No. Hd | BB36: DSE | BC36: Days | BD36: No. Hd | BE36: DSE | BF36: Days | BG36: No. Hd | BH36: DSE | BI36: Days | BJ36: No. Hd | BK36: DSE | BL36: Days | BM36: No. Hd | BN36: DSE | BO36: Days | BP36: No. Hd | BQ36: DSE | BR36: Days | BS36: No. Hd | BT36: DSE | BU36: Days | BV36: No. Hd | BW36: DSE | BX36: Days | BY36: No. Hd | BZ36: DSE | CA36: Days | CB36: No. Hd | CC36: DSE | CD36: Days | CE36: No. Hd | CF36: DSE | CG36: Days | CH36: No. Hd | CI36: DSE | CJ36: Days | CK36: No. Hd | CL36: DSE | CM36: Days | CN36: No. Hd | CO36: DSE | CP36: Days | CQ36: No. Hd | CR36: DSE | CS36: Days | CT36: No. Hd | CU36: DSE | CV36: Days | CW36: No. Hd | CX36: DSE | CY36: Days | CZ36: No. Hd | DA36: DSE | DB36: Days | DC36: No. Hd | DD36: DSE | DE36: Days | DF36: No. Hd | DG36: DSE | DH36: Days | DI36: No. Hd | DJ36: DSE | DK36: Days | DL36: No. Hd | DM36: DSE | DN36: Days | DO36: No. Hd | DP36: DSE | DQ36: Days | DR36: No. Hd | DS36: DSE | DT36: Days | DU36: No. Hd | DV36: DSE | DW36: Days | DX36: No. Hd | DY36: DSE | DZ36: Days | EA36: No. Hd | EB36: DSE | EC36: Days | ED36: No. Hd | EE36: DSE | EF36: Days | EG36: No. Hd | EH36: DSE | EI36: Days | EJ36: No. Hd | EK36: DSE | EL36: Days | EM36: No. Hd | EN36: DSE | EO36: Days | EP36: No. Hd | EQ36: DSE | ER36: Days | ES36: No. Hd | ET36: DSE | EU36: Days | EV36: No. Hd | EW36: DSE | EX36: Days | EY36: No. Hd | EZ36: DSE | FA36: Days | FB36: No. Hd | FC36: DSE | FD36: days | FE36: days/ha | FG36: maintenance (Kg/ha) | FH36: required (Kg/ha)
FD37: =(D37*E37*F37+G37*H37*I37+J37*K37*L37+M37*N37*O37+P37*Q37*R37+S37*T37*U37+V37*W37*X37+Y37*Z37*AA37+AB37*AC37*AD37+AE37*AF37*AG37+AH37*AI37*AJ37+AK37*AL37*AM37+AN37*AO37*AP37+AQ37*AR37*AS37+AT37*AU37*AV37+AW37*AX37*AY37+AZ37*BA37*BB37+BC37*BD37*BE37+BF37*BG37*BH37+BI37*BJ37*BK37+BL37*BM37*BN37+BO37*BP37*BQ37+BR37*BS37*BT37+BU37*BV37*BW37+BX37*BY37*BZ37+CA37*CB37*CC37+CD37*CE37*CF37+CG37*CH37*CI37+CJ37*CK37*CL37+CM37*CN37*CO37+CP37*CQ37*CR37+CS37*CT37*CU37+CV37*CW37*CX37+CY37*CZ37*DA37+DB37*DC37*DD37+DE37*DF37*DG37+DH37*DI37*DJ37+DK37*DL37*DM37+DN37*DO37*DP37+DQ37*DR37*DS37+DT37*DU37*DV37+DW37*DX37*DY37+DZ37*EA37*EB37+EC37*ED37*EE37+EF37*EG37*EH37+EI37*EJ37*EK37+EL37*EM37*EN37+EO37*EP37*EQ37+ER37*ES37*ET37+EU37*EV37*EW37+EX37*EY37*EZ37+FA37*FB37*FC37) -> 0 | FE37: =IF(C37="","",FD37/C37) ->  | FF37: =IF(FE37="","",FE37/365) ->  | FG37: =IF(FF37="","",FF37*$FG$31) ->  | FH37: =IF(FG37="","",(100/$FH$31)*FG37) -> 
FD38: =(D38*E38*F38+G38*H38*I38+J38*K38*L38+M38*N38*O38+P38*Q38*R38+S38*T38*U38+V38*W38*X38+Y38*Z38*AA38+AB38*AC38*AD38+AE38*AF38*AG38+AH38*AI38*AJ38+AK38*AL38*AM38+AN38*AO38*AP38+AQ38*AR38*AS38+AT38*AU38*AV38+AW38*AX38*AY38+AZ38*BA38*BB38+BC38*BD38*BE38+BF38*BG38*BH38+BI38*BJ38*BK38+BL38*BM38*BN38+BO38*BP38*BQ38+BR38*BS38*BT38+BU38*BV38*BW38+BX38*BY38*BZ38+CA38*CB38*CC38+CD38*CE38*CF38+CG38*CH38*CI38+CJ38*CK38*CL38+CM38*CN38*CO38+CP38*CQ38*CR38+CS38*CT38*CU38+CV38*CW38*CX38+CY38*CZ38*DA38+DB38*DC38*DD38+DE38*DF38*DG38+DH38*DI38*DJ38+DK38*DL38*DM38+DN38*DO38*DP38+DQ38*DR38*DS38+DT38*DU38*DV38+DW38*DX38*DY38+DZ38*EA38*EB38+EC38*ED38*EE38+EF38*EG38*EH38+EI38*EJ38*EK38+EL38*EM38*EN38+EO38*EP38*EQ38+ER38*ES38*ET38+EU38*EV38*EW38+EX38*EY38*EZ38+FA38*FB38*FC38) -> 0 | FE38: =IF(C38="","",FD38/C38) ->  | FF38: =IF(FE38="","",FE38/365) -> 
FD39: =(D39*E39*F39+G39*H39*I39+J39*K39*L39+M39*N39*O39+P39*Q39*R39+S39*T39*U39+V39*W39*X39+Y39*Z39*AA39+AB39*AC39*AD39+AE39*AF39*AG39+AH39*AI39*AJ39+AK39*AL39*AM39+AN39*AO39*AP39+AQ39*AR39*AS39+AT39*AU39*AV39+AW39*AX39*AY39+AZ39*BA39*BB39+BC39*BD39*BE39+BF39*BG39*BH39+BI39*BJ39*BK39+BL39*BM39*BN39+BO39*BP39*BQ39+BR39*BS39*BT39+BU39*BV39*BW39+BX39*BY39*BZ39+CA39*CB39*CC39+CD39*CE39*CF39+CG39*CH39*CI39+CJ39*CK39*CL39+CM39*CN39*CO39+CP39*CQ39*CR39+CS39*CT39*CU39+CV39*CW39*CX39+CY39*CZ39*DA39+DB39*DC39*DD39+DE39*DF39*DG39+DH39*DI39*DJ39+DK39*DL39*DM39+DN39*DO39*DP39+DQ39*DR39*DS39+DT39*DU39*DV39+DW39*DX39*DY39+DZ39*EA39*EB39+EC39*ED39*EE39+EF39*EG39*EH39+EI39*EJ39*EK39+EL39*EM39*EN39+EO39*EP39*EQ39+ER39*ES39*ET39+EU39*EV39*EW39+EX39*EY39*EZ39+FA39*FB39*FC39) -> 0
FD40: =(D40*E40*F40+G40*H40*I40+J40*K40*L40+M40*N40*O40+P40*Q40*R40+S40*T40*U40+V40*W40*X40+Y40*Z40*AA40+AB40*AC40*AD40+AE40*AF40*AG40+AH40*AI40*AJ40+AK40*AL40*AM40+AN40*AO40*AP40+AQ40*AR40*AS40+AT40*AU40*AV40+AW40*AX40*AY40+AZ40*BA40*BB40+BC40*BD40*BE40+BF40*BG40*BH40+BI40*BJ40*BK40+BL40*BM40*BN40+BO40*BP40*BQ40+BR40*BS40*BT40+BU40*BV40*BW40+BX40*BY40*BZ40+CA40*CB40*CC40+CD40*CE40*CF40+CG40*CH40*CI40+CJ40*CK40*CL40+CM40*CN40*CO40+CP40*CQ40*CR40+CS40*CT40*CU40+CV40*CW40*CX40+CY40*CZ40*DA40+DB40*DC40*DD40+DE40*DF40*DG40+DH40*DI40*DJ40+DK40*DL40*DM40+DN40*DO40*DP40+DQ40*DR40*DS40+DT40*DU40*DV40+DW40*DX40*DY40+DZ40*EA40*EB40+EC40*ED40*EE40+EF40*EG40*EH40+EI40*EJ40*EK40+EL40*EM40*EN40+EO40*EP40*EQ40+ER40*ES40*ET40+EU40*EV40*EW40+EX40*EY40*EZ40+FA40*FB40*FC40) -> 0
FD41: 0
FD42: 0
FD43: 0
FD44: 0
FD45: 0
FD46: 0
FD47: 0
FD48: 0
FD49: 0
FD50: 0
FD51: 0
FD52: 0
FD53: 0
FD54: 0
FD55: 0
FD56: 0
FD57: 0
FD58: 0
FD59: 0
FD60: 0
FD61: 0
FD62: 0
FD63: 0
FD64: 0
FD65: 0
FD66: 0
FD67: 0
FD68: 0
FD69: 0 | FG69: =IF(FF69="","",FF69*$FG$31) ->  | FH69: =IF(FG69="","",(100/$FH$31)*FG69) -> 
FD70: 0
FD71: 0
FD72: 0
FD73: 0
FD74: 0
FD75: 0
FD76: 0
FD77: 0
FD78: 0
FD79: 0
FD80: 0
FD81: 0
FD82: 0
FD83: 0
FD84: 0
FD85: 0
FD86: 0
FD87: 0
FD88: 0
FD89: 0
FD90: 0
FD91: =(D91*E91*F91+G91*H91*I91+J91*K91*L91+M91*N91*O91+P91*Q91*R91+S91*T91*U91+V91*W91*X91+Y91*Z91*AA91+AB91*AC91*AD91+AE91*AF91*AG91+AH91*AI91*AJ91+AK91*AL91*AM91+AN91*AO91*AP91+AQ91*AR91*AS91+AT91*AU91*AV91+AW91*AX91*AY91+AZ91*BA91*BB91+BC91*BD91*BE91+BF91*BG91*BH91+BI91*BJ91*BK91+BL91*BM91*BN91+BO91*BP91*BQ91+BR91*BS91*BT91+BU91*BV91*BW91+BX91*BY91*BZ91+CA91*CB91*CC91+CD91*CE91*CF91+CG91*CH91*CI91+CJ91*CK91*CL91+CM91*CN91*CO91+CP91*CQ91*CR91+CS91*CT91*CU91+CV91*CW91*CX91+CY91*CZ91*DA91+DB91*DC91*DD91+DE91*DF91*DG91+DH91*DI91*DJ91+DK91*DL91*DM91+DN91*DO91*DP91+DQ91*DR91*DS91+DT91*DU91*DV91+DW91*DX91*DY91+DZ91*EA91*EB91+EC91*ED91*EE91+EF91*EG91*EH91+EI91*EJ91*EK91+EL91*EM91*EN91+EO91*EP91*EQ91+ER91*ES91*ET91+EU91*EV91*EW91+EX91*EY91*EZ91+FA91*FB91*FC91) -> 0
B92: Total days | C92: =SUM(C37:C91) -> 0 | D92: =SUM(D37:D91) -> 0 | E92: =SUM(E37:E91) -> 0 | G92: =SUM(G37:G91) -> 0 | H92: =SUM(H37:H91) -> 0 | J92: =SUM(J37:J91) -> 0 | K92: =SUM(K37:K91) -> 0 | M92: =SUM(M37:M91) -> 0 | N92: =SUM(N37:N91) -> 0 | P92: =SUM(P37:P91) -> 0 | Q92: =SUM(Q37:Q91) -> 0 | S92: =SUM(S37:S91) -> 0 | T92: =SUM(T37:T91) -> 0 | V92: =SUM(V37:V91) -> 0 | W92: =SUM(W37:W91) -> 0 | Y92: =SUM(Y37:Y91) -> 0 | Z92: =SUM(Z37:Z91) -> 0 | AB92: =SUM(AB37:AB91) -> 0 | AC92: =SUM(AC37:AC91) -> 0 | AE92: =SUM(AE37:AE91) -> 0 | AF92: =SUM(AF37:AF91) -> 0 | AH92: =SUM(AH37:AH91) -> 0 | AI92: =SUM(AI37:AI91) -> 0 | AK92: =SUM(AK37:AK91) -> 0 | AL92: =SUM(AL37:AL91) -> 0 | AN92: =SUM(AN37:AN91) -> 0 | AO92: =SUM(AO37:AO91) -> 0 | AQ92: =SUM(AQ37:AQ91) -> 0 | AR92: =SUM(AR37:AR91) -> 0 | AT92: =SUM(AT37:AT91) -> 0 | AU92: =SUM(AU37:AU91) -> 0 | AW92: =SUM(AW37:AW91) -> 0 | AX92: =SUM(AX37:AX91) -> 0 | AZ92: =SUM(AZ37:AZ91) -> 0 | BA92: =SUM(BA37:BA91) -> 0 | BC92: =SUM(BC37:BC91) -> 0 | BD92: =SUM(BD37:BD91) -> 0 | BF92: =SUM(BF37:BF91) -> 0 | BG92: =SUM(BG37:BG91) -> 0 | BI92: =SUM(BI37:BI91) -> 0 | BJ92: =SUM(BJ37:BJ91) -> 0 | BL92: =SUM(BL37:BL91) -> 0 | BM92: =SUM(BM37:BM91) -> 0 | BO92: =SUM(BO37:BO91) -> 0 | BP92: =SUM(BP37:BP91) -> 0 | BR92: =SUM(BR37:BR91) -> 0 | BS92: =SUM(BS37:BS91) -> 0 | BU92: =SUM(BU37:BU91) -> 0 | BV92: =SUM(BV37:BV91) -> 0 | BX92: =SUM(BX37:BX91) -> 0 | BY92: =SUM(BY37:BY91) -> 0 | CA92: =SUM(CA37:CA91) -> 0 | CB92: =SUM(CB37:CB91) -> 0 | CD92: =SUM(CD37:CD91) -> 0 | CE92: =SUM(CE37:CE91) -> 0 | CG92: =SUM(CG37:CG91) -> 0 | CH92: =SUM(CH37:CH91) -> 0 | CJ92: =SUM(CJ37:CJ91) -> 0 | CK92: =SUM(CK37:CK91) -> 0 | CM92: =SUM(CM37:CM91) -> 0 | CN92: =SUM(CN37:CN91) -> 0 | CP92: =SUM(CP37:CP91) -> 0 | CQ92: =SUM(CQ37:CQ91) -> 0 | CS92: =SUM(CS37:CS91) -> 0 | CT92: =SUM(CT37:CT91) -> 0 | CV92: =SUM(CV37:CV91) -> 0 | CW92: =SUM(CW37:CW91) -> 0 | CY92: =SUM(CY37:CY91) -> 0 | CZ92: =SUM(CZ37:CZ91) -> 0 | DB92: =SUM(DB37:DB91) -> 0 | DC92: =SUM(DC37:DC91) -> 0 | DE92: =SUM(DE37:DE91) -> 0 | DF92: =SUM(DF37:DF91) -> 0 | DH92: =SUM(DH37:DH91) -> 0 | DI92: =SUM(DI37:DI91) -> 0 | DK92: =SUM(DK37:DK91) -> 0 | DL92: =SUM(DL37:DL91) -> 0 | DN92: =SUM(DN37:DN91) -> 0 | DO92: =SUM(DO37:DO91) -> 0 | DQ92: =SUM(DQ37:DQ91) -> 0 | DR92: =SUM(DR37:DR91) -> 0 | DT92: =SUM(DT37:DT91) -> 0 | DU92: =SUM(DU37:DU91) -> 0 | DW92: =SUM(DW37:DW91) -> 0 | DX92: =SUM(DX37:DX91) -> 0 | DZ92: =SUM(DZ37:DZ91) -> 0 | EA92: =SUM(EA37:EA91) -> 0 | EC92: =SUM(EC37:EC91) -> 0 | ED92: =SUM(ED37:ED91) -> 0 | EF92: =SUM(EF37:EF91) -> 0 | EG92: =SUM(EG37:EG91) -> 0 | EI92: =SUM(EI37:EI91) -> 0 | EJ92: =SUM(EJ37:EJ91) -> 0 | EL92: =SUM(EL37:EL91) -> 0 | EM92: =SUM(EM37:EM91) -> 0 | EO92: =SUM(EO37:EO91) -> 0 | EP92: =SUM(EP37:EP91) -> 0 | ER92: =SUM(ER37:ER91) -> 0 | ES92: =SUM(ES37:ES91) -> 0 | EU92: =SUM(EU37:EU91) -> 0 | EV92: =SUM(EV37:EV91) -> 0 | EX92: =SUM(EX37:EX91) -> 0 | EY92: =SUM(EY37:EY91) -> 0 | FA92: =SUM(FA37:FA91) -> 0 | FB92: =SUM(FB37:FB91) -> 0 | FD92: =SUM(FD37:FD91) -> 0 | FE92: =IF(C92=0,0,FD92/C92) -> 0 | FF92: =IF(FE92=0,0,FE92/C92) -> 0 | FG92: 0 | FH92: 0
B94: Mob Code Table
B95: Mob name | E95: Use the table to the left to colour code your mobs. You can use the "fill" function to change the colour of the cells in your grazing days chart. The colours in the code table are not locked so you can change to ear tag colours etc

Sheet Phosphorus Calculator (hidden)
B2: DETERMINE SOIL PHOSPHORUS MAINTENANCE FACTOR
B5: Soil Type | C5: Grazing Management | D5: Landscape | E5: Rainfall (mm) | F5: P Maint. Factor (Kg P/DSE)
F6: =GCTables!AL17 -> 0
B7: Source: Better Fertiliser Decisions Project, DPI Vic
B10: Phosphorus Calculator
B12: Fertiliser Required | C12: Value | D12: Comment | G12: Phosphorus (kg nutrient/ha) required (in addition to maintenance applications) to raise Olsen and Colwell
B13: Stocking rate (DSE/ha) | G13: phosphorus soil test results by one unit. (Source: Accounting for Nutrients on Australian Dairy Farms -
B14: Maintenance P requirement (kg/ha) | C14: =IF('Your grazing chart'!FG31="","",'Your grazing chart'!FG31*C13) -> 0 | D14: Calculate P maintenance factor above. | G14: http://accounting4nutrients.com.au/)
B15: Current soil test P (kg/Ha) | G15: Soil type | H15: Phosphorus Buffering | I15: Amount of P to raise Olsen P | J15: Amount of P to raise Colwell P
B16: Target soil test P (kg/Ha) | H16: Index* | I16: by one unit (kg p/ha) | J16: by one unit (kg p/ha)
B17: Number of years to reach target | G17: Sand | H17: 0-50 | I17: 6 | J17: 2.2
B18: Increase in soil test P Required per Year | C18: =IF(C17="","",(C16-C15)/C17) ->  | G18: Sandy loam | H18: 51-100 | I18: 8 | J18: 2.3
B19: Capital factor (kg P/Ha) | D19: See table to the right | G19: Sandy clay loam | H19: 101-300 | I19: 9 | J19: 2.5
B20: Capital required per year (kg/ha) | C20: =IF(C19="","",C18*C19) ->  | G20: Silty clay loam | H20: 101-301 | I20: 9 | J20: 2.5
B21: Total P required per year (kg/ha) | C21: =IF(C20="","",C20+C14) ->  | G21: Clay loam | H21: 301-400 | I21: 10 | J21: 2.8
B22: Cost of fertiliser ($/tonne) | G22: Clay | H22: 401-500 | I22: 11 | J22: 3
B23: Fertiliser Analysis (scroll down for table) | C23: % Nutrient | D23: Kg Nutrient Applied/Ha | E23: $/kg Nutrient | G23: Volcanic clay | H23: 501-600 | I23: 13 | J23: 3.2
B24: % Nitrogen (N) | D24: =IF($C$28="","",C24/100*$C$28) ->  | E24: =IF($C$22="","",$C$22/(C24*10)) ->  | G24: Peat | H24: >601 | I24: 15 | J24: 3.6
B25: % Phosphorus (P) | D25: =IF($C$28="","",C25/100*$C$28) ->  | E25: =IF($C$22="","",$C$22/(C25*10)) -> 
B26: % Potassium (K) | D26: =IF($C$28="","",C26/100*$C$28) ->  | E26: =IF($C$22="","",$C$22/(C26*10)) -> 
B27: % Sulphur (S) | D27: =IF($C$28="","",C27/100*$C$28) ->  | E27: =IF($C$22="","",$C$22/(C27*10)) -> 
B28: Kg Product Required per Year (kg/ha) | C28: =IF(C21="","",100/C25*C21) -> 
B29: Annual Cost ($/ha) | C29: =IF(C28="","",C22*C28/1000) -> 
B30: Number of Hectares
B31: Total Annual Cost | C31: =IF(C30="","",C29*C30) -> 
B32: Total Capital & Maint. Cost for All Years | C32: =IF(C31="","",C31*C17) -> 
B34: Soil Phosphorus Maintenance Factors
B35: Source: Better Fertiliser Decisions Project, DPI Vic
B37: First - Identify your soil loss factor
B38: Soil type | C38: Phosphorus Buffering Index | D38: Loss factor
B39: Loams/sandy loams | C39: 0-100 | D39: Low
B40: Clay loams | C40: 100-300 | D40: Medium
B41: Clays | C41: 300+ | D41: High
B42: Acid sands | C42: 0-100 | D42: High
B44: Then look up your animal/landscape loss factor
B45: Grazing Management | C45: Landscape | D45: Loss factor
B46: Intensive rotational grazing | C46: Flat/rolling | D46: Very low
C47: Easy hills | D47: Low
C48: Steep hills | D48: Medium
B49: Set stocked or intermittent grazing | C49: Flat/rolling | D49: Low
C50: Easy hills | D50: Medium
C51: Steep hills | D51: High
B53: Now look up your maintenance loss factor accounting for the soil loss factor, animal/landscape loss factor and rainfall
B54: Soil loss factor | C54: Animal loss factor | D54: Annual Rainfall
D55: 600 | E55: 700 | F55: 800 | G55: 900+
B56: Low | C56: Very low | D56: 0.48 | E56: 0.52 | F56: 0.54 | G56: 0.56
C57: Low | D57: 0.62 | E57: 0.66 | F57: 0.68 | G57: 0.72
C58: Medium | D58: 0.76 | E58: 0.8 | F58: 0.84 | G58: 0.88
C59: High | D59: 0.9 | E59: 0.94 | F59: 1 | G59: 1.04
B60: Medium | C60: Very low | D60: 0.72 | E60: 0.74 | F60: 0.78 | G60: 0.82
C61: Low | D61: 0.84 | E61: 0.88 | F61: 0.92 | G61: 0.98
C62: Medium | D62: 0.98 | E62: 1.04 | F62: 1.08 | G62: 1.14
C63: High | D63: 1.12 | E63: 1.18 | F63: 1.24 | G63: 1.28
B64: High | C64: Very low | D64: 0.94 | E64: 0.98 | F64: 1.02 | G64: 1.06
C65: Low | D65: 1.06 | E65: 1.12 | F65: 1.18 | G65: 1.22
C66: Medium | D66: 1.2 | E66: 1.26 | F66: 1.32 | G66: 1.38
C67: High | D67: 1.34 | E67: 1.4 | F67: 1.48 | G67: 1.54
B70: Composition of Common Fertilisers
C71: N% | D71: P% | E71: K% | F71: S%
B72: Single Super | C72: 0 | D72: 8.8 | E72: 0 | F72: 11
B73: Double Super | C73: 0 | D73: 17.1 | E73: 0 | F73: 4
B74: Super Potash 5:1 | C74: 0 | D74: 7.6 | E74: 8 | F74: 9.2
B75: Super Potash 2:1 | C75: 0 | D75: 5.9 | E75: 16.7 | F75: 7.3
B76: Super Potash 1:1 | C76: 0 | D76: 4.4 | E76: 25 | F76: 5.5
B77: MAP | C77: 10 | D77: 21.9 | E77: 0 | F77: 1.5
B78: DAP | C78: 18 | D78: 20 | E78: 0 | F78: 1.6
B79: Muriate of Potash | C79: 0 | D79: 0 | E79: 50 | F79: 0
B80: Urea | C80: 48 | D80: 0 | E80: 0 | F80: 0
B82: Costing More Than One Nutrient in a Fertiliser
B84: Composition & Cost of Test Fertiliser
B85: Nitrogen (N) in fertiliser (%) | D85: 10 | E85: Enter the composition of your fertiliser (percentage of each nutrient).
B86: Phosphorus (P) in fertiliser (%) | D86: 22
B87: Potassium (K) in fertiliser (%) | D87: 0 | E87: Specify the dry matter percentage of your fertiliser (for synthetic fertilisers, this is usually
B88: Sulphur (S) in fertiliser (%) | D88: 2 | E88: 100% but for organic fertilisers such as chook manure, it can be as low as 30%).
B89: Dry Matter in fertiliser (%) | D89: 100
B90: Cost of fertiliser ($/tonne wet) | D90: 800 | E90: Enter the cost of your fertiliser in $/tonne wet.
B91: Cost of fertiliser ($/tonne dry) | D91: =D90/(D89/100) -> 800 | E91: The dry matter cost of your fertiliser will calculate automatically.
B92: Comparison fertilisers composition and cost
B93: Cost of comparison N fertiliser ($/tonne) | D93: 700 | E93: Enter the cost ($/tonne) of the cheapest form of each nutrient currently available.
B94: Percentage of N in comparison N fertiliser | D94: 48 | E94: This is often (but not always) the most pure form of the nutrient - urea for nitrogen, triple
B95: Cost of comparison P fertiliser ($/tonne) | D95: 430 | E95: super for phosphorus, potash for potassium, gypsum for sulphur. The percentage of
B96: Percentage of P in comparison P fertiliser | D96: 8.8 | E96: nutrient in comparison fertilisers can be found in the "Composition of Common Fertilisers"
B97: Cost of comparison K fertiliser ($/tonne) | D97: 650 | E97: table below.
B98: Percentage of K in comparison K fertiliser | D98: 50
B99: Cost of comparison S fertiliser ($/tonne) | D99: 42.5
B100: Percentage of S in comparison S fertiliser | D100: 17
B101: Cost of comparison vs test fertilisers (single nutrient analysis)
B102: Cost of N ($/kg) in comparison N fertiliser | D102: =D93/(D94*10) -> 1.458333333 | E102: In the single nutrient analysis, you can compare the cost of each nutrient in your test
B103: Cost of N ($/kg) in test fertiliser | D103: =IF(D91="","",IF(D85=0,"",D91/(D85*10))) -> 8 | E103: fertiliser to its cheapest form. This analysis does not account for the value of the other
B104: Cost of P ($/kg) in comparison P fertiliser | D104: =D95/(D96*10) -> 4.886363636 | E104: nutrients in your test fertiliser.
B105: Cost of P ($/kg) in test fertiliser | D105: =IF(D91="","",IF(D86=0,"",D91/(D86*10))) -> 3.636363636
B106: Cost of K ($/kg) in comparison K fertiliser | D106: =D97/(D98*10) -> 1.3
B107: Cost of K ($/kg) in test fertiliser | D107: =IF(D91="","",IF(D87=0,"",D91/(D87*10))) -> 
B108: Cost of S ($/kg) in comparison S fertiliser | D108: =D99/(D100*10) -> 0.25
B109: Cost of S ($/kg) in test fertiliser | D109: =IF(D91="","",IF(D88=0,"",D91/(D88*10))) -> 40
B110: Multiple nutrient comparison
B111: Value of test fertiliser based on comparison value fertilisers ($/tonne) | D111: =D102*D85*10+D104*D86*10+D106*D87*10+D108*D88*10 -> 1225.833333
B112: Difference between value and cost of test fertiliser ($/tonne) | D112: =D111-D91 -> 425.8333333
B114: The value of the test fertiliser is calculated from what it would cost to use the test fertilisers to apply the equivelant amount of nutrient of one tonne of the comparison fertiliser. If the difference
B115: between the value of the test fertiliser and the cost of the test fertiliser is positive, then it is likely that the test fertiliser is cost-effective. If it is negative, you need to weigh up the potential
B116: other benefits of your test fertiliser such as organic value etc.
B118: Composition of Common Fertilisers
C119: N% | D119: P% | E119: K% | F119: S%
B120: Single Super | C120: 0 | D120: 8.8 | E120: 0 | F120: 11
B121: Double Super | C121: 0 | D121: 17.1 | E121: 0 | F121: 4
B122: Super Potash 5:1 | C122: 0 | D122: 7.6 | E122: 8 | F122: 9.2
B123: Super Potash 2:1 | C123: 0 | D123: 5.9 | E123: 16.7 | F123: 7.3
B124: Super Potash 1:1 | C124: 0 | D124: 4.4 | E124: 25 | F124: 5.5
B125: MAP | C125: 18 | D125: 22 | E125: 0 | F125: 2
B126: DAP | C126: 10 | D126: 20 | E126: 0 | F126: 1.6
B127: Urea | C127: 48 | D127: 0 | E127: 0 | F127: 0

Sheet Nitrogen (hidden)
B2: CALCULATE THE VALUE OF NITROGEN & GIBBERELLIC ACID
B11: * Enter data into the white cells.
B12: Pasture Digestibility & Energy
B13: Urea Application
B15: Urea ($ per Tonne)
B16: Spreading Cost ($ per Tonne)
B18: Season | C18: Response to N (kg DM/kg N) | D18: Cost per kg DM | E18: Cost at 100% Utilisation (c/MJ) | F18: Cost at 70% Utilisation (c/MJ) | G18: Cost at 50% Utilisation (c/MJ) | H18: Cost at 30% Utilisation (c/MJ)
B19: Autumn | C19: 8 | D19: =($D$15+$D$16)/0.48/1000/C19 -> 0 | E19: =IF(D12="","",($D$15+$D$16)/1000/0.48/Sheet2!G52*100/C19) ->  | F19: =IF(D12="","",($D$15+$D$16)/1000/0.48/Sheet2!G52*100/C19/0.7) ->  | G19: =IF(D12="","",($D$15+$D$16)/1000/0.48/Sheet2!G52*100/C19/0.5) ->  | H19: =IF(D12="","",($D$15+$D$16)/1000/0.48/Sheet2!G52*100/C19/0.3) -> 
C20: 12 | D20: =($D$15+$D$16)/0.48/1000/C20 -> 0 | E20: =IF(D12="","",($D$15+$D$16)/1000/0.48/Sheet2!G52*100/C20) ->  | F20: =IF(D12="","",($D$15+$D$16)/1000/0.48/Sheet2!G52*100/C20/0.7) ->  | G20: =IF(D12="","",($D$15+$D$16)/1000/0.48/Sheet2!G52*100/C20/0.5) ->  | H20: =IF(D12="","",($D$15+$D$16)/1000/0.48/Sheet2!G52*100/C20/0.3) -> 
C21: 16 | D21: 0 | E21: =IF(D12="","",($D$15+$D$16)/1000/0.48/Sheet2!G52*100/C21) ->  | F21: =IF(D12="","",($D$15+$D$16)/1000/0.48/Sheet2!G52*100/C21/0.7) ->  | G21: =IF(D12="","",($D$15+$D$16)/1000/0.48/Sheet2!G52*100/C21/0.5) ->  | H21: =IF(D12="","",($D$15+$D$16)/1000/0.48/Sheet2!G52*100/C21/0.3) -> 
B22: Winter | C22: 6 | D22: 0 | E22: =IF(D12="","",($D$15+$D$16)/1000/0.48/Sheet2!G52*100/C22) ->  | F22: =IF(D12="","",($D$15+$D$16)/1000/0.48/Sheet2!G52*100/C22/0.7) ->  | G22: =IF(D12="","",($D$15+$D$16)/1000/0.48/Sheet2!G52*100/C22/0.5) ->  | H22: =IF(D12="","",($D$15+$D$16)/1000/0.48/Sheet2!G52*100/C22/0.3) -> 
C23: 8.5 | D23: 0 | E23: =IF(D12="","",($D$15+$D$16)/1000/0.48/Sheet2!G52*100/C23) ->  | F23: =IF(D12="","",($D$15+$D$16)/1000/0.48/Sheet2!G52*100/C23/0.7) ->  | G23: =IF(D12="","",($D$15+$D$16)/1000/0.48/Sheet2!G52*100/C23/0.5) ->  | H23: =IF(D12="","",($D$15+$D$16)/1000/0.48/Sheet2!G52*100/C23/0.3) -> 
C24: 11 | D24: 0 | E24: =IF(D12="","",($D$15+$D$16)/1000/0.48/Sheet2!G52*100/C24) ->  | F24: =IF(D12="","",($D$15+$D$16)/1000/0.48/Sheet2!G52*100/C24/0.7) ->  | G24: =IF(D12="","",($D$15+$D$16)/1000/0.48/Sheet2!G52*100/C24/0.5) ->  | H24: =IF(D12="","",($D$15+$D$16)/1000/0.48/Sheet2!G52*100/C24/0.3) -> 
B25: Spring | C25: 14 | D25: 0 | E25: =IF(D12="","",($D$15+$D$16)/1000/0.48/Sheet2!G52*100/C25) ->  | F25: =IF(D12="","",($D$15+$D$16)/1000/0.48/Sheet2!G52*100/C25/0.7) ->  | G25: =IF(D12="","",($D$15+$D$16)/1000/0.48/Sheet2!G52*100/C25/0.5) ->  | H25: =IF(D12="","",($D$15+$D$16)/1000/0.48/Sheet2!G52*100/C25/0.3) -> 
C26: 17 | D26: 0 | E26: =IF(D12="","",($D$15+$D$16)/1000/0.48/Sheet2!G52*100/C26) ->  | F26: =IF(D12="","",($D$15+$D$16)/1000/0.48/Sheet2!G52*100/C26/0.7) ->  | G26: =IF(D12="","",($D$15+$D$16)/1000/0.48/Sheet2!G52*100/C26/0.5) ->  | H26: =IF(D12="","",($D$15+$D$16)/1000/0.48/Sheet2!G52*100/C26/0.3) -> 
C27: 20 | D27: 0 | E27: =IF(D12="","",($D$15+$D$16)/1000/0.48/Sheet2!$G$52*100/C27) ->  | F27: =IF(D12="","",($D$15+$D$16)/1000/0.48/Sheet2!$G$52*100/C27/0.7) ->  | G27: =IF(D12="","",($D$15+$D$16)/1000/0.48/Sheet2!$G$52*100/C27/0.5) ->  | H27: =IF(D12="","",($D$15+$D$16)/1000/0.48/Sheet2!$G$52*100/C27/0.3) -> 
B28: Your Own N Response | D28: =IF(C28="","",($D$15+$D$16)/0.48/1000/C28) ->  | E28: =IF(D12="","",IF(C28="","",($D$15+$D$16)/1000/0.48/Sheet2!$G$52*100/C28)) ->  | F28: =IF(D12="","",IF(C28="","",($D$15+$D$16)/1000/0.48/Sheet2!$G$52*100/C28/0.7)) ->  | G28: =IF(D12="","",IF(C28="","",($D$15+$D$16)/1000/0.48/Sheet2!$G$52*100/C28/0.5)) ->  | H28: =IF(D12="","",IF(C28="","",($D$15+$D$16)/1000/0.48/Sheet2!$G$52*100/C28/0.3)) -> 
B30: Gibberellic Acid Application
B32: Gibberellic Acid ($ per Ha) | D32: 11
B33: Cost of Spreading ($/Ha) | D33: 20
C35: Response to N (kg DM/Ha) | D35: Cost per kg DM | E35: Cost at 100% Utilisation (c/MJ) | F35: Cost at 70% Utilisation (c/MJ) | G35: Cost at 50% Utilisation (c/MJ) | H35: Cost at 30% Utilisation (c/MJ)
C36: 100 | D36: =($D$33+$D$32)/C36 -> 0.31 | E36: =IF(D12="","",D36/Sheet2!$G$52*100) ->  | F36: =IF(D12="","",E36/0.7) ->  | G36: =IF(D12="","",E36/0.5) ->  | H36: =IF(D12="","",E36/0.3) -> 
C37: 200 | D37: 0.155 | E37: =IF(D12="","",D37/Sheet2!$G$52*100) ->  | F37: =IF(D12="","",E37/0.7) ->  | G37: =IF(D12="","",E37/0.5) ->  | H37: =IF(D12="","",E37/0.3) -> 
C38: 300 | D38: 0.1033333333 | E38: =IF(D12="","",D38/Sheet2!$G$52*100) ->  | F38: =IF(D12="","",E38/0.7) ->  | G38: =IF(D12="","",E38/0.5) ->  | H38: =IF(D12="","",E38/0.3) -> 
C39: 400 | D39: 0.0775 | E39: =IF(D12="","",D39/Sheet2!$G$52*100) ->  | F39: =IF(D12="","",E39/0.7) ->  | G39: =IF(D12="","",E39/0.5) ->  | H39: =IF(D12="","",E39/0.3) -> 
C40: 500 | D40: 0.062 | E40: =IF(D12="","",D40/Sheet2!$G$52*100) ->  | F40: =IF(D12="","",E40/0.7) ->  | G40: =IF(D12="","",E40/0.5) ->  | H40: =IF(D12="","",E40/0.3) -> 
C41: 600 | D41: 0.05166666667 | E41: =IF(D12="","",D41/Sheet2!$G$52*100) ->  | F41: =IF(D12="","",E41/0.7) ->  | G41: =IF(D12="","",E41/0.5) ->  | H41: =IF(D12="","",E41/0.3) -> 
B42: Your Own N Response | D42: =IF(C42="","",($D$33+$D$32)/C42) ->  | E42: =IF(D12="","",D42/Sheet2!$G$52*100) ->  | F42: =IF(D12="","",E42/0.7) ->  | G42: =IF(D12="","",E42/0.5) ->  | H42: =IF(D12="","",E42/0.3) -> 
B44: Comparison with Alternative Feed Sources
B45: * Enter data into the white cells.
B46: Feed Type | C46: Pellets | E46: Grain | G46: Hay | I46: Straw
B47: MJ ME/Kg DM | C47: 12 | E47: 13 | G47: 9 | I47: 5
B48: % Dry Matter | C48: 0.9 | E48: 0.9 | G48: 0.85 | I48: 0.9
B49: Feed Cost $/T | C49: Feed Cost (c/MJ ME) | D49: Feed Cost ($/kg DM) | E49: Feed Cost (c/MJ ME) | F49: Feed Cost ($/kg DM) | G49: Feed Cost (c/MJ ME) | H49: Feed Cost ($/kg DM) | I49: Feed Cost (c/MJ ME) | J49: Feed Cost ($/kg DM)
B50: 100 | C50: =B50/1000/$C$47/$C$48*100 -> 0.9259259259 | D50: =$B$50/C48/1000 -> 0.1111111111 | E50: =B50/1000/$E$47/$E$48*100 -> 0.8547008547 | F50: =$B$50/E48/1000 -> 0.1111111111 | G50: =B50/1000/$G$47/$G$48*100 -> 1.307189542 | H50: =$B$50/G48/1000 -> 0.1176470588 | I50: =B50/1000/$I$47/$I$48*100 -> 2.222222222 | J50: =$B$50/I48/1000 -> 0.1111111111
B51: 150 | C51: 1.388888889 | D51: =$B$51/C48/1000 -> 0.1666666667 | E51: 1.282051282 | F51: =$B$51/E48/1000 -> 0.1666666667 | G51: 1.960784314 | H51: =$B$51/G48/1000 -> 0.1764705882 | I51: 3.333333333 | J51: =$B$51/I48/1000 -> 0.1666666667
B52: 200 | C52: 1.851851852 | D52: =$B$52/C48/1000 -> 0.2222222222 | E52: 1.709401709 | F52: =$B$52/E48/1000 -> 0.2222222222 | G52: 2.614379085 | H52: =$B$52/G48/1000 -> 0.2352941176 | I52: 4.444444444 | J52: =$B$52/I48/1000 -> 0.2222222222
B53: 250 | C53: 2.314814815 | D53: =$B$53/C48/1000 -> 0.2777777778 | E53: 2.136752137 | F53: =$B$53/E48/1000 -> 0.2777777778 | G53: 3.267973856 | H53: =$B$53/G48/1000 -> 0.2941176471 | I53: 5.555555556 | J53: =$B$53/I48/1000 -> 0.2777777778
B54: 300 | C54: 2.777777778 | D54: =$B$54/C48/1000 -> 0.3333333333 | E54: 2.564102564 | F54: =$B$54/E48/1000 -> 0.3333333333 | G54: 3.921568627 | H54: =$B$54/G48/1000 -> 0.3529411765 | I54: 6.666666667 | J54: =$B$54/I48/1000 -> 0.3333333333
B55: 350 | C55: 3.240740741 | D55: =$B$55/C48/1000 -> 0.3888888889 | E55: 2.991452991 | F55: =$B$55/E48/1000 -> 0.3888888889 | G55: 4.575163399 | H55: =$B$55/G48/1000 -> 0.4117647059 | I55: 7.777777778 | J55: =$B$55/I48/1000 -> 0.3888888889
B56: 400 | C56: 3.703703704 | D56: =$B$56/C48/1000 -> 0.4444444444 | E56: 3.418803419 | F56: =$B$56/E48/1000 -> 0.4444444444 | G56: 5.22875817 | H56: =$B$56/G48/1000 -> 0.4705882353 | I56: 8.888888889 | J56: =$B$56/I48/1000 -> 0.4444444444
B57: 450 | C57: 4.166666667 | D57: =$B$57/C48/1000 -> 0.5 | E57: 3.846153846 | F57: =$B$57/E48/1000 -> 0.5 | G57: 5.882352941 | H57: =$B$57/G48/1000 -> 0.5294117647 | I57: 10 | J57: =$B$57/I48/1000 -> 0.5
B58: 500 | C58: 4.62962963 | D58: =$B$58/C48/1000 -> 0.5555555556 | E58: 4.273504274 | F58: =$B$58/E48/1000 -> 0.5555555556 | G58: 6.535947712 | H58: =$B$58/G48/1000 -> 0.5882352941 | I58: 11.11111111 | J58: =$B$58/I48/1000 -> 0.5555555556
B59: 400 | C59: =B59/1000/C47*100 -> 3.333333333 | D59: =B59/1000/E47*100 -> 3.076923077 | E59: =B59/1000/G47*100 -> 4.444444444 | F59: =B59/1000/I47*100 -> 8
B60: 450 | C60: =B60/1000/C47*100 -> 3.75 | D60: =B60/1000/E47*100 -> 3.461538462 | E60: =B60/1000/G47*100 -> 5 | F60: =B60/1000/I47*100 -> 9
B61: 500 | C61: =B61/1000/C47*100 -> 4.166666667 | D61: =B61/1000/E47*100 -> 3.846153846 | E61: =B61/1000/G47*100 -> 5.555555556 | F61: =B61/1000/I47*100 -> 10
B62: First - Identify your soil loss factor
B63: Soil type | C63: Phosphorus Buffering Index | D63: Loss factor
B64: Loams/sandy loams | C64: 0-100 | D64: Low
B65: Clay loams | C65: 100-300 | D65: Medium
B66: Clays | C66: 300+ | D66: High
B67: Acid sands | C67: 0-100 | D67: High
B69: Then look up your animal/landscape loss factor
B70: Grazing Management | C70: Landscape | D70: Loss factor
B71: Intensive rotational grazing | C71: Flat/rolling | D71: Very low
C72: Easy hills | D72: Low
C73: Steep hills | D73: Medium
B74: Set stocked or intermittent grazing | C74: Flat/rolling | D74: Low
C75: Easy hills | D75: Medium
C76: Steep hills | D76: High
B78: Now look up your maintenance loss factor accounting for the soil loss factor, animal/landscape loss factor and rainfall
B79: Soil loss factor | C79: Animal loss factor | D79: Annual Rainfall
D80: 600 | E80: 700 | F80: 800 | G80: 900+
B81: Low | C81: Very low | D81: 0.48 | E81: 0.52 | F81: 0.54 | G81: 0.56
C82: Low | D82: 0.62 | E82: 0.66 | F82: 0.68 | G82: 0.72
C83: Medium | D83: 0.76 | E83: 0.8 | F83: 0.84 | G83: 0.88
C84: High | D84: 0.9 | E84: 0.94 | F84: 1 | G84: 1.04
B85: Medium | C85: Very low | D85: 0.72 | E85: 0.74 | F85: 0.78 | G85: 0.82
C86: Low | D86: 0.84 | E86: 0.88 | F86: 0.92 | G86: 0.98
C87: Medium | D87: 0.98 | E87: 1.04 | F87: 1.08 | G87: 1.14
C88: High | D88: 1.12 | E88: 1.18 | F88: 1.24 | G88: 1.28
B89: High | C89: Very low | D89: 0.94 | E89: 0.98 | F89: 1.02 | G89: 1.06
C90: Low | D90: 1.06 | E90: 1.12 | F90: 1.18 | G90: 1.22
C91: Medium | D91: 1.2 | E91: 1.26 | F91: 1.32 | G91: 1.38
C92: High | D92: 1.34 | E92: 1.4 | F92: 1.48 | G92: 1.54

Sheet How Many Hectares (hidden)
B2: HOW MANY HECTARES DO I NEED?
B4: Enter data in the white boxes.
F5: Table 7: Minimum pasture availability (kg/ha) required to maintain satisfactory production levels (Prograze) | K5: Table 8: Approximate relationship between pasture height and kg green DM/ha (Prograze) | R5: Table 9: Monthly pasture growth rate estimates (Prograze)
C6: DATA | D6: CALCULATIONS & COMMENTS | F6: Pasture Digestibility | K6: Height | L6: Light | M6: Moderate | N6: Dense | S6: Pasture Type
B7: PADDOCK DETAILS | F7: Livestock class | G7: 0.75 | H7: 0.68 | I7: 0.6 | K7: 1 | L7: 250 | M7: 400 | N7: 500 | R7: MONTH | S7: Poor | T7: Average | U7: Good | V7: Very Good
B8: a) Current Food on Offer (Kg DM/Ha) | D8: See Table 8 for help if required. | F8: Dry sheep | G8: 400 | H8: 600 | I8: 1200 | K8: 2 | L8: 500 | M8: 700 | N8: 800 | R8: April | S8: 5 | T8: 15 | U8: 25 | V8: 30
B9: b) Desired food on offer when you take the stock out of the paddock (Kg DM/Ha) | D9: See Table 7 for help if required. | F9: Pregnant ewes | K9: 3 | L9: 600 | M9: 1000 | N9: 1100 | R9: May | S9: 15 | T9: 20 | U9: 25 | V9: 30
B10: c) Pasture Quality | F10: mid pregnancy | G10: 500 | H10: 700 | I10: 1700 | K10: 4 | L10: 800 | M10: 1200 | N10: 1400 | R10: June | S10: 7 | T10: 15 | U10: 20 | V10: 25
B11: d) Consumption Wastage Factor | D11: When stock graze pasture some losses occur through trampling, fouling, etc. Wastage is commonly between 15-40% of what is eaten each month. Use lower wastage for low stocking rates and dry paddocks; higher rates for higher stocking rates and wet paddocks. | F11: last month | G11: 700 | H11: 1200 | I11: ns | K11: 5 | L11: 1000 | M11: 1400 | N11: 1700 | R11: July | S11: 5 | T11: 10 | U11: 15 | V11: 25
B12: Decay Wastage Factor | D12: Only use in late spring and summer. In late spring and summer, wastage of pasture is high due to decay, trampling, wind, etc. Wastage of native perennials is 15-20%, introduced perennials 20-30% and for clover-based pastures 30-40% of the available pasture. | F12: Lactating ewes | K12: 6 | L12: 1150 | M12: 1600 | N12: 2000 | R12: August | S12: 15 | T12: 30 | U12: 45 | V12: 60
B13: e) Pasture Growth (Kg DM/Ha/Day) | D13: See Table 9 for help if required. | F13: single | G13: 1000 | H13: 1700 | I13: ns | K13: 7 | L13: 1300 | M13: 1750 | N13: 2300 | R13: September | S13: 35 | T13: 50 | U13: 80 | V13: 90
B14: f) Number of days you want to leave the animals in the paddock | F14: twins | G14: 1500 | H14: ns | I14: ns | K14: 8 | L14: 1450 | M14: 1900 | N14: 2600 | R14: October | S14: 40 | T14: 70 | U14: 90 | V14: 100
B15: ANIMAL CONSUMPTION | F15: Growing sheep | K15: 9 | L15: 1600 | M15: 2000 | N15: 2800 | R15: November | S15: 30 | T15: 60 | U15: 80 | V15: 80
B16: Stock Type 1 | F16: % of potential growth | K16: 10 | L16: 1700 | M16: 2100 | N16: 3000 | R16: December | S16: 20 | T16: 40 | U16: 60 | V16: 60
B17: Average Weight (Kg/Hd) | D17: If you change Stock Type re-select Average Weight from list. | F17: 30% (75 g/day) | G17: 400 | H17: 700 | I17: 1700
B18: Physiological State | D18: If you change Stock Type re-select Physiological State from list. | F18: 50% (125 g/day) | G18: 600 | H18: 1000 | I18: ns
B19: Twins/Singles | D19: If you change Stock Type re-select Twins/Singles from list. | F19: 70% (175 g/day) | G19: 800 | H19: 1700 | I19: ns | R19: Pasture growth rates will vary widely between regions, pasture species, soil fertility conditions
B20: g) Number of Animals Grazing | F20: 90% (225 g/day) | G20: 1600 | H20: ns | I20: ns | R20: and seasonal conditions. The figures provided are average values for temperate pastures in
B21: h) Consumption (Kg DM/Hd/Day) | C21: =IF($C$8=500,IF(C16="",0,LookUp!$DL$6),IF($C$8=1000,IF(C16="",0,LookUp!$DL$6),IF($C$8=1500,IF(C16="",0,LookUp!$DL$6),IF($C$8=2000,IF(C16="",0,LookUp!$DL$6),IF(LookUp!$DI$6=500,((($C$8-500)/500)*(LookUp!$DL$7-LookUp!$DL$6))+LookUp!$DL$6,IF(LookUp!$DI$6=600,((($C$8-1000)/500)*(LookUp!$DL$7-LookUp!$DL$6))+LookUp!$DL$6,IF(LookUp!$DI$6=700,((($C$8-1500)/500)*(LookUp!$DL$7-LookUp!$DL$6))+LookUp!$DL$6,IF(LookUp!$DI$6=800,((($C$8-2000)/500)*(LookUp!$DL$7-LookUp!$DL$6))+LookUp!$DL$6,LookUp!$DL$6)))))))) -> 0 | F21: Dry cow | G21: 700 | H21: 1100 | I21: 2600 | R21: southern Australia and should be used only as a guide. Making More from Sheep Module 8.2 -
B22: Maintenance Energy Required (MJ ME/Hd/Day) | C22: =IF(C23=0,"",LookUp!CW6) ->  | F22: Pregnant cow, 7-8 mths | G22: 900 | H22: 1700 | I22: ns | R22: Daily pasture growth estimates provides more detailed estimates of pasture growth for different regions
B23: Energy consumption (MJ ME/Hd/Day) | C23: =IF(C21=0,0,IF(VLOOKUP(LookUp!DK6,LookUp!$AA$400:$AB$4026,2,FALSE)="Pasture unsuitable","Pasture unsuitable",IF(C21=0,0,IF(C16="Lambs",VLOOKUP(LookUp!DK6,LookUp!$AA$400:$AB$1841,2,FALSE),IF(C16="Ewes/Wethers",VLOOKUP(LookUp!DK6,LookUp!$AA$400:$AB$1841,2,FALSE),C21*((22.587*(VLOOKUP($C$10,LookUp!$D$185:$H$194,2,FALSE)))-5.2361))))*IF(C21=0,0,(C21/LookUp!DL6)))) -> 0 | D23: =IF(C23=0,"",IF(C23<LookUp!CW6," Energy intake is below maintenance.","")) ->  | F23: Lactating cow (calf 2 mths) | G23: 1100 | H23: 2200 | I23: ns | R23: and pasture species | S23: http://www.makingmorefromsheep.com.au/turn-pasture-into-product/tool_8.2.htm | Z23: You
B24: Stock Type 2 | F24: Growing cattle | R24: can also measure your own pasture growth by following the procedures outlined in Module 8.6 Pasture rulers,
B25: Average Weight (Kg/Hd) | D25: If you change Stock Type re-select Average Weight from list. | F25: % of potential growth | R25: sticks and metres | S25: http://www.makingmorefromsheep.com.au/turn-pasture-into-product/tool_8.6.htm
B26: Physiological State | D26: If you change Stock Type re-select Physiological State from list. | F26: 30% (0.39 kg/day) | G26: 600 | H26: 1100 | I26: 2900 | R26: The Pasture Growth calculator can be used to calculate growth from pasture availability estimates and stocking
B27: Twins/Singles | D27: If you change Stock Type re-select Twins/Singles from list. | F27: 50% (0.61 kg/day) | G27: 800 | H27: 1600 | I27: ns | R27: rates.
B28: i) Number of Animals Grazing | F28: 70% (0.85 kg/day) | G28: 1200 | H28: 2600 | I28: ns
B29: j) Consumption (Kg DM/Hd/Day) | C29: =IF($C$8=500,IF(C24="",0,LookUp!$DT$6),IF($C$8=1000,IF(C24="",0,LookUp!$DT$6),IF($C$8=1500,IF(C24="",0,LookUp!$DT$6),IF($C$8=2000,IF(C24="",0,LookUp!$DT$6),IF(LookUp!$DQ$6=500,((($C$8-500)/500)*(LookUp!$DT$7-LookUp!$DT$6))+LookUp!$DT$6,IF(LookUp!$DQ$6=600,((($C$8-1000)/500)*(LookUp!$DT$7-LookUp!$DT$6))+LookUp!$DT$6,IF(LookUp!$DQ$6=700,((($C$8-1500)/500)*(LookUp!$DT$7-LookUp!$DT$6))+LookUp!$DT$6,IF(LookUp!$DQ$6=800,((($C$8-2000)/500)*(LookUp!$DT$7-LookUp!$DT$6))+LookUp!$DT$6,LookUp!$DT$6)))))))) -> 0 | F29: 90% (1.12 kg/day) | G29: 2200 | H29: ns | I29: ns
B30: Maintenance Energy Required (MJ ME/Hd/Day) | C30: =IF(C31=0,"",LookUp!CW7) -> 
B31: Energy consumption (MJ ME/Hd/Day) | C31: =IF(C29=0,0,IF(VLOOKUP(LookUp!DS6,LookUp!$AA$400:$AB$4026,2,FALSE)="Pasture unsuitable","Pasture unsuitable",IF(C29=0,0,IF(C24="Lambs",VLOOKUP(LookUp!DS6,LookUp!$AA$400:$AB$1841,2,FALSE),IF(C24="Ewes/Wethers",VLOOKUP(LookUp!DS6,LookUp!$AA$400:$AB$1841,2,FALSE),C29*((22.587*(VLOOKUP($C$10,LookUp!$D$185:$H$194,2,FALSE)))-5.2361))))*IF(C29=0,0,(C29/LookUp!DT6)))) -> 0 | D31: =IF(C31=0,"",IF(C31<LookUp!CW7," Energy intake is below maintenance.","")) -> 
B32: Stock Type 3
B33: Average Weight (Kg/Hd) | D33: If you change Stock Type re-select Average Weight from list.
B34: Physiological State | D34: If you change Stock Type re-select Physiological State from list.
B35: Twins/Singles | D35: If you change Stock Type re-select Twins/Singles from list.
B36: k) Number of Animals Grazing
B37: l) Consumption (Kg DM/Hd/Day) | C37: =IF($C$8=500,IF(C32="",0,LookUp!$DL$18),IF($C$8=1000,IF(C32="",0,LookUp!$DL$18),IF($C$8=1500,IF(C32="",0,LookUp!$DL$18),IF($C$8=2000,IF(C32="",0,LookUp!$DL$18),IF(LookUp!$DI$18=500,((($C$8-500)/500)*(LookUp!$DL$19-LookUp!$DL$18))+LookUp!$DL$18,IF(LookUp!$DI$18=600,((($C$8-1000)/500)*(LookUp!$DL$19-LookUp!$DL$18))+LookUp!$DL$18,IF(LookUp!$DI$18=700,((($C$8-1500)/500)*(LookUp!$DL$19-LookUp!$DL$18))+LookUp!$DL$18,IF(LookUp!$DI$18=800,((($C$8-2000)/500)*(LookUp!$DL$19-LookUp!$DL$18))+LookUp!$DL$18,LookUp!$DL$18)))))))) -> 0 | F37: 50% (0.61 kg/day) | G37: 800 | H37: 1600 | I37: ns
B38: Maintenance Energy Required (MJ ME/Hd/Day) | C38: =IF(C39=0,"",LookUp!CW8) ->  | F38: 70% (0.85 kg/day) | G38: 1200 | H38: 2600 | I38: ns
B39: Energy consumption (MJ ME/Hd/Day) | C39: =IF(C37=0,0,IF(VLOOKUP(LookUp!DK18,LookUp!$AA$400:$AB$4026,2,FALSE)="Pasture unsuitable","Pasture unsuitable",IF(C37=0,0,IF(C32="Lambs",VLOOKUP(LookUp!DK18,LookUp!$AA$400:$AB$1841,2,FALSE),IF(C32="Ewes/Wethers",VLOOKUP(LookUp!DK18,LookUp!$AA$400:$AB$1841,2,FALSE),C37*((22.587*(VLOOKUP($C$10,LookUp!$D$185:$H$194,2,FALSE)))-5.2361))))*IF(C37=0,0,(C37/LookUp!DL18)))) -> 0 | D39: =IF(C39=0,"",IF(C39<LookUp!CW8," Energy intake is below maintenance.","")) ->  | F39: 90% (1.12 kg/day) | G39: 2200 | H39: ns | I39: ns
B40: Stock Type 4
B41: Average Weight (Kg/Hd) | D41: If you change Stock Type re-select Average Weight from list.
B42: Physiological State | D42: If you change Stock Type re-select Physiological State from list.
B43: m) Number of Animals Grazing
B44: n) Consumption (Kg DM/Hd/Day)
B45: RESULTS
B46: m) Total animal consumption + waste for the time period (Kg DM) | C46: =IF(C8="","",((C28*C29+C20*C21+C36*C37)*(1+C11))*C14) ->  | D46: =(g*h+i*j+k*l)*(1+d)
B47: n) Total growth per ha during the time period + change in food on offer (Kg DM/ha) | C47: =IF(C13="","",C14*C13 - (C9-C8)) ->  | D47: =(e*f)+(b-a)
B48: Total Area Required (Hectares) | C48: =IF(C47="","",C46/C47) ->  | D48: =m ÷ n

Sheet Home
B2: Feed Budget and Rotation Planner Spreadsheet

Sheet Instructions (hidden)
B6: Feed Budget and Rotation Planner Spreadsheet Instructions

Sheet Sheet2 (hidden)
A1: Stock Type | B1: Weight | D1: Protein | E1: Stock Type | G1: State | J1: Past Avail | N1: Lists | AY1: State | BF1: State
A2: Cows | B2: 400 | C2: 1 | D2: 6 | E2: Cows | F2: Cows | G2: Dry/Early Preg | I2: Cows | J2: 500 | K2: Wheat | L2: Whole | N2: Pasture Availability | O2: 500 | P2: 1000 | Q2: 1500 | R2: 2000 | AM2: Dry/Late Pregnancy | AN2: Not Applicable | AO2: lambs | AP2: 15 | AQ2: Dry/Late Pregnancy | AR2: Not Applicable | AS2: lambs | AT2: 15 | AX2: Cows | AY2: Dry/Late Pregnancy | BB2: Dry/Late Pregnancy | BC2: Not Applicable | BE2: Cows | BF2: Dry/Early Preg
A3: Cows | B3: 500 | C3: 1 | D3: 6 | E3: Weaner Cattle | F3: Cows | G3: Late Preg (last 3 months) | I3: Cows | J3: 1000 | K3: Wheat | L3: Rolled or Milled | N3: Digestibility | O3: 0.4 | P3: 0.5 | Q3: 0.6 | R3: 0.7 | S3: 0.8 | AM3: Early lactation (2 months) | AN3: Not Applicable | AP3: 25 | AQ3: Early lactation (2 mths) | AR3: Not Applicable | AT3: 25 | AX3: Cows | AY3: Early lactation (2 mths) | BB3: Early lactation (2 months) | BC3: Not Applicable | BE3: Cows | BF3: Late Preg (last 3 months) | BJ3: Dry/Late Pregnancy
A4: Cows | B4: 600 | C4: 1 | D4: 6 | E4: Ewes/Wethers | F4: Cows | G4: Early lactation (2 months) | I4: Cows | J4: 1500 | K4: Barley | L4: Whole | N4: Pasture Height | O4: 1 | P4: 2 | Q4: 3 | R4: 4 | S4: 5 | T4: 6 | U4: 7 | V4: 8 | W4: 9 | X4: 10 | AM4: Late lactation (150 kg calf) | AN4: Not Applicable | AP4: 35 | AQ4: Late lactation (5 mths) | AR4: Not Applicable | AT4: 35 | AX4: Cows | AY4: Late lactation (5 mths) | BB4: Late lactation (150 kg calf) | BC4: Not Applicable | BE4: Cows | BF4: Early lactation (2 months) | BJ4: Early lactation (2 months)
A5: Cows | B5: 700 | C5: 1 | D5: 6 | E5: Lambs | F5: Cows | G5: Late lactation (150 kg calf) | I5: Cows | J5: 2000 | K5: Barley | L5: Rolled or Milled | N5: Pasture Density | O5: Light | P5: Moderate | Q5: Dense | AM5: Not Applicable | AN5: Not Applicable | AP5: 45 | AQ5: Not Applicable | AR5: Not Applicable | AT5: 45 | AX5: Weaner Cattle | AY5: Not Applicable | BB5: Not Applicable | BC5: Not Applicable | BE5: Cows | BF5: Late lactation (150 kg calf) | BJ5: Late lactation (150 kg calf)
A6: Weaner Cattle | B6: 150 | C6: 1 | D6: 8 | F6: Weaner Cattle | G6: Not Applicable | I6: Weaner Cattle | J6: 500 | K6: Triticale | L6: Whole | N6: Pasture Quality | O6: Poor | P6: Average | Q6: Good | R6: Very Good | AM6: Dry or pregnant | AN6: Not Applicable | AO6: cows | AP6: 400 | AQ6: Dry or pregnant | AR6: Not Applicable | AS6: cows | AT6: 400 | AX6: Ewes/Wethers | AY6: Dry | BB6: Dry | BC6: Not Applicable | BE6: Weaner Cattle | BF6: Not Applicable | BJ6: Dry or pregnant
A7: Weaner Cattle | B7: 200 | C7: 1 | D7: 8 | F7: Lambs | G7: Not Applicable | I7: Weaner Cattle | J7: 1000 | K7: Triticale | L7: Rolled or Milled | N7: Pasture Status | O7: 40% dig, 4.8 MJ ME/kg - Dry (Dead) | P7: 50% dig, 6.5 MJ ME/kg - Dry, perennial | Q7: 60% dig, 8.2 MJ ME/kg - Gone to seed | R7: 70% dig, 10 MJ ME/kg - Green, grassy | S7: 75% dig, 10.8 MJ ME/kg - Green, 15-30% clover | T7: 80% dig - 11.6 MJ ME/kg - Green, 60% clover | AM7: Dry or pregnant | AN7: Twins | AP7: 500 | AQ7: Dry or pregnant | AR7: Twins | AT7: 500 | AX7: Ewes/Wethers | AY7: Pregnant | BB7: Pregnant | BC7: Twins | BE7: Lambs | BF7: Not Applicable | BJ7: Lactating
A8: Weaner Cattle | B8: 250 | C8: 1 | D8: 8 | F8: Ewes/Wethers | G8: Dry | I8: Weaner Cattle | J8: 1500 | K8: Oats | L8: Whole | N8: Supplements | O8: Wheat | P8: Barley | Q8: Triticale | R8: Oats | S8: Lupins | T8: Peas | U8: Maize | V8: Safflower Seeds | W8: Rice | X8: Rye | Y8: Sorghum | Z8: Pellets | AA8: Grass Hay | AB8: Clover Hay | AC8: Lucerne Hay | AD8: Cereal Hay | AE8: Canola Hay | AF8: Grass Silage | AG8: Clover Silage | AH8: Lucerne Silage | AI8: Cereal Silage | AJ8: Canola Silage | AK8: Cereal Straw | AM8: Dry or pregnant | AN8: Single | AP8: 600 | AQ8: Dry or pregnant | AR8: Single | AT8: 600 | AX8: Ewes/Wethers | AY8: Lactating | BB8: Pregnant | BC8: Singles | BE8: Ewes/Wethers | BF8: Dry
A9: Weaner Cattle | B9: 300 | C9: 1 | D9: 8 | F9: Ewes/Wethers | G9: Pregnant - 50 days | I9: Weaner Cattle | J9: 2000 | K9: Oats | L9: Rolled or Milled | N9: Month | O9: January | P9: Febuary | Q9: March | R9: April | S9: May | T9: June | U9: July | V9: August | W9: September | X9: October | Y9: November | Z9: December | AM9: Lactating | AN9: Twins | AP9: 700 | AQ9: Lactating | AR9: Twins | AT9: 700 | AX9: Lambs | AY9: Not Applicable | BB9: Lactating | BC9: Twins | BE9: Ewes/Wethers | BF9: Pregnant - 50 days | BJ9: Pregnant
A10: Weaner Cattle | B10: 350 | C10: 1 | D10: 8 | F10: Ewes/Wethers | G10: Pregnant - 70 days | I10: Ewes/Wethers | J10: 500 | K10: Lupins | L10: Whole | N10: Pasture Status | O10: 40% dig, 4.8 MJ ME/kg - Dry (Dead) | P10: 50% dig, 6.5 MJ ME/kg - Dry, perennial | Q10: 60% dig, 8.2 MJ ME/kg - Gone to seed | R10: 70% dig, 10 MJ ME/kg - Green, grassy | S10: 75% dig, 10.8 MJ ME/kg - Green, 15-30% clover | T10: 80% dig - 11.6 MJ ME/kg - Green, 60% clover | AM10: Lactating | AN10: Single | AO10: weaners | AP10: 150 | AQ10: Lactating | AR10: Single | AS10: weaners | AT10: 150 | BB10: Lactating | BC10: Singles | BE10: Ewes/Wethers | BF10: Pregnant - 70 days | BJ10: Dry/Early Preg
A11: Weaner Cattle | B11: 400 | C11: 1 | D11: 8 | F11: Ewes/Wethers | G11: Pregnant - 100 days | I11: Ewes/Wethers | J11: 1000 | K11: Lupins | L11: Rolled or Milled | AM11: Dry/Early Preg | AN11: Not Applicable | AP11: 200 | AT11: 200 | AX11: Fred | BB11: Dry/Early Preg | BC11: Not Applicable | BE11: Ewes/Wethers | BF11: Pregnant - 100 days | BJ11: Late Preg (last 3 months)
A12: Weaner Cattle | B12: 450 | C12: 1 | D12: 8 | F12: Ewes/Wethers | G12: Pregnant - 130 days | I12: Ewes/Wethers | J12: 1500 | K12: Peas | L12: Whole | AM12: Late Preg (last 3 months) | AN12: Not Applicable | AP12: 250 | AT12: 250 | BB12: Late Preg (last 3 months) | BC12: Not Applicable | BE12: Ewes/Wethers | BF12: Pregnant - 130 days
A13: Weaner Cattle | B13: 500 | C13: 1 | D13: 8 | F13: Ewes/Wethers | G13: Lactating - 10 days | I13: Lambs | J13: 500 | K13: Peas | L13: Rolled or Milled | AP13: 300 | AT13: 300 | BB13: Pregnant - 50 days | BC13: Twins | BE13: Ewes/Wethers | BF13: Lactating - 10 days
A14: Ewes/Wethers | B14: 40 | C14: 2 | D14: 7 | F14: Ewes/Wethers | G14: Lactating - 30 days | I14: Lambs | J14: 1000 | K14: Maize | L14: Whole | AP14: 350 | AT14: 350 | BB14: Pregnant - 50 days | BC14: Singles | BE14: Ewes/Wethers | BF14: Lactating - 30 days
A15: Ewes/Wethers | B15: 50 | C15: 2 | D15: 7 | F15: Ewes/Wethers | G15: Lactating - 50 days | I15: Lambs | J15: 1500 | K15: Maize | L15: Rolled or Milled | AP15: 400 | AT15: 400 | BB15: Pregnant - 70 days | BC15: Twins | BE15: Ewes/Wethers | BF15: Lactating - 50 days
A16: Ewes/Wethers | B16: 60 | C16: 2 | D16: 7 | K16: Safflower Seeds | L16: Not Applicable | AP16: 450 | AT16: 450 | BB16: Pregnant - 70 days | BC16: Singles
A17: Ewes/Wethers | B17: 70 | C17: 2 | D17: 7 | K17: Rice | L17: Not Applicable | AP17: 500 | AT17: 500 | BB17: Pregnant - 100 days | BC17: Twins
A18: Lambs | B18: 15 | C18: 2 | D18: 10 | K18: Rye | L18: Not Applicable | BB18: Pregnant - 100 days | BC18: Singles
A19: Lambs | B19: 25 | C19: 2 | D19: 10 | K19: Sorghum | L19: Whole | BB19: Pregnant - 130 days | BC19: Twins
A20: Lambs | B20: 35 | C20: 2 | D20: 10 | G20: Dry or pregnant | H20: 0 | K20: Sorghum | L20: Rolled or Milled | BB20: Pregnant - 130 days | BC20: Singles
A21: Lambs | B21: 45 | C21: 2 | D21: 10 | G21: Lactating | H21: 3 | K21: Pellets | L21: Not Applicable | BB21: Lactating - 10 days | BC21: Twins
G22: Dry or pregnant | K22: Grass Hay | L22: Not Applicable | BB22: Lactating - 10 days | BC22: Singles
G23: Lactating | K23: Lucerne Hay | L23: Not Applicable | BB23: Lactating - 30 days | BC23: Twins
G24: Pregnant | H24: 0 | K24: Cereal Hay | L24: Not Applicable | BB24: Lactating - 30 days | BC24: Singles
G25: Dry | H25: 0 | K25: Canola Hay | L25: Not Applicable | BB25: Lactating - 50 days | BC25: Twins
G26: Dry/Late Pregnancy | H26: 0 | K26: Grass Silage | L26: Not Applicable | BB26: Lactating - 50 days | BC26: Singles
G27: Early lactation (2 months) | H27: 5 | K27: Clover Silage | L27: Not Applicable
G28: Late lactation (150 kg calf) | H28: 5 | K28: Lucerne Silage | L28: Not Applicable
G29: Not Applicable | H29: 0 | K29: Cereal Silage | L29: Not Applicable
G30: Dry/Early Preg | H30: 0 | K30: Canola Silage | L30: Not Applicable
G31: Late Preg (last 3 months) | H31: 0 | K31: Cereal Straw | L31: Not Applicable
G32: Pregnant - 50 days | H32: 0 | K32: Clover Hay | L32: Not Applicable
G33: Pregnant - 70 days | H33: 0
G34: Pregnant - 100 days | H34: 0
G35: Pregnant - 130 days | H35: 0
G36: Lactating - 10 days | H36: 0
G37: Lactating - 30 days | H37: 0
G38: Lactating - 50 days | H38: 0
E45: Cows
E46: Weaner Cattle
E47: Ewes/Wethers
E48: Lambs
E52: Nitrogen Pasture ME | G52: =VLOOKUP(Nitrogen!D12,Sheet2!E53:F58,2,FALSE) -> 
E53: 40% dig, 4.8 MJ ME/kg - Dry (Dead) | F53: 4.8
E54: 50% dig, 6.5 MJ ME/kg - Dry, perennial | F54: 6.5
E55: 60% dig, 8.2 MJ ME/kg - Gone to seed | F55: 8.2
E56: 70% dig, 10 MJ ME/kg - Green, grassy | F56: 10
E57: 75% dig, 10.8 MJ ME/kg - Green, 15-30% clover | F57: 10.8
E58: 80% dig - 11.6 MJ ME/kg - Green, 60% clover | F58: 11.6

Sheet Sheet1 (hidden)
A1: how many ha do I need?
A3: b) Feed Available Now (Kg DM/Ha) | B3: 1500
A4: Feed you want available when you take the stock out of the paddock | B4: 1700
A5: c) Digestibility (%) | B5: 70
A6: d) Feed Wastage Factor | B6: 0.3 | C6: Usually 30% for growing season and 50% for summer.
A7: e) Pasture Growth (enter value from option 1 or 2 below) (Kg DM/Ha/Day) | B7: 30 | C7: Use guide below if required.
A8: Number of days you want to leave the animals in the paddock | B8: 60
A9: ANIMAL CONSUMPTION
A10: Stock Type 1 | B10: Weaner Cattle
A11: Average Weight (Kg/Hd) | B11: 200 | C11: If you change Stock Type re-select Average Weight from list.
A12: Physiological State | B12: Not Applicable | C12: If you change Stock Type re-select Physiological State from list.
A13: f) Number of Animals Grazing | B13: 50
A14: g) Consumption (Kg DM/Hd/Day) | B14: 5
A15: Stock Type 2 | B15: Cows
A16: Average Weight (Kg/Hd) | B16: 400 | C16: If you change Stock Type re-select Average Weight from list.
A17: Physiological State | B17: Dry/Late Pregnancy | C17: If you change Stock Type re-select Physiological State from list.
A18: h) Number of Animals Grazing | B18: 50
A19: i) Consumption (Kg DM/Hd/Day) | B19: 15
A20: Stock Type 3 | B20: Ewes/Wethers
A21: Average Weight (Kg/Hd) | B21: 50 | C21: If you change Stock Type re-select Average Weight from list.
A22: Physiological State | B22: Lactating | C22: If you change Stock Type re-select Physiological State from list.
A23: j) Number of Animals Grazing | B23: 50
A24: k) Consumption (Kg DM/Hd/Day) | B24: 2
A25: Stock Type 4 | B25: Cows
A26: Average Weight (Kg/Hd) | B26: 500 | C26: If you change Stock Type re-select Average Weight from list.
A27: Physiological State | B27: Dry/Late Pregnancy | C27: If you change Stock Type re-select Physiological State from list.
A28: l) Number of Animals Grazing | B28: 100
A29: m) Consumption (Kg DM/Hd/Day) | B29: 15
A30: RESULTS
A31: n) Total animal consumption + waste for the time period (Kg DM) | B31: =IF(B6="","",(B18*B19+B13*B14+B23*B24+B28*B29)*(1+B6))*B8 -> 202800 | C31: =(f*g+h*i+j*k+l*m)*(1+d)
A32: Total growth per ha during the time period + change in availability (Kg DM/ha) | B32: =B8*B7 + (B4-B3) -> 2000 | C32: =n÷a
A33: Total ha required | B33: =B31/B32 -> 101.4 | C33: =e-o
A34: =CONCATENATE(A38,#REF!,A39) ->  | B34: =IF(B3="","",B3+(#REF!*B33)) ->  | C34: =b+(p*q)
A48: Pregnant Maint requierments LTEM 50kg
A49: Singles | B49: Twins
A50: 8.3 | B50: 8.3
A51: 8.3 | B51: 8.3
A52: 8.4 | B52: 8.4
A53: 8.4 | B53: 8.4
A54: 8.5 | B54: 8.4
A55: 8.6 | B55: 8.5
A56: 8.7 | B56: 8.7
A57: 9 | B57: 9.1
A58: 9.3 | B58: 9.3
A59: 9.5 | B59: 9.8
A60: 9.5 | B60: 10.5
A61: 10 | B61: 11.2
A62: 10.6 | B62: 12.1
A63: 11.2 | B63: 13.1
A64: 12 | B64: 14
A65: 12.7 | B65: 14.8 | D65: Multiplier
A66: =AVERAGE(A50:A65) -> 9.5625 | B66: =AVERAGE(B50:B65) -> 10.18125 | C66: 50 kg | D66: 1 | E66: 9.6 | F66: 10.2
A67: =A66*D67 -> 8.0325 | B67: =B66*D67 -> 8.55225 | C67: 40kg | D67: 0.84 | E67: =D67*E66 -> 8.064 | F67: =D67*F66 -> 8.568
A68: =A66*D68 -> 11.0925 | B68: =B66*D68 -> 11.81025 | C68: 60kg | D68: 1.16 | E68: =D68*E66 -> 11.136 | F68: =D68*F66 -> 11.832
A69: =A66*D69 -> 12.6225 | B69: =B66*D69 -> 13.43925 | C69: 70kg | D69: 1.32 | E69: =D69*E66 -> 12.672 | F69: =D69*F66 -> 13.464
A72: Ewe Weight | B72: Twins | C72: Singles
A73: 40 | B73: =B67 -> 8.55225 | C73: =A67 -> 8.0325
A74: 50 | B74: =B66 -> 10.18125 | C74: =A66 -> 9.5625
A75: 60 | B75: =B68 -> 11.81025 | C75: =A68 -> 11.0925
A76: 70 | B76: =B69 -> 13.43925 | C76: =A69 -> 12.6225
A77: Answer
A78: Ration 1 | B78: =IF('Feed Ration'!$C$153="Pregnant",IF('Feed Ration'!$C$154="Twins",VLOOKUP('Feed Ration'!$C$152,Sheet1!$A$73:$C$76,2,FALSE),VLOOKUP('Feed Ration'!$C$152,Sheet1!$A$73:$C$76,3,FALSE)),0) -> 0
A79: Ration 2 | B79: =IF('Feed Ration'!$D$153="Pregnant",IF('Feed Ration'!$D$154="Twins",VLOOKUP('Feed Ration'!$D$152,Sheet1!$A$73:$C$76,2,FALSE),VLOOKUP('Feed Ration'!$D$152,Sheet1!$A$73:$C$76,3,FALSE)),0) -> 0
A80: Ration 3 | B80: =IF('Feed Ration'!$E$153="Pregnant",IF('Feed Ration'!$E$154="Twins",VLOOKUP('Feed Ration'!$E$152,Sheet1!$A$73:$C$76,2,FALSE),VLOOKUP('Feed Ration'!$E$152,Sheet1!$A$73:$C$76,3,FALSE)),0) -> 0
A81: Ration 4 | B81: =IF('Feed Ration'!$F$153="Pregnant",IF('Feed Ration'!$F$154="Twins",VLOOKUP('Feed Ration'!$F$152,Sheet1!$A$73:$C$76,2,FALSE),VLOOKUP('Feed Ration'!$F$152,Sheet1!$A$73:$C$76,3,FALSE)),0) -> 0
A82: Ration 5 | B82: =IF('Feed Ration'!$G$153="Pregnant",IF('Feed Ration'!$G$154="Twins",VLOOKUP('Feed Ration'!$G$152,Sheet1!$A$73:$C$76,2,FALSE),VLOOKUP('Feed Ration'!$G$152,Sheet1!$A$73:$C$76,3,FALSE)),0) -> 0

Sheet Menu (hidden)
B2: DATA ENTRY MENU
B4: Simple Paddock Feed Budgets | G4: Planning Ahead - Seasonal Budgets & Rotation Planners | M4: Other Useful Tools
A89: 3

Sheet Results (hidden)
B1: RESULTS
B3: PASTURE GROWTH / AVAILABILITY
B4: Paddock | C4: Total | D4: Total | E4: Consumption | F4: Past. Avail | G4: Past. Avail | H4: Change in | I4: Past Grown | J4: Pasture
B5: Name | C5: Animal | D5: Consump'n Incl. | E5: Since Last | F5: Last | G5: Now | H5: Pasture | I5: Since Last | J5: Growth
C6: Consumption | D6: Wastage | E6: Measurement | F6: Measurement | H6: Avail. | I6: Measured | J6: Per Day
C7: (kg DM/Day) | D7: (kg DM/Day) | E7: (kg DM/Ha) | F7: (kg DM/Ha) | G7: (kg DM/Ha) | H7: (kg DM/Ha) | I7: (Kg DM/Ha) | J7: (kg DM/Ha/Day)
B8: =IF('Feed Ration'!B21="","",'Feed Ration'!B21) -> home | C8: =IF('Feed Ration'!G7="","",LookUp!S3*'Feed Ration'!G7+LookUp!Z3*'Feed Ration'!K7+LookUp!AG3*'Feed Ration'!O7+LookUp!AN3*'Feed Ration'!S7) ->  | D8: =IF(C8="","",C8*1.3) ->  | E8: =IF('Feed Ration'!C21="","",(D8*'Feed Ration'!F21)/'Feed Ration'!C7) ->  | F8: =IF('Feed Ration'!C7="","",VLOOKUP(LookUp!Q98,LookUp!$K$97:$L$126,2,FALSE)) ->  | G8: =IF(F8="","",VLOOKUP(LookUp!Q112,LookUp!$K$97:$L$126,2,FALSE)) ->  | H8: =IF(F8="","",G8-F8) ->  | I8: =IF(H8="","",H8+E8) ->  | J8: =IF(I8="","",I8/'Feed Ration'!C21) -> 
B9: =IF('Feed Ration'!B22="","",'Feed Ration'!B22) -> a | C9: =IF('Feed Ration'!G8="","",LookUp!S4*'Feed Ration'!G8+LookUp!Z4*'Feed Ration'!K8+LookUp!AG4*'Feed Ration'!O8+LookUp!AN4*'Feed Ration'!S8) ->  | D9: =IF(C9="","",C9*1.3) ->  | E9: =IF('Feed Ration'!C22="","",(D9*'Feed Ration'!F22)/'Feed Ration'!C8) ->  | F9: =IF('Feed Ration'!C8="","",VLOOKUP(LookUp!Q99,LookUp!$K$97:$L$126,2,FALSE)) -> 1200 | G9: =IF(F9="","",VLOOKUP(LookUp!Q113,LookUp!$K$97:$L$126,2,FALSE)) ->  | H9: =IF(F9="","",G9-F9) ->  | I9: =IF(H9="","",H9+E9) ->  | J9: =IF(I9="","",I9/'Feed Ration'!C22) -> 
B10: =IF('Feed Ration'!B23="","",'Feed Ration'!B23) -> b | C10: =IF('Feed Ration'!G9="","",LookUp!S5*'Feed Ration'!G9+LookUp!Z5*'Feed Ration'!K9+LookUp!AG5*'Feed Ration'!O9+LookUp!AN5*'Feed Ration'!S9) ->  | E10: =IF('Feed Ration'!C23="","",(D10*'Feed Ration'!F23)/'Feed Ration'!C9) ->  | F10: =IF('Feed Ration'!C9="","",VLOOKUP(LookUp!Q100,LookUp!$K$97:$L$126,2,FALSE)) ->  | G10: =IF(F10="","",VLOOKUP(LookUp!Q114,LookUp!$K$97:$L$126,2,FALSE)) ->  | J10: =IF(I10="","",I10/'Feed Ration'!C23) -> 
B11: =IF('Feed Ration'!B24="","",'Feed Ration'!B24) -> c | C11: =IF('Feed Ration'!G10="","",LookUp!S6*'Feed Ration'!G10+LookUp!Z6*'Feed Ration'!K10+LookUp!AG6*'Feed Ration'!O10+LookUp!AN6*'Feed Ration'!S10) ->  | E11: =IF('Feed Ration'!C24="","",(D11*'Feed Ration'!F24)/'Feed Ration'!C10) ->  | F11: =IF('Feed Ration'!C10="","",VLOOKUP(LookUp!Q101,LookUp!$K$97:$L$126,2,FALSE)) ->  | G11: =IF(F11="","",VLOOKUP(LookUp!Q115,LookUp!$K$97:$L$126,2,FALSE)) ->  | J11: =IF(I11="","",I11/'Feed Ration'!C24) -> 
B12: =IF('Feed Ration'!B25="","",'Feed Ration'!B25) -> d | C12: =IF('Feed Ration'!G11="","",LookUp!S7*'Feed Ration'!G11+LookUp!Z7*'Feed Ration'!K11+LookUp!AG7*'Feed Ration'!O11+LookUp!AN7*'Feed Ration'!S11) ->  | E12: =IF('Feed Ration'!C25="","",(D12*'Feed Ration'!F25)/'Feed Ration'!C11) ->  | F12: =IF('Feed Ration'!C11="","",VLOOKUP(LookUp!Q102,LookUp!$K$97:$L$126,2,FALSE)) -> 1000 | G12: =IF(F12="","",VLOOKUP(LookUp!Q116,LookUp!$K$97:$L$126,2,FALSE)) -> 1000 | H12: 0 | J12: =IF(I12="","",I12/'Feed Ration'!C25) -> 
B13: =IF('Feed Ration'!B26="","",'Feed Ration'!B26) -> e | C13: =IF('Feed Ration'!G12="","",LookUp!S8*'Feed Ration'!G12+LookUp!Z8*'Feed Ration'!K12+LookUp!AG8*'Feed Ration'!O12+LookUp!AN8*'Feed Ration'!S12) ->  | E13: =IF('Feed Ration'!C26="","",(D13*'Feed Ration'!F26)/'Feed Ration'!C12) ->  | F13: =IF('Feed Ration'!C12="","",VLOOKUP(LookUp!Q103,LookUp!$K$97:$L$126,2,FALSE)) ->  | G13: =IF(F13="","",VLOOKUP(LookUp!Q117,LookUp!$K$97:$L$126,2,FALSE)) ->  | J13: =IF(I13="","",I13/'Feed Ration'!C26) -> 
B14: =IF('Feed Ration'!B27="","",'Feed Ration'!B27) -> f | C14: =IF('Feed Ration'!G13="","",LookUp!S9*'Feed Ration'!G13+LookUp!Z9*'Feed Ration'!K13+LookUp!AG9*'Feed Ration'!O13+LookUp!AN9*'Feed Ration'!S13) ->  | E14: =IF('Feed Ration'!C27="","",(D14*'Feed Ration'!F27)/'Feed Ration'!C13) ->  | F14: =IF('Feed Ration'!C13="","",VLOOKUP(LookUp!Q104,LookUp!$K$97:$L$126,2,FALSE)) ->  | G14: =IF(F14="","",VLOOKUP(LookUp!Q118,LookUp!$K$97:$L$126,2,FALSE)) ->  | J14: =IF(I14="","",I14/'Feed Ration'!C27) -> 
B15: =IF('Feed Ration'!B28="","",'Feed Ration'!B28) ->  | C15: =IF('Feed Ration'!G14="","",LookUp!S10*'Feed Ration'!G14+LookUp!Z10*'Feed Ration'!K14+LookUp!AG10*'Feed Ration'!O14+LookUp!AN10*'Feed Ration'!S14) ->  | E15: =IF('Feed Ration'!C28="","",(D15*'Feed Ration'!F28)/'Feed Ration'!C14) ->  | F15: =IF('Feed Ration'!C14="","",VLOOKUP(LookUp!Q105,LookUp!$K$97:$L$126,2,FALSE)) ->  | G15: =IF(F15="","",VLOOKUP(LookUp!Q119,LookUp!$K$97:$L$126,2,FALSE)) ->  | J15: =IF(I15="","",I15/'Feed Ration'!C28) -> 
B16: =IF('Feed Ration'!B29="","",'Feed Ration'!B29) ->  | C16: =IF('Feed Ration'!G15="","",LookUp!S11*'Feed Ration'!G15+LookUp!Z11*'Feed Ration'!K15+LookUp!AG11*'Feed Ration'!O15+LookUp!AN11*'Feed Ration'!S15) ->  | E16: =IF('Feed Ration'!C29="","",(D16*'Feed Ration'!F29)/'Feed Ration'!C15) ->  | F16: =IF('Feed Ration'!C15="","",VLOOKUP(LookUp!Q106,LookUp!$K$97:$L$126,2,FALSE)) ->  | G16: =IF(F16="","",VLOOKUP(LookUp!Q120,LookUp!$K$97:$L$126,2,FALSE)) ->  | J16: =IF(I16="","",I16/'Feed Ration'!C29) -> 
B17: =IF('Feed Ration'!B30="","",'Feed Ration'!B30) ->  | C17: =IF('Feed Ration'!G16="","",LookUp!S12*'Feed Ration'!G16+LookUp!Z12*'Feed Ration'!K16+LookUp!AG12*'Feed Ration'!O16+LookUp!AN12*'Feed Ration'!S16) ->  | E17: =IF('Feed Ration'!C30="","",(D17*'Feed Ration'!F30)/'Feed Ration'!C16) ->  | F17: =IF('Feed Ration'!C16="","",VLOOKUP(LookUp!Q107,LookUp!$K$97:$L$126,2,FALSE)) ->  | G17: =IF(F17="","",VLOOKUP(LookUp!Q121,LookUp!$K$97:$L$126,2,FALSE)) ->  | J17: =IF(I17="","",I17/'Feed Ration'!C30) -> 
B20: PASTURE ROTATION
B21: Total Area In Rotation | F21: =SUM(C28:C37) -> 230 | G21: Ha
B22: Total Effective Area In Rotation | F22: =SUM(D28:D37) -> 173 | G22: Ha
B23: (Sum of effective paddock areas)
B24: Paddock | C24: Area | D24: Paddock | E24: Total Effective | F24: Days In
B25: Name | C25: (Ha) | D25: Effective Area | E25: Area Minus | F25: Paddock*
E26: Padd. Eff. Area
D27: (Ha) | E27: (Remaining Area)
B28: =IF('Feed Ration'!B60="","",'Feed Ration'!B60) -> a | C28: =IF('Feed Ration'!C60="","",'Feed Ration'!C60) -> 50 | D28: =IF(C28="","",'Feed Ration'!C60*'Feed Ration'!D60) -> 50 | E28: =IF(D28="","",$F$22-D28) -> 123 | F28: =IF(E28="","",D28/E28*'Feed Ration'!$D$49) -> 20.32520325
B29: =IF('Feed Ration'!B61="","",'Feed Ration'!B61) -> b | C29: =IF('Feed Ration'!C61="","",'Feed Ration'!C61) -> 20 | D29: =IF(C29="","",'Feed Ration'!C61*'Feed Ration'!D61) -> 16 | E29: =IF(D29="","",$F$22-D29) -> 157 | F29: =IF(E29="","",D29/E29*'Feed Ration'!$D$49) -> 5.095541401
B30: =IF('Feed Ration'!B62="","",'Feed Ration'!B62) -> c | C30: =IF('Feed Ration'!C62="","",'Feed Ration'!C62) -> 10 | D30: =IF(C30="","",'Feed Ration'!C62*'Feed Ration'!D62) -> 3 | E30: 170 | F30: =IF(E30="","",D30/E30*'Feed Ration'!$D$49) -> 0.8823529412
B31: =IF('Feed Ration'!B63="","",'Feed Ration'!B63) -> d | C31: =IF('Feed Ration'!C63="","",'Feed Ration'!C63) -> 30 | D31: =IF(C31="","",'Feed Ration'!C63*'Feed Ration'!D63) -> 15 | E31: 158 | F31: =IF(E31="","",D31/E31*'Feed Ration'!$D$49) -> 4.746835443
B32: =IF('Feed Ration'!B64="","",'Feed Ration'!B64) -> e | C32: =IF('Feed Ration'!C64="","",'Feed Ration'!C64) -> 40 | D32: =IF(C32="","",'Feed Ration'!C64*'Feed Ration'!D64) -> 36 | E32: 137 | F32: =IF(E32="","",D32/E32*'Feed Ration'!$D$49) -> 13.13868613
B33: =IF('Feed Ration'!B65="","",'Feed Ration'!B65) -> f | C33: =IF('Feed Ration'!C65="","",'Feed Ration'!C65) -> 50 | D33: =IF(C33="","",'Feed Ration'!C65*'Feed Ration'!D65) -> 50 | E33: 123 | F33: =IF(E33="","",D33/E33*'Feed Ration'!$D$49) -> 20.32520325
B34: =IF('Feed Ration'!B66="","",'Feed Ration'!B66) -> g | C34: =IF('Feed Ration'!C66="","",'Feed Ration'!C66) -> 30 | D34: =IF(C34="","",'Feed Ration'!C66*'Feed Ration'!D66) -> 3 | E34: 170 | F34: =IF(E34="","",D34/E34*'Feed Ration'!$D$49) -> 0.8823529412
B35: =IF('Feed Ration'!B67="","",'Feed Ration'!B67) ->  | C35: =IF('Feed Ration'!C67="","",'Feed Ration'!C67) ->  | D35: =IF(C35="","",'Feed Ration'!C67*'Feed Ration'!D67) ->  | F35: =IF(E35="","",D35/E35*'Feed Ration'!$D$49) -> 
B36: =IF('Feed Ration'!B68="","",'Feed Ration'!B68) ->  | C36: =IF('Feed Ration'!C68="","",'Feed Ration'!C68) ->  | D36: =IF(C36="","",'Feed Ration'!C68*'Feed Ration'!D68) ->  | F36: =IF(E36="","",D36/E36*'Feed Ration'!$D$49) -> 
B37: =IF('Feed Ration'!B69="","",'Feed Ration'!B69) ->  | C37: =IF('Feed Ration'!C69="","",'Feed Ration'!C69) ->  | D37: =IF(C37="","",'Feed Ration'!C69*'Feed Ration'!D69) ->  | F37: =IF(E37="","",D37/E37*'Feed Ration'!$D$49) -> 
B38: * Equal to paddock effective area divided by remaining area multiplied by number of days in rotation.
B41: HOW MUCH FEED WILL I HAVE IN EACH PADDOCK AT END OF GRAZING PERIOD?
B42: Paddock | C42: Area | D42: Total | E42: Feed Gap | F42: Days in | G42: Estimated Feed
B43: Name | C43: (Ha) | D43: Consump'n Incl. | E43: (Growth - | F43: Rotation | G43: Available
D44: Wastage | E44: Consumption) | F44: (X days) | G44: In X days
D45: (kg DM/Ha/Day) | E45: (kg DM/Ha/Day) | G45: (kg DM per Ha)
B46: ='Feed Ration'!B80 -> home | C46: ='Feed Ration'!C80 -> 50 | D46: =IF('Feed Ration'!F94="","",((LookUp!AX3*'Feed Ration'!F94+LookUp!BE3*'Feed Ration'!J94+LookUp!BL3*'Feed Ration'!N94+LookUp!BS3*'Feed Ration'!R94)*1.3)/C46) ->  | E46: =IF(J8="","",J8-D46) ->  | F46: =IF('Feed Ration'!D80="","",'Feed Ration'!D80) -> 6 | G46: =IF(G8="","",(G8+(F46*E46))) -> 
B47: ='Feed Ration'!B81 -> a | C47: ='Feed Ration'!C81 -> 20 | D47: =IF('Feed Ration'!F95="","",((LookUp!AX4*'Feed Ration'!F95+LookUp!BE4*'Feed Ration'!J95+LookUp!BL4*'Feed Ration'!N95+LookUp!BS4*'Feed Ration'!R95)*1.3)/C47) ->  | F47: =IF('Feed Ration'!D81="","",'Feed Ration'!D81) -> 5
B48: ='Feed Ration'!B82 -> b | C48: ='Feed Ration'!C82 -> 30 | D48: =IF('Feed Ration'!F96="","",((LookUp!AX5*'Feed Ration'!F96+LookUp!BE5*'Feed Ration'!J96+LookUp!BL5*'Feed Ration'!N96+LookUp!BS5*'Feed Ration'!R96)*1.3)/C48) ->  | F48: =IF('Feed Ration'!D82="","",'Feed Ration'!D82) -> 
B49: ='Feed Ration'!B83 -> c | C49: ='Feed Ration'!C83 -> 10 | D49: =IF('Feed Ration'!F97="","",((LookUp!AX6*'Feed Ration'!F97+LookUp!BE6*'Feed Ration'!J97+LookUp!BL6*'Feed Ration'!N97+LookUp!BS6*'Feed Ration'!R97)*1.3)/C49) ->  | F49: =IF('Feed Ration'!D83="","",'Feed Ration'!D83) -> 
B50: ='Feed Ration'!B84 -> d | C50: ='Feed Ration'!C84 -> 40 | D50: =IF('Feed Ration'!F98="","",((LookUp!AX7*'Feed Ration'!F98+LookUp!BE7*'Feed Ration'!J98+LookUp!BL7*'Feed Ration'!N98+LookUp!BS7*'Feed Ration'!R98)*1.3)/C50) ->  | F50: =IF('Feed Ration'!D84="","",'Feed Ration'!D84) -> 7
B51: ='Feed Ration'!B85 -> e | C51: ='Feed Ration'!C85 -> 20 | D51: =IF('Feed Ration'!F99="","",((LookUp!AX8*'Feed Ration'!F99+LookUp!BE8*'Feed Ration'!J99+LookUp!BL8*'Feed Ration'!N99+LookUp!BS8*'Feed Ration'!R99)*1.3)/C51) ->  | F51: =IF('Feed Ration'!D85="","",'Feed Ration'!D85) -> 
B52: ='Feed Ration'!B86 -> f | C52: ='Feed Ration'!C86 -> 50 | D52: =IF('Feed Ration'!F100="","",((LookUp!AX9*'Feed Ration'!F100+LookUp!BE9*'Feed Ration'!J100+LookUp!BL9*'Feed Ration'!N100+LookUp!BS9*'Feed Ration'!R100)*1.3)/C52) ->  | F52: =IF('Feed Ration'!D86="","",'Feed Ration'!D86) -> 
B53: ='Feed Ration'!B87 ->  | C53: ='Feed Ration'!C87 ->  | D53: =IF('Feed Ration'!F101="","",((LookUp!AX10*'Feed Ration'!F101+LookUp!BE10*'Feed Ration'!J101+LookUp!BL10*'Feed Ration'!N101+LookUp!BS10*'Feed Ration'!R101)*1.3)/C53) ->  | F53: =IF('Feed Ration'!D87="","",'Feed Ration'!D87) -> 
B54: ='Feed Ration'!B88 ->  | C54: ='Feed Ration'!C88 ->  | D54: =IF('Feed Ration'!F102="","",((LookUp!AX11*'Feed Ration'!F102+LookUp!BE11*'Feed Ration'!J102+LookUp!BL11*'Feed Ration'!N102+LookUp!BS11*'Feed Ration'!R102)*1.3)/C54) ->  | F54: =IF('Feed Ration'!D88="","",'Feed Ration'!D88) -> 
B55: ='Feed Ration'!B89 ->  | C55: ='Feed Ration'!C89 ->  | D55: =IF('Feed Ration'!F103="","",((LookUp!AX12*'Feed Ration'!F103+LookUp!BE12*'Feed Ration'!J103+LookUp!BL12*'Feed Ration'!N103+LookUp!BS12*'Feed Ration'!R103)*1.3)/C55) ->  | F55: =IF('Feed Ration'!D89="","",'Feed Ration'!D89) -> 
B58: HOW LONG WILL THE PADDOCK LAST?
B59: Paddock | C59: Area | D59: Pasture Avail. | E59: No. Days
B60: Name | C60: (Ha) | D60: For Consumption | E60: Paddock
E61: Will Last
D62: (Kg DM/Ha)
B63: ='Feed Ration'!B80 -> home | C63: ='Feed Ration'!C80 -> 50 | D63: =IF(G8="","",G8-'Feed Ration'!E80) ->  | E63: =IF(D63="","",D63/-E46) -> 
B64: ='Feed Ration'!B81 -> a | C64: ='Feed Ration'!C81 -> 20 | D64: =IF(G9="","",G9-'Feed Ration'!E81) -> 
B65: ='Feed Ration'!B82 -> b | C65: ='Feed Ration'!C82 -> 30 | D65: =IF(G10="","",G10-'Feed Ration'!E82) -> 
B66: ='Feed Ration'!B83 -> c | C66: ='Feed Ration'!C83 -> 10 | D66: =IF(G11="","",G11-'Feed Ration'!E83) -> 
B67: ='Feed Ration'!B84 -> d | C67: ='Feed Ration'!C84 -> 40 | D67: =IF(G12="","",G12-'Feed Ration'!E84) -> 0
B68: ='Feed Ration'!B85 -> e | C68: ='Feed Ration'!C85 -> 20 | D68: =IF(G13="","",G13-'Feed Ration'!E85) -> 
B69: ='Feed Ration'!B86 -> f | C69: ='Feed Ration'!C86 -> 50 | D69: =IF(G14="","",G14-'Feed Ration'!E86) -> 
B70: ='Feed Ration'!B87 ->  | C70: ='Feed Ration'!C87 ->  | D70: =IF(G15="","",G15-'Feed Ration'!E87) -> 
B71: ='Feed Ration'!B88 ->  | C71: ='Feed Ration'!C88 ->  | D71: =IF(G16="","",G16-'Feed Ration'!E88) -> 
B72: ='Feed Ration'!B89 ->  | C72: ='Feed Ration'!C89 ->  | D72: =IF(G17="","",G17-'Feed Ration'!E89) -> 
B75: AMOUNT OF FEED REQUIRED AT START OF PERIOD?
B76: Paddock | C76: Area | D76: No. Days To | E76: Amount of
B77: Name | C77: (Ha) | D77: Be Grazed | E77: Feed Required At
E78: Start of Period
E79: (Kg DM/Ha)
B80: ='Feed Ration'!B80 -> home | C80: ='Feed Ration'!C80 -> 50 | D80: =IF('Feed Ration'!D80="","",'Feed Ration'!D80) -> 6 | E80: =IF('Feed Ration'!E80="","",'Feed Ration'!E80-(Results!E46*Results!F46)) -> 
B81: ='Feed Ration'!B81 -> a | C81: ='Feed Ration'!C81 -> 20 | D81: =IF('Feed Ration'!D81="","",'Feed Ration'!D81) -> 5 | E81: =IF('Feed Ration'!E81="","",'Feed Ration'!E81-(Results!E47*Results!F47)) -> 
B82: ='Feed Ration'!B82 -> b | C82: ='Feed Ration'!C82 -> 30 | D82: =IF('Feed Ration'!D82="","",'Feed Ration'!D82) ->  | E82: =IF('Feed Ration'!E82="","",'Feed Ration'!E82-(Results!E48*Results!F48)) -> 
B83: ='Feed Ration'!B83 -> c | C83: ='Feed Ration'!C83 -> 10 | D83: =IF('Feed Ration'!D83="","",'Feed Ration'!D83) ->  | E83: =IF('Feed Ration'!E83="","",'Feed Ration'!E83-(Results!E49*Results!F49)) -> 
B84: ='Feed Ration'!B84 -> d | C84: ='Feed Ration'!C84 -> 40 | D84: =IF('Feed Ration'!D84="","",'Feed Ration'!D84) -> 7 | E84: =IF('Feed Ration'!E84="","",'Feed Ration'!E84-(Results!E50*Results!F50)) -> 
B85: ='Feed Ration'!B85 -> e | C85: ='Feed Ration'!C85 -> 20 | D85: =IF('Feed Ration'!D85="","",'Feed Ration'!D85) ->  | E85: =IF('Feed Ration'!E85="","",'Feed Ration'!E85-(Results!E51*Results!F51)) -> 
B86: ='Feed Ration'!B86 -> f | C86: ='Feed Ration'!C86 -> 50 | D86: =IF('Feed Ration'!D86="","",'Feed Ration'!D86) ->  | E86: =IF('Feed Ration'!E86="","",'Feed Ration'!E86-(Results!E52*Results!F52)) -> 
B87: ='Feed Ration'!B87 ->  | C87: ='Feed Ration'!C87 ->  | D87: =IF('Feed Ration'!D87="","",'Feed Ration'!D87) ->  | E87: =IF('Feed Ration'!E87="","",'Feed Ration'!E87-(Results!E53*Results!F53)) -> 
B88: ='Feed Ration'!B88 ->  | C88: ='Feed Ration'!C88 ->  | D88: =IF('Feed Ration'!D88="","",'Feed Ration'!D88) ->  | E88: =IF('Feed Ration'!E88="","",'Feed Ration'!E88-(Results!E54*Results!F54)) -> 
B89: ='Feed Ration'!B89 ->  | C89: ='Feed Ration'!C89 ->  | D89: =IF('Feed Ration'!D89="","",'Feed Ration'!D89) ->  | E89: =IF('Feed Ration'!E89="","",'Feed Ration'!E89-(Results!E55*Results!F55)) -> 
B92: HOW MANY STOCK CAN I RUN IN THIS PADDOCK?
B93: Paddock | C93: Area | D93: Livestock | E93: No. Days To | F93: No. Stock
B94: Name | C94: (Ha) | D94: Class | E94: Be Grazed | F94: That Can Be
F95: Carried
B97: ='Feed Ration'!B80 -> home | C97: ='Feed Ration'!C80 -> 50 | D97: =IF('Feed Ration'!C94="","",'Feed Ration'!C94) -> Cows | E97: =IF('Feed Ration'!D80="","",'Feed Ration'!D80) -> 6 | F97: =IF(E97="","",('Feed Ration'!D21-'Feed Ration'!E80)*C97/E97/((LookUp!S3*'Feed Ration'!G7*1.3)/C97)) -> 
B98: ='Feed Ration'!B81 -> a | C98: ='Feed Ration'!C81 -> 20 | D98: =IF('Feed Ration'!C95="","",'Feed Ration'!C95) -> Weaner Cattle | E98: =IF('Feed Ration'!D81="","",'Feed Ration'!D81) -> 5 | F98: =IF(E98="","",('Feed Ration'!D22-'Feed Ration'!E81)*C98/E98/((LookUp!S4*'Feed Ration'!G8*1.3)/C98)) -> 
B99: ='Feed Ration'!B82 -> b | C99: ='Feed Ration'!C82 -> 30 | D99: =IF('Feed Ration'!C96="","",'Feed Ration'!C96) ->  | E99: =IF('Feed Ration'!D82="","",'Feed Ration'!D82) ->  | F99: =IF(E99="","",('Feed Ration'!D23-'Feed Ration'!E82)*C99/E99/((LookUp!S5*'Feed Ration'!G9*1.3)/C99)) -> 
B100: ='Feed Ration'!B83 -> c | C100: ='Feed Ration'!C83 -> 10 | D100: =IF('Feed Ration'!C97="","",'Feed Ration'!C97) ->  | E100: =IF('Feed Ration'!D83="","",'Feed Ration'!D83) ->  | F100: =IF(E100="","",('Feed Ration'!D24-'Feed Ration'!E83)*C100/E100/((LookUp!S6*'Feed Ration'!G10*1.3)/C100)) -> 
B101: ='Feed Ration'!B84 -> d | C101: ='Feed Ration'!C84 -> 40 | D101: =IF('Feed Ration'!C98="","",'Feed Ration'!C98) -> Ewes/Wethers | E101: =IF('Feed Ration'!D84="","",'Feed Ration'!D84) -> 7 | F101: =IF(E101="","",('Feed Ration'!D25-'Feed Ration'!E84)*C101/E101/((LookUp!S7*'Feed Ration'!G11*1.3)/C101)) -> 
B102: ='Feed Ration'!B85 -> e | C102: ='Feed Ration'!C85 -> 20 | D102: =IF('Feed Ration'!C99="","",'Feed Ration'!C99) ->  | E102: =IF('Feed Ration'!D85="","",'Feed Ration'!D85) ->  | F102: =IF(E102="","",('Feed Ration'!D26-'Feed Ration'!E85)*C102/E102/((LookUp!S8*'Feed Ration'!G12*1.3)/C102)) -> 
B103: ='Feed Ration'!B86 -> f | C103: ='Feed Ration'!C86 -> 50 | D103: =IF('Feed Ration'!C100="","",'Feed Ration'!C100) ->  | E103: =IF('Feed Ration'!D86="","",'Feed Ration'!D86) ->  | F103: =IF(E103="","",('Feed Ration'!D27-'Feed Ration'!E86)*C103/E103/((LookUp!S9*'Feed Ration'!G13*1.3)/C103)) -> 
B104: ='Feed Ration'!B87 ->  | C104: ='Feed Ration'!C87 ->  | D104: =IF('Feed Ration'!C101="","",'Feed Ration'!C101) ->  | E104: =IF('Feed Ration'!D87="","",'Feed Ration'!D87) ->  | F104: =IF(E104="","",('Feed Ration'!D28-'Feed Ration'!E87)*C104/E104/((LookUp!S10*'Feed Ration'!G14*1.3)/C104)) -> 
B105: ='Feed Ration'!B88 ->  | C105: ='Feed Ration'!C88 ->  | D105: =IF('Feed Ration'!C102="","",'Feed Ration'!C102) ->  | E105: =IF('Feed Ration'!D88="","",'Feed Ration'!D88) ->  | F105: =IF(E105="","",('Feed Ration'!D29-'Feed Ration'!E88)*C105/E105/((LookUp!S11*'Feed Ration'!G15*1.3)/C105)) -> 
B106: ='Feed Ration'!B89 ->  | C106: ='Feed Ration'!C89 ->  | D106: =IF('Feed Ration'!C103="","",'Feed Ration'!C103) ->  | E106: =IF('Feed Ration'!D89="","",'Feed Ration'!D89) ->  | F106: =IF(E106="","",('Feed Ration'!D30-'Feed Ration'!E89)*C106/E106/((LookUp!S12*'Feed Ration'!G16*1.3)/C106)) -> 
B108: SUMMER FEED BUDGET
B109: Paddock | C109: Area | D109: Total | E109: Expected | F109: Total | G109: Feed Required | H109: Feed Gap | I109: Total Feed
B110: Name | C110: (Ha) | D110: Consump'n Incl. | E110: Pasture Avail. | F110: Consump'n Incl. | G110: At End of | H110: (Pasture Avail. | I110: Excess or
D111: Wastage | E111: At End of | F111: Wastage | G111: Growing Season | H111: - Feed Required) | I111: Deficit*
D112: b/w Now & End | E112: Growing Season | F112: During
D113: Growing Season | F113: Summer
D114: (kg DM/Ha/Day) | E114: (kg DM/Ha) | F114: (kg DM/Ha/Day) | G114: (Kg DM/Ha) | H114: (kg DM/Ha) | I114: (Tonnes DM)
B115: ='Feed Ration'!B118 -> home | C115: ='Feed Ration'!C118 -> 50 | D115: =D46 ->  | E115: =IF('Feed Ration'!E118="","",('Feed Ration'!E118-Results!D115)*'Feed Ration'!D118+G8) ->  | F115: =IF('Feed Ration'!G133="","",((LookUp!AX15*'Feed Ration'!G133+LookUp!BE15*'Feed Ration'!K133+LookUp!BL15*'Feed Ration'!O133+LookUp!BS15*'Feed Ration'!S133)*1.3)/C115) ->  | G115: =IF(F115="","",(F115-'Feed Ration'!H118)*'Feed Ration'!G118+'Feed Ration'!F118) ->  | H115: =IF(E115="","",E115-G115) ->  | I115: =IF(H115="","",(H115*C115)/1000) -> 
B116: ='Feed Ration'!B119 -> a | C116: ='Feed Ration'!C119 -> 20 | E116: =IF('Feed Ration'!E119="","",('Feed Ration'!E119-Results!D116)*'Feed Ration'!D119+G9) ->  | F116: =IF('Feed Ration'!G134="","",((LookUp!AX16*'Feed Ration'!G134+LookUp!BE16*'Feed Ration'!K134+LookUp!BL16*'Feed Ration'!O134+LookUp!BS16*'Feed Ration'!S134)*1.3)/C116) ->  | G116: =IF(F116="","",(F116-'Feed Ration'!H119)*'Feed Ration'!G119+'Feed Ration'!F119) ->  | H116: =IF(E116="","",E116-G116) ->  | I116: =IF(H116="","",(H116*C116)/1000) -> 
B117: ='Feed Ration'!B120 -> b | C117: ='Feed Ration'!C120 -> 30 | E117: =IF('Feed Ration'!E120="","",('Feed Ration'!E120-Results!D117)*'Feed Ration'!D120+G10) ->  | F117: =IF('Feed Ration'!G135="","",((LookUp!AX17*'Feed Ration'!G135+LookUp!BE17*'Feed Ration'!K135+LookUp!BL17*'Feed Ration'!O135+LookUp!BS17*'Feed Ration'!S135)*1.3)/C117) ->  | G117: =IF(F117="","",(F117-'Feed Ration'!H120)*'Feed Ration'!G120+'Feed Ration'!F120) -> 
B118: ='Feed Ration'!B121 -> c | C118: ='Feed Ration'!C121 -> 10 | E118: =IF('Feed Ration'!E121="","",('Feed Ration'!E121-Results!D118)*'Feed Ration'!D121+G11) ->  | F118: =IF('Feed Ration'!G136="","",((LookUp!AX18*'Feed Ration'!G136+LookUp!BE18*'Feed Ration'!K136+LookUp!BL18*'Feed Ration'!O136+LookUp!BS18*'Feed Ration'!S136)*1.3)/C118) ->  | G118: =IF(F118="","",(F118-'Feed Ration'!H121)*'Feed Ration'!G121+'Feed Ration'!F121) -> 
B119: ='Feed Ration'!B122 -> d | C119: ='Feed Ration'!C122 -> 40 | E119: =IF('Feed Ration'!E122="","",('Feed Ration'!E122-Results!D119)*'Feed Ration'!D122+G12) ->  | F119: =IF('Feed Ration'!G137="","",((LookUp!AX19*'Feed Ration'!G137+LookUp!BE19*'Feed Ration'!K137+LookUp!BL19*'Feed Ration'!O137+LookUp!BS19*'Feed Ration'!S137)*1.3)/C119) ->  | G119: =IF(F119="","",(F119-'Feed Ration'!H122)*'Feed Ration'!G122+'Feed Ration'!F122) -> 
B120: ='Feed Ration'!B123 -> e | C120: ='Feed Ration'!C123 -> 20 | E120: =IF('Feed Ration'!E123="","",('Feed Ration'!E123-Results!D120)*'Feed Ration'!D123+G13) ->  | F120: =IF('Feed Ration'!G138="","",((LookUp!AX20*'Feed Ration'!G138+LookUp!BE20*'Feed Ration'!K138+LookUp!BL20*'Feed Ration'!O138+LookUp!BS20*'Feed Ration'!S138)*1.3)/C120) ->  | G120: =IF(F120="","",(F120-'Feed Ration'!H123)*'Feed Ration'!G123+'Feed Ration'!F123) -> 
B121: ='Feed Ration'!B124 -> f | C121: ='Feed Ration'!C124 -> 50 | E121: =IF('Feed Ration'!E124="","",('Feed Ration'!E124-Results!D121)*'Feed Ration'!D124+G14) ->  | F121: =IF('Feed Ration'!G139="","",((LookUp!AX21*'Feed Ration'!G139+LookUp!BE21*'Feed Ration'!K139+LookUp!BL21*'Feed Ration'!O139+LookUp!BS21*'Feed Ration'!S139)*1.3)/C121) ->  | G121: =IF(F121="","",(F121-'Feed Ration'!H124)*'Feed Ration'!G124+'Feed Ration'!F124) -> 
B122: ='Feed Ration'!B125 ->  | C122: ='Feed Ration'!C125 ->  | E122: =IF('Feed Ration'!E125="","",('Feed Ration'!E125-Results!D122)*'Feed Ration'!D125+G15) ->  | F122: =IF('Feed Ration'!G140="","",((LookUp!AX22*'Feed Ration'!G140+LookUp!BE22*'Feed Ration'!K140+LookUp!BL22*'Feed Ration'!O140+LookUp!BS22*'Feed Ration'!S140)*1.3)/C122) ->  | G122: =IF(F122="","",(F122-'Feed Ration'!H125)*'Feed Ration'!G125+'Feed Ration'!F125) -> 
B123: ='Feed Ration'!B126 ->  | C123: ='Feed Ration'!C126 ->  | E123: =IF('Feed Ration'!E126="","",('Feed Ration'!E126-Results!D123)*'Feed Ration'!D126+G16) ->  | F123: =IF('Feed Ration'!G141="","",((LookUp!AX23*'Feed Ration'!G141+LookUp!BE23*'Feed Ration'!K141+LookUp!BL23*'Feed Ration'!O141+LookUp!BS23*'Feed Ration'!S141)*1.3)/C123) ->  | G123: =IF(F123="","",(F123-'Feed Ration'!H126)*'Feed Ration'!G126+'Feed Ration'!F126) -> 
B124: ='Feed Ration'!B127 ->  | C124: ='Feed Ration'!C127 ->  | E124: =IF('Feed Ration'!E127="","",('Feed Ration'!E127-Results!D124)*'Feed Ration'!D127+G17) ->  | F124: =IF('Feed Ration'!G142="","",((LookUp!AX24*'Feed Ration'!G142+LookUp!BE24*'Feed Ration'!K142+LookUp!BL24*'Feed Ration'!O142+LookUp!BS24*'Feed Ration'!S142)*1.3)/C124) ->  | G124: =IF(F124="","",(F124-'Feed Ration'!H127)*'Feed Ration'!G127+'Feed Ration'!F127) -> 
B125: TOTAL | C125: =SUM(C115:C124) -> 220 | I125: =SUM(I115:I124) -> 0
B126: * Excess is equivalent to tonnes DM of potential hay or silage harvest.
B129: DEVELOP A FEED RATION | C129: =IF('Feed Ration'!C153="Dry",IF('Feed Ration'!C152=50,8.3,IF('Feed Ration'!C152=40,8.3*0.84,IF('Feed Ration'!C152=60,8.3*1.16,IF('Feed Ration'!C152=70,8.3*1.32,0))))) -> FALSE | D129: =IF('Feed Ration'!D153="Dry",IF('Feed Ration'!D152=50,8.3,IF('Feed Ration'!D152=40,8.3*0.84,IF('Feed Ration'!D152=60,8.3*1.16,IF('Feed Ration'!D152=70,8.3*1.32,0))))) -> FALSE | E129: =IF('Feed Ration'!E153="Dry",IF('Feed Ration'!E152=50,8.3,IF('Feed Ration'!E152=40,8.3*0.84,IF('Feed Ration'!E152=60,8.3*1.16,IF('Feed Ration'!E152=70,8.3*1.32,0))))) -> FALSE | F129: =IF('Feed Ration'!F153="Dry",IF('Feed Ration'!F152=50,8.3,IF('Feed Ration'!F152=40,8.3*0.84,IF('Feed Ration'!F152=60,8.3*1.16,IF('Feed Ration'!F152=70,8.3*1.32,0))))) -> FALSE | G129: =IF('Feed Ration'!G153="Dry",IF('Feed Ration'!G152=50,8.3,IF('Feed Ration'!G152=40,8.3*0.84,IF('Feed Ration'!G152=60,8.3*1.16,IF('Feed Ration'!G152=70,8.3*1.32,0))))) -> FALSE
B130: RESULTS | C130: Ration 1 | D130: Ration 2 | E130: Ration 3 | F130: Ration 4 | G130: Ration 5
B131: Energy Required (MJME/Hd/day) | C131: =IF('Feed Ration'!C152="",0,LookUp!$V$185) -> 0 | D131: =IF('Feed Ration'!D152="",0,LookUp!$V$186) -> 0 | E131: =IF('Feed Ration'!E152="",0,LookUp!$V$187) -> 0 | F131: =IF('Feed Ration'!F152="",0,LookUp!$V$188) -> 0 | G131: =IF('Feed Ration'!G152="",0,LookUp!$V$189) -> 0
B132: Total Energy Supplied (MJME/Hd/Day) | C132: =SUM(C133:C136) ->  | D132: =SUM(D133:D136) ->  | E132: =SUM(E133:E136) ->  | F132: =SUM(F133:F136) ->  | G132: =SUM(G133:G136) -> 
B133: Energy From Pasture | C133: =IF('Feed Ration'!C151="Lambs",VLOOKUP(LookUp!T185,LookUp!$AA$400:$AB$1841,2,FALSE),IF('Feed Ration'!C151="Ewes/Wethers",VLOOKUP(LookUp!T185,LookUp!$AA$400:$AB$1841,2,FALSE),LookUp!$U$185*((22.587 *(LookUp!$K$185))-5.2361))) ->  | D133: =IF('Feed Ration'!D151="Lambs",VLOOKUP(LookUp!T186,LookUp!$AA$400:$AB$1841,2,FALSE),IF('Feed Ration'!D151="Ewes/Wethers",VLOOKUP(LookUp!T186,LookUp!$AA$400:$AB$1841,2,FALSE),LookUp!$U$186*((22.587 *(LookUp!$K$186))-5.2361))) ->  | E133: =IF('Feed Ration'!E151="Lambs",VLOOKUP(LookUp!T187,LookUp!$AA$400:$AB$1841,2,FALSE),IF('Feed Ration'!E151="Ewes/Wethers",VLOOKUP(LookUp!T187,LookUp!$AA$400:$AB$1841,2,FALSE),LookUp!$U$187*((22.587 *(LookUp!$K$187))-5.2361))) ->  | F133: =IF('Feed Ration'!F151="Lambs",VLOOKUP(LookUp!T188,LookUp!$AA$400:$AB$1841,2,FALSE),IF('Feed Ration'!F151="Ewes/Wethers",VLOOKUP(LookUp!T188,LookUp!$AA$400:$AB$1841,2,FALSE),LookUp!$U$188*((22.587 *(LookUp!$K$188))-5.2361))) ->  | G133: =IF('Feed Ration'!G151="Lambs",VLOOKUP(LookUp!T189,LookUp!$AA$400:$AB$1841,2,FALSE),IF('Feed Ration'!G151="Ewes/Wethers",VLOOKUP(LookUp!T189,LookUp!$AA$400:$AB$1841,2,FALSE),LookUp!$U$189*((22.587 *(LookUp!$K$189))-5.2361))) -> 
B134: Energy From Supplement 1 | C134: =IF('Feed Ration'!C167="","",LookUp!S136*LookUp!T136/100*'Feed Ration'!C167) ->  | D134: =IF('Feed Ration'!D167="","",LookUp!S137*LookUp!T137/100*'Feed Ration'!D167) ->  | E134: =IF('Feed Ration'!E167="","",LookUp!S138*LookUp!T138/100*'Feed Ration'!E167) ->  | F134: =IF('Feed Ration'!F167="","",LookUp!S139*LookUp!T139/100*'Feed Ration'!F167) ->  | G134: =IF('Feed Ration'!G167="","",LookUp!S140*LookUp!T140/100*'Feed Ration'!G167) -> 
B135: Energy From Supplement 2 | C135: =IF('Feed Ration'!C175="","",LookUp!S150*LookUp!T150/100*'Feed Ration'!C175) ->  | D135: =IF('Feed Ration'!D175="","",LookUp!S151*LookUp!T151/100*'Feed Ration'!D175) ->  | E135: =IF('Feed Ration'!E175="","",LookUp!S152*LookUp!T152/100*'Feed Ration'!E175) ->  | F135: =IF('Feed Ration'!F175="","",LookUp!S153*LookUp!T153/100*'Feed Ration'!F175) ->  | G135: =IF('Feed Ration'!G175="","",LookUp!S154*LookUp!T154/100*'Feed Ration'!G175) -> 
B136: Energy From Supplement 3 | C136: =IF('Feed Ration'!C183="","",LookUp!S164*LookUp!T164/100*'Feed Ration'!C183) ->  | D136: =IF('Feed Ration'!D183="","",LookUp!S165*LookUp!T165/100*'Feed Ration'!D183) ->  | E136: =IF('Feed Ration'!E183="","",LookUp!S166*LookUp!T166/100*'Feed Ration'!E183) ->  | F136: =IF('Feed Ration'!F183="","",LookUp!S167*LookUp!T167/100*'Feed Ration'!F183) ->  | G136: =IF('Feed Ration'!G183="","",LookUp!S168*LookUp!T168/100*'Feed Ration'!G183) -> 
B137: % TOTAL ENERGY SUPPLIED
B138: From Pasture | C138: =IF(C133="",0,LookUp!$U$185/(LookUp!$U$185+IF(C134="",0,'Feed Ration'!C167*(LookUp!$T$136/100))+IF(C135="",0,'Feed Ration'!C175*(LookUp!$T$150/100))+IF(C136="",0,'Feed Ration'!C183*(LookUp!$T$164/100)))) ->  | D138: =IF(D133="",0,LookUp!$U$186/(LookUp!$U$186+IF(D134="",0,'Feed Ration'!D167*(LookUp!$T$137/100))+IF(D135="",0,'Feed Ration'!D175*(LookUp!$T$151/100))+IF(D136="",0,'Feed Ration'!D183*(LookUp!$T$165/100)))) ->  | E138: =IF(E133="",0,LookUp!$U$187/(LookUp!$U$187+IF(E134="",0,'Feed Ration'!E167*(LookUp!$T$138/100))+IF(E135="",0,'Feed Ration'!E175*(LookUp!$T$152/100))+IF(E136="",0,'Feed Ration'!E183*(LookUp!$T$166/100)))) ->  | F138: =IF(F133="",0,LookUp!$U$188/(LookUp!$U$188+IF(F134="",0,'Feed Ration'!F167*(LookUp!$T$139/100))+IF(F135="",0,'Feed Ration'!F175*(LookUp!$T$153/100))+IF(F136="",0,'Feed Ration'!F183*(LookUp!$T$167/100)))) ->  | G138: =IF(G133="",0,LookUp!$U$189/(LookUp!$U$189+IF(G134="",0,'Feed Ration'!G167*(LookUp!$T$140/100))+IF(G135="",0,'Feed Ration'!G175*(LookUp!$T$154/100))+IF(G136="",0,'Feed Ration'!G183*(LookUp!$T$168/100)))) -> 
B139: From Supplement 1 | C139: =IF(C134="",0,('Feed Ration'!C167*(LookUp!$T$136/100))/(IF(C133="",0,LookUp!$U$185)+'Feed Ration'!C167*(LookUp!$T$136/100)+IF(C135="",0,'Feed Ration'!C175*(LookUp!$T$150/100))+IF(C136="",0,'Feed Ration'!C183*(LookUp!$T$164/100)))) -> 0 | D139: =IF(D134="",0,('Feed Ration'!D167*(LookUp!$T$137/100))/(IF(D133="",0,LookUp!$U$186)+'Feed Ration'!D167*(LookUp!$T$137/100)+IF(D135="",0,'Feed Ration'!D175*(LookUp!$T$151/100))+IF(D136="",0,'Feed Ration'!D183*(LookUp!$T$165/100)))) -> 0 | E139: =IF(E134="",0,('Feed Ration'!E167*(LookUp!$T$138/100))/(IF(E133="",0,LookUp!$U$187)+'Feed Ration'!E167*(LookUp!$T$138/100)+IF(E135="",0,'Feed Ration'!E175*(LookUp!$T$152/100))+IF(E136="",0,'Feed Ration'!E183*(LookUp!$T$166/100)))) -> 0 | F139: =IF(F134="",0,('Feed Ration'!F167*(LookUp!$T$139/100))/(IF(F133="",0,LookUp!$U$188)+'Feed Ration'!F167*(LookUp!$T$139/100)+IF(F135="",0,'Feed Ration'!F175*(LookUp!$T$153/100))+IF(F136="",0,'Feed Ration'!F183*(LookUp!$T$167/100)))) -> 0 | G139: =IF(G134="",0,('Feed Ration'!G167*(LookUp!$T$140/100))/(IF(G133="",0,LookUp!$U$189)+'Feed Ration'!G167*(LookUp!$T$140/100)+IF(G135="",0,'Feed Ration'!G175*(LookUp!$T$154/100))+IF(G136="",0,'Feed Ration'!G183*(LookUp!$T$168/100)))) -> 0
B140: From Supplement 2 | C140: =IF(C135="",0,('Feed Ration'!C175*(LookUp!$T$150/100))/(IF(C133="",0,LookUp!$U$185)+IF(C134="",0,'Feed Ration'!C167*(LookUp!$T$136/100))+IF(C135="",0,'Feed Ration'!C175*(LookUp!$T$150/100))+IF(C136="",0,'Feed Ration'!C183*(LookUp!$T$164/100)))) -> 0 | D140: =IF(D135="",0,('Feed Ration'!D175*(LookUp!$T$151/100))/(IF(D133="",0,LookUp!$U$186)+IF(D134="",0,'Feed Ration'!D167*(LookUp!$T$137/100))+IF(D135="",0,'Feed Ration'!D175*(LookUp!$T$151/100))+IF(D136="",0,'Feed Ration'!D183*(LookUp!$T$165/100)))) -> 0 | E140: =IF(E135="",0,('Feed Ration'!E175*(LookUp!$T$152/100))/(IF(E133="",0,LookUp!$U$187)+IF(E134="",0,'Feed Ration'!E167*(LookUp!$T$138/100))+IF(E135="",0,'Feed Ration'!E175*(LookUp!$T$152/100))+IF(E136="",0,'Feed Ration'!E183*(LookUp!$T$166/100)))) -> 0 | F140: =IF(F135="",0,('Feed Ration'!F175*(LookUp!$T$153/100))/(IF(F133="",0,LookUp!$U$188)+IF(F134="",0,'Feed Ration'!F167*(LookUp!$T$139/100))+IF(F135="",0,'Feed Ration'!F175*(LookUp!$T$153/100))+IF(F136="",0,'Feed Ration'!F183*(LookUp!$T$167/100)))) -> 0 | G140: =IF(G135="",0,('Feed Ration'!G175*(LookUp!$T$154/100))/(IF(G133="",0,LookUp!$U$189)+IF(G134="",0,'Feed Ration'!G167*(LookUp!$T$140/100))+IF(G135="",0,'Feed Ration'!G175*(LookUp!$T$154/100))+IF(G136="",0,'Feed Ration'!G183*(LookUp!$T$168/100)))) -> 0
B141: From Supplement 3 | C141: =IF(C136="",0,('Feed Ration'!C183*(LookUp!$T$164/100))/(IF(C133="",0,LookUp!$U$185)+IF(C134="",0,'Feed Ration'!C167*(LookUp!$T$136/100))+IF(C135="",0,'Feed Ration'!C175*(LookUp!$T$150/100))+IF(C136="",0,'Feed Ration'!C183*(LookUp!$T$164/100)))) -> 0 | D141: =IF(D136="",0,('Feed Ration'!D183*(LookUp!$T$165/100))/(IF(D133="",0,LookUp!$U$186)+IF(D134="",0,'Feed Ration'!D167*(LookUp!$T$137/100))+IF(D135="",0,'Feed Ration'!D175*(LookUp!$T$151/100))+IF(D136="",0,'Feed Ration'!D183*(LookUp!$T$165/100)))) -> 0 | E141: =IF(E136="",0,('Feed Ration'!E183*(LookUp!$T$166/100))/(IF(E133="",0,LookUp!$U$187)+IF(E134="",0,'Feed Ration'!E167*(LookUp!$T$138/100))+IF(E135="",0,'Feed Ration'!E175*(LookUp!$T$152/100))+IF(E136="",0,'Feed Ration'!E183*(LookUp!$T$166/100)))) -> 0 | F141: =IF(F136="",0,('Feed Ration'!F183*(LookUp!$T$167/100))/(IF(F133="",0,LookUp!$U$188)+IF(F134="",0,'Feed Ration'!F167*(LookUp!$T$139/100))+IF(F135="",0,'Feed Ration'!F175*(LookUp!$T$153/100))+IF(F136="",0,'Feed Ration'!F183*(LookUp!$T$167/100)))) -> 0 | G141: =IF(G136="",0,('Feed Ration'!G183*(LookUp!$T$168/100))/(IF(G133="",0,LookUp!$U$189)+IF(G134="",0,'Feed Ration'!G167*(LookUp!$T$140/100))+IF(G135="",0,'Feed Ration'!G175*(LookUp!$T$154/100))+IF(G136="",0,'Feed Ration'!G183*(LookUp!$T$168/100)))) -> 0
B142: Energy Surplus/Deficit (MJME/Hd/Day) | C142: =SUM(C133:C136)-C131 ->  | D142: =SUM(D133:D136)-D131 ->  | E142: =SUM(E133:E136)-E131 ->  | F142: =SUM(F133:F136)-F131 ->  | G142: =SUM(G133:G136)-G131 -> 
B143: Protein % in Ration | C143: =IF($C$138>0,$C$138*LookUp!$M$185,0)+IF($C$139>0,Results!$C$139*LookUp!$U$136,0)+IF($C$140>0,Results!$C$140*LookUp!$U$150,0)+IF($C$141>0,Results!$C$141*LookUp!$U$164,0) ->  | D143: =IF($D$138>0,$D$138*LookUp!$M$186,0)+IF($D$139>0,Results!$D$139*LookUp!$U$137,0)+IF($D$140>0,Results!$D$140*LookUp!$U$151,0)+IF($D$141>0,Results!$D$141*LookUp!$U$165,0) ->  | E143: =IF($E$138>0,$E$138*LookUp!$M$187,0)+IF($E$139>0,Results!$E$139*LookUp!$U$138,0)+IF($E$140>0,Results!$E$140*LookUp!$U$152,0)+IF($E$141>0,Results!$E$141*LookUp!$U$166,0) ->  | F143: =IF($F$138>0,$F$138*LookUp!$M$188,0)+IF($F$139>0,Results!$F$139*LookUp!$U$139,0)+IF($F$140>0,Results!$F$140*LookUp!$U$153,0)+IF($F$141>0,Results!$F$141*LookUp!$U$167,0) ->  | G143: =IF($G$138>0,$G$138*LookUp!$M$189,0)+IF($G$139>0,Results!$G$139*LookUp!$U$140,0)+IF($G$140>0,Results!$G$140*LookUp!$U$154,0)+IF($G$141>0,Results!$G$141*LookUp!$U$168,0) -> 
B144: Fibre % of Ration | C144: =IF($C$138>0,$C$138*LookUp!$N$185,0)+IF($C$139>0,Results!$C$139*LookUp!$V$136,0)+IF($C$140>0,Results!$C$140*LookUp!$V$150,0)+IF($C$141>0,Results!$C$141*LookUp!$V$164,0) ->  | D144: =IF($D$138>0,$D$138*LookUp!$N$186,0)+IF($D$139>0,Results!$D$139*LookUp!$V$137,0)+IF($D$140>0,Results!$D$140*LookUp!$V$151,0)+IF($D$141>0,Results!$D$141*LookUp!$V$165,0) ->  | E144: =IF($E$138>0,$E$138*LookUp!$N$187,0)+IF($E$139>0,Results!$E$139*LookUp!$V$138,0)+IF($E$140>0,Results!$E$140*LookUp!$V$152,0)+IF($E$141>0,Results!$E$141*LookUp!$V$166,0) ->  | F144: =IF($F$138>0,$F$138*LookUp!$N$188,0)+IF($F$139>0,Results!$F$139*LookUp!$V$139,0)+IF($F$140>0,Results!$F$140*LookUp!$V$153,0)+IF($F$141>0,Results!$F$141*LookUp!$V$167,0) ->  | G144: =IF($G$138>0,$G$138*LookUp!$N$189,0)+IF($G$139>0,Results!$G$139*LookUp!$V$140,0)+IF($G$140>0,Results!$G$140*LookUp!$V$154,0)+IF($G$141>0,Results!$G$141*LookUp!$V$168,0) -> 
B145: Total Intake (Kg DM/Hd/Day) | C145: =IF(LookUp!$U$185="",0,LookUp!$U$185)+IF('Feed Ration'!$C$167="",0,LookUp!$T$136/100*'Feed Ration'!$C$167)+IF('Feed Ration'!$C$175="",0,LookUp!$T$150/100*'Feed Ration'!$C$175)+IF('Feed Ration'!$C$183="",0,LookUp!$T$164/100*'Feed Ration'!$C$183) -> 0 | D145: =IF(LookUp!$U$186="",0,LookUp!$U$186)+IF('Feed Ration'!$D$167="",0,LookUp!$T$137/100*'Feed Ration'!$D$167)+IF('Feed Ration'!$D$175="",0,LookUp!$T$151/100*'Feed Ration'!$D$175)+IF('Feed Ration'!$D$183="",0,LookUp!$T$165/100*'Feed Ration'!$D$183) -> 0 | E145: =IF(LookUp!$U$187="",0,LookUp!$U$187)+IF('Feed Ration'!$E$167="",0,LookUp!$T$138/100*'Feed Ration'!$E$167)+IF('Feed Ration'!$E$175="",0,LookUp!$T$152/100*'Feed Ration'!$E$175)+IF('Feed Ration'!$E$183="",0,LookUp!$T$166/100*'Feed Ration'!$E$183) -> 0 | F145: =IF(LookUp!$U$188="",0,LookUp!$U$188)+IF('Feed Ration'!$F$167="",0,LookUp!$T$139/100*'Feed Ration'!$F$167)+IF('Feed Ration'!$F$175="",0,LookUp!$T$153/100*'Feed Ration'!$F$175)+IF('Feed Ration'!$F$183="",0,LookUp!$T$167/100*'Feed Ration'!$F$183) -> 0 | G145: =IF(LookUp!$U$189="",0,LookUp!$U$189)+IF('Feed Ration'!$G$167="",0,LookUp!$T$140/100*'Feed Ration'!$G$167)+IF('Feed Ration'!$G$175="",0,LookUp!$T$154/100*'Feed Ration'!$G$175)+IF('Feed Ration'!$G$183="",0,LookUp!$T$168/100*'Feed Ration'!$G$183) -> 0
B146: Maximum Intake (Kg DM/Hd/Day)* | C146: =IF(C144=0,"",'Feed Ration'!$C$152*(120/Results!C144)/100) ->  | D146: =IF(D144=0,"",'Feed Ration'!$D$152*(120/Results!D144)/100) ->  | E146: =IF(E144=0,"",'Feed Ration'!$E$152*(120/Results!E144)/100) ->  | F146: =IF(F144=0,"",'Feed Ration'!$F$152*(120/Results!F144)/100) ->  | G146: =IF(G144=0,"",'Feed Ration'!$G$152*(120/Results!G144)/100) -> 
B147: EXTRA FEED REQ'D FOR MAINTENANCE
B148: Supplement 1 (Kg DM/Hd/Day) or | C148: =IF(C142>=0,0,-C142/LookUp!$S$136*100/LookUp!$T$136) ->  | D148: =IF(D142>=0,0,-D142/LookUp!$S$137*100/LookUp!$T$137) ->  | E148: =IF(E142>=0,0,-E142/LookUp!$S$138*100/LookUp!$T$138) ->  | F148: =IF(F142>=0,0,-F142/LookUp!$S$139*100/LookUp!$T$139) ->  | G148: =IF(G142>=0,0,-G142/LookUp!$S$140*100/LookUp!$T$140) -> 
B149: Supplement 2 (Kg DM/Hd/Day) or | C149: =IF(C142>=0,0,-C142/LookUp!$S$150*100/LookUp!$T$150) ->  | D149: =IF(D142>=0,0,-D142/LookUp!$S$151*100/LookUp!$T$151) ->  | E149: =IF(E142>=0,0,-E142/LookUp!$S$152*100/LookUp!$T$152) ->  | F149: =IF(F142>=0,0,-F142/LookUp!$S$153*100/LookUp!$T$153) ->  | G149: =IF(G142>=0,0,-G142/LookUp!$S$154*100/LookUp!$T$154) -> 
B150: Supplement 3 (Kg DM/Hd/Day) | C150: =IF(C142>=0,0,-C142/LookUp!$S$164*100/LookUp!$T$164) ->  | D150: =IF(D142>=0,0,-D142/LookUp!$S$165*100/LookUp!$T$165) ->  | E150: =IF(E142>=0,0,-E142/LookUp!$S$166*100/LookUp!$T$166) ->  | F150: =IF(F142>=0,0,-F142/LookUp!$S$167*100/LookUp!$T$167) ->  | G150: =IF(G142>=0,0,-G142/LookUp!$S$168*100/LookUp!$T$168) -> 
B151: Predicted Weight Loss/Gain (Kg/Hd/Day) | C151: =C142/ IF(C142<0,28,35) ->  | D151: =D142/ IF(D142<0,28,35) ->  | E151: =E142/ IF(E142<0,28,35) ->  | F151: =F142/ IF(F142<0,28,35) ->  | G151: =G142/ IF(G142<0,28,35) -> 
B152: Predicted Weight Loss/Gain (Total Kg/Hd) | C152: =C151*'Feed Ration'!$C$156 ->  | D152: =D151*'Feed Ration'!$D$156 ->  | E152: =E151*'Feed Ration'!$E$156 ->  | F152: =F151*'Feed Ration'!$F$156 ->  | G152: =G151*'Feed Ration'!$G$156 -> 
B153: Predicted Wt At End Feeding Period (Kg/Hd) | C153: =C152+'Feed Ration'!$C$152 ->  | D153: =D152+'Feed Ration'!$D$152 ->  | E153: =E152+'Feed Ration'!$E$152 ->  | F153: =F152+'Feed Ration'!$F$152 ->  | G153: =G152+'Feed Ration'!$G$152 -> 
B154: COST OF RATION
B155: Cost per MJ ME (cents)
B156: Supplement 1 | C156: =IF('Feed Ration'!$C$168="","",('Feed Ration'!$C$168*(100/LookUp!$T$136)/1000)/LookUp!$S$136*100) ->  | D156: =IF('Feed Ration'!$D$168="","",('Feed Ration'!$D$168*(100/LookUp!$T$137)/1000)/LookUp!$S$137*100) ->  | E156: =IF('Feed Ration'!$E$168="","",('Feed Ration'!$E$168*(100/LookUp!$T$138)/1000)/LookUp!$S$138*100) ->  | F156: =IF('Feed Ration'!$F$168="","",('Feed Ration'!$F$168*(100/LookUp!$T$139)/1000)/LookUp!$S$139*100) ->  | G156: =IF('Feed Ration'!$G$168="","",('Feed Ration'!$G$168*(100/LookUp!$T$140)/1000)/LookUp!$S$140*100) -> 
B157: Supplement 2 | C157: =IF('Feed Ration'!$C$176="","",('Feed Ration'!$C$176*(100/LookUp!$T$150)/1000)/LookUp!$S$150*100) ->  | D157: =IF('Feed Ration'!$D$176="","",('Feed Ration'!$D$176*(100/LookUp!$T$151)/1000)/LookUp!$S$151*100) ->  | E157: =IF('Feed Ration'!$E$176="","",('Feed Ration'!$E$176*(100/LookUp!$T$152)/1000)/LookUp!$S$152*100) ->  | F157: =IF('Feed Ration'!$F$176="","",('Feed Ration'!$F$176*(100/LookUp!$T$153)/1000)/LookUp!$S$153*100) ->  | G157: =IF('Feed Ration'!$G$176="","",('Feed Ration'!$G$176*(100/LookUp!$T$154)/1000)/LookUp!$S$154*100) -> 
B158: Supplement 3 | C158: =IF('Feed Ration'!$C$184="","",('Feed Ration'!$C$184*(100/LookUp!$T$164)/1000)/LookUp!$S$164*100) ->  | D158: =IF('Feed Ration'!$D$184="","",('Feed Ration'!$D$184*(100/LookUp!$T$165)/1000)/LookUp!$S$165*100) ->  | E158: =IF('Feed Ration'!$E$184="","",('Feed Ration'!$E$184*(100/LookUp!$T$166)/1000)/LookUp!$S$166*100) ->  | F158: =IF('Feed Ration'!$F$184="","",('Feed Ration'!$F$184*(100/LookUp!$T$167)/1000)/LookUp!$S$167*100) ->  | G158: =IF('Feed Ration'!$G$184="","",('Feed Ration'!$G$184*(100/LookUp!$T$168)/1000)/LookUp!$S$168*100) -> 
B159: Cost of Ration $/Hd | C159: =('Feed Ration'!C167*'Feed Ration'!C156*('Feed Ration'!C168/1000))+(('Feed Ration'!C176/1000)*'Feed Ration'!C175*'Feed Ration'!C156)+(('Feed Ration'!C184/1000)*'Feed Ration'!C183*'Feed Ration'!C156) -> 0 | D159: =('Feed Ration'!D167*'Feed Ration'!D156*('Feed Ration'!D168/1000))+(('Feed Ration'!D176/1000)*'Feed Ration'!D175*'Feed Ration'!D156)+(('Feed Ration'!D184/1000)*'Feed Ration'!D183*'Feed Ration'!D156) -> 0 | E159: =('Feed Ration'!E167*'Feed Ration'!E156*('Feed Ration'!E168/1000))+(('Feed Ration'!E176/1000)*'Feed Ration'!E175*'Feed Ration'!E156)+(('Feed Ration'!E184/1000)*'Feed Ration'!E183*'Feed Ration'!E156) -> 0 | F159: =('Feed Ration'!F167*'Feed Ration'!F156*('Feed Ration'!F168/1000))+(('Feed Ration'!F176/1000)*'Feed Ration'!F175*'Feed Ration'!F156)+(('Feed Ration'!F184/1000)*'Feed Ration'!F183*'Feed Ration'!F156) -> 0 | G159: =('Feed Ration'!G167*'Feed Ration'!G156*('Feed Ration'!G168/1000))+(('Feed Ration'!G176/1000)*'Feed Ration'!G175*'Feed Ration'!G156)+(('Feed Ration'!G184/1000)*'Feed Ration'!G183*'Feed Ration'!G156) -> 0
B160: Total Ration Cost | C160: =C159*'Feed Ration'!C155 -> 0 | D160: =D159*'Feed Ration'!D155 -> 0 | E160: =E159*'Feed Ration'!E155 -> 0 | F160: =F159*'Feed Ration'!F155 -> 0 | G160: =G159*'Feed Ration'!G155 -> 0
B161: Cost per KG LW Gained | C161: =IF(C152<=0,"",C159/C152) ->  | D161: =IF(D152<=0,"",D159/D152) ->  | E161: =IF(E152<=0,"",E159/E152) ->  | F161: =IF(F152<=0,"",F159/F152) ->  | G161: =IF(G152<=0,"",G159/G152) -> 
B162: Dressing % | C162: =IF('Feed Ration'!C220="","",'Feed Ration'!C220) ->  | D162: =IF('Feed Ration'!D220="","",'Feed Ration'!D220) ->  | E162: =IF('Feed Ration'!E220="","",'Feed Ration'!E220) ->  | F162: =IF('Feed Ration'!F220="","",'Feed Ration'!F220) ->  | G162: =IF('Feed Ration'!G220="","",'Feed Ration'!G220) -> 
B163: Cost per Kg CW Gained | C163: =IF(C162="","",IF(C161="","",C161/(C162/100))) ->  | D163: =IF(D162="","",IF(D161="","",D161/(D162/100))) ->  | E163: =IF(E162="","",IF(E161="","",E161/(E162/100))) ->  | F163: =IF(F162="","",IF(F161="","",F161/(F162/100))) ->  | G163: =IF(G162="","",IF(G161="","",G161/(G162/100))) -> 
B166: Ration 1
B168: 40% dig, 4.8 MJ ME/kg - Dry (Dead) | C168: 4.8
B169: 50% dig, 6.5 MJ ME/kg - Dry, perennial | C169: 6.5
B170: 60% dig, 8.2 MJ ME/kg - Gone to seed | C170: 8.2
B171: 70% dig, 10 MJ ME/kg - Green, grassy | C171: 10
B172: 75% dig, 10.8 MJ ME/kg - Green, 15-30% clover | C172: 10.8
B173: 80% dig - 11.6 MJ ME/kg - Green, 60% clover | C173: 11.6
D174: 40 | E174: 50 | F174: 60 | G174: 70
C175: =HLOOKUP('Feed Ration'!$C$152,Results!D174:G175,2,FALSE) ->  | D175: 0.78 | E175: 1 | F175: 1.22 | G175: 1.44
B176: ME/KG DM | D176: 40% dig, 4.8 MJ ME/kg - Dry (Dead) | E176: 50% dig, 6.5 MJ ME/kg - Dry, perennial | F176: 60% dig, 8.2 MJ ME/kg - Gone to seed | G176: 70% dig, 10 MJ ME/kg - Green, grassy | H176: 75% dig, 10.8 MJ ME/kg - Green, 15-30% clover | I176: 80% dig - 11.6 MJ ME/kg - Green, 60% clover
B177: Pregnant EWE Energy Intake | C177: =HLOOKUP('Feed Ration'!$C$157,Results!$D$176:$I$193,2,FALSE) ->  | D177: 4.8 | E177: 6.5 | F177: 8.2 | G177: 10 | H177: 10.8 | I177: 11.6
B178: 500 | C178: =HLOOKUP('Feed Ration'!$C$157,Results!$D$176:$I$193,3,FALSE)/$C$177 ->  | D178: =0.9*$C$175 ->  | E178: =2.3*$C$175 ->  | F178: =2.3*$C$175 ->  | G178: =3.6*$C$175 ->  | H178: =4.7*$C$175 ->  | I178: =4.7*$C$175 -> 
B179: 600 | C179: =HLOOKUP('Feed Ration'!$C$157,Results!$D$176:$I$193,4,FALSE)/$C$177 ->  | D179: =1.2*$C$175 ->  | E179: =2.8*$C$175 ->  | F179: =3.2*$C$175 ->  | G179: =5*$C$175 ->  | H179: =6.5*$C$175 ->  | I179: =6.7*$C$175 -> 
B180: 700 | C180: =HLOOKUP('Feed Ration'!$C$157,Results!$D$176:$I$193,5,FALSE)/$C$177 ->  | D180: =1.5*$C$175 ->  | E180: =3.3*$C$175 ->  | F180: =4.1*$C$175 ->  | G180: =6.2*$C$175 ->  | H180: =8.2*$C$175 ->  | I180: =8.3*$C$175 -> 
B181: 800 | C181: =HLOOKUP('Feed Ration'!$C$157,Results!$D$176:$I$193,6,FALSE)/$C$177 ->  | D181: =1.675*$C$175 ->  | E181: =3.65*$C$175 ->  | F181: =4.9*$C$175 ->  | G181: =7.4*$C$175 ->  | H181: =9.5*$C$175 ->  | I181: =9.8*$C$175 -> 
B182: 900 | C182: =HLOOKUP('Feed Ration'!$C$157,Results!$D$176:$I$193,7,FALSE)/$C$177 ->  | D182: =1.85*$C$175 ->  | E182: =4*$C$175 ->  | F182: =5.7*$C$175 ->  | G182: =8.4*$C$175 ->  | H182: =10.8*$C$175 ->  | I182: =11*$C$175 -> 
B183: 1000 | C183: =HLOOKUP('Feed Ration'!$C$157,Results!$D$176:$I$193,8,FALSE)/$C$177 ->  | D183: =2.2*$C$175 ->  | E183: =4.7*$C$175 ->  | F183: =6.2*$C$175 ->  | G183: =9.2*$C$175 ->  | H183: =11.7*$C$175 ->  | I183: =12.1*$C$175 -> 
B184: 1100 | C184: =HLOOKUP('Feed Ration'!$C$157,Results!$D$176:$I$193,9,FALSE)/$C$177 ->  | D184: =2.35*$C$175 ->  | E184: =4.95*$C$175 ->  | F184: =6.9*$C$175 ->  | G184: =10*$C$175 ->  | H184: =12.5*$C$175 ->  | I184: =13*$C$175 -> 
B185: 1200 | C185: =HLOOKUP('Feed Ration'!$C$157,Results!$D$176:$I$193,10,FALSE)/$C$177 ->  | D185: =2.5*$C$175 ->  | E185: =5.2*$C$175 ->  | F185: =7.3*$C$175 ->  | G185: =10.7*$C$175 ->  | H185: =13.1*$C$175 ->  | I185: =13.8*$C$175 -> 
B186: 1300 | C186: =HLOOKUP('Feed Ration'!$C$157,Results!$D$176:$I$193,11,FALSE)/$C$177 ->  | D186: =2.8*$C$175 ->  | E186: =5.7*$C$175 ->  | F186: =7.8*$C$175 ->  | G186: =11.3*$C$175 ->  | H186: =13.8*$C$175 ->  | I186: =14.3*$C$175 -> 
B187: 1400 | C187: =HLOOKUP('Feed Ration'!$C$157,Results!$D$176:$I$193,12,FALSE)/$C$177 ->  | D187: =2.925*$C$175 ->  | E187: =5.875*$C$175 ->  | F187: =8.2*$C$175 ->  | G187: =11.8*$C$175 ->  | H187: =14.1*$C$175 ->  | I187: =14.8*$C$175 -> 
B188: 1500 | C188: =HLOOKUP('Feed Ration'!$C$157,Results!$D$176:$I$193,13,FALSE)/$C$177 ->  | D188: =3.05*$C$175 ->  | E188: =6.05*$C$175 ->  | F188: =8.7*$C$175 ->  | G188: =12.2*$C$175 ->  | H188: =14.4*$C$175 ->  | I188: =15.2*$C$175 -> 
B189: 1600 | C189: =HLOOKUP('Feed Ration'!$C$157,Results!$D$176:$I$193,14,FALSE)/$C$177 ->  | D189: =3.3*$C$175 ->  | E189: =6.4*$C$175 ->  | F189: =9*$C$175 ->  | G189: =12.7*$C$175 ->  | H189: =14.7*$C$175 ->  | I189: =15.5*$C$175 -> 
B190: 1700 | C190: =HLOOKUP('Feed Ration'!$C$157,Results!$D$176:$I$193,15,FALSE)/$C$177 ->  | D190: =3.425*$C$175 ->  | E190: =6.525*$C$175 ->  | F190: =9.3*$C$175 ->  | G190: =13*$C$175 ->  | H190: =14.9*$C$175 ->  | I190: =15.8*$C$175 -> 
B191: 1800 | C191: =HLOOKUP('Feed Ration'!$C$157,Results!$D$176:$I$193,16,FALSE)/$C$177 ->  | D191: =3.55*$C$175 ->  | E191: =6.65*$C$175 ->  | F191: =9.5*$C$175 ->  | G191: =13.2*$C$175 ->  | H191: =15.1*$C$175 ->  | I191: =16*$C$175 -> 
B192: 1900 | C192: =HLOOKUP('Feed Ration'!$C$157,Results!$D$176:$I$193,17,FALSE)/$C$177 ->  | D192: =3.8*$C$175 ->  | E192: =6.9*$C$175 ->  | F192: =9.9*$C$175 ->  | G192: =13.5*$C$175 ->  | H192: =15.2*$C$175 ->  | I192: =16.1*$C$175 -> 
B193: 2000 | C193: =HLOOKUP('Feed Ration'!$C$157,Results!$D$176:$I$193,18,FALSE)/$C$177 ->  | D193: =3.9*$C$175 ->  | E193: =7*$C$175 ->  | F193: =10.1*$C$175 ->  | G193: =13.8*$C$175 ->  | H193: =15.3*$C$175 ->  | I193: =16.3*$C$175 -> 
D194: 40% dig, 4.8 MJ ME/kg - Dry (Dead) | E194: 50% dig, 6.5 MJ ME/kg - Dry, perennial | F194: 60% dig, 8.2 MJ ME/kg - Gone to seed | G194: 70% dig, 10 MJ ME/kg - Green, grassy | H194: 75% dig, 10.8 MJ ME/kg - Green, 15-30% clover | I194: 80% dig - 11.6 MJ ME/kg - Green, 60% clover
B195: Dry Ewes | D195: 4.8 | E195: 6.5 | F195: 8.2 | G195: 10 | H195: 10.8 | I195: 11.6
B196: 500 | C196: =HLOOKUP('Feed Ration'!$C$157,Results!D194:I199,3,FALSE) ->  | D196: =Tables!$C$92/Tables!$I$92*D197 ->  | E196: =Tables!$D$92/Tables!$J$92*E197 ->  | F196: =Tables!$E$92/Tables!$K$92*F197 ->  | G196: =Tables!$F$92/Tables!$L$92*G197 ->  | H196: =Tables!$G$92/Tables!$M$92*H197 ->  | I196: =Tables!$H$92/Tables!$N$92*I197 -> 
B197: 1000 | C197: =HLOOKUP('Feed Ration'!$C$157,Results!D194:I199,4,FALSE) ->  | D197: =(1.9/D195)*C175 ->  | E197: =(4.5/E195)*C175 ->  | F197: =(7/F195)*C175 ->  | G197: =(10.2/G195)*C175 ->  | H197: =(11.85/H195)*C175 ->  | I197: =(13.5/I195)*C175 -> 
B198: 1500 | C198: =HLOOKUP('Feed Ration'!$C$157,Results!D194:I199,5,FALSE) ->  | D198: =Tables!$O$92/Tables!$I$92*Results!D197 ->  | E198: =Tables!$P$92/Tables!$J$92*Results!E197 ->  | F198: =Tables!$Q$92/Tables!$K$92*Results!F197 ->  | G198: =Tables!$R$92/Tables!$L$92*Results!G197 ->  | H198: =Tables!$S$92/Tables!$M$92*Results!H197 ->  | I198: =Tables!$T$92/Tables!$N$92*Results!I197 -> 
B199: 2000 | C199: =HLOOKUP('Feed Ration'!$C$157,Results!D194:I199,6,FALSE) ->  | D199: =D198 -> 
B201: Ration 2
B203: 40% dig, 4.8 MJ ME/kg - Dry (Dead) | C203: 4.8
B204: 50% dig, 6.5 MJ ME/kg - Dry, perennial | C204: 6.5
B205: 60% dig, 8.2 MJ ME/kg - Gone to seed | C205: 8.2
B206: 70% dig, 10 MJ ME/kg - Green, grassy | C206: 10
B207: 75% dig, 10.8 MJ ME/kg - Green, 15-30% clover | C207: 10.8
B208: 80% dig - 11.6 MJ ME/kg - Green, 60% clover | C208: 11.6
D209: 40 | E209: 50 | F209: 60 | G209: 70
C210: =HLOOKUP('Feed Ration'!$D$152,Results!D209:G210,2,FALSE) ->  | D210: 0.78 | E210: 1 | F210: 1.22 | G210: 1.44
B211: ME/KG DM | D211: 40% dig, 4.8 MJ ME/kg - Dry (Dead) | E211: 50% dig, 6.5 MJ ME/kg - Dry, perennial | F211: 60% dig, 8.2 MJ ME/kg - Gone to seed | G211: 70% dig, 10 MJ ME/kg - Green, grassy | H211: 75% dig, 10.8 MJ ME/kg - Green, 15-30% clover | I211: 80% dig - 11.6 MJ ME/kg - Green, 60% clover
B212: Pregnant EWE Energy Intake | C212: =HLOOKUP('Feed Ration'!$D$157,Results!$D$176:$I$193,2,FALSE) ->  | D212: 4.8 | E212: 6.5 | F212: 8.2 | G212: 10 | H212: 10.8 | I212: 11.6
B213: 500 | C213: =HLOOKUP('Feed Ration'!$D$157,Results!$D$211:$I$228,3,FALSE)/$C$212 ->  | D213: =0.9*$C$210 ->  | E213: =2.3*$C$210 ->  | F213: =2.3*$C$210 ->  | G213: =3.6*$C$210 ->  | H213: =4.7*$C$210 ->  | I213: =4.7*$C$210 -> 
B214: 600 | C214: =HLOOKUP('Feed Ration'!$D$157,Results!$D$211:$I$228,4,FALSE)/$C$212 ->  | D214: =1.2*$C$210 ->  | E214: =2.8*$C$210 ->  | F214: =3.2*$C$210 ->  | G214: =5*$C$210 ->  | H214: =6.5*$C$210 ->  | I214: =6.7*$C$210 -> 
B215: 700 | C215: =HLOOKUP('Feed Ration'!$D$157,Results!$D$211:$I$228,5,FALSE)/$C$212 ->  | D215: =1.5*$C$210 ->  | E215: =3.3*$C$210 ->  | F215: =4.1*$C$210 ->  | G215: =6.2*$C$210 ->  | H215: =8.2*$C$210 ->  | I215: =8.3*$C$210 -> 
B216: 800 | C216: =HLOOKUP('Feed Ration'!$D$157,Results!$D$211:$I$228,6,FALSE)/$C$212 ->  | D216: =1.675*$C$210 ->  | E216: =3.65*$C$210 ->  | F216: =4.9*$C$210 ->  | G216: =7.4*$C$210 ->  | H216: =9.5*$C$210 ->  | I216: =9.8*$C$210 -> 
B217: 900 | C217: =HLOOKUP('Feed Ration'!$D$157,Results!$D$211:$I$228,7,FALSE)/$C$212 ->  | D217: =1.85*$C$210 ->  | E217: =4*$C$210 ->  | F217: =5.7*$C$210 ->  | G217: =8.4*$C$210 ->  | H217: =10.8*$C$210 ->  | I217: =11*$C$210 -> 
B218: 1000 | C218: =HLOOKUP('Feed Ration'!$D$157,Results!$D$211:$I$228,8,FALSE)/$C$212 ->  | D218: =2.2*$C$210 ->  | E218: =4.7*$C$210 ->  | F218: =6.2*$C$210 ->  | G218: =9.2*$C$210 ->  | H218: =11.7*$C$210 ->  | I218: =12.1*$C$210 -> 
B219: 1100 | C219: =HLOOKUP('Feed Ration'!$D$157,Results!$D$211:$I$228,9,FALSE)/$C$212 ->  | D219: =2.35*$C$210 ->  | E219: =4.95*$C$210 ->  | F219: =6.9*$C$210 ->  | G219: =10*$C$210 ->  | H219: =12.5*$C$210 ->  | I219: =13*$C$210 -> 
B220: 1200 | C220: =HLOOKUP('Feed Ration'!$D$157,Results!$D$211:$I$228,10,FALSE)/$C$212 ->  | D220: =2.5*$C$210 ->  | E220: =5.2*$C$210 ->  | F220: =7.3*$C$210 ->  | G220: =10.7*$C$210 ->  | H220: =13.1*$C$210 ->  | I220: =13.8*$C$210 -> 
... 113 more rows

Sheet Feed Ration (hidden)
B4: LIVESTOCK GRAZING
B5: Paddock | C5: Area | D5: Stock Type | E5: Ave Weight | F5: Physiological | G5: No. Stock | H5: Stock Type | I5: Ave Weight | J5: Physiological | K5: No. Stock | L5: Stock Type | M5: Ave Weight | N5: Physiological | O5: No. Stock | P5: Stock Type | Q5: Ave Weight | R5: Physiological | S5: No. Stock
B6: Name | C6: (Ha) | D6: 1 | E6: Kg/Hd | F6: State | G6: Grazing | H6: 2 | I6: Kg/Hd | J6: State | K6: Grazing | L6: 3 | M6: Kg/Hd | N6: State | O6: Grazing | P6: 4 | Q6: Kg/Hd | R6: State | S6: Grazing
B7: home | C7: 50 | D7: Cows | E7: 500 | F7: Dry/Late Pregnancy | G7: 100 | H7: Cows | I7: 600 | J7: Early lactation (2 mths) | K7: 50
B8: a | C8: 20 | D8: Weaner Cattle | E8: 200 | F8: Not Applicable
B9: b | C9: 30
B10: c | C10: 10
B11: d | C11: 40 | D11: Weaner Cattle | E11: 300 | G11: 200
B12: e | C12: 20
B13: f | C13: 50
B18: PASTURE GROWTH
B19: Paddock | C19: Days Since | D19: Pasture Avail Now | E19: Digestibility | F19: Days Grazing Since
B20: Name | C20: Last Measurement | D20: (kg DM/Ha) | E20: (%) | F20: Last Measurement
B21: =IF(B7="","",B7) -> home | C21: 30 | D21: 1000 | E21: 60 | F21: 20
B22: =IF(B8="","",B8) -> a | C22: 30 | D22: 2000 | E22: 70 | F22: 0
B23: b
B24: c
B25: d | C25: 30 | D25: 500 | E25: 80 | F25: 25
B26: e
B27: f
B32: PASTURE AVAILABILITY
B33: Paddock | C33: Area | D33: At Last Measurement | F33: Now
B34: Name | C34: (Ha) | D34: Ave Pasture | E34: Ave Pasture | F34: Ave Pasture | G34: Ave Pasture
D35: Height (cm) | E35: Density | F35: Height (cm) | G35: Density
B36: =IF(B21="","",B21) -> home | C36: =IF(C7="","",C7) -> 50 | D36: 5 | E36: Moderate | F36: 2 | G36: Dense
B37: a | C37: 20 | D37: 4 | E37: Moderate | F37: 5 | G37: Dense
B38: b | C38: 30
B39: c | C39: 10
B40: d | C40: 40 | D40: 5 | E40: Light | F40: 5 | G40: Light
B41: e | C41: 20
B42: f | C42: 50
B47: PASTURE ROTATION
B49: Total Days In Rotation* | D49: 50
B50: *Base rotation length on the time it takes for perennial grasses to reach their maximum number of leaves on each tiller.
B51: Phalaris gets 4 leaves, ryegrass gets 3 leaves, fescue gets 4 leaves and cocksfoot gets 5 leaves.
B52: In general, autumn rotations will be 30-40 days, winter rotations will be 40-60 days, spring rotations will be 20-30 days,
B53: summer rotations will be around 70 days. The time it takes to produce a new leaf is dependent on moisture and temperature.
B54: Soil fertility has no influence on leaf appearence rate, it will only affect size.
B56: Paddocks In Rotation
B57: Paddock | C57: Area | D57: Paddock | E57: Effective | F57: Days in paddock | G57: Feed Available | H57: Estimated pasture growth per day | I57: Feed you want available when take animals out | J57: Feed you will have when you take the animals out | K57: Number of days paddock will last to reach target feed available
B58: Name | C58: (Ha) | D58: Rating | E58: Paddock | G58: Now
D59: (0-1)* | E59: Area (Ha) ** | G59: (kg DM/Ha)
B60: a | C60: 50 | D60: 1 | E60: =IF(C60="","",C60*D60) -> 50 | F60: =E60/(SUM(E61:E66))*D49 -> 20.32520325 | G60: 1100 | H60: 20 | I60: 1000 | J60: =(G60+H60*F60)-($D$74*D263/$C$60)+#REF!*H60 ->  | K60: =(G60-I60+H60*#REF!)/-(H60-($D$74*$D$263*1.3)/C60*1.3) -> 
B61: b | C61: 20 | D61: 0.8 | E61: =IF(C61="","",C61*D61) -> 16 | F61: =E61/(SUM(E62:E66,E60))*$D$49 -> 5.095541401 | G61: 1100 | H61: 20 | I61: 1000 | J61: =(G61+H61*F61)-($D$74*D264/$C$60)+#REF!*H61 ->  | K61: =(G61-I61+H61*#REF!)/-(H61-($D$74*$D$263*1.3)/C61*1.3) -> 
B62: c | C62: 10 | D62: 0.3 | E62: 3 | F62: =E62/(SUM(E63:E66,E61,E60))*$D$49 -> 0.8823529412 | G62: 2000 | H62: 20 | I62: 1000 | J62: =(G62+H62*F62)-($D$74*D265/$C$60)+#REF!*H62 ->  | K62: =(G62-I62+H62*#REF!)/-(H62-($D$74*$D$263*1.3)/C62*1.3) -> 
B63: d | C63: 30 | D63: 0.5 | E63: 15 | F63: =E63/(SUM(E64:E66,E60:E62))*$D$49 -> 4.746835443 | G63: 2000 | H63: 10 | I63: 1000 | J63: =(G63+H63*F63)-($D$74*D266/$C$60)+#REF!*H63 ->  | K63: =(G63-I63+H63*#REF!)/-(H63-($D$74*$D$263*1.3)/C63*1.3) -> 
B64: e | C64: 40 | D64: 0.9 | E64: 36 | F64: =E64/(SUM(E65:E66,E60:E63))*$D$49 -> 13.13868613 | G64: 1200 | H64: 10 | I64: 1000 | J64: =(G64+H64*F64)-($D$74*D267/$C$60)+#REF!*H64 ->  | K64: =(G64-I64+H64*#REF!)/-(H64-($D$74*$D$263*1.3)/C64*1.3) -> 
B65: f | C65: 50 | D65: 1 | E65: 50 | F65: =E65/(SUM(E66,E60:E64))*$D$49 -> 20.32520325 | G65: 1100 | H65: 20 | I65: 1000 | J65: =(G65+H65*F65)-($D$74*D268/$C$60)+#REF!*H65 ->  | K65: =(G65-I65+H65*#REF!)/-(H65-($D$74*$D$263*1.3)/C65*1.3) -> 
B66: g | C66: 30 | D66: 0.1 | E66: 3 | F66: =E66/(SUM(E60:E65))*$D$49 -> 0.8823529412 | G66: 1100 | H66: 10 | I66: 1000 | J66: =(G66+H66*F66)-($D$74*D269/$C$60)+#REF!*H66 ->  | K66: =(G66-I66+H66*#REF!)/-(H66-($D$74*$D$263*1.3)/C66*1.3) -> 
B70: *Your paddock rating should be 1 for your best paddock and between 0 and 1 for other paddocks.
B71: Eg. A paddock that produces half as much as your best paddock should have a rating of 0.5.
B72: ** Equal to paddock area multiplied by paddock rating.
B74: Number of animals in rotation | D74: 100
B76: PLANNED GRAZING SCHEDULE
B77: Paddock | C77: Area | D77: No. Days To | E77: Desired Feed
B78: Name | D78: Be Grazed | E78: Avail. At End Of
E79: Period (kg DM/Ha)
B80: =B21 -> home | C80: =C36 -> 50 | D80: 6 | E80: 1000
B81: =B22 -> a | C81: =C37 -> 20 | D81: 5 | E81: 1000
B82: b | C82: 30
B83: c | C83: 10
B84: d | C84: 40 | D84: 7 | E84: 1000
B85: e | C85: 20
B86: f | C86: 50
B91: LIVESTOCK GRAZING (PLANNED)
B92: Paddock | C92: Stock Type | D92: Ave Weight | E92: Physiological | F92: No. Stock | G92: Stock Type | H92: Ave Weight | I92: Physiological | J92: No. Stock | K92: Stock Type | L92: Ave Weight | M92: Physiological | N92: No. Stock | O92: Stock Type | P92: Ave Weight | Q92: Physiological | R92: No. Stock
B93: Name | C93: 1 | D93: Kg/Hd | E93: State | F93: Grazing | G93: 2 | H93: Kg/Hd | I93: State | J93: Grazing | K93: 3 | L93: Kg/Hd | M93: State | N93: Grazing | O93: 4 | P93: Kg/Hd | Q93: State | R93: Grazing
B94: =B80 -> home | C94: Cows | D94: 600 | E94: Dry/Late Pregnancy | F94: 200 | G94: Weaner Cattle
B95: =B81 -> a | C95: Weaner Cattle | D95: 400 | F95: 100 | G95: Lambs
B96: b
B97: c
B98: d | C98: Ewes/Wethers | D98: 60 | F98: 300
B99: e
B100: f
B111: SUMMER FEED BUDGET
B112: Pasture Details
B113: Paddock | C113: Area | D113: No. Days Until | E113: Av. Pasture | F113: Desired Pasture | G113: Estimated | H113: Av. Summer | I113: Av. Pasture
B114: Name | C114: (Ha) | D114: End of Growing | E114: Growth Until | F114: Avail. At Autumn | G114: No. Days From End | H114: Pasture | I114: Digestibility
D115: Season | E115: End Growing | F115: Break | G115: Of Growing Season | H115: Growth | I115: During
E116: Season | F116: (Kg DM/Ha) | G116: To Autumn Break | H116: (may be zero) | I116: Summer
E117: (Kg/Ha/Day) | H117: (Kg/Ha/Day) | I117: (%)
B118: =IF(B36="","",B36) -> home | C118: 50
B119: a | C119: 20
B120: b | C120: 30
B121: c | C121: 10
B122: d | C122: 40
B123: e | C123: 20
B124: f | C124: 50
B129: Livestock Details
B130: (Stock to Be Carried Through The Summer)
B131: Paddock | C131: Area | D131: Stock Type | E131: Ave Weight | F131: Physiological | G131: No. Stock | H131: Stock Type | I131: Ave Weight | J131: Physiological | K131: No. Stock | L131: Stock Type | M131: Ave Weight | N131: Physiological | O131: No. Stock | P131: Stock Type | Q131: Ave Weight | R131: Physiological | S131: No. Stock
B132: Name | C132: (Ha) | D132: 1 | E132: Kg/Hd | F132: State | G132: Grazing | H132: 2 | I132: Kg/Hd | J132: State | K132: Grazing | L132: 3 | M132: Kg/Hd | N132: State | O132: Grazing | P132: 4 | Q132: Kg/Hd | R132: State | S132: Grazing
B133: =IF(B36="","",B36) -> home | C133: 50
B134: a | C134: 20
B135: b | C135: 30
B136: c | C136: 10
B137: d | C137: 40
B138: e | C138: 20
B139: f | C139: 50
B145: DEVELOP A FEED RATION
B147: Each time you change a stock type selection you must re-select Av. Weight, Physiological State,
B148: and Twins/Singles values from the lists.
C150: Ration 1 | D150: Ration 2 | E150: Ration 3 | F150: Ration 4 | G150: Ration 5
B151: Livestock Class
B152: Av. Weight (Kg/Hd)
B153: Physiological State
B154: Twins/Singles
B155: No. To Be Fed
B156: No. Days on Feed
B157: Pasture Quality
B158: Food on Offer (Kg/Ha)
B159: Maintenance Energy Required (MJ ME/Hd/Day) | C159: =IF(C151="","",IF(C153="","",IF(C154="","",IF(C155="","",IF(C157="","",IF(C158="","",IF(C156="","",Results!C131))))))) ->  | D159: =IF(D151="","",IF(D153="","",IF(D154="","",IF(D155="","",IF(D157="","",IF(D158="","",IF(D156="","",Results!D131))))))) ->  | E159: =IF(E151="","",IF(E153="","",IF(E154="","",IF(E155="","",IF(E157="","",IF(E158="","",IF(E156="","",Results!E131))))))) ->  | F159: =IF(F151="","",IF(F153="","",IF(F154="","",IF(F155="","",IF(F157="","",IF(F158="","",IF(F156="","",Results!F131))))))) ->  | G159: =IF(G151="","",IF(G153="","",IF(G154="","",IF(G155="","",IF(G157="","",IF(G158="","",IF(G156="","",Results!G131))))))) -> 
B160: Pasture Intake (Kg/Hd/Day) | C160: =IF(C158=500,IF(C158="",0,LookUp!$U$185),IF(C158=1000,IF(C158="",0,LookUp!$U$185),IF(C158=1500,IF(C158="",0,LookUp!$U$185),IF(C158=2000,IF(C158="",0,LookUp!$U$185),IF(LookUp!$R$185=500,(((C158-500)/500)*(LookUp!$AC$185-LookUp!$U$185))+LookUp!$U$185,IF(LookUp!$R$185=600,(((C158-1000)/500)*(LookUp!$AC$185-LookUp!$U$185))+LookUp!$U$185,IF(LookUp!$R$185=700,(((C158-1500)/500)*(LookUp!$AC$185-LookUp!$U$185))+LookUp!$U$185,IF(LookUp!$R$185=800,(((C158-2000)/500)*(LookUp!$AC$185-LookUp!$U$185))+LookUp!$U$185,LookUp!$U$185)))))))) -> 0 | D160: =IF(D158=500,IF(D158="",0,LookUp!$U$186),IF(D158=1000,IF(D158="",0,LookUp!$U$186),IF(D158=1500,IF(D158="",0,LookUp!$U$186),IF(D158=2000,IF(D158="",0,LookUp!$U$186),IF(LookUp!$R$186=500,(((D158-500)/500)*(LookUp!$AC$186-LookUp!$U$186))+LookUp!$U$186,IF(LookUp!$R$186=600,(((D158-1000)/500)*(LookUp!$AC$186-LookUp!$U$186))+LookUp!$U$186,IF(LookUp!$R$186=700,(((D158-1500)/500)*(LookUp!$AC$186-LookUp!$U$186))+LookUp!$U$186,IF(LookUp!$R$186=800,(((D158-2000)/500)*(LookUp!$AC$186-LookUp!$U$186))+LookUp!$U$186,LookUp!$U$186)))))))) -> 0 | E160: =IF(E158=500,IF(E158="",0,LookUp!$U$187),IF(E158=1000,IF(E158="",0,LookUp!$U$187),IF(E158=1500,IF(E158="",0,LookUp!$U$187),IF(E158=2000,IF(E158="",0,LookUp!$U$187),IF(LookUp!$R$187=500,(((E158-500)/500)*(LookUp!$AC$187-LookUp!$U$187))+LookUp!$U$187,IF(LookUp!$R$187=600,(((E158-1000)/500)*(LookUp!$AC$187-LookUp!$U$187))+LookUp!$U$187,IF(LookUp!$R$187=700,(((E158-1500)/500)*(LookUp!$AC$187-LookUp!$U$187))+LookUp!$U$187,IF(LookUp!$R$187=800,(((E158-2000)/500)*(LookUp!$AC$187-LookUp!$U$187))+LookUp!$U$187,LookUp!$U$187)))))))) -> 0 | F160: =IF(F158=500,IF(F158="",0,LookUp!$U$188),IF(F158=1000,IF(F158="",0,LookUp!$U$188),IF(F158=1500,IF(F158="",0,LookUp!$U$188),IF(F158=2000,IF(F158="",0,LookUp!$U$188),IF(LookUp!$R$188=500,(((F158-500)/500)*(LookUp!$AC$188-LookUp!$U$188))+LookUp!$U$188,IF(LookUp!$R$188=600,(((F158-1000)/500)*(LookUp!$AC$188-LookUp!$U$188))+LookUp!$U$188,IF(LookUp!$R$188=700,(((F158-1500)/500)*(LookUp!$AC$188-LookUp!$U$188))+LookUp!$U$188,IF(LookUp!$R$188=800,(((F158-2000)/500)*(LookUp!$AC$188-LookUp!$U$188))+LookUp!$U$188,LookUp!$U$188)))))))) -> 0 | G160: =IF(G158=500,IF(G158="",0,LookUp!$U$189),IF(G158=1000,IF(G158="",0,LookUp!$U$189),IF(G158=1500,IF(G158="",0,LookUp!$U$189),IF(G158=2000,IF(G158="",0,LookUp!$U$189),IF(LookUp!$R$189=500,(((G158-500)/500)*(LookUp!$AC$189-LookUp!$U$189))+LookUp!$U$189,IF(LookUp!$R$189=600,(((G158-1000)/500)*(LookUp!$AC$189-LookUp!$U$189))+LookUp!$U$189,IF(LookUp!$R$189=700,(((G158-1500)/500)*(LookUp!$AC$189-LookUp!$U$189))+LookUp!$U$189,IF(LookUp!$R$189=800,(((G158-2000)/500)*(LookUp!$AC$189-LookUp!$U$189))+LookUp!$U$189,LookUp!$U$189)))))))) -> 0
B161: % of Total Ration as Pasture | C161: =IF(C159="","",Results!C138) ->  | D161: =IF(D159="","",Results!D138) ->  | E161: =IF(E159="","",Results!E138) ->  | F161: =IF(F159="","",Results!F138) ->  | G161: =IF(G159="","",Results!G138) -> 
B162: Energy Intake from Pasture (MJME/Hd/Day) | C162: =IF(C160=0,0,IF(Results!C133="Pasture unsuitable","Pasture unsuitable",(Results!C133)*IF(C160=0,0,(C160/LookUp!$U$185)))) -> 0 | D162: =IF(D160=0,0,IF(Results!D133="Pasture unsuitable","Pasture unsuitable",(Results!D133)*IF(D160=0,0,(D160/LookUp!$U$186)))) -> 0 | E162: =IF(E160=0,0,IF(Results!E133="Pasture unsuitable","Pasture unsuitable",(Results!E133)*IF(E160=0,0,(E160/LookUp!$U$187)))) -> 0 | F162: =IF(F160=0,0,IF(Results!F133="Pasture unsuitable","Pasture unsuitable",(Results!F133)*IF(F160=0,0,(F160/LookUp!$U$188)))) -> 0 | G162: =IF(G160=0,0,IF(Results!G133="Pasture unsuitable","Pasture unsuitable",(Results!G133)*IF(G160=0,0,(G160/LookUp!$U$189)))) -> 0
B163: Protein % - Pasture | C163: =IF(C159="","",LookUp!$M$185) ->  | D163: =IF(D159="","",LookUp!$M$186) ->  | E163: =IF(E159="","",LookUp!$M$187) ->  | F163: =IF(F159="","",LookUp!$M$188) ->  | G163: =IF(G159="","",LookUp!$M$189) -> 
B164: Fibre % - Pasture | C164: =IF(C159="","",LookUp!$N$185) ->  | D164: =IF(D159="","",LookUp!$N$186) ->  | E164: =IF(E159="","",LookUp!$N$187) ->  | F164: =IF(F159="","",LookUp!$N$188) ->  | G164: =IF(G159="","",LookUp!$N$189) -> 
B165: Supplement 1
B166: Grain Form
B167: Amount as Fed (Kg/Hd/Day)
B168: Value ($/Tonne)
B169: Supplement 1 % Of Total Ration | C169: =IF(C167="","",Results!C139) ->  | D169: =IF(D167="","",Results!D139) ->  | E169: =IF(E167="","",Results!E139) ->  | F169: =IF(F167="","",Results!F139) ->  | G169: =IF(G167="","",Results!G139) -> 
B170: Energy Intake from Supplement 1 (MJME/Hd/Day) | C170: =Results!C134 ->  | D170: =Results!D134 ->  | E170: =Results!E134 ->  | F170: =Results!F134 ->  | G170: =Results!G134 -> 
B171: Protein % - Supplement 1 | C171: =IF(C167="","",LookUp!$U$136) ->  | D171: =IF(D167="","",LookUp!$U$137) ->  | E171: =IF(E167="","",LookUp!$U$138) ->  | F171: =IF(F167="","",LookUp!$U$139) ->  | G171: =IF(G167="","",LookUp!$U$140) -> 
B172: Fibre % - Supplement 1 | C172: =IF(C167="","",LookUp!$V$136) ->  | D172: =IF(D167="","",LookUp!$V$137) ->  | E172: =IF(E167="","",LookUp!$V$138) ->  | F172: =IF(F167="","",LookUp!$V$139) ->  | G172: =IF(G167="","",LookUp!$V$140) -> 
B173: Supplement 2
B174: Grain Form
B175: Amount as Fed (Kg/Hd/Day)
B176: Value ($/Tonne)
B177: Supplement 2 % Of Total Ration | C177: =IF(C175="","",Results!C140) ->  | D177: =IF(D175="","",Results!D140) ->  | E177: =IF(E175="","",Results!E140) ->  | F177: =IF(F175="","",Results!F140) ->  | G177: =IF(G175="","",Results!G140) -> 
B178: Energy Intake from Supplement 2 (MJME/Hd/Day) | C178: =Results!C135 ->  | D178: =Results!D135 ->  | E178: =Results!E135 ->  | F178: =Results!F135 ->  | G178: =Results!G135 -> 
B179: Protein % - Supplement 2 | C179: =IF(C175="","",LookUp!$U$150) ->  | D179: =IF(D175="","",LookUp!$U$151) ->  | E179: =IF(E175="","",LookUp!$U$152) ->  | F179: =IF(F175="","",LookUp!$U$153) ->  | G179: =IF(G175="","",LookUp!$U$154) -> 
B180: Fibre % - Supplement 2 | C180: =IF(C175="","",LookUp!$V$150) ->  | D180: =IF(D175="","",LookUp!$V$151) ->  | E180: =IF(E175="","",LookUp!$V$152) ->  | F180: =IF(F175="","",LookUp!$V$153) ->  | G180: =IF(G175="","",LookUp!$V$154) -> 
B181: Supplement 3
B182: Grain Form
B183: Amount as Fed (Kg/Hd/Day)
B184: Value ($/Tonne)
B185: Supplement 3 % Of Total Ration | C185: =IF(C183="","",Results!C141) ->  | D185: =IF(D183="","",Results!D141) ->  | E185: =IF(E183="","",Results!E141) ->  | F185: =IF(F183="","",Results!F141) ->  | G185: =IF(G183="","",Results!G141) -> 
B186: Energy Intake from Supplement 3 (MJME/Hd/Day) | C186: =Results!C136 ->  | D186: =Results!D136 ->  | E186: =Results!E136 ->  | F186: =Results!F136 ->  | G186: =Results!G136 -> 
B187: Protein % - Supplement 3 | C187: =IF(C183="","",LookUp!$U$164) ->  | D187: =IF(D183="","",LookUp!$U$165) ->  | E187: =IF(E183="","",LookUp!$U$166) ->  | F187: =IF(F183="","",LookUp!$U$167) ->  | G187: =IF(G183="","",LookUp!$U$168) -> 
B188: Fibre % - Supplement 3 | C188: =IF(C183="","",LookUp!$V$164) ->  | D188: =IF(D183="","",LookUp!$V$165) ->  | E188: =IF(E183="","",LookUp!$V$166) ->  | F188: =IF(F183="","",LookUp!$V$167) ->  | G188: =IF(G183="","",LookUp!$V$168) -> 
B189: ENERGY, PROTEIN & FIBRE
B190: Energy Surplus/Deficit (MJME/Hd/Day) | C190: =IF(C159="","",Results!C142) ->  | D190: =IF(D159="","",Results!D142) ->  | E190: =IF(E159="","",Results!E142) ->  | F190: =IF(F159="","",Results!F142) ->  | G190: =IF(G159="","",Results!G142) -> 
B191: Protein % in Ration | C191: =IF($C$159="","",Results!$C$143) ->  | D191: =IF(D159="","",Results!D143) ->  | E191: =IF(E159="","",Results!E143) ->  | F191: =IF(F159="","",Results!F143) ->  | G191: =IF(G159="","",Results!G143) -> 
B192: Protein Status | C192: =IF($C$159="","",IF(Results!$C$143<$C$267,"Protein too low","Sufficient protein")) ->  | D192: =IF(D159="","",IF(Results!D143<D267,"Protein too low","Sufficient protein")) ->  | E192: =IF(E159="","",IF(Results!E143<E267,"Protein too low","Sufficient protein")) ->  | F192: =IF(F159="","",IF(Results!F143<F267,"Protein too low","Sufficient protein")) ->  | G192: =IF(G159="","",IF(Results!G143<G267,"Protein too low","Sufficient protein")) -> 
B193: Fibre % of Ration | C193: =IF(C159="","",Results!C144) ->  | D193: =IF(D159="","",Results!D144) ->  | E193: =IF(E159="","",Results!E144) ->  | F193: =IF(F159="","",Results!F144) ->  | G193: =IF(G159="","",Results!G144) -> 
B194: Fibre Status | C194: =IF(C159="","",IF(C266=1,IF(Results!C144<30,"Fibre too low",IF(C196>C197,IF(C193>50,"Reduce fibre intake","Sufficient fibre"),"Sufficient fibre")),IF(Results!C144<20,"Fibre too low",IF(C196>C197,IF(C193>50,"Reduce fibre intake","Sufficient fibre"),"Sufficient fibre")))) ->  | D194: =IF(D159="","",IF(D266=1,IF(Results!D144<30,"Fibre too low",IF(D196>D197,IF(D193>50,"Reduce fibre intake","Sufficient fibre"),"Sufficient fibre")),IF(Results!D144<20,"Fibre too low",IF(D196>D197,IF(D193>50,"Reduce fibre intake","Sufficient fibre"),"Sufficient fibre")))) ->  | E194: =IF(E159="","",IF(E266=1,IF(Results!E144<30,"Fibre too low",IF(E196>E197,IF(E193>50,"Reduce fibre intake","Sufficient fibre"),"Sufficient fibre")),IF(Results!E144<20,"Fibre too low",IF(E196>E197,IF(E193>50,"Reduce fibre intake","Sufficient fibre"),"Sufficient fibre")))) ->  | F194: =IF(F159="","",IF(F266=1,IF(Results!F144<30,"Fibre too low",IF(F196>F197,IF(F193>50,"Reduce fibre intake","Sufficient fibre"),"Sufficient fibre")),IF(Results!F144<20,"Fibre too low",IF(F196>F197,IF(F193>50,"Reduce fibre intake","Sufficient fibre"),"Sufficient fibre")))) ->  | G194: =IF(G159="","",IF(G266=1,IF(Results!G144<30,"Fibre too low",IF(G196>G197,IF(G193>50,"Reduce fibre intake","Sufficient fibre"),"Sufficient fibre")),IF(Results!G144<20,"Fibre too low",IF(G196>G197,IF(G193>50,"Reduce fibre intake","Sufficient fibre"),"Sufficient fibre")))) -> 
B195: DM INTAKE VS MAXIMUM DM INTAKE
B196: Total Intake (Kg DM/Hd/Day) | C196: =IF(C155="","",Results!C145) ->  | D196: =IF(D155="","",Results!D145) ->  | E196: =IF(E155="","",Results!E145) ->  | F196: =IF(F155="","",Results!F145) ->  | G196: =IF(G155="","",Results!G145) -> 
B197: Estimated Maximum Intake (Kg DM/Hd/Day) | C197: =IF(C159="","",IF(C151="Lambs","Max. intake calculation does not apply to lambs.",IF(C153="Lactating - 10 days","Max. intake calculation does not apply to lactating ewes.",IF(C153="Lactating - 30 days","Max. intake calculation does not apply to lactating ewes.",IF(C153="Lactating - 50 days","Max. intake calculation does not apply to lactating ewes.",Results!C146))))) ->  | D197: =IF(D159="","",IF(D151="Lambs","Max. intake calculation does not apply to lambs.",IF(D153="Lactating - 10 days","Max. intake calculation does not apply to lactating ewes.",IF(D153="Lactating - 30 days","Max. intake calculation does not apply to lactating ewes.",IF(D153="Lactating - 50 days","Max. intake calculation does not apply to lactating ewes.",Results!D146))))) ->  | E197: =IF(E159="","",IF(E151="Lambs","Max. intake calculation does not apply to lambs.",IF(E153="Lactating - 10 days","Max. intake calculation does not apply to lactating ewes.",IF(E153="Lactating - 30 days","Max. intake calculation does not apply to lactating ewes.",IF(E153="Lactating - 50 days","Max. intake calculation does not apply to lactating ewes.",Results!E146))))) ->  | F197: =IF(F159="","",IF(F151="Lambs","Max. intake calculation does not apply to lambs.",IF(F153="Lactating - 10 days","Max. intake calculation does not apply to lactating ewes.",IF(F153="Lactating - 30 days","Max. intake calculation does not apply to lactating ewes.",IF(F153="Lactating - 50 days","Max. intake calculation does not apply to lactating ewes.",Results!F146))))) ->  | G197: =IF(G159="","",IF(G151="Lambs","Max. intake calculation does not apply to lambs.",IF(G153="Lactating - 10 days","Max. intake calculation does not apply to lactating ewes.",IF(G153="Lactating - 30 days","Max. intake calculation does not apply to lactating ewes.",IF(G153="Lactating - 50 days","Max. intake calculation does not apply to lactating ewes.",Results!G146))))) -> 
B198: Dry Matter Intake Status | C198: =IF(C196>C197,"Ration exceeds possible intake. Reduce ration or replace high fibre feed (eg. hay) with a low fibre feed source (eg. grain).","") ->  | D198: =IF(D196>D197,"Ration exceeds possible intake. Reduce ration or replace high fibre feed (eg. hay) with a low fibre feed source (eg. grain).","") ->  | E198: =IF(E196>E197,"Ration exceeds possible intake. Reduce ration or replace high fibre feed (eg. hay) with a low fibre feed source (eg. grain).","") ->  | F198: =IF(F196>F197,"Ration exceeds possible intake. Reduce ration or replace high fibre feed (eg. hay) with a low fibre feed source (eg. grain).","") ->  | G198: =IF(G196>G197,"Ration exceeds possible intake. Reduce ration or replace high fibre feed (eg. hay) with a low fibre feed source (eg. grain).","") -> 
B199: EXTRA FEED REQ'D FOR MAINTENANCE
B200: Supplement 1 (Kg DM/Hd/Day) or | C200: =IF(C155="","",IF(C167="","",Results!C148)) ->  | D200: =IF(D155="","",IF(D167="","",Results!D148)) ->  | E200: =IF(E155="","",IF(E167="","",Results!E148)) ->  | F200: =IF(F155="","",IF(F167="","",Results!F148)) ->  | G200: =IF(G155="","",IF(G167="","",Results!G148)) -> 
B201: Supplement 2 (Kg DM/Hd/Day) or | C201: =IF(C155="","",IF(C175="","",Results!C149)) ->  | D201: =IF(D155="","",IF(D175="","",Results!D149)) ->  | E201: =IF(E155="","",IF(E175="","",Results!E149)) ->  | F201: =IF(F155="","",IF(F175="","",Results!F149)) ->  | G201: =IF(G155="","",IF(G175="","",Results!G149)) -> 
B202: Supplement 3 (Kg DM/Hd/Day) | C202: =IF(C155="","",IF(C183="","",Results!C150)) ->  | D202: =IF(D155="","",IF(D183="","",Results!D150)) ->  | E202: =IF(E155="","",IF(E183="","",Results!E150)) ->  | F202: =IF(F155="","",IF(F183="","",Results!F150)) ->  | G202: =IF(G155="","",IF(G183="","",Results!G150)) -> 
B203: PREDICTED WEIGHT LOSS/GAIN OF STOCK
B204: Predicted Weight Loss/Gain (Grams/Hd/Day)* | C204: =IF(C159="","",IF(C151="Cows",Results!C151*1000,IF(C151="Weaner Cattle",Results!C151*1000,IF(C151="Lambs",VLOOKUP('Feed Ration'!C152,LookUp!$C$108:$D$113,2,FALSE)*1000,LookUp!$D$109*1000)))) ->  | D204: =IF(D159="","",IF(D151="Cows",Results!D151*1000,IF(D151="Weaner Cattle",Results!D151*1000,IF('Feed Ration'!D151="Lambs",VLOOKUP('Feed Ration'!D152,LookUp!$C$114:$D$119,2,FALSE)*1000,LookUp!$D$115*1000)))) ->  | E204: =IF(E159="","",IF(E151="Cows",Results!E151*1000,IF(E151="Weaner Cattle",Results!E151*1000,IF('Feed Ration'!E151="Lambs",VLOOKUP('Feed Ration'!E152,LookUp!$C$120:$D$125,2,FALSE)*1000,LookUp!$D$121*1000)))) ->  | F204: =IF(F159="","",IF(F151="Cows",Results!F151*1000,IF(F151="Weaner Cattle",Results!F151*1000,IF('Feed Ration'!F151="Lambs",VLOOKUP('Feed Ration'!F152,LookUp!$G$108:$H$113,2,FALSE)*1000,LookUp!$H$109*1000)))) ->  | G204: =IF(G159="","",IF(G151="Cows",Results!G151*1000,IF(G151="Weaner Cattle",Results!G151*1000,IF('Feed Ration'!G151="Lambs",VLOOKUP('Feed Ration'!G152,LookUp!$G$114:$H$119,2,FALSE)*1000,LookUp!$H$115*1000)))) -> 
B205: Predicted Weight Loss/Gain (Total Kg/Hd)* | C205: =IF(C204="","",C204/1000*C156) ->  | D205: =IF(D204="","",D204/1000*D156) ->  | E205: =IF(E204="","",E204/1000*E156) ->  | F205: =IF(F204="","",F204/1000*F156) ->  | G205: =IF(G204="","",G204/1000*G156) -> 
B206: Predicted Wt At End Feeding Period (Kg/Hd) | C206: =IF(C204="","",C205+C152) ->  | D206: =IF(D204="","",D205+D152) ->  | E206: =IF(E204="","",E205+E152) ->  | F206: =IF(F204="","",F205+F152) ->  | G206: =IF(G204="","",G205+G152) -> 
B207: Predicted change in Cow/Ewe CS | C207: =IF(C204="","",IF(C151="Cows",C205/70,IF(C151="Ewes/Wethers",(C204*0.003)/30*C156,""))) ->  | D207: =IF(D204="","",IF(D151="Cows",D205/70,IF(D151="Ewes/Wethers",(D204*0.003)/30*D156,""))) ->  | E207: =IF(E204="","",IF(E151="Cows",E205/70,IF(E151="Ewes/Wethers",(E204*0.003)/30*E156,""))) ->  | F207: =IF(F204="","",IF(F151="Cows",F205/70,IF(F151="Ewes/Wethers",(F204*0.003)/30*F156,""))) ->  | G207: =IF(G204="","",IF(G151="Cows",G205/70,IF(G151="Ewes/Wethers",(G204*0.003)/30*G156,""))) -> 
B208: COST OF RATION
B209: Supplement 1 (cents per MJ ME) | C209: =Results!C156 ->  | D209: =Results!D156 ->  | E209: =Results!E156 ->  | F209: =Results!F156 ->  | G209: =Results!G156 -> 
B210: Supplement 2 (cents per MJ ME) | C210: =Results!C157 ->  | D210: =Results!D157 ->  | E210: =Results!E157 ->  | F210: =Results!F157 ->  | G210: =Results!G157 -> 
B211: Supplement 3 (cents per MJ ME) | C211: =Results!C158 ->  | D211: =Results!D158 ->  | E211: =Results!E158 ->  | F211: =Results!F158 ->  | G211: =Results!G158 -> 
B212: TOTAL FEED REQUIRED AND COST
B213: Total Tonnes Supplement 1 | C213: =IF(C167="","",C156*C167*C155/1000) ->  | D213: =IF(D167="","",D156*D167*D155/1000) ->  | E213: =IF(E167="","",E156*E167*E155/1000) ->  | F213: =IF(F167="","",F156*F167*F155/1000) ->  | G213: =IF(G167="","",G156*G167*G155/1000) -> 
B214: Total Tonnes Supplement 2 | C214: =IF(C175="","",C156*C175*C155/1000) ->  | D214: =IF(D175="","",D156*D175*D155/1000) ->  | E214: =IF(E175="","",E156*E175*E155/1000) ->  | F214: =IF(F175="","",F156*F175*F155/1000) ->  | G214: =IF(G175="","",G156*G175*G155/1000) -> 
B215: Total Tonnes Supplement 3 | C215: =IF(C183="","",C156*C183*C155/1000) ->  | D215: =IF(D183="","",D156*D183*D155/1000) ->  | E215: =IF(E183="","",E156*E183*E155/1000) ->  | F215: =IF(F183="","",F156*F183*F155/1000) ->  | G215: =IF(G183="","",G156*G183*G155/1000) -> 
B216: Cost of Ration $/Hd | C216: =IF(SUM(C209:C211)=0,"",Results!C159) ->  | D216: =IF(SUM(D209:D211)=0,"",Results!D159) ->  | E216: =IF(SUM(E209:E211)=0,"",Results!E159) ->  | F216: =IF(SUM(F209:F211)=0,"",Results!F159) ->  | G216: =IF(SUM(G209:G211)=0,"",Results!G159) -> 
B217: Total Ration Cost | C217: =IF(SUM(C209:C211)=0,"",Results!C160) ->  | D217: =IF(SUM(D209:D211)=0,"",Results!D160) ->  | E217: =IF(SUM(E209:E211)=0,"",Results!E160) ->  | F217: =IF(SUM(F209:F211)=0,"",Results!F160) ->  | G217: =IF(SUM(G209:G211)=0,"",Results!G160) -> 
B218: COST OF WEIGHT GAINED
B219: Cost per KG LW Gained | C219: =IF(C217="","",Results!C161) ->  | D219: =IF(D217="","",Results!D161) ->  | E219: =IF(E217="","",Results!E161) ->  | F219: =IF(F217="","",Results!F161) ->  | G219: =IF(G217="","",Results!G161) -> 
B220: Dressing %
B221: Cost per Kg CW Gained | C221: =Results!C163 ->  | D221: =Results!D163 ->  | E221: =Results!E163 ->  | F221: =Results!F163 ->  | G221: =Results!G163 -> 
B222: * Weight gain/loss for lactating cows can be variable depending upon milk production. Predicted weight change for lambs is based on a Merino weaner.
B224: Quality Of Supplements
B225: If you have Feedtest data on the supplements to be used click the button below to enter them.
B226: If you do not have Feedtest Results average figures will automatically be used -
B233: Enter FeedTest Results
B235: Supplement | C235: Dry Matter | D235: Energy | E235: Protein | F235: Fibre (NDF)
B236: Type | C236: % | D236: (MJ ME/kg DM) | E236: % | F236: %
B237: Wheat
B238: Barley
B239: Triticale
B240: Oats
B241: Lupins
B242: Peas
B243: Maize
B244: Safflower Seeds
B245: Rice
B246: Rye
B247: Sorghum
B248: Pellets
B249: Grass Hay
B250: Clover Hay
B251: Lucerne Hay
B252: Cereal Hay
B253: Canola Hay
B254: Grass Silage
B255: Clover Silage
... 6 more rows

Sheet Pasture growth calculation (hidden)
B2: PASTURE GROWTH CALCULATOR
B4: Enter data in the white boxes.
C6: DATA | D6: CALCULATIONS & COMMENTS | K6: Table 8: Approximate relationship between
B7: Date | K7: pasture height and kg green DM/ha (Prograze)
B8: PADDOCK DETAILS | K8: Height | L8: Light | M8: Moderate | N8: Dense
B9: Paddock Name | K9: 1 | L9: 250 | M9: 400 | N9: 500
B10: a) Number of hectares | K10: 2 | L10: 500 | M10: 700 | N10: 800
B11: b) Days since last measurement | K11: 3 | L11: 600 | M11: 1000 | N11: 1100
B12: c) Food on offer at last measurement (Kg DM/Ha) | D12: See Table 8 for help if required. | K12: 4 | L12: 800 | M12: 1200 | N12: 1400
B13: Pasture Quality | K13: 5 | L13: 1000 | M13: 1400 | N13: 1700
B14: d) Consumption Wastage Factor | D14: When stock graze pasture some losses occur through trampling, fouling, etc. Wastage is commonly between 15-40% of what is eaten each month. Use lower wastage for low stocking rates and dry paddocks; higher rates for higher stocking rates and wet paddocks. | K14: 6 | L14: 1150 | M14: 1600 | N14: 2000
B15: Decay Wastage Factor | D15: Only use in late spring and summer. In late spring and summer, wastage of pasture is high due to decay, trampling, wind, etc. Wastage of native perennials is 15-20%, introduced perennials 20-30% and for clover-based pastures 30-40% of the available pasture. | K15: 7 | L15: 1300 | M15: 1750 | N15: 2300
B16: e) Days grazing since last measurement | K16: 8 | L16: 1450 | M16: 1900 | N16: 2600
B17: f) Food on offer (Kg DM/Ha) | D17: See Table 8 for help if required. | K17: 9 | L17: 1600 | M17: 2000 | N17: 2800
B18: ANIMAL CONSUMPTION | K18: 10 | L18: 1700 | M18: 2100 | N18: 3000
B19: Stock type
B20: Average weight (Kg/Hd) | D20: If you change Stock type re-select Average Weight from list.
B21: Physiological state | D21: If you change Stock type re-select Physiological State from list.
B22: Twins/Singles | D22: If you change Stock type re-select Twins/Singles from list.
B23: g) Number of animals grazing
B24: h) Per head consumption (Kg DM/Hd/Day) | C24: =IF($C$12=500,IF(C19="",0,LookUp!$CT$5),IF($C$12=1000,IF(C19="",0,LookUp!$CT$5),IF($C$12=1500,IF(C19="",0,LookUp!$CT$5),IF($C$12=2000,IF(C19="",0,LookUp!$CT$5),IF(LookUp!$CQ$5=500,((($C$12-500)/500)*(LookUp!$CT$6-LookUp!$CT$5))+LookUp!$CT$5,IF(LookUp!$CQ$5=600,((($C$12-1000)/500)*(LookUp!$CT$6-LookUp!$CT$5))+LookUp!$CT$5,IF(LookUp!$CQ$5=700,((($C$12-1500)/500)*(LookUp!$CT$6-LookUp!$CT$5))+LookUp!$CT$5,IF(LookUp!$CQ$5=800,((($C$12-2000)/500)*(LookUp!$CT$6-LookUp!$CT$5))+LookUp!$CT$5,LookUp!$CT$5)))))))) -> 0
B25: Maintenance Energy Required (MJ ME/Hd/Day) | C25: =IF(C26=0,"",LookUp!CV5) -> 
B26: Energy consumption (MJ ME/Hd/Day) | C26: =IF(C24=0,0,IF(VLOOKUP(LookUp!CS5,LookUp!$AA$400:$AB$4026,2,FALSE)="Pasture unsuitable","Pasture unsuitable",IF(C24=0,0,IF(C19="Lambs",VLOOKUP(LookUp!CS5,LookUp!$AA$400:$AB$1841,2,FALSE),IF(C19="Ewes/Wethers",VLOOKUP(LookUp!CS5,LookUp!$AA$400:$AB$1841,2,FALSE),C24*((22.587*(VLOOKUP($C$13,LookUp!$D$185:$H$194,2,FALSE)))-5.2361))))*IF(C24=0,0,(C24/LookUp!CT5)))) -> 0 | D26: =IF(C26=0,"",IF(C26<LookUp!CV5," Energy intake is below maintenance.","")) -> 
B27: i) Total consumption (Kg DM/Day) | C27: =IF(C23="","",C23*C24) ->  | D27: =g*h
B28: j) Total consumption + wastage (Kg DM/Day) | C28: =IF(C27="","",C27*(1+C14)) ->  | D28: =i*(1+d)
B29: k) Total consumption per Ha since last measurement (Kg DM/Ha) | C29: =IF(C27="","",C28*C16/C10) ->  | D29: =i*e÷a
B30: FOOD ON OFFER & GROWTH
B31: l) Change in food on offer (Kg DM/Ha) | C31: =IF(C17="","",C17-C12) ->  | D31: =f-c
B32: m) Total pasture grown since last measurement (Kg DM/Ha) | C32: =IF(C29="","",C31+C29) ->  | D32: =k+l
B33: PASTURE GROWTH RATE (Kg DM/Ha/Day) | C33: =IF(C32="","",C32/C11) ->  | D33: =m÷b

Sheet How much feed will I have (hidden)
B2: HOW MUCH FEED WILL I HAVE IN 'X' NUMBER OF DAYS?
B4: Enter data in the white boxes.
C6: DATA | D6: CALCULATIONS & COMMENTS | K6: Table 8: Approximate relationship between | R6: Table 9: Monthly pasture growth rate estimates (Prograze)
B7: PADDOCK DETAILS | K7: pasture height and kg green DM/ha (Prograze) | S7: Pasture Type
B8: a) Paddock Size (Ha) | K8: Height | L8: Light | M8: Moderate | N8: Dense | R8: MONTH | S8: Poor | T8: Average | U8: Good | V8: Very Good
B9: b) Food on Offer (Kg DM/Ha) | D9: See Table 8 for help if required. | K9: 1 | L9: 250 | M9: 400 | N9: 500 | R9: April | S9: 5 | T9: 15 | U9: 25 | V9: 30
